Workbook

Sheet Cover
A1: About QsCell_PRC
B2: Version Beta
B3: Date: 15 Aug 2013
B4: Lead Author: Andres Cuevas, The Australian National University
B5: Contributing authors: S. Baker-Finch, S. Hargreaves, R. Sinton, D. Yan
B6: Acknowledgments: S. Bowden, K. Bothe, L. Black, E. Franklin, D. Macdonald, K. McIntosh, J. Swirhun
A8: Cell colours for inputs and outputs
A9: 1 | B9: Green font on white background indicates the cell is an input to the main program. Alter the numbers in these cells as desired.
A10: 2 | B10: Black font on blue background indicates a primary result from the calculations. Do not enter values in such cells.
A11: 3 | B11: Black font on yellow background indicates that a pull-down menu is available in that location.
A12: 4 | B12: Black font on grey background indicates a secondary result from the calculations. Do not enter values in such cells.
A13: 5 | B13: Dark grey font on grey background indicate background calculations. Do not enter values in such cells.
A15: Help
B16: The main worksheet in this version is locked to prevent changes to non-input cells. Unlock with caution.
B17: Enter values only in cells with green text. Use pull down menus for defects, mobility, ARC, surface texture.
B18: Changes to the illumination, anti-reflection coating, or wafer thickness require the generation profile to be recalculated. If the generation button is red, push it.
B19: Recombination is modelled by selecting up to two SRH defects and the surface recombination at 300K (recombination at the operating temperature will be calculated automatically).
B20: With the inputs defined and generation profile calculated, push the appropriate circuit parameter button to run the simulation.
B21: More advanced simulations and input parameters may be found in the appropriate sheets (e.g. optical, Injection dependence, spectral).
A23: Additional information
B24: The mathematical models are described in the papers below .
B25: A. Cuevas and R. Sinton, Simple modelling of solar cells, Proc. 23rd European Photovoltaic Solar Energy Conf., Valencia, September 2008, pp. 315-319.
B26: A. Cuevas, Modelling Silicon Characterisation, Energy Procedia, vol.8, 94-99 (2011).
A29: What is new in this version?
B30: improved determination of photogeneration including surface texturing, back mirror and light trapping
B31: (note: the Luminescence module uses a simplified optical model, not the complete one implemented in the photogeneration module)
B32: faster algorithm to determine the IV curve
B33: better selection of node position, to increase the number of nodes near front and back surfaces
B34: calculation of the Quasi-Fermi energies for electrons and holes
B35: updated list of defect parameters for SRH recombination
B36: updated interface
B37: improved compatibility with p+nn+ configurations
B38: goal-seeking accuracy increased

Sheet carrier profile
A1: QsCell_PRC | D1: See the Cover worksheet for instructions. | H1: =IF(ABS(gen_rec)>10,"Not Balanced","") ->  | Q1: Balance of carriers recombining or flowing out, as a fraction of absorbed carriers (Jph) | X1: 0
A2: 2012-06-05 | E2: Select a spectrum, or choose monochromatic and then type-in the wavelength in nm. Press the button to run the macro that calculates the generation rate
E3: Enter front and back surface recombination as Jof and Job at 300K. Select up to two SRH recombination defects.
A4: 2013-08-15 | C4: Structure | D4: Temperature | F4: Shockley-Read-Hall Recombination | J4: Spectral Properties | L4: Monochromatic Light Characteristics | Q4: R_front | R4: R_back | S4: R_bulk | T4: R_total | U4: Current out | V4: note: these percentages do not apply to the PRC case
B5: PRC | C5: =IF(Na>=Nd, "n+pp+","p+nn+") -> n+pp+ | D5: Celsius | E5: Kelvin | F5: SRH fundamental lifetimes | H5: defects | I5: density | J5: Suns | K5: Spectrum | L5: Wavelength | M5: I (W/cm2) | N5: Transmission | O5: alpha (cm-1) | P5: Nph (cm-3) | Q5: =(Jof/N_i^2)*(N_front+p_o)*(N_front+n_o)/Jph -> 0.01321514201 | R5: =(Job/N_i^2)*(N_back+p_o)*(N_back+n_o)/Jph -> 0.1617452803 | S5: =T5-R_front-R5 -> -0.1571954701 | T5: =R10/Jph -> 0.01776495214 | U5: =J/Jph -> 10.3485246
A6: Silicon Wafer Properties | D6: 26.84 | E6: =Celsius+273.16 -> 300 | F6: tno (s) | G6: tpo (s) | H6: none | I6: 1 | J6: 1 | K6: AM1.5Global | L6: 500 | M6: 0.1 | N6: =Generation!C7 -> 0.9977287836 | O6: =Generation!E7 -> 11100 | P6: =M6*Wavelength*0.000000001/($V$8*$W$8) -> 2.517084932e+17
A7: acceptors | B7: donors | C7: thickness | D7: Carrier Dynamics | F7: ='SRH Recombination'!I9 -> 9.090909091e+11 | G7: ='SRH Recombination'!J9 -> 9.090909091e+11 | H7: none | I7: 1 | J7: Anti-Reflection Coating | N7: illumination | V7: h | W7: c
A8: Na (cm-3) | B8: Nd (cm-3) | C8: W (cm) | D8: Diffusion Length | F8: Surface Recombination | H8: Intrinsic Recombination | J8: SiN | K8: d_arc (nm) | L8: ambient | M8: (1-shading) | N8: front | Q8: Generation - Recombination balance | V8: 6.626e-34 | W8: 299792458 | X8: =IF(Na<Nd,1,-1) -> -1
A9: 4500000000000000 | B9: 1 | C9: 0.016 | D9: Ln (cm) | E9: Lp (cm) | F9: Jof (A/cm2) | G9: Job (A/cm2) | H9: Model | I9: Rad. Recom | J9: textured | K9: 75 | L9: air | M9: 0.97 | N9: front | Q9: Gtotal | R9: Rtotal | S9: gen_rec | V9: ni | W9: ni_300
A10: Eq. Carrier Densities | C10: resistivity | D10: =SQRT(tno*mu_n*kT_q) -> 5334160.052 | E10: =SQRT(tpo*mu_p*kT_q) -> 3238399.454 | F10: 4e-14 | G10: 1e-12 | H10: Richter | I10: 0.3 | J10: Enter light trapping parameters in Generation sheet | N10: back | Q10: =SUM(C22:C222) -> 0.4033117493 | R10: =SUM(L22:L222) -> 0.0006911647495 | S10: =1000000*($Q$10-$R$10-J) -> -2.003397448e-07 | V10: =52900000000000000000*(T/300)^2.54*EXP(-6726/T) -> 9695570927 | W10: =52900000000000000000*(300/300)^2.54*EXP(-6726/300) -> 9695570927 | Y10: Front Optics Recalc?
A11: no | B11: po | C11: (Ω.cm) | D11: Mobility, low inj (cm2/(V.s)) | F11: Jof (T) | G11: Job (T) | H11: Calculation of Solar Cell Parameters | Q11: Rs_equiv | S11: air | T11: yes | V11: q | W11: kT_q | Y11: FALSE
A12: =IF(OR(Nd-Na>0, Nd-Na=0),(Nd-Na+SQRT((Nd-Na)^2+4*N_i^2))/2,N_i^2/p_o) -> 20889.79902 | B12: =IF(OR(Na-Nd>0, Na-Nd=0),((Na-Nd)+SQRT((Na-Nd)^2+4*N_i^2))/2,N_i^2/n_o) -> 4500000000020889 | C12: =1/(q*(p_o*mu_p+n_o*mu_n)) -> 3.108141193 | D12: μ_n | E12: μ_p | F12: =$F$10*N_i^2/ni_300^2 -> 4e-14 | G12: =$G$10*N_i^2/ni_300^2 -> 1e-12 | H12: Jsc calculation | I12: V_specified | K12: =IF($C$5="n+pp+",n_o*EXP($I$13/kT_q)-n_o,p_o*EXP($I$13/kT_q)-p_o) -> 2.511195121e+14 | L12: generic | Q12: =-Q14/J -> 0.04758680059 | S12: EVA | T12: no | V12: 1.6021773e-19 | W12: =0.00008617*T -> 0.025851
A13: Excess Carrier Densities | D13: =Mobility!Q7 -> 1210.730332 | E13: =Mobility!R7 -> 446.2478871 | H13: fast | I13: 0.6 | L13: fast | N13: Fermi-Dirac | Q13: base V drop | R13: Vn+ | S13: Vp+ | T13: Vtot
A14: ΔNinit | B14: ΔNfront | C14: ΔNback | D14: Mobility model | H14: Simulation Results | Q14: =SUM(P23:P222) -> -0.01915942547 | R14: =kT_q*LN((n_o+N_front)/n_o) -> 0.6003108439 | S14: =kT_q*LN((p_o+N_back)/p_o) -> 0.0007240812537 | T14: =SUM(Q14:S14) -> 0.5818754997 | U14: Voltage components for n+pp+ | X14: Boltzmann
A15: =IF(Jof+Job=0,Jph*(tno+tpo)/(q*W),IF(-(p_o+n_o)/2+SQRT((p_o+n_o)^2+4*Jph*N_i^2/(Jof+Job))/2<10000000000,-(p_o+n_o)/2+SQRT((p_o+n_o)^2+4*Jph*N_i^2/(Jof+Job))/2,10000000000)) -> 10000000000 | B15: =PRC!J115 -> 2.541573121e+14 | C15: =VLOOKUP(W,B22:K222,10) -> 1.27825917e+14 | D15: Klaassen | E15: Mobility Sum | F15: Equivalent SRV (cm/s) | H15: Effect. Lifetime | I15: Current | J15: Voltage | K15: Efficiency | L15: Photogen. | M15: Absorbed | N15: Collected % | O15: implied Voc | P15: Conductance | Q15: =SUM(P23:P222) -> -0.01915942547 | R15: =kT_q*LN((n_o+N_back)/n_o) -> 0.5825438627 | S15: =kT_q*LN((p_o+N_front)/p_o) -> 0.001420307247 | T15: =R15+S15-Q15 -> 0.6031235954 | U15: Voltage components for p+nn+ | X15: Fermi-Dirac
A16: ΔNmax | B16: ΔNavg | C16: =INDEX($B$22:$B$222,IF(ISNUMBER(MATCH(N_av,$K$22:$K$222,-1)),MATCH(N_av,$K$22:$K$222,-1),MATCH(N_av,$K$22:$K$222,1))) -> 0.01010073096 | D16: QSSPC Mobility model | E16: μ_n+μ_p | F16: S_front | G16: S_back | H16: tau_eff (s) | I16: J (A/cm2) | J16: (V) | K16: η (%) | L16: Jph (A/cm2) | M16: Photons | N16: J /Jph | O16: (V) | P16: (S)
A17: =MAX(K22:K222) -> 2.542082949e+14 | B17: =$P$17/$E$20/q/W -> 2.23953055e+14 | D17: yes | E17: =$P$17/$B$17/q/W -> 1684.709091 | F17: =IFERROR((Jof/N_i^2)*(N_front+p_o)*(N_front+n_o)/(q*N_front),0) -> 12.62630249 | G17: =IFERROR((Job/N_i^2)*(N_back+p_o)*(N_back+n_o)/(q*N_back),0) -> 307.2696489 | H17: =$P$17/$E$17/$Q$10 -> 1.423464609e-06 | I17: 0.4026205845 | J17: =IFERROR(IF($C$5="n+pp+",(R14+S14+Q14),IF($C$5="p+nn+",(R15+S15-Q15),"choose structure")),-1) -> 0.5818754997 | K17: =IF(Spectrum="Monochromatic",100*Voc*I18/intensity,Voc*I18/(0.001*suns)) -> 21.54629646 | L17: =shad*Generation!R2/1000 -> 0.03890608564 | M17: =IF(Spectrum="monochromatic",Jph/q/Nph,Jph/q/suns/Generation!Y7) -> 0.8360195417 | N17: =I18/Jph -> 0.9517546805 | O17: =kT_q*LN((N_av+p_o)*(N_av+n_o)/N_i^2) -> 0.5982957999 | P17: =SUM(F23:F222) -> 0.0009671914918
A18: near contact area | B18: 1D | C18: J_lat | D18: =AVERAGE(K22:K222) -> 2.167616415e+14 | E18: =IF($D$17="yes",1800*(1+10^(0.8431*LOG10((D18+Nd+Na)/1200000000000000000)))/(1+8.36*10^(0.8431*LOG10((D18+Nd+Na)/1200000000000000000))),IF($D$15="Arora_inj",60*(T/300)^-0.57+(1417-60)*(T/300)^-2.33/(1+10^(0.664*(T/300)^-0.146*LOG10((ABS(Na+Nd)+D18)/(96400000000000000*(T/300)^-2.4))))+37.4*(T/300)^-0.57+(470-37.4)*(T/300)^-2.33/(1+10^(0.642*(T/300)^-0.146*LOG10((ABS(Na+Nd)+D18)/(282000000000000000*(T/300)^-2.4)))),mu_n+mu_p)) -> 1684.846327 | G18: J_base | I18: =J*A19 -> 0.03702904911 | R18: INTRINSIC LIFETIME | W18: FOR PLOTTING | Y18: Efn(front)-Efp(back) | AB18: Short-circuit profile (for PRC analysis only) | AF18: n_av | AG18: n_integrated
A19: =IF(B5="PRC",PRC!B10,1) -> 0.09197008433 | B19: PRC | C19: =IF(B5="PRC",PRC!K9/A19,0) -> 0.3644056729 | D19: =$P$17/E18/q/W -> 2.239348133e+14 | E19: =IF($D$17="yes",1800*(1+10^(0.8431*LOG10((D19+Nd+Na)/1200000000000000000)))/(1+8.36*10^(0.8431*LOG10((D19+Nd+Na)/1200000000000000000))),IF($D$15="Arora_inj",60*(T/300)^-0.57+(1417-60)*(T/300)^-2.33/(1+10^(0.664*(T/300)^-0.146*LOG10((ABS(Na+Nd)+D19)/(96400000000000000*(T/300)^-2.4))))+37.4*(T/300)^-0.57+(470-37.4)*(T/300)^-2.33/(1+10^(0.642*(T/300)^-0.146*LOG10((ABS(Na+Nd)+D19)/(282000000000000000*(T/300)^-2.4)))),mu_n+mu_p)) -> 1684.709438 | G19: =J-C19*(1-f_base) -> 0.2019320404 | K19: excess | Q19: tau_SRH_Richter | S19: Richter | T19: tau_SRH_Kerr | Y19: =X22-Y222 -> 0.6014632902 | AB19: (no rear surface recombination) | AF19: =AVERAGE(AB22:AB222) -> 7.396976554e+12 | AG19: =AG222/W -> 8.153349311e+12
B20: position | C20: generation | D20: =$P$17/E19/q/W -> 2.239530089e+14 | E20: =IF($D$17="yes",1800*(1+10^(0.8431*LOG10((D20+Nd+Na)/1200000000000000000)))/(1+8.36*10^(0.8431*LOG10((D20+Nd+Na)/1200000000000000000))),IF($D$15="Arora_inj",60*(T/300)^-0.57+(1417-60)*(T/300)^-2.33/(1+10^(0.664*(T/300)^-0.146*LOG10((ABS(Na+Nd)+D20)/(96400000000000000*(T/300)^-2.4))))+37.4*(T/300)^-0.57+(470-37.4)*(T/300)^-2.33/(1+10^(0.642*(T/300)^-0.146*LOG10((ABS(Na+Nd)+D20)/(282000000000000000*(T/300)^-2.4)))),mu_n+mu_p)) -> 1684.709091 | F20: incremental | I20: second SRH | K20: carrier density | L20: Recombination | M20: =IF($C$5="n+pp+","hole",IF($C$5="p+nn+","electron")) -> hole | N20: =IF($C$5="n+pp+","electron",IF($C$5="p+nn+","hole")) -> electron | O20: Electric | P20: Potential | Q20: 0.047 | S20: Kerr | T20: 0.035 | U20: Cumulative | V20: Cumulative | W20: Potential | X20: Quasi-Fermi energies | Z20: Electron J | AA20: Hole J
A21: node | B21: x (cm) | C21: (Amps/cm2) | D21: A(x)/Ao | E21: mu_sum | F21: conductance | G21: D_eff | H21: tau_SRH | I21: centre | J21: tau_intrinsic | K21: N | L21: (in Amps/cm2) | M21: current | N21: current | O21: field | P21: (incremental) | Q21: tau_richt | R21: g_eeh | S21: g_ehh | T21: tau_kerr | U21: generation | V21: recombination | W21: (cumulative) | X21: Efn | Y21: Efp | AB21: n_sc | AC21: Rec | AD21: Deff | AE21: Jp | AF21: Jn | AG21: cumulative n
A22: 0 | B22: =(0+W)/2+((W-0)/2)*COS((2*200+1-2*A22)*PI()/(2*(200+1))) -> 2.442898485e-07 | C22: =ABS(suns*Generation!P11*shad)+IF(B5="PRC",PRC!K9/A19,0) -> 0.3644057101 | D22: =IF($B$5="PRC", PRC!B15/$A$19,1) -> 3.040322055 | K22: =IF(N_front>0, N_front,0) -> 2.541573121e+14 | L22: =IF(N_front>0,(Jof/N_i^2)*((N_front+p_o)*(N_front+n_o)-N_i^2),0) -> 0.0005141494468 | M22: =-$L22+$C22 -> 0.3638915607 | N22: =J-$M22 -> 0.03872902384 | U22: =C22 -> 0.3644057101 | V22: =L22 -> 0.0005141494468 | W22: =IF(Na<Nd,-$S$15,$R$14) -> 0.6003108439 | X22: 0 | Y22: =-kT_q*LN((n_o+K22)/N_i)-kT_q*LN((p_o+K22)/N_i) -> -0.6017311512 | Z22: =IF(Na>Nd,N22,-M22) -> 0.03872902384 | AA22: =IF(Na>Nd,M22,-N22) -> 0.3638915607 | AB22: 0 | AC22: 0 | AE22: 0 | AF22: =shad*suns*Jph-AE22 -> 0.03773890308 | AG22: 0
A23: 1 | B23: 2.198519121e-06 | C23: =ABS(suns*Generation!P12*shad) -> 0.001012872439 | D23: =IF($B$5="PRC", PRC!B16/$A$19,1) -> 3.040244341 | E23: =IF($D$17="yes",1800*(1+10^(0.8431*LOG10((K22+Nd+Na)/1200000000000000000)))/(1+8.36*10^(0.8431*LOG10((K22+Nd+Na)/1200000000000000000))),mu_n+mu_p) -> 1684.133326 | F23: =q*(B23-B22)*K23*(E23) -> 1.34019594e-07 | G23: =$W$12*mu_n*mu_p*((n_o+K22)+(p_o+K22))/(mu_p*(p_o+K22)+mu_n*(n_o+K22)) -> 28.79523199 | H23: =(tno*(p_o+K22+p_1)+tpo*(K22+n_o+n_1))/(n_o+p_o+K22) -> 9.576954113e+11 | I23: =(tno_2*(p_o+K22+p_12)+tpo_2*(K22+n_o+n_12))/(n_o+p_o+K22) -> 9.576954113e+11 | J23: =IF($H$10="Kerr",T23,Q23) -> 0.0219950782 | K23: =IF($C$5="n+pp+",IF($K22+($B23-$B22)*($N22/$D22-J_base/$D22*mu_n*(n_o+$K22)/(mu_n*(n_o+$K22)+mu_p*(p_o+$K22)))/(q*$G23)>0, $K22+($B23-$B22)*($N22/$D22-J_base/$D22*mu_n*(n_o+$K22)/(mu_n*(n_o+$K22)+mu_p*(p_o+$K22)))/(q*$G23),1000),IF($K22+($B23-$B22)*($N22/$D22-J_base/$D22*mu_p*(p_o+$K22)/(mu_n*(n_o+$K22)+mu_p*(p_o+$K22)))/(q*$G23)>0,$K22+($B23-$B22)*($N22/$D22-J_base/$D22*mu_p*(p_o+$K22)/(mu_n*(n_o+$K22)+mu_p*(p_o+$K22)))/(q*$G23), 1000)) -> 2.541591442e+14 | L23: =q*$K22*($B23-$B22)*(1/$H23+1/$I23+1/$J23) -> 3.61795522e-09 | M23: =$M22+$C23-$L23 -> 0.3649044295 | N23: 0.03771615502 | O23: =kT_q*(mu_p-mu_n)*SLOPE(K22:K24,B22:B24)/(mu_p*(p_o+K22)+mu_n*(n_o+K22))-$X$8*J_base/(D23*q*(mu_p*(p_o+K22)+mu_n*(n_o+K22))) -> 0.1634457135 | P23: =-O23*(B23-B22) -> -3.194103978e-07 | Q23: =(1/$Q$20+1/(K23/((n_o+K23)*(p_o+K23)-ni_300^2)/(2.5E-31*R23*n_o+8.5E-32*S23*p_o+3E-29*K23^0.92+0.00000000000000473*$I$10)))^-1 -> 0.0219950782 | R23: =1+13*(1-TANH((n_o/330000000000000000)^0.66)) -> 13.99999997 | S23: =1+7.5*(1-TANH((p_o/700000000000000000)^0.63)) -> 8.188166379 | T23: =(1/$T$20+((p_o+n_o+K22)*(1.8E-24*n_o^0.65+6E-25*p_o^0.65+3E-27*K22^0.8+0.0000000000000095*$I$10)))^-1 -> 0.01116972584 | U23: =U22+C23 -> 0.3654185826 | V23: =V22+L23 -> 0.0005141530647 | W23: =W22-O23*(B23-B22) -> 0.6003105245 | X23: =X22+N23/(q*mu_n*A23)/(n_o+K23)*(B23-B22) -> 1.494993106e-06 | Y23: =Y22+M23/(q*mu_p*A23)/(p_o+K23)*(B23-B22) -> -0.6017290532 | Z23: 0.03771615502 | AA23: 0.3649044295 | AB23: =AB22+($B23-$B22)*AF23/(q*kT_q*IF($C$5="n+pp+",mu_n,mu_p)) -> 1.431245591e+10 | AC23: =q*AB22*($B23-$B22)*(n_o+p_o+AB22)/(tno*(p_o+AB22+p_1)+tpo*(AB22+n_o+n_1)) -> 0 | AD23: =kT_q*mu_n*mu_p*((n_o+AB22)+(p_o+AB22))/(mu_p*(p_o+AB22)+mu_n*(n_o+AB22)) -> 31.29858981 | AE23: =AE22+$C23-$AC23 -> 0.001012872439 | AF23: 0.03672603064 | AG23: =AG22+AB23*(B23-B22) -> 27969.82031
A24: 2 | B24: 6.106500276e-06 | C24: =ABS(suns*Generation!P13*shad) -> 0.0009982115474 | D24: =IF($B$5="PRC", PRC!B17/$A$19,1) -> 3.039622686 | E24: 1684.133291 | F24: 2.680100092e-07 | G24: 28.79521707 | H24: =(tno*(p_o+K23+p_1)+tpo*(K23+n_o+n_1))/(n_o+p_o+K23) -> 9.576957429e+11 | I24: 9.576957429e+11 | J24: 0.02199505476 | K24: 2.541625258e+14 | L24: 7.235086487e-09 | M24: =$M23+$C24-$L24 -> 0.3659026338 | N24: 0.03671795071 | O24: 0.1640131375 | P24: -6.409602504e-07 | Q24: 0.02199505476 | R24: 13.99999997 | S24: 8.188166379 | T24: 0.01116971948 | U24: 0.3664167941 | V24: 0.0005141602998 | W24: 0.6003098836 | X24: 2.950222253e-06 | Y24: -0.6017269498 | Z24: 0.03671795071 | AA24: 0.3659026338 | AB24: 4.215594286e+10 | AC24: 9.857487488e-27 | AD24: 31.29841928 | AE24: =AE23+$C24-$AC24 -> 0.002011083987 | AF24: 0.03572781909 | AG24: =AG23+AB24*(B24-B23) -> 192714.4506
A25: 3 | B25: 1.196727865e-05 | C25: =ABS(suns*Generation!P14*shad) -> 0.001112548243 | D25: =IF($B$5="PRC", PRC!B18/$A$19,1) -> 3.038379719 | E25: 1684.133227 | F25: 4.019405192e-07 | G25: 28.79518954 | H25: =(tno*(p_o+K24+p_1)+tpo*(K24+n_o+n_1))/(n_o+p_o+K24) -> 9.57696355e+11 | I25: 9.57696355e+11 | J25: 0.0219950225 | K25: 2.54167181e+14 | L25: 1.085058067e-08 | M25: 0.3670151712 | N25: 0.03560541331 | O25: 0.1646779082 | P25: -9.651407224e-07 | Q25: 0.0219950225 | R25: 13.99999997 | S25: 8.188166379 | T25: 0.01116970774 | U25: 0.3675293424 | V25: 0.0005141711504 | W25: 0.6003089184 | X25: 4.361045497e-06 | Y25: -0.6017248404 | Z25: 0.03560541331 | AA25: 0.3670151712 | AB25: 8.261238509e+10 | AC25: 4.354226639e-26 | AD25: 31.29808753 | AE25: =AE24+$C25-$AC25 -> 0.00312363223 | AF25: 0.03461527085 | AG25: =AG24+AB25*(B25-B24) -> 676887.3303
A26: 4 | B26: 1.977942253e-05 | C26: =ABS(suns*Generation!P15*shad) -> 0.001208603235 | D26: =IF($B$5="PRC", PRC!B19/$A$19,1) -> 3.036516123 | E26: 1684.133138 | F26: 5.357796918e-07 | G26: 28.79515163 | H26: 9.576971976e+11 | I26: 9.576971976e+11 | J26: 0.02199498378 | K26: 2.541727684e+14 | L26: 1.44636077e-08 | M26: 0.36822376 | N26: 0.03439682454 | O26: 0.1654437352 | P26: -1.292470263e-06 | Q26: 0.02199498378 | R26: 13.99999997 | S26: 8.188166379 | T26: 0.01116969157 | U26: 0.3687379456 | V26: 0.000514185614 | W26: 0.6003076259 | X26: 5.72356139e-06 | Y26: -0.6017227247 | Z26: 0.03439682454 | AA26: 0.36822376 | AB26: 1.346560707e+11 | AC26: 1.137387405e-25 | AD26: 31.29760553 | AE26: 0.004332235465 | AF26: 0.03340666761 | AG26: =AG25+AB26*(B26-B25) -> 1728839.929
A27: 5 | B27: 2.954102352e-05 | C27: =ABS(suns*Generation!P16*shad) -> 0.001253920308 | D27: =IF($B$5="PRC", PRC!B20/$A$19,1) -> 3.03403292 | E27: 1684.133031 | F27: 6.694953055e-07 | G27: 28.79510614 | H27: 9.576982089e+11 | I27: 9.576982089e+11 | J27: 0.0219949412 | K27: 2.541789119e+14 | L27: 1.807331591e-08 | M27: 0.3694776622 | N27: 0.03314292231 | O27: 0.1662868968 | P27: -1.623226337e-06 | Q27: 0.0219949412 | R27: 13.99999997 | S27: 8.188166379 | T27: 0.01116967218 | U27: 0.3699918659 | V27: 0.0005142036873 | W27: 0.6003060027 | X27: 7.035895246e-06 | Y27: -0.6017206025 | Z27: 0.03314292231 | AA27: 0.3694776622 | AB27: 1.972459039e+11 | AC27: 2.31651431e-25 | AD27: 31.29698553 | AE27: 0.005586155773 | AF27: 0.0321527473 | AG27: 3654275.74
A28: 6 | B28: 4.1249697e-05 | C28: =ABS(suns*Generation!P17*shad) -> 0.001264865935 | D28: =IF($B$5="PRC", PRC!B21/$A$19,1) -> 3.030931476 | E28: 1684.132914 | F28: 8.030543835e-07 | G28: 28.79505612 | H28: 9.576993208e+11 | I28: 9.576993208e+11 | J28: 0.02199489736 | K28: 2.541852375e+14 | L28: 2.16788303e-08 | M28: 0.3707425065 | N28: 0.03187807805 | O28: 0.1671830554 | P28: -1.957491807e-06 | Q28: 0.02199489736 | R28: 13.99999997 | S28: 8.188166379 | T28: 0.01116965085 | U28: 0.3712567318 | V28: 0.0005142253661 | W28: 0.6003040452 | X28: 8.2975492e-06 | Y28: -0.6017184741 | Z28: 0.03187807805 | AA28: 0.3707425065 | AB28: 2.693666932e+11 | AC28: 4.070030339e-25 | AD28: 31.29623996 | AE28: 0.006851021708 | AF28: 0.03088788137 | AG28: 6808202.397
A29: 7 | B29: 5.49025827e-05 | C29: =ABS(suns*Generation!P18*shad) -> 0.001254118248 | D29: =IF($B$5="PRC", PRC!B22/$A$19,1) -> 3.027213493 | E29: 1684.132794 | F29: 9.364232537e-07 | G29: 28.79500462 | H29: 9.577004657e+11 | I29: 9.577004657e+11 | J29: 0.02199485475 | K29: 2.541913856e+14 | L29: 2.527925405e-08 | M29: 0.3719965995 | N29: 0.03062398508 | O29: 0.168116316 | P29: -2.295272847e-06 | Q29: 0.02199485475 | R29: 13.99999997 | S29: 8.188166379 | T29: 0.01116962888 | U29: 0.3725108501 | V29: 0.0005142506454 | W29: 0.6003017499 | X29: 9.508898223e-06 | Y29: -0.6017163395 | Z29: 0.03062398508 | AA29: 0.3719965995 | AB29: 3.500485556e+11 | AC29: 6.481019802e-25 | AD29: 31.29538095 | AE29: 0.008105139956 | AF29: 0.02963376312 | AG29: 11587375.32
A30: 8 | B30: 7.049634541e-05 | C30: =ABS(suns*Generation!P19*shad) -> 0.001229510502 | D30: =IF($B$5="PRC", PRC!B23/$A$19,1) -> 3.022881012 | E30: 1684.132677 | F30: 1.069567616e-06 | G30: 28.79495456 | H30: 9.577015785e+11 | I30: 9.577015785e+11 | J30: 0.02199481573 | K30: 2.541970154e+14 | L30: 2.88736705e-08 | M30: 0.3732260811 | N30: 0.02939450345 | O30: 0.169076708 | P30: -2.636542065e-06 | Q30: 0.02199481573 | R30: 13.99999997 | S30: 8.188166379 | T30: 0.01116960754 | U30: 0.3737403606 | V30: 0.0005142795191 | W30: 0.6002991134 | X30: 1.067087813e-05 | Y30: -0.6017141993 | Z30: 0.02939450345 | AA30: 0.3732260811 | AB30: 4.383766667e+11 | AC30: 9.619365477e-25 | AD30: 31.2944201 | AE30: 0.009334650458 | AF30: 0.02840425262 | AG30: 18423317.04
A31: 9 | B31: 8.802717579e-05 | C31: =ABS(suns*Generation!P20*shad) -> 0.00119579268 | D31: =IF($B$5="PRC", PRC!B24/$A$19,1) -> 3.017936409 | E31: 1684.13257 | F31: 1.202452615e-06 | G31: 28.79490873 | H31: 9.577025974e+11 | I31: 9.577025974e+11 | J31: 0.02199478252 | K31: 2.542018076e+14 | L31: 3.246114518e-08 | M31: 0.3744218413 | N31: 0.02819874323 | O31: 0.1700579271 | P31: -2.981256674e-06 | Q31: 0.02199478252 | R31: 13.99999997 | S31: 8.188166379 | T31: 0.01116958799 | U31: 0.3749361533 | V31: 0.0005143119802 | W31: 0.6002961322 | X31: 1.178479582e-05 | Y31: -0.6017120536 | Z31: 0.02819874323 | AA31: 0.3744218413 | AB31: 5.33496505e+11 | AC31: 1.354280452e-24 | AD31: 31.29336833 | AE31: 0.01053044314 | AF31: 0.02720845994 | AG31: 27775953.77
A32: 10 | B32: 0.0001074907913 | C32: =ABS(suns*Generation!P21*shad) -> 0.001156070416 | D32: =IF($B$5="PRC", PRC!B25/$A$19,1) -> 3.012382395 | E32: 1684.132478 | F32: 1.33504291e-06 | G32: 28.79486971 | H32: 9.577034648e+11 | I32: 9.577034648e+11 | J32: 0.02199475718 | K32: 2.542054647e+14 | L32: 3.604072792e-08 | M32: 0.3755778757 | N32: 0.02704270886 | O32: 0.1710559758 | P32: -3.329367744e-06 | Q32: 0.02199475718 | R32: 13.99999997 | S32: 8.188166379 | T32: 0.01116957136 | U32: 0.3760922237 | V32: 0.0005143480209 | W32: 0.6002928028 | X32: 1.285220474e-05 | Y32: -0.601709903 | Z32: 0.02704270886 | AA32: 0.3755778757 | AB32: 6.346161963e+11 | AC32: 1.829804161e-24 | AD32: 31.29223586 | AE32: 0.01168651355 | AF32: 0.02605238952 | AG32: 40127879.42
A33: 11 | B33: 0.0001288824373 | C33: =ABS(suns*Generation!P22*shad) -> 0.001112524814 | D33: =IF($B$5="PRC", PRC!B26/$A$19,1) -> 3.006222013 | E33: 1684.132409 | F33: 1.467302748e-06 | G33: 28.79483994 | H33: 9.577041267e+11 | I33: 9.577041267e+11 | J33: 0.0219947416 | K33: 2.542077115e+14 | L33: 3.961145495e-08 | M33: 0.3766903609 | N33: 0.02593022366 | O33: 0.1720684135 | P33: -3.680826583e-06 | Q33: 0.0219947416 | R33: 13.99999997 | S33: 8.188166379 | T33: 0.01116955866 | U33: 0.3772047485 | V33: 0.0005143876324 | W33: 0.600289122 | X33: 1.387481716e-05 | Y33: -0.6017077479 | Z33: 0.02593022366 | AA33: 0.3766903609 | AB33: 7.41006721e+11 | AC33: 2.392186934e-24 | AD33: 31.29103215 | AE33: 0.01279903837 | AF33: 0.02493986471 | AG33: 55979232.85
A34: 12 | B34: 0.000152196888 | C34: =ABS(suns*Generation!P23*shad) -> 0.001066746585 | D34: =IF($B$5="PRC", PRC!B27/$A$19,1) -> 2.999458634 | E34: 1684.132366 | F34: 1.599196027e-06 | G34: 28.79482164 | H34: 9.577045334e+11 | I34: 9.577045334e+11 | J34: 0.02199473756 | K34: 2.542082949e+14 | L34: 4.317235096e-08 | M34: 0.3777570643 | N34: 0.02486352024 | O34: 0.1730939101 | P34: -4.035589437e-06 | Q34: 0.02199473756 | R34: 13.99999997 | S34: 8.188166379 | T34: 0.01116955086 | U34: 0.3782714951 | V34: 0.0005144308048 | W34: 0.6002850864 | X34: 1.485443987e-05 | Y34: -0.6017055887 | Z34: 0.02486352024 | AA34: 0.3777570643 | AB34: 8.5200059e+11 | AC34: 3.044225589e-24 | AD34: 31.28976592 | AE34: 0.01386578495 | AF34: 0.02387311812 | AG34: 75843158.61
A35: 13 | B35: 0.0001774284481 | C35: =ABS(suns*Generation!P24*shad) -> 0.001019911046 | D35: =IF($B$5="PRC", PRC!B28/$A$19,1) -> 2.99209596 | E35: 1684.132355 | F35: 1.73068637e-06 | G35: 28.79481689 | H35: 9.57704639e+11 | I35: 9.57704639e+11 | J35: 0.02199474666 | K35: 2.542069827e+14 | L35: 4.672243107e-08 | M35: 0.3787769286 | N35: 0.02384365592 | O35: 0.1741319496 | P35: -4.393620748e-06 | Q35: 0.02199474666 | R35: 13.99999997 | S35: 8.188166379 | T35: 0.01116954884 | U35: 0.3792914061 | V35: 0.0005144775272 | W35: 0.6002806927 | X35: 1.579292658e-05 | Y35: -0.6017034259 | Z35: 0.02384365592 | AA35: 0.3787769286 | AB35: 9.669894886e+11 | AC35: 3.787937375e-24 | AD35: 31.28844513 | AE35: 0.014885696 | AF35: 0.02285320708 | AG35: 100241812
A36: 14 | B36: 0.0002045709538 | C36: =ABS(suns*Generation!P25*shad) -> 0.0009728895506 | D36: =IF($B$5="PRC", PRC!B29/$A$19,1) -> 2.984138012 | E36: 1684.13238 | F36: 1.861737174e-06 | G36: 28.79482758 | H36: 9.577044014e+11 | I36: 9.577044014e+11 | J36: 0.02199477036 | K36: 2.542035624e+14 | L36: 5.026070268e-08 | M36: 0.3797497679 | N36: 0.02287081663 | O36: 0.1751826197 | P36: -4.754895258e-06 | Q36: 0.02199477036 | R36: 13.99999997 | S36: 8.188166379 | T36: 0.01116955339 | U36: 0.3802642957 | V36: 0.0005145277879 | W36: 0.6002759379 | X36: 1.669214241e-05 | Y36: -0.6017012599 | Z36: 0.02287081663 | AA36: 0.3797497679 | AB36: 1.085421257e+12 | AC36: 4.624655549e-24 | AD36: 31.28707706 | AE36: 0.01585858555 | AF36: 0.02188031752 | AG36: 129702864.7
A37: 15 | B37: 0.0002336177746 | C37: =ABS(suns*Generation!P26*shad) -> 0.0009263285295 | D37: =IF($B$5="PRC", PRC!B30/$A$19,1) -> 2.975589135 | E37: 1684.132445 | F37: 1.992311672e-06 | G37: 28.79485542 | H37: 9.577037824e+11 | I37: 9.577037824e+11 | J37: 0.02199481002 | K37: 2.541978404e+14 | L37: 5.378616718e-08 | M37: 0.3806760426 | N37: 0.02194454189 | O37: 0.1762464587 | P37: -5.119399306e-06 | Q37: 0.02199481002 | R37: 13.99999997 | S37: 8.188166379 | T37: 0.01116956527 | U37: 0.3811906242 | V37: 0.0005145815741 | W37: 0.6002708185 | X37: 1.755393749e-05 | Y37: -0.6016990912 | Z37: 0.02194454189 | AA37: 0.3806760426 | AB37: 1.206796461e+12 | AC37: 5.555116951e-24 | AD37: 31.28566831 | AE37: 0.01678491408 | AF37: 0.020953989 | AG37: 164756465.2
A38: 16 | B38: 0.0002645618148 | C38: =ABS(suns*Generation!P27*shad) -> 0.00088070628 | D38: =IF($B$5="PRC", PRC!B31/$A$19,1) -> 2.966453992 | E38: 1684.132554 | F38: 2.122372981e-06 | G38: 28.79490201 | H38: 9.577027468e+11 | I38: 9.577027468e+11 | J38: 0.02199486685 | K38: 2.541896403e+14 | L38: 5.729782151e-08 | M38: 0.3815566916 | N38: 0.02106389291 | O38: 0.1773243421 | P38: -5.487131569e-06 | Q38: 0.02199486685 | R38: 13.99999997 | S38: 8.188166379 | T38: 0.01116958513 | U38: 0.3820713305 | V38: 0.0005146388719 | W38: 0.6002653313 | X38: 1.838012729e-05 | Y38: -0.6016969203 | Z38: 0.02106389291 | AA38: 0.3815566916 | AB38: 1.330664731e+12 | AC38: 6.579541306e-24 | AD38: 31.28422482 | AE38: 0.01766562036 | AF38: 0.02007328272 | AG38: 205932608.2
A39: 17 | B39: 0.0002973955152 | C39: =ABS(suns*Generation!P28*shad) -> 0.0008363731896 | D39: =IF($B$5="PRC", PRC!B32/$A$19,1) -> 2.956737557 | E39: 1684.13271 | F39: 2.251884147e-06 | G39: 28.79496877 | H39: 9.577012626e+11 | I39: 9.577012626e+11 | J39: 0.02199494196 | K39: 2.541788015e+14 | L39: 6.079465959e-08 | M39: 0.382393004 | N39: 0.02022758051 | O39: 0.1784173988 | P39: -5.858103412e-06 | Q39: 0.02199494196 | R39: 13.99999997 | S39: 8.188166379 | T39: 0.0111696136 | U39: 0.3829077037 | V39: 0.0005146996665 | W39: 0.6002594732 | X39: 1.917247813e-05 | Y39: -0.6016947475 | Z39: 0.02022758051 | AA39: 0.382393004 | AB39: 1.456621e+12 | AC39: 7.697702205e-24 | AD39: 31.28275198 | AE39: 0.01850199355 | AF39: 0.01923690953 | AG39: 253758865.6
A40: 18 | B40: 0.0003321108549 | C40: =ABS(suns*Generation!P29*shad) -> 0.0007935802515 | D40: =IF($B$5="PRC", PRC!B33/$A$19,1) -> 2.946445118 | E40: 1684.132917 | F40: 2.380808188e-06 | G40: 28.79505702 | H40: 9.576993008e+11 | I40: 9.576993008e+11 | J40: 0.02199503638 | K40: 2.541651779e+14 | L40: 6.427567361e-08 | M40: 0.38318652 | N40: 0.01943406453 | O40: 0.1795269471 | P40: -6.232338959e-06 | Q40: 0.02199503638 | R40: 13.99999997 | S40: 8.188166379 | T40: 0.01116965123 | U40: 0.3837012839 | V40: 0.0005147639422 | W40: 0.6002532409 | X40: 1.993269676e-05 | Y40: -0.6016925733 | Z40: 0.01943406453 | AA40: 0.38318652 | AB40: 1.584301741e+12 | AC40: 8.90898999e-24 | AD40: 31.28125463 | AE40: 0.0192955738 | AF40: 0.01844332927 | AG40: 308758438.8
A41: 19 | B41: 0.0003686993535 | C41: =ABS(suns*Generation!P30*shad) -> 0.0007524998796 | D41: =IF($B$5="PRC", PRC!B34/$A$19,1) -> 2.935582264 | E41: 1684.133176 | F41: 2.509108131e-06 | G41: 28.79516794 | H41: 9.57696835e+11 | I41: 9.57696835e+11 | J41: 0.02199515102 | K41: 2.541486362e+14 | L41: 6.773985521e-08 | M41: 0.3839389521 | N41: 0.01868163239 | O41: 0.1806544456 | P41: -6.609874929e-06 | Q41: 0.02199515102 | R41: 13.99999997 | S41: 8.188166379 | T41: 0.01116969853 | U41: 0.3844537838 | V41: 0.0005148316821 | W41: 0.600246631 | X41: 2.066242311e-05 | Y41: -0.6016903981 | Z41: 0.01868163239 | AA41: 0.3839389521 | AB41: 1.71338129e+12 | AC41: 1.021246692e-23 | AD41: 31.27973709 | AE41: 0.02004807368 | AF41: 0.01769082939 | AG41: 371448487.7
A42: 20 | B42: 0.0004071520729 | C42: =ABS(suns*Generation!P31*shad) -> 0.0007132418448 | D42: =IF($B$5="PRC", PRC!B35/$A$19,1) -> 2.92415489 | E42: 1684.133491 | F42: 2.636747041e-06 | G42: 28.79530263 | H42: 9.57693841e+11 | I42: 9.57693841e+11 | J42: 0.02199528673 | K42: 2.541290551e+14 | L42: 7.118619648e-08 | M42: 0.3846521228 | N42: 0.01796846174 | O42: 0.181801454 | P42: -6.990760301e-06 | Q42: 0.02199528673 | R42: 13.99999997 | S42: 8.188166379 | T42: 0.01116975596 | U42: 0.3851670257 | V42: 0.0005149028683 | W42: 0.6002396402 | X42: 2.136322561e-05 | Y42: -0.6016882224 | Z42: 0.01796846174 | AA42: 0.3846521228 | AB42: 1.843568312e+12 | AC42: 1.160691516e-23 | AD42: 31.27820325 | AE42: 0.02076131553 | AF42: 0.01697758755 | AG42: 442338702.7
A43: 21 | B43: 0.0004474596197 | C43: =ABS(suns*Generation!P32*shad) -> 0.0006758660381 | D43: =IF($B$5="PRC", PRC!B36/$A$19,1) -> 2.912169185 | E43: 1684.133864 | F43: 2.763688058e-06 | G43: 28.79546206 | H43: 9.576902969e+11 | I43: 9.576902969e+11 | J43: 0.02199544428 | K43: 2.541063234e+14 | L43: 7.461369094e-08 | M43: 0.3853279142 | N43: 0.01729267031 | O43: 0.1829696036 | P43: -7.375055855e-06 | Q43: 0.02199544428 | R43: 13.99999997 | S43: 8.188166379 | T43: 0.01116982394 | U43: 0.3858428917 | V43: 0.0005149774819 | W43: 0.6002322652 | X43: 2.203659856e-05 | Y43: -0.6016860464 | Z43: 0.01729267031 | AA43: 0.3853279142 | AB43: 1.974602461e+12 | AC43: 1.309087822e-23 | AD43: 31.27665658 | AE43: 0.02143718156 | AF43: 0.01630172151 | AG43: 521930083.8
A44: 22 | B44: 0.0004896121472 | C44: =ABS(suns*Generation!P33*shad) -> 0.0006403929746 | D44: =IF($B$5="PRC", PRC!B37/$A$19,1) -> 2.899631632 | E44: 1684.134297 | F44: 2.889894417e-06 | G44: 28.79564716 | H44: 9.576861825e+11 | I44: 9.576861825e+11 | J44: 0.02199562437 | K44: 2.540803393e+14 | L44: 7.80213343e-08 | M44: 0.3859682292 | N44: 0.01665235536 | O44: 0.184160573 | P44: -7.762833625e-06 | Q44: 0.02199562437 | R44: 13.99999997 | S44: 8.188166379 | T44: 0.01116990287 | U44: 0.3864832847 | V44: 0.0005150555033 | W44: 0.6002245024 | X44: 2.268396108e-05 | Y44: -0.6016838707 | Z44: 0.01665235536 | AA44: 0.3859682292 | AB44: 2.106251252e+12 | AC44: 1.466269654e-23 | AD44: 31.27510018 | AE44: 0.02207757454 | AF44: 0.01566132854 | AG44: 610713897.7
A45: 23 | B45: 0.0005335993582 | C45: =ABS(suns*Generation!P34*shad) -> 0.000606812517 | D45: =IF($B$5="PRC", PRC!B38/$A$19,1) -> 2.886548998 | E45: 1684.134792 | F45: 3.015329474e-06 | G45: 28.79585874 | H45: 9.576814793e+11 | I45: 9.576814793e+11 | J45: 0.02199582766 | K45: 2.540510088e+14 | L45: 8.140812527e-08 | M45: 0.3865749603 | N45: 0.01604562425 | O45: 0.1853760701 | P45: -8.154176319e-06 | Q45: 0.02199582766 | R45: 13.99999997 | S45: 8.188166379 | T45: 0.01116999308 | U45: 0.3870900972 | V45: 0.0005151369114 | W45: 0.6002163482 | X45: 2.330665738e-05 | Y45: -0.6016816956 | Z45: 0.01604562425 | AA45: 0.3865749603 | AB45: 2.238307174e+12 | AC45: 1.632053785e-23 | AD45: 31.27353682 | AE45: 0.02268438705 | AF45: 0.01505451602 | AG45: 709170787.7
A46: 24 | B46: 0.0005794105073 | C46: =ABS(suns*Generation!P35*shad) -> 0.0005750911028 | D46: =IF($B$5="PRC", PRC!B39/$A$19,1) -> 2.872928335 | E46: 1684.13535 | F46: 3.139956728e-06 | G46: 28.79609758 | H46: 9.576761704e+11 | I46: 9.576761704e+11 | J46: 0.02199605474 | K46: 2.540182453e+14 | L46: 8.477306616e-08 | M46: 0.3871499666 | N46: 0.01547061792 | O46: 0.1866178187 | P46: -8.54917671e-06 | Q46: 0.02199605474 | R46: 13.99999997 | S46: 8.188166379 | T46: 0.01117009492 | U46: 0.3876651883 | V46: 0.0005152216845 | W46: 0.600207799 | X46: 2.390595796e-05 | Y46: -0.6016795215 | Z46: 0.01547061792 | AA46: 0.3871499666 | AB46: 2.370585032e+12 | AC46: 1.806242303e-23 | AD46: 31.27196896 | AE46: 0.02325947816 | AF46: 0.01447942492 | AG46: 817770012
A47: 25 | B47: 0.0006270344034 | C47: =ABS(suns*Generation!P36*shad) -> 0.000545177686 | D47: =IF($B$5="PRC", PRC!B40/$A$19,1) -> 2.85877697 | E47: 1684.135974 | F47: 3.26373984e-06 | G47: 28.79636439 | H47: 9.5767024e+11 | I47: 9.5767024e+11 | J47: 0.02199630619 | K47: 2.539819679e+14 | L47: 8.811516349e-08 | M47: 0.3876950562 | N47: 0.01492552835 | O47: 0.1878875479 | P47: -8.947937053e-06 | Q47: 0.02199630619 | R47: 13.99999997 | S47: 8.188166379 | T47: 0.01117020868 | U47: 0.388210366 | V47: 0.0005153097996 | W47: 0.6001988511 | X47: 2.448306151e-05 | Y47: -0.6016773486 | Z47: 0.01492552835 | AA47: 0.3876950562 | AB47: 2.502919534e+12 | AC47: 1.988624799e-23 | AD47: 31.27039881 | AE47: 0.02380465584 | AF47: 0.01393424723 | AG47: 936968791.7
A48: 26 | B48: 0.0006764594126 | C48: =ABS(suns*Generation!P37*shad) -> 0.000517008581 | D48: =IF($B$5="PRC", PRC!B41/$A$19,1) -> 2.844102499 | E48: 1684.136665 | F48: 3.386642649e-06 | G48: 28.79665983 | H48: 9.576636735e+11 | I48: 9.576636735e+11 | J48: 0.02199658251 | K48: 2.539421013e+14 | L48: 9.143342853e-08 | M48: 0.3882119733 | N48: 0.0144086112 | O48: 0.1891869857 | P48: -9.350568515e-06 | Q48: 0.02199658251 | R48: 13.99999997 | S48: 8.188166379 | T48: 0.01117033465 | U48: 0.3887273746 | V48: 0.0005154012331 | W48: 0.6001895005 | X48: 2.50390974e-05 | Y48: -0.6016751774 | Z48: 0.0144086112 | AA48: 0.3882119733 | AB48: 2.635163102e+12 | AC48: 2.178980217e-23 | AD48: 31.26882833 | AE48: 0.02432166442 | AF48: 0.01341723865 | AG48: 1067211752
A49: 27 | B49: 0.0007276734611 | C49: =ABS(suns*Generation!P38*shad) -> 0.0004905113755 | D49: =IF($B$5="PRC", PRC!B42/$A$19,1) -> 2.828912784 | E49: 1684.137425 | F49: 3.508629191e-06 | G49: 28.79698451 | H49: 9.576564571e+11 | I49: 9.576564571e+11 | J49: 0.02199688422 | K49: 2.538985745e+14 | L49: 9.472687777e-08 | M49: 0.38870239 | N49: 0.01391819455 | O49: 0.1905178545 | P49: -9.757190646e-06 | Q49: 0.02199688422 | R49: 13.99999997 | S49: 8.188166379 | T49: 0.01117047308 | U49: 0.3892178859 | V49: 0.0005154959599 | W49: 0.6001797433 | X49: 2.55751285e-05 | Y49: -0.6016730082 | Z49: 0.01391819455 | AA49: 0.38870239 | AB49: 2.767183899e+12 | AC49: 2.377078419e-23 | AD49: 31.26725928 | AE49: 0.0248121758 | AF49: 0.01292672727 | AG49: 1208930443
A50: 28 | B50: 0.0007806640381 | C50: =ABS(suns*Generation!P39*shad) -> 0.0004656080629 | D50: =IF($B$5="PRC", PRC!B43/$A$19,1) -> 2.813215947 | E50: 1684.138254 | F50: 3.629663709e-06 | G50: 28.79733903 | H50: 9.576485782e+11 | I50: 9.576485782e+11 | J50: 0.02199721177 | K50: 2.538513202e+14 | L50: 9.799453333e-08 | M50: 0.3891679 | N50: 0.01345268448 | O50: 0.191881868 | P50: -1.016793089e-05 | Q50: 0.02199721177 | R50: 13.99999997 | S50: 8.188166379 | T50: 0.01117062423 | U50: 0.389683494 | V50: 0.0005155939545 | W50: 0.6001695754 | X50: 2.609215423e-05 | Y50: -0.6016708412 | Z50: 0.01345268448 | AA50: 0.3891679 | AB50: 2898864062048 | AC50: 2.5826815e-23 | AD50: 31.2656932 | AE50: 0.02527778386 | AF50: 0.01246111921 | AG50: 1362542922
A51: 29 | B51: 0.0008354181986 | C51: =ABS(suns*Generation!P40*shad) -> 0.0004422175246 | D51: =IF($B$5="PRC", PRC!B44/$A$19,1) -> 2.797020359 | E51: 1684.139154 | F51: 3.749710672e-06 | G51: 28.79772393 | H51: 9.576400243e+11 | I51: 9.576400243e+11 | J51: 0.02199756561 | K51: 2.538002743e+14 | L51: 1.012354234e-07 | M51: 0.3896100163 | N51: 0.0130105682 | O51: 0.1932807307 | P51: -1.058292415e-05 | Q51: 0.02199756561 | R51: 13.99999997 | S51: 8.188166379 | T51: 0.01117078833 | U51: 0.3901257115 | V51: 0.0005156951899 | W51: 0.6001589924 | X51: 2.659111374e-05 | Y51: -0.6016686769 | Z51: 0.0130105682 | AA51: 0.3896100163 | AB51: 3.030098121e+12 | AC51: 2.795544901e-23 | AD51: 31.26413151 | AE51: 0.02572000139 | AF51: 0.01201890169 | AG51: 1528453401
A52: 30 | B52: 0.000891922567 | C52: =ABS(suns*Generation!P41*shad) -> 0.0004202574751 | D52: =IF($B$5="PRC", PRC!B45/$A$19,1) -> 2.78033464 | E52: 1684.140126 | F52: 3.868734782e-06 | G52: 28.79813974 | H52: 9.576307838e+11 | I52: 9.576307838e+11 | J52: 0.02199794617 | K52: 2.537453753e+14 | L52: 1.044485827e-07 | M52: 0.3900301694 | N52: 0.01259041517 | O52: 0.1947161382 | P52: -1.10023124e-05 | Q52: 0.02199794617 | R52: 13.99999997 | S52: 8.188166379 | T52: 0.0111709656 | U52: 0.390545969 | V52: 0.0005157996385 | W52: 0.6001479901 | X52: 2.707288921e-05 | Y52: -0.6016665155 | Z52: 0.01259041517 | AA52: 0.3900301694 | AB52: 3.160791597e+12 | AC52: 3.015418353e-23 | AD52: 31.26257544 | AE52: 0.02614025886 | AF52: 0.01159864421 | AG52: 1707051934
A53: 31 | B53: 0.00095016334 | C53: =ABS(suns*Generation!P42*shad) -> 0.0003996459625 | D53: =IF($B$5="PRC", PRC!B46/$A$19,1) -> 2.763167645 | E53: 1684.141171 | F53: 3.986700992e-06 | G53: 28.79858696 | H53: 9.576208457e+11 | I53: 9.576208457e+11 | J53: 0.02199835387 | K53: 253686563871642 | L53: 1.076330524e-07 | M53: 0.3904297077 | N53: 0.01219087684 | O53: 0.196189778 | P53: -1.142624433e-05 | Q53: 0.02199835387 | R53: 13.99999997 | S53: 8.188166379 | T53: 0.01117115626 | U53: 0.390945615 | V53: 0.0005159072715 | W53: 0.6001365639 | X53: 2.753830908e-05 | Y53: -0.6016643573 | Z53: 0.01219087684 | AA53: 0.3904297077 | AB53: 3.290859747e+12 | AC53: 3.242046672e-23 | AD53: 31.26102612 | AE53: 0.02653990483 | AF53: 0.01119899825 | AG53: 1898714149
A54: 32 | B54: 0.00101012629 | C54: =ABS(suns*Generation!P43*shad) -> 0.0003803025073 | D54: =IF($B$5="PRC", PRC!B47/$A$19,1) -> 2.745528466 | E54: 1684.142292 | F54: 4.10357451e-06 | G54: 28.7990661 | H54: 9.576101991e+11 | I54: 9.576101991e+11 | J54: 0.0219987891 | K54: 2.536237821e+14 | L54: 1.107878812e-07 | M54: 0.3908098994 | N54: 0.01181068512 | O54: 0.1977033319 | P54: -1.185487506e-05 | Q54: 0.0219987891 | R54: 13.99999997 | S54: 8.188166379 | T54: 0.01117136052 | U54: 0.3913259175 | V54: 0.0005160180594 | W54: 0.600124709 | X54: 2.798815122e-05 | Y54: -0.6016622026 | Z54: 0.01181068512 | AA54: 0.3908098994 | AB54: 3.420226463e+12 | AC54: 3.475170445e-23 | AD54: 31.25948454 | AE54: 0.02692020733 | AF54: 0.01081869574 | AG54: 2103801019
A55: 33 | B55: 0.00107179677 | C55: =ABS(suns*Generation!P44*shad) -> 0.000362148944 | D55: =IF($B$5="PRC", PRC!B48/$A$19,1) -> 2.727426416 | E55: =IF($D$17="yes",1800*(1+10^(0.8431*LOG10((K54+Nd+Na)/1200000000000000000)))/(1+8.36*10^(0.8431*LOG10((K54+Nd+Na)/1200000000000000000))),mu_n+mu_p) -> 1684.143487 | F55: =q*(B55-B54)*K55*(E55) -> 4.219320817e-06 | G55: =$W$12*mu_n*mu_p*((n_o+K54)+(p_o+K54))/(mu_p*(p_o+K54)+mu_n*(n_o+K54)) -> 28.79957763 | H55: =(tno*(p_o+K54+p_1)+tpo*(K54+n_o+n_1))/(n_o+p_o+K54) -> 9.575988334e+11 | I55: =(tno_2*(p_o+K54+p_12)+tpo_2*(K54+n_o+n_12))/(n_o+p_o+K54) -> 9.575988334e+11 | J55: =IF($H$10="Kerr",T55,Q55) -> 0.02199925227 | K55: =IF($C$5="n+pp+",IF($K54+($B55-$B54)*($N54/$D54-J_base/$D54*mu_n*(n_o+$K54)/(mu_n*(n_o+$K54)+mu_p*(p_o+$K54)))/(q*$G55)>0, $K54+($B55-$B54)*($N54/$D54-J_base/$D54*mu_n*(n_o+$K54)/(mu_n*(n_o+$K54)+mu_p*(p_o+$K54)))/(q*$G55),1000),IF($K54+($B55-$B54)*($N54/$D54-J_base/$D54*mu_p*(p_o+$K54)/(mu_n*(n_o+$K54)+mu_p*(p_o+$K54)))/(q*$G55)>0,$K54+($B55-$B54)*($N54/$D54-J_base/$D54*mu_p*(p_o+$K54)/(mu_n*(n_o+$K54)+mu_p*(p_o+$K54)))/(q*$G55), 1000)) -> 2.535569736e+14 | L55: =q*$K54*($B55-$B54)*(1/$H55+1/$I55+1/$J55) -> 1.13912125e-07 | M55: 0.3911719344 | N55: 0.01144865009 | O55: =kT_q*(mu_p-mu_n)*SLOPE(K54:K56,B54:B56)/(mu_p*(p_o+K54)+mu_n*(n_o+K54))-$X$8*J_base/(D55*q*(mu_p*(p_o+K54)+mu_n*(n_o+K54))) -> 0.1992584786 | P55: =-O55*(B55-B54) -> -1.22883659e-05 | Q55: =(1/$Q$20+1/(K55/((n_o+K55)*(p_o+K55)-ni_300^2)/(2.5E-31*R55*n_o+8.5E-32*S55*p_o+3E-29*K55^0.92+0.00000000000000473*$I$10)))^-1 -> 0.02199925227 | R55: =1+13*(1-TANH((n_o/330000000000000000)^0.66)) -> 13.99999997 | S55: =1+7.5*(1-TANH((p_o/700000000000000000)^0.63)) -> 8.188166379 | T55: =(1/$T$20+((p_o+n_o+K54)*(1.8E-24*n_o^0.65+6E-25*p_o^0.65+3E-27*K54^0.8+0.0000000000000095*$I$10)))^-1 -> 0.01117157858 | U55: =U54+C55 -> 0.3916880664 | V55: =V54+L55 -> 0.0005161319715 | W55: =W54-O55*(B55-B54) -> 0.6001124207 | X55: =X54+N55/(q*mu_n*A55)/(n_o+K55)*(B55-B54) -> 2.842314606e-05 | Y55: =Y54+M55/(q*mu_p*A55)/(p_o+K55)*(B55-B54) -> -0.6016600517 | Z55: 0.01144865009 | AA55: 0.3911719344 | AB55: =AB54+($B55-$B54)*AF55/(q*kT_q*IF($C$5="n+pp+",mu_n,mu_p)) -> 3.548823294e+12 | AC55: =q*AB54*($B55-$B54)*(n_o+p_o+AB54)/(tno*(p_o+AB54+p_1)+tpo*(AB54+n_o+n_1)) -> 3.714526612e-23 | AD55: =kT_q*mu_n*mu_p*((n_o+AB54)+(p_o+AB54))/(mu_p*(p_o+AB54)+mu_n*(n_o+AB54)) -> 31.2579516 | AE55: 0.02728235628 | AF55: 0.0104565468 | AG55: 2322658653
A56: 34 | B56: 0.001135159713 | C56: =ABS(suns*Generation!P45*shad) -> 0.0003451100245 | D56: =IF($B$5="PRC", PRC!B49/$A$19,1) -> 2.70887103 | E56: 1684.14476 | F56: 4.333905673e-06 | G56: 28.80012201 | H56: 9.575867384e+11 | I56: 9.575867384e+11 | J56: 0.02199974376 | K56: 2.534860825e+14 | L56: 1.170048472e-07 | M56: 0.3915169275 | N56: 0.01110365707 | O56: 0.2008568963 | P56: -1.272688413e-05 | Q56: 0.02199974376 | R56: 13.99999997 | S56: 8.188166379 | T56: 0.01117181064 | U56: 0.3920331764 | V56: 0.0005162489764 | W56: 0.6000996938 | X56: 2.884397961e-05 | Y56: -0.6016579048 | Z56: 0.01110365707 | AA56: 0.3915169275 | AB56: 3.676588579e+12 | AC56: 3.959848973e-23 | AD56: 31.25642811 | AE56: 0.0276274663 | AF56: 0.01011143677 | AG56: 2555618126
A57: 35 | B57: 0.001200199641 | C57: =ABS(suns*Generation!P46*shad) -> 0.0003291138291 | D57: =IF($B$5="PRC", PRC!B50/$A$19,1) -> 2.68987205 | E57: 1684.14611 | F57: 4.447295128e-06 | G57: 28.80069972 | H57: 9.575739039e+11 | I57: 9.575739039e+11 | J57: 0.02200026396 | K57: 2.534110539e+14 | L57: 1.200651195e-07 | M57: 0.3918459212 | N57: 0.0107746633 | O57: 0.2025002664 | P57: -1.317060284e-05 | Q57: 0.02200026396 | R57: 13.99999997 | S57: 8.188166379 | T57: 0.01117205689 | U57: 0.3923622903 | V57: 0.0005163690415 | W57: 0.6000865232 | X57: 2.925129626e-05 | Y57: -0.6016557622 | Z57: 0.0107746633 | AA57: 0.3918459212 | AB57: 3.803466691e+12 | AC57: 4.210868631e-23 | AD57: 31.25491479 | AE57: 0.02795658013 | AF57: 0.009782322945 | AG57: 2802995328
A58: 36 | B58: 0.001266900667 | C58: =ABS(suns*Generation!P47*shad) -> 0.0003140920237 | D58: =IF($B$5="PRC", PRC!B51/$A$19,1) -> 2.670439424 | E58: 1684.147539 | F58: 4.55945553e-06 | G58: 28.8013112 | H58: 9.575603199e+11 | I58: 9.575603199e+11 | J58: 0.02200081325 | K58: 2.533318329e+14 | L58: 1.230920217e-07 | M58: 0.3921598902 | N58: 0.01046069437 | O58: 0.2041902768 | P58: -1.361970082e-05 | Q58: 0.02200081325 | R58: 13.99999997 | S58: 8.188166379 | T58: 0.01117231753 | U58: 0.3926763823 | V58: 0.0005164921335 | W58: 0.6000729035 | X58: 2.964570158e-05 | Y58: -0.6016536242 | Z58: 0.01046069437 | AA58: 0.3921598902 | AB58: 3.929407363e+12 | AC58: 4.467314383e-23 | AD58: 31.25341229 | AE58: 0.02827067215 | AF58: 0.009468230921 | AG58: 3065090828
A59: 37 | B59: 0.001335246495 | C59: =ABS(suns*Generation!P48*shad) -> 0.0002999799974 | D59: =IF($B$5="PRC", PRC!B52/$A$19,1) -> 2.650583293 | E59: 1684.149048 | F59: 4.670353539e-06 | G59: 28.80195692 | H59: 9.575459764e+11 | I59: 9.575459764e+11 | J59: 0.02200139201 | K59: 2.532483647e+14 | L59: 1.26084642e-07 | M59: 0.3924597441 | N59: 0.01016084046 | O59: 0.2059286257 | P59: -1.407436243e-05 | Q59: 0.02200139201 | R59: 13.99999997 | S59: 8.188166379 | T59: 0.01117259275 | U59: 0.3929763623 | V59: 0.0005166182182 | W59: 0.6000588291 | X59: 3.002776483e-05 | Y59: -0.601651491 | Z59: 0.01016084046 | AA59: 0.3924597441 | AB59: 4.054365101e+12 | AC59: 4.728913067e-23 | AD59: 31.25192121 | AE59: 0.02857065215 | AF59: 0.009168250924 | AG59: 3342189767
A60: 38 | B60: 0.00140522043 | C60: =ABS(suns*Generation!P49*shad) -> 0.0002867169064 | D60: =IF($B$5="PRC", PRC!B53/$A$19,1) -> 2.63031399 | E60: 1684.150638 | F60: 4.779956131e-06 | G60: 28.80263733 | H60: 9.575308635e+11 | I60: 9.575308635e+11 | J60: 0.02200200063 | K60: 2.531605944e+14 | L60: 1.290420777e-07 | M60: 0.3927463319 | N60: 0.009874252596 | O60: 0.2077170257 | P60: -1.453477761e-05 | Q60: 0.02200200063 | R60: 13.99999997 | S60: 8.188166379 | T60: 0.01117288275 | U60: 0.3932630792 | V60: 0.0005167472603 | W60: 0.6000442943 | X60: 3.039802145e-05 | Y60: -0.6016493629 | Z60: 0.009874252596 | AA60: 0.3927463319 | AB60: 4.178298664e+12 | AC60: 4.99538988e-23 | AD60: 31.25044206 | AE60: 0.02885736906 | AF60: 0.008881534017 | AG60: 3634561766
A61: 39 | B61: 0.001476805377 | C61: =ABS(suns*Generation!P50*shad) -> 0.0002742456462 | D61: =IF($B$5="PRC", PRC!B54/$A$19,1) -> 2.609642024 | E61: 1684.152309 | F61: 4.888230609e-06 | G61: 28.80335289 | H61: 9.57514971e+11 | I61: 9.57514971e+11 | J61: 0.0220026395 | K61: 2.530684667e+14 | L61: 1.319634347e-07 | M61: 0.3930204456 | N61: 0.009600138913 | O61: 0.2095572072 | P61: -1.500114176e-05 | Q61: 0.0220026395 | R61: 13.99999997 | S61: 8.188166379 | T61: 0.01117318771 | U61: 0.3935373248 | V61: 0.0005168792237 | W61: 0.6000292932 | X61: 3.075697528e-05 | Y61: -0.6016472401 | Z61: 0.009600138913 | AA61: 0.3930204456 | AB61: 4.301170605e+12 | AC61: 5.26646866e-23 | AD61: 31.24897534 | AE61: 0.0291316147 | AF61: 0.008607288371 | AG61: 3942460839
A62: 40 | B62: 0.001549983851 | C62: =ABS(suns*Generation!P51*shad) -> 0.0002625127704 | D62: =IF($B$5="PRC", PRC!B55/$A$19,1) -> 2.588578077 | E62: 1684.154064 | F62: 4.995144615e-06 | G62: 28.80410408 | H62: 9.574982888e+11 | I62: 9.574982888e+11 | J62: 0.02200330901 | K62: 2.529719256e+14 | L62: 1.348478286e-07 | M62: 0.3932828235 | N62: 0.00933776099 | O62: 0.2114509227 | P62: -1.54736558e-05 | Q62: 0.02200330901 | R62: 13.99999997 | S62: 8.188166379 | T62: 0.01117350784 | U62: 0.3937998376 | V62: 0.0005170140715 | W62: 0.6000138195 | X62: 3.110510074e-05 | Y62: -0.6016451228 | Z62: 0.00933776099 | AA62: 0.3932828235 | AB62: 4.422946875e+12 | AC62: 5.541872155e-23 | AD62: 31.24752148 | AE62: 0.02939412747 | AF62: 0.008344775601 | AG62: 4266125341
A63: 41 | B63: 0.001624737974 | C63: =ABS(suns*Generation!P52*shad) -> 0.0002514683712 | D63: =IF($B$5="PRC", PRC!B56/$A$19,1) -> 2.567132998 | E63: 1684.155903 | F63: 5.100666132e-06 | G63: 28.80489135 | H63: 9.574808069e+11 | I63: 9.574808069e+11 | J63: 0.02200400956 | K63: 2.528709147e+14 | L63: 1.376943841e-07 | M63: 0.3935341542 | N63: 0.009086430313 | O63: 0.2133999504 | P63: -1.595252618e-05 | Q63: 0.02200400956 | R63: 13.99999997 | S63: 8.188166379 | T63: 0.01117384333 | U63: 0.394051306 | V63: 0.0005171517659 | W63: 0.599997867 | X63: 3.14428448e-05 | Y63: -0.6016430113 | Z63: 0.009086430313 | AA63: 0.3935341542 | AB63: 4.54359646e+12 | AC63: 5.821322271e-23 | AD63: 31.24608087 | AE63: 0.02964559585 | AF63: 0.008093307229 | AG63: 4605777910
A64: 42 | B64: 0.001701049486 | C64: =ABS(suns*Generation!P53*shad) -> 0.0002410659327 | D64: =IF($B$5="PRC", PRC!B57/$A$19,1) -> 2.545317787 | E64: 1684.157827 | F64: 5.2047635e-06 | G64: 28.80571518 | H64: 9.574625147e+11 | I64: 9.574625147e+11 | J64: 0.02200474155 | K64: 2.527653763e+14 | L64: 1.40502236e-07 | M64: 0.3937750797 | N64: 0.008845504883 | O64: 0.2154060987 | P64: -1.643796491e-05 | Q64: 0.02200474155 | R64: 13.99999997 | S64: 8.188166379 | T64: 0.01117419438 | U64: 0.3942923719 | V64: 0.0005172922681 | W64: 0.599981429 | X64: 3.177062884e-05 | Y64: -0.6016409058 | Z64: 0.008845504883 | AA64: 0.3937750797 | AB64: 4.663091079e+12 | AC64: 6.104540302e-23 | AD64: 31.24465388 | AE64: 0.02988666178 | AF64: 0.007852241297 | AG64: 4961625438
A65: 43 | B65: 0.001778899743 | C65: =ABS(suns*Generation!P54*shad) -> 0.0002312621665 | D65: =IF($B$5="PRC", PRC!B58/$A$19,1) -> 2.523143594 | E65: 1684.159837 | F65: 5.307405419e-06 | G65: 28.80657605 | H65: 9.574434019e+11 | I65: 9.574434019e+11 | J65: 0.02200550539 | K65: 2.526552519e+14 | L65: 1.432705288e-07 | M65: 0.3940061985 | N65: 0.008614385987 | O65: 0.2174712094 | P65: -1.693018963e-05 | Q65: 0.02200550539 | R65: 13.99999997 | S65: 8.188166379 | T65: 0.0111745612 | U65: 0.3945236341 | V65: 0.0005174355387 | W65: 0.5999644988 | X65: 3.20888504e-05 | Y65: -0.6016388066 | Z65: 0.008614385987 | AA65: 0.3940061985 | AB65: 4.7814049e+12 | AC65: 6.391247157e-23 | AD65: 31.24324083 | AE65: 0.03011792394 | AF65: 0.00762097913 | AG65: 5333859040
A66: 44 | B66: 0.001858269729 | C66: =ABS(suns*Generation!P55*shad) -> 0.0002220168376 | D66: =IF($B$5="PRC", PRC!B59/$A$19,1) -> 2.500621708 | E66: 1684.161934 | F66: 5.408560962e-06 | G66: 28.80747447 | H66: 9.574234576e+11 | I66: 9.574234576e+11 | J66: 0.02200630151 | K66: 2.525404821e+14 | L66: 1.459984175e-07 | M66: 0.3942280694 | N66: 0.008392515148 | O66: 0.2195971624 | P66: -1.742942367e-05 | Q66: 0.02200630151 | R66: 13.99999997 | S66: 8.188166379 | T66: 0.01117494399 | U66: 0.3947456509 | V66: 0.0005175815371 | W66: 0.5999470694 | X66: 3.239788475e-05 | Y66: -0.6016367137 | Z66: 0.008392515148 | AA66: 0.3942280694 | AB66: 4.898514304e+12 | AC66: 6.681163567e-23 | AD66: 31.24184201 | AE66: 0.03033994078 | AF66: 0.007398962293 | AG66: 5722654050
A67: 45 | B67: 0.001939140054 | C67: =ABS(suns*Generation!P56*shad) -> 0.0002132925848 | D67: =IF($B$5="PRC", PRC!B60/$A$19,1) -> 2.477763547 | E67: 1684.16412 | F67: 5.50819958e-06 | G67: 28.80841093 | H67: 9.57402671e+11 | I67: 9.57402671e+11 | J67: 0.02200713032 | K67: 2.524210058e+14 | L67: 1.486850674e-07 | M67: 0.3944412133 | N67: 0.008179371248 | O67: 0.2217858791 | P67: -1.793589618e-05 | Q67: 0.02200713032 | R67: 13.99999997 | S67: 8.188166379 | T67: 0.01117534296 | U67: 0.3949589435 | V67: 0.0005177302221 | W67: 0.5999291335 | X67: 3.269808642e-05 | Y67: -0.6016346275 | Z67: 0.008179371248 | AA67: 0.3944412133 | AB67: 5.014397668e+12 | AC67: 6.974010293e-23 | AD67: 31.2404577 | AE67: 0.03055323337 | AF67: 0.007185669708 | AG67: 6128170021
A68: 46 | B68: 0.002021490963 | C68: =ABS(suns*Generation!P57*shad) -> 0.0002050547417 | D68: =IF($B$5="PRC", PRC!B61/$A$19,1) -> 2.454580654 | E68: 1684.166396 | F68: 5.606291112e-06 | G68: 28.80938595 | H68: 9.573810309e+11 | I68: 9.573810309e+11 | J68: 0.02200799228 | K68: 2.522967608e+14 | L68: 1.513296545e-07 | M68: 0.3946461167 | N68: 0.007974467836 | O68: 0.2240393264 | P68: -1.844984223e-05 | Q68: 0.02200799228 | R68: 13.99999997 | S68: 8.188166379 | T68: 0.01117575834 | U68: 0.3951639982 | V68: 0.0005178815518 | W68: 0.5999106837 | X68: 3.298979057e-05 | Y68: -0.6016325481 | Z68: 0.007974467836 | AA68: 0.3946461167 | AB68: 5.129035177e+12 | AC68: 7.269508321e-23 | AD68: 31.23908814 | AE68: 0.03075828811 | AF68: 0.006980614966 | AG68: 6550550731
A69: 47 | B69: 0.002105302339 | C69: =ABS(suns*Generation!P58*shad) -> 0.0001972711595 | D69: =IF($B$5="PRC", PRC!B62/$A$19,1) -> 2.431084682 | E69: 1684.168763 | F69: 5.702805793e-06 | G69: 28.81040005 | H69: 9.57358526e+11 | I69: 9.57358526e+11 | J69: 0.02200888783 | K69: 2.521676836e+14 | L69: 1.539313658e-07 | M69: 0.3948432339 | N69: 0.007777350608 | O69: 0.2263595211 | P69: -1.897150293e-05 | Q69: 0.02200888783 | R69: 13.99999997 | S69: 8.188166379 | T69: 0.01117619033 | U69: 0.3953612694 | V69: 0.0005180354832 | W69: 0.5998917122 | X69: 3.327331427e-05 | Y69: -0.6016304759 | Z69: 0.007777350608 | AA69: 0.3948432339 | AB69: 5.242408651e+12 | AC69: 7.567379059e-23 | AD69: 31.23773357 | AE69: 0.03095555927 | AF69: 0.006783343807 | AG69: 6989924213
A70: 48 | B70: 0.002190553708 | C70: =ABS(suns*Generation!P59*shad) -> 0.0001899120354 | D70: =IF($B$5="PRC", PRC!B63/$A$19,1) -> 2.407287389 | E70: 1684.171221 | F70: 5.797714262e-06 | G70: 28.81145378 | H70: 9.573351445e+11 | I70: 9.573351445e+11 | J70: 0.02200981742 | K70: 2.520337089e+14 | L70: 1.564893995e-07 | M70: 0.3950329895 | N70: 0.007587595062 | O70: 0.2287485331 | P70: -1.950112556e-05 | Q70: 0.02200981742 | R70: 13.99999997 | S70: 8.188166379 | T70: 0.01117663918 | U70: 0.3955511814 | V70: 0.0005181919726 | W70: 0.5998722111 | X70: 3.35489577e-05 | Y70: -0.6016284108 | Z70: 0.007587595062 | AA70: 0.3950329895 | AB70: 5.354501403e+12 | AC70: 7.867344523e-23 | AD70: 31.23639418 | AE70: 0.0311454713 | AF70: 0.006593431771 | AG70: 7446402787
A71: 49 | B71: 0.002277224244 | C71: =ABS(suns*Generation!P60*shad) -> 0.0001829497478 | D71: =IF($B$5="PRC", PRC!B64/$A$19,1) -> 2.383200631 | E71: 1684.173773 | F71: 5.890987573e-06 | G71: 28.81254768 | H71: 9.573108746e+11 | I71: 9.573108746e+11 | J71: 0.02201078153 | K71: 2.5189477e+14 | L71: 1.590029652e-07 | M71: 0.3952157802 | N71: 0.007404804317 | O71: 0.2312084902 | P71: -2.003896374e-05 | Q71: 0.02201078153 | R71: 13.99999997 | S71: 8.188166379 | T71: 0.01117710511 | U71: 0.3957341312 | V71: 0.0005183509755 | W71: 0.5998521721 | X71: 3.381700524e-05 | Y71: -0.6016263532 | Z71: 0.007404804317 | AA71: 0.3952157802 | AB71: 5.465298103e+12 | AC71: 8.169127517e-23 | AD71: 31.23507017 | AE71: 0.03132842105 | AF71: 0.006410482023 | AG71: 7920083102
A72: 50 | B72: 0.002365292774 | C72: =ABS(suns*Generation!P61*shad) -> 0.0001763586981 | D72: =IF($B$5="PRC", PRC!B65/$A$19,1) -> 2.358836349 | E72: 1684.17642 | F72: 5.982597198e-06 | G72: 28.81368233 | H72: 9.572857039e+11 | I72: 9.572857039e+11 | J72: 0.02201178065 | K72: 2.517507983e+14 | L72: 1.614712839e-07 | M72: 0.3953919774 | N72: 0.00722860709 | O72: 0.2337415814 | P72: -2.058527761e-05 | Q72: 0.02201178065 | R72: 13.99999997 | S72: 8.188166379 | T72: 0.01117758835 | U72: 0.3959104899 | V72: 0.0005185124468 | W72: 0.5998315868 | X72: 3.407772654e-05 | Y72: -0.6016243033 | Z72: 0.00722860709 | AA72: 0.3953919774 | AB72: 5.574784659e+12 | AC72: 8.472451821e-23 | AD72: 31.2337617 | AE72: 0.03150477975 | AF72: 0.006234123325 | AG72: 8411046195
A73: 51 | B73: 0.002454737786 | C73: =ABS(suns*Generation!P62*shad) -> 0.0001701151624 | D73: =IF($B$5="PRC", PRC!B66/$A$19,1) -> 2.334206563 | E73: 1684.179162 | F73: 6.07251504e-06 | G73: 28.81485831 | H73: 9.572596199e+11 | I73: 9.572596199e+11 | J73: 0.02201281526 | K73: 2.516017236e+14 | L73: 1.638935888e-07 | M73: 0.3955619287 | N73: 0.007058655821 | O73: 0.2363500616 | P73: -2.114033393e-05 | Q73: 0.02201281526 | R73: 13.99999997 | S73: 8.188166379 | T73: 0.01117808916 | U73: 0.3960806051 | V73: 0.0005186763404 | W73: 0.5998104465 | X73: 3.433137741e-05 | Y73: -0.6016222612 | Z73: 0.007058655821 | AA73: 0.3955619287 | AB73: 5.682948115e+12 | AC73: 8.777042359e-23 | AD73: 31.23246895 | AE73: 0.03167489491 | AF73: 0.006064008163 | AG73: 8919357554
A74: 52 | B74: 0.002545537428 | C74: =ABS(suns*Generation!P63*shad) -> 0.0001641971503 | D74: =IF($B$5="PRC", PRC!B67/$A$19,1) -> 2.309323361 | E74: 1684.182002 | F74: 6.160713441e-06 | G74: 28.81607621 | H74: 9.572326097e+11 | I74: 9.572326097e+11 | J74: 0.02201388588 | K74: 2.514474737e+14 | L74: 1.662691249e-07 | M74: 0.3957259596 | N74: 0.00689462494 | O74: 0.239036255 | P74: -2.170440635e-05 | Q74: 0.02201388588 | R74: 13.99999997 | S74: 8.188166379 | T74: 0.01117860778 | U74: 0.3962448022 | V74: 0.0005188426095 | W74: 0.5997887421 | X74: 3.457820071e-05 | Y74: -0.6016202272 | Z74: 0.00689462494 | AA74: 0.3957259596 | AB74: 5.789776556e+12 | AC74: 9.08262538e-23 | AD74: 31.23119204 | AE74: 0.03183909206 | AF74: 0.005899811013 | AG74: 9445067192
A75: 53 | B75: 0.002637669519 | C75: =ABS(suns*Generation!P64*shad) -> 0.000158584273 | D75: =IF($B$5="PRC", PRC!B68/$A$19,1) -> 2.284198894 | E75: 1684.18494 | F75: 6.247165185e-06 | G75: 28.81733665 | H75: 9.5720466e+11 | I75: 9.5720466e+11 | J75: 0.02201499303 | K75: 2.512879747e+14 | L75: 1.685971497e-07 | M75: 0.3958843753 | N75: 0.006736209264 | O75: 0.24180256 | P75: -2.227777555e-05 | Q75: 0.02201499303 | R75: 13.99999997 | S75: 8.188166379 | T75: 0.01117914448 | U75: 0.3964033865 | V75: 0.0005190112067 | W75: 0.5997664643 | X75: 3.481842722e-05 | Y75: -0.6016182013 | Z75: 0.006736209264 | AA75: 0.3958843753 | AB75: 5.895259024e+12 | AC75: 9.388928626e-23 | AD75: 31.22993111 | AE75: 0.03199767634 | AF75: 0.00574122674 | AG75: 9988209735
A76: 54 | B76: 0.002731111553 | C76: =ABS(suns*Generation!P65*shad) -> 0.0001532576204 | D76: =IF($B$5="PRC", PRC!B69/$A$19,1) -> 2.258845362 | E76: 1684.187978 | F76: 6.331843513e-06 | G76: 28.81864027 | H76: 9.571757573e+11 | I76: 9.571757573e+11 | J76: 0.02201613726 | K76: 2.511231504e+14 | L76: 1.708769332e-07 | M76: 0.396037462 | N76: 0.006583122521 | O76: 0.244651453 | P76: -2.286072946e-05 | Q76: 0.02201613726 | R76: 13.99999997 | S76: 8.188166379 | T76: 0.01117969951 | U76: 0.3965566441 | V76: 0.0005191820836 | W76: 0.5997436036 | X76: 3.505227633e-05 | Y76: -0.6016161839 | Z76: 0.006583122521 | AA76: 0.396037462 | AB76: 5.999385444e+12 | AC76: 9.695681498e-23 | AD76: 31.22868629 | AE76: 0.03215093396 | AF76: 0.005587969119 | AG76: 1.054880452e+10
A77: 55 | B77: 0.002825840704 | C77: =ABS(suns*Generation!P66*shad) -> 0.0001481996458 | D77: =IF($B$5="PRC", PRC!B70/$A$19,1) -> 2.233275009 | E77: 1684.191118 | F77: 6.414722127e-06 | G77: 28.8199877 | H77: 9.571458876e+11 | I77: 9.571458876e+11 | J77: 0.0220173191 | K77: 2.509529229e+14 | L77: 1.73107758e-07 | M77: 0.3961854886 | N77: 0.006435095983 | O77: 0.2475854929 | P77: -2.345356344e-05 | Q77: 0.0220173191 | R77: 13.99999997 | S77: 8.188166379 | T77: 0.01118027314 | U77: 0.3967048437 | V77: 0.0005193551914 | W77: 0.59972015 | X77: 3.527995677e-05 | Y77: -0.601614175 | Z77: 0.006435095983 | AA77: 0.3961854886 | AB77: 6.102146556e+12 | AC77: 1.000261522e-22 | AD77: 31.22745769 | AE77: 0.0322991336 | AF77: 0.005439769473 | AG77: 1.112685568e+10
A78: 56 | B78: 0.00292183383 | C78: =ABS(suns*Generation!P67*shad) -> 0.0001433940596 | D78: =IF($B$5="PRC", PRC!B71/$A$19,1) -> 2.207500113 | E78: 1684.19436 | F78: 6.495775199e-06 | G78: 28.82137963 | H78: 9.571150365e+11 | I78: 9.571150365e+11 | J78: 0.02201853914 | K78: 2.507772119e+14 | L78: 1.7528892e-07 | M78: 0.3963287073 | N78: 0.006291877212 | O78: 0.2506073257 | P78: -2.405658056e-05 | Q78: 0.02201853914 | R78: 13.99999997 | S78: 8.188166379 | T78: 0.01118086567 | U78: 0.3968482378 | V78: 0.0005195304803 | W78: 0.5996960934 | X78: 3.550166728e-05 | Y78: -0.6016121749 | Z78: 0.006291877212 | AA78: 0.3963287073 | AB78: 6.203533854e+12 | AC78: 1.030946302e-22 | AD78: 31.2262454 | AE78: 0.03244252766 | AF78: 0.005296375414 | AG78: 1.172235228e+10
A79: 57 | B79: 0.003019067481 | C79: =ABS(suns*Generation!P68*shad) -> 0.0001388257298 | D79: =IF($B$5="PRC", PRC!B72/$A$19,1) -> 2.181532974 | E79: 1684.197708 | F79: 6.574977378e-06 | G79: 28.82281674 | H79: 9.570831893e+11 | I79: 9.570831893e+11 | J79: 0.02201979794 | K79: 2.50595935e+14 | L79: 1.774197281e-07 | M79: 0.3964673556 | N79: 0.006153228902 | O79: 0.2537196887 | P79: -2.467009176e-05 | Q79: 0.02201979794 | R79: 13.99999997 | S79: 8.188166379 | T79: 0.01118147736 | U79: 0.3969870635 | V79: 0.0005197079 | W79: 0.5996714233 | X79: 3.571759718e-05 | Y79: -0.6016101837 | Z79: 0.006153228902 | AA79: 0.3964673556 | AB79: 6.303539535e+12 | AC79: 1.061596026e-22 | AD79: 31.22504952 | AE79: 0.03258135339 | AF79: 0.005157549684 | AG79: 1.233526845e+10
A80: 58 | B80: 0.003117517905 | C80: =ABS(suns*Generation!P69*shad) -> 0.0001344805913 | D80: =IF($B$5="PRC", PRC!B73/$A$19,1) -> 2.155385913 | E80: 1684.201161 | F80: 6.652303803e-06 | G80: 28.82429973 | H80: 9.570503309e+11 | I80: 9.570503309e+11 | J80: 0.02202109612 | K80: 2.504090076e+14 | L80: 1.794995047e-07 | M80: 0.3966016567 | N80: 0.00601892781 | O80: 0.2569254155 | P80: -2.529441611e-05 | Q80: 0.02202109612 | R80: 13.99999997 | S80: 8.188166379 | T80: 0.01118210853 | U80: 0.3971215441 | V80: 0.0005198873995 | W80: 0.5996461289 | X80: 3.592792697e-05 | Y80: -0.6016082016 | Z80: 0.00601892781 | AA80: 0.3966016567 | AB80: 6.402156447e+12 | AC80: 1.092184461e-22 | AD80: 31.22387013 | AE80: 0.03271583398 | AF80: 0.005023069093 | AG80: 1.296556346e+10
A81: 59 | B81: 0.003217161052 | C81: =ABS(suns*Generation!P70*shad) -> 0.0001303455606 | D81: =IF($B$5="PRC", PRC!B74/$A$19,1) -> 2.129071253 | E81: 1684.204722 | F81: 6.727730104e-06 | G81: 28.82582933 | H81: 9.570164456e+11 | I81: 9.570164456e+11 | J81: 0.02202243429 | K81: 2.502163427e+14 | L81: 1.81527586e-07 | M81: 0.3967318208 | N81: 0.005888763777 | O81: 0.2602274408 | P81: -2.592988105e-05 | Q81: 0.02202243429 | R81: 13.99999997 | S81: 8.188166379 | T81: 0.01118275947 | U81: 0.3972518897 | V81: 0.0005200689271 | W81: 0.599620199 | X81: 3.613282883e-05 | Y81: -0.6016062288 | Z81: 0.005888763777 | AA81: 0.3967318208 | AB81: 6.499378047e+12 | AC81: 1.122685621e-22 | AD81: 31.2227073 | AE81: 0.03284617954 | AF81: 0.004892723532 | AG81: 1.361318194e+10
A82: 60 | B82: 0.00331797258 | C82: =ABS(suns*Generation!P71*shad) -> 0.0001264084583 | D82: =IF($B$5="PRC", PRC!B75/$A$19,1) -> 2.102601319 | E82: 1684.208392 | F82: 6.801232415e-06 | G82: 28.82740629 | H82: 9.569815174e+11 | I82: 9.569815174e+11 | J82: 0.02202381308 | K82: 2.500178511e+14 | L82: 1.835033218e-07 | M82: 0.3968580457 | N82: 0.005762538822 | O82: 0.2636288055 | P82: -2.657682266e-05 | Q82: 0.02202381308 | R82: 13.99999997 | S82: 8.188166379 | T82: 0.01118343049 | U82: 0.3973782981 | V82: 0.0005202524304 | W82: 0.5995936222 | X82: 3.633246709e-05 | Y82: -0.6016042653 | Z82: 0.005762538822 | AA82: 0.3968580457 | AB82: 6.595198363e+12 | AC82: 1.153073781e-22 | AD82: 31.22156112 | AE82: 0.032972588 | AF82: 0.004766315074 | AG82: 1.427805397e+10
A83: 61 | B83: 0.003419927862 | C83: =ABS(suns*Generation!P72*shad) -> 0.0001226579377 | D83: =IF($B$5="PRC", PRC!B76/$A$19,1) -> 2.075988423 | E83: 1684.212173 | F83: 6.87278738e-06 | G83: 28.82903137 | H83: 9.5694553e+11 | I83: 9.5694553e+11 | J83: 0.02202523315 | K83: 2.49813441e+14 | L83: 1.854260764e-07 | M83: 0.3969805182 | N83: 0.005640066311 | O83: 0.2671326614 | P83: -2.723558586e-05 | Q83: 0.02202523315 | R83: 13.99999997 | S83: 8.188166379 | T83: 0.01118412192 | U83: 0.3975009561 | V83: 0.0005204378565 | W83: 0.5995663866 | X83: 3.652699876e-05 | Y83: -0.6016023115 | Z83: 0.005640066311 | AA83: 0.3969805182 | AB83: 6.689611958e+12 | AC83: 1.183323494e-22 | AD83: 31.22043163 | AE83: 0.03309524594 | AF83: 0.004643657136 | AG83: 1.496009524e+10
A84: 62 | B84: 0.003523001992 | C84: =ABS(suns*Generation!P73*shad) -> 0.0001190834184 | D84: =IF($B$5="PRC", PRC!B77/$A$19,1) -> 2.049244859 | E84: 1684.216067 | F84: 6.942372162e-06 | G84: 28.83070537 | H84: 9.569084663e+11 | I84: 9.569084663e+11 | J84: 0.02202669516 | K84: 2.496030181e+14 | L84: 1.872952283e-07 | M84: 0.3970994143 | N84: 0.005521170187 | O84: 0.2707422772 | P84: -2.790652472e-05 | Q84: 0.02202669516 | R84: 13.99999997 | S84: 8.188166379 | T84: 0.01118483409 | U84: 0.3976200395 | V84: 0.0005206251517 | W84: 0.5995384801 | X84: 3.671657386e-05 | Y84: -0.6016003674 | Z84: 0.005521170187 | AA84: 0.3970994143 | AB84: 6.782613897e+12 | AC84: 1.213409603e-22 | AD84: 31.2193189 | AE84: 0.03321432936 | AF84: 0.004524573718 | AG84: 1.565920727e+10
A85: 63 | B85: 0.003627169791 | C85: =ABS(suns*Generation!P74*shad) -> 0.0001156750264 | D85: =IF($B$5="PRC", PRC!B78/$A$19,1) -> 2.022382894 | E85: 1684.220076 | F85: 7.009964452e-06 | G85: 28.83242911 | H85: 9.568703091e+11 | I85: 9.568703091e+11 | J85: 0.0220281998 | K85: 2.493864856e+14 | L85: 1.891101705e-07 | M85: 0.3972149003 | N85: 0.005405684271 | O85: 0.2744610434 | P85: -2.85900027e-05 | Q85: 0.0220281998 | R85: 13.99999997 | S85: 8.188166379 | T85: 0.01118556733 | U85: 0.3977357145 | V85: 0.0005208142619 | W85: 0.5995098901 | X85: 3.690133588e-05 | Y85: -0.6015984333 | Z85: 0.005405684271 | AA85: 0.3972149003 | AB85: 6.874199722e+12 | AC85: 1.243307258e-22 | AD85: 31.21822297 | AE85: 0.03333000438 | AF85: 0.004408898691 | AG85: 1.637527752e+10
A86: 64 | B86: =(0+W)/2+((W-0)/2)*COS((2*200+1-2*A86)*PI()/(2*(200+1))) -> 0.003732405811 | C86: =ABS(suns*Generation!P75*shad) -> 0.0001124235383 | D86: =IF($B$5="PRC", PRC!B79/$A$19,1) -> 1.995414756 | E86: 1684.224201 | F86: 7.075542475e-06 | G86: 28.83420341 | H86: 9.568310405e+11 | I86: 9.568310405e+11 | J86: 0.02202974777 | K86: 2.491637442e+14 | L86: 1.908703109e-07 | M86: 0.3973271329 | N86: =J-$M86 -> 0.005293451603 | O86: 0.2782924786 | P86: -2.928639295e-05 | Q86: 0.02202974777 | R86: 13.99999997 | S86: 8.188166379 | T86: 0.01118632199 | U86: 0.3978481381 | V86: 0.0005210051322 | W86: 0.5994806037 | X86: 3.708142213e-05 | Y86: -0.6015965092 | Z86: =IF(Na>Nd,N86,-M86) -> 0.005293451603 | AA86: =IF(Na>Nd,M86,-N86) -> 0.3973271329 | AB86: 6.964365425e+12 | AC86: 1.27299193e-22 | AD86: 31.2171439 | AE86: 0.03344242792 | AF86: =shad*suns*Jph-AE86 -> 0.004296475153 | AG86: 1.710817962e+10
A87: 65 | B87: 0.003838684345 | C87: =ABS(suns*Generation!P76*shad) -> 0.0001093203306 | D87: =IF($B$5="PRC", PRC!B80/$A$19,1) -> 1.968352631 | E87: =IF($D$17="yes",1800*(1+10^(0.8431*LOG10((K86+Nd+Na)/1200000000000000000)))/(1+8.36*10^(0.8431*LOG10((K86+Nd+Na)/1200000000000000000))),mu_n+mu_p) -> 1684.228444 | F87: =q*(B87-B86)*K87*(E87) -> 7.139085e-06 | G87: =$W$12*mu_n*mu_p*((n_o+K86)+(p_o+K86))/(mu_p*(p_o+K86)+mu_n*(n_o+K86)) -> 28.83602913 | H87: =(tno*(p_o+K86+p_1)+tpo*(K86+n_o+n_1))/(n_o+p_o+K86) -> 9.567906421e+11 | I87: =(tno_2*(p_o+K86+p_12)+tpo_2*(K86+n_o+n_12))/(n_o+p_o+K86) -> 9.567906421e+11 | J87: =IF($H$10="Kerr",T87,Q87) -> 0.02203133982 | K87: =IF($C$5="n+pp+",IF($K86+($B87-$B86)*($N86/$D86-J_base/$D86*mu_n*(n_o+$K86)/(mu_n*(n_o+$K86)+mu_p*(p_o+$K86)))/(q*$G87)>0, $K86+($B87-$B86)*($N86/$D86-J_base/$D86*mu_n*(n_o+$K86)/(mu_n*(n_o+$K86)+mu_p*(p_o+$K86)))/(q*$G87),1000),IF($K86+($B87-$B86)*($N86/$D86-J_base/$D86*mu_p*(p_o+$K86)/(mu_n*(n_o+$K86)+mu_p*(p_o+$K86)))/(q*$G87)>0,$K86+($B87-$B86)*($N86/$D86-J_base/$D86*mu_p*(p_o+$K86)/(mu_n*(n_o+$K86)+mu_p*(p_o+$K86)))/(q*$G87), 1000)) -> 2.489346916e+14 | L87: =q*$K86*($B87-$B86)*(1/$H87+1/$I87+1/$J87) -> 1.925750726e-07 | M87: 0.3974362607 | N87: 0.005184323848 | O87: =kT_q*(mu_p-mu_n)*SLOPE(K86:K88,B86:B88)/(mu_p*(p_o+K86)+mu_n*(n_o+K86))-$X$8*J_base/(D87*q*(mu_p*(p_o+K86)+mu_n*(n_o+K86))) -> 0.2822402352 | P87: =-O87*(B87-B86) -> -2.999607854e-05 | Q87: =(1/$Q$20+1/(K87/((n_o+K87)*(p_o+K87)-ni_300^2)/(2.5E-31*R87*n_o+8.5E-32*S87*p_o+3E-29*K87^0.92+0.00000000000000473*$I$10)))^-1 -> 0.02203133982 | R87: =1+13*(1-TANH((n_o/330000000000000000)^0.66)) -> 13.99999997 | S87: =1+7.5*(1-TANH((p_o/700000000000000000)^0.63)) -> 8.188166379 | T87: =(1/$T$20+((p_o+n_o+K86)*(1.8E-24*n_o^0.65+6E-25*p_o^0.65+3E-27*K86^0.8+0.0000000000000095*$I$10)))^-1 -> 0.01118709844 | U87: =U86+C87 -> 0.3979574584 | V87: =V86+L87 -> 0.0005211977073 | W87: =W86-O87*(B87-B86) -> 0.5994506076 | X87: =X86+N87/(q*mu_n*A87)/(n_o+K87)*(B87-B86) -> 3.725696407e-05 | Y87: =Y86+M87/(q*mu_p*A87)/(p_o+K87)*(B87-B86) -> -0.6015945953 | Z87: 0.005184323848 | AA87: 0.3974362607 | AB87: =AB86+($B87-$B86)*AF87/(q*kT_q*IF($C$5="n+pp+",mu_n,mu_p)) -> 7.053107429e+12 | AC87: =q*AB86*($B87-$B86)*(n_o+p_o+AB86)/(tno*(p_o+AB86+p_1)+tpo*(AB86+n_o+n_1)) -> 1.302439426e-22 | AD87: =kT_q*mu_n*mu_p*((n_o+AB86)+(p_o+AB86))/(mu_p*(p_o+AB86)+mu_n*(n_o+AB86)) -> 31.21608171 | AE87: 0.03355174825 | AF87: 0.004187154822 | AG87: 1.785777354e+10
A88: 66 | B88: 0.003945979431 | C88: =ABS(suns*Generation!P77*shad) -> 0.0001063573334 | D88: =IF($B$5="PRC", PRC!B81/$A$19,1) -> 1.941208648 | E88: 1684.232808 | F88: 7.200571347e-06 | G88: 28.83790717 | H88: 9.567490951e+11 | I88: 9.567490951e+11 | J88: 0.02203297667 | K88: 2.48699223e+14 | L88: 1.942238936e-07 | M88: =$M87+$C88-$L88 -> 0.3975424238 | N88: 0.005078160738 | O88: 0.2863081056 | P88: -3.071945282e-05 | Q88: 0.02203297667 | R88: 13.99999997 | S88: 8.188166379 | T88: 0.01118789703 | U88: 0.3980638157 | V88: 0.0005213919312 | W88: 0.5994198882 | X88: 3.742808767e-05 | Y88: -0.6015926918 | Z88: 0.005078160738 | AA88: 0.3975424238 | AB88: 7.140422564e+12 | AC88: 1.331625899e-22 | AD88: 31.21503645 | AE88: =AE87+$C88-$AC88 -> 0.03365810559 | AF88: 0.004080797489 | AG88: 1.86239058e+10
A89: 67 | B89: 0.004054264858 | C89: =ABS(suns*Generation!P78*shad) -> 0.0001035269877 | D89: =IF($B$5="PRC", PRC!B82/$A$19,1) -> 1.913994879 | E89: 1684.237294 | F89: 7.259981396e-06 | G89: 28.83983842 | H89: 9.567063802e+11 | I89: 9.567063802e+11 | J89: 0.02203465909 | K89: 2.484572308e+14 | L89: 1.958162279e-07 | M89: 0.397645755 | N89: 0.004974829567 | O89: 0.2905000287 | P89: -3.145691965e-05 | Q89: 0.02203465909 | R89: 13.99999997 | S89: 8.188166379 | T89: 0.01118871815 | U89: 0.3981673427 | V89: 0.0005215877474 | W89: 0.5993884313 | X89: 3.759491369e-05 | Y89: -0.6015907987 | Z89: 0.004974829567 | AA89: 0.397645755 | AB89: 7.226308054e+12 | AC89: 1.360527869e-22 | AD89: 31.21400815 | AE89: 0.03376163257 | AF89: 0.003977270501 | AG89: =AG88+AB89*(B89-B88) -> 1.940640965e+10
A90: 68 | B90: 0.004163514174 | C90: =ABS(suns*Generation!P79*shad) -> 0.0001008222067 | D90: =IF($B$5="PRC", PRC!B83/$A$19,1) -> 1.886723321 | E90: 1684.241904 | F90: 7.317295594e-06 | G90: 28.84182383 | H90: 9.566624774e+11 | I90: 9.566624774e+11 | J90: 0.02203638788 | K90: 2.482086045e+14 | L90: 1.973515449e-07 | M90: 0.3977463798 | N90: 0.004874204712 | O90: 0.2948200966 | P90: -3.220889369e-05 | Q90: 0.02203638788 | R90: 13.99999997 | S90: 8.188166379 | T90: 0.01118956219 | U90: 0.3982681649 | V90: 0.000521785099 | W90: 0.5993562224 | X90: 3.775755795e-05 | Y90: -0.6015889164 | Z90: 0.004874204712 | AA90: 0.3977463798 | AB90: 7.3107615e+12 | AC90: 1.389122229e-22 | AD90: 31.21299682 | AE90: 0.03386245478 | AF90: 0.003876448295 | AG90: 2.020510534e+10
A91: 69 | B91: 0.004273700689 | C91: =ABS(suns*Generation!P80*shad) -> 9.823633998e-05 | D91: =IF($B$5="PRC", PRC!B84/$A$19,1) -> 1.859405896 | E91: 1684.246641 | F91: 7.372494966e-06 | G91: 28.84386436 | H91: 9.566173664e+11 | I91: 9.566173664e+11 | J91: 0.02203816385 | K91: 2.479532306e+14 | L91: 1.9882933e-07 | M91: 0.3978444173 | N91: 0.004776167201 | O91: 0.2992725618 | P91: -3.297580078e-05 | Q91: 0.02203816385 | R91: 13.99999997 | S91: 8.188166379 | T91: 0.01119042954 | U91: 0.3983664013 | V91: 0.0005219839283 | W91: 0.5993232466 | X91: 3.791613163e-05 | Y91: -0.6015870449 | Z91: 0.004776167201 | AA91: 0.3978444173 | AB91: 7.393780868e+12 | AC91: 1.417386266e-22 | AD91: 31.2120025 | AE91: 0.03396069112 | AF91: 0.003778211955 | AG91: 2.101980029e+10
A92: 70 | B92: 0.004384797488 | C92: =ABS(suns*Generation!P81*shad) -> 9.576314143e-05 | D92: =IF($B$5="PRC", PRC!B85/$A$19,1) -> 1.832054439 | E92: 1684.251506 | F92: 7.425561122e-06 | G92: 28.84596098 | H92: 9.565710262e+11 | I92: 9.565710262e+11 | J92: 0.02203998781 | K92: 2.476909926e+14 | L92: 2.002490849e-07 | M92: 0.3979399802 | N92: 0.004680604309 | O92: 0.3038618442 | P92: -3.375807814e-05 | Q92: 0.02203998781 | R92: 13.99999997 | S92: 8.188166379 | T92: 0.01119132062 | U92: 0.3984621644 | V92: 0.0005221841774 | W92: 0.5992894885 | X92: 3.807074151e-05 | Y92: -0.6015851843 | Z92: 0.004680604309 | AA92: 0.3979399802 | AB92: 7.475364478e+12 | AC92: 1.445297667e-22 | AD92: 31.2110252 | AE92: 0.03405645426 | AF92: 0.003682448813 | AG92: 2.185028935e+10
A93: 71 | B93: 0.004496777431 | C93: =ABS(suns*Generation!P82*shad) -> 9.339673921e-05 | D93: =IF($B$5="PRC", PRC!B86/$A$19,1) -> 1.804680691 | E93: 1684.256503 | F93: 7.476476263e-06 | G93: 28.84811473 | H93: 9.565234353e+11 | I93: 9.565234353e+11 | J93: 0.02204186064 | K93: 2.474217712e+14 | L93: 2.016103279e-07 | M93: 0.3980331754 | N93: 0.00458740918 | O93: 0.308592539 | P93: -3.455617478e-05 | Q93: 0.02204186064 | R93: 13.99999997 | S93: 8.188166379 | T93: 0.01119223585 | U93: 0.3985555611 | V93: 0.0005223857877 | W93: 0.5992549323 | X93: 3.822149017e-05 | Y93: -0.6015833348 | Z93: 0.00458740918 | AA93: 0.3980331754 | AB93: 7.555510996e+12 | AC93: 1.472834538e-22 | AD93: 31.21006493 | AE93: 0.034149851 | AF93: 0.003589052074 | AG93: 2.269635504e+10
A94: 72 | B94: 0.004609613162 | C94: =ABS(suns*Generation!P83*shad) -> 9.113160879e-05 | D94: =IF($B$5="PRC", PRC!B87/$A$19,1) -> 1.777296289 | E94: 1684.261632 | F94: 7.525223196e-06 | G94: 28.85032663 | H94: 9.564745715e+11 | I94: 9.564745715e+11 | J94: 0.02204378319 | K94: 2.471454437e+14 | L94: 2.029125938e-07 | M94: 0.3981241041 | N94: 0.004496480484 | O94: 0.3134694247 | P94: -3.537055174e-05 | Q94: 0.02204378319 | R94: 13.99999997 | S94: 8.188166379 | T94: 0.01119317566 | U94: 0.3986466928 | V94: 0.0005225887003 | W94: 0.5992195618 | X94: 3.836847626e-05 | Y94: -0.6015814965 | Z94: 0.004496480484 | AA94: 0.3981241041 | AB94: 7.634219423e+12 | AC94: 1.499975413e-22 | AD94: 31.20912169 | AE94: 0.03424098261 | AF94: 0.003497920465 | AG94: 2.355776777e+10
A95: 73 | B95: 0.004723277117 | C95: =ABS(suns*Generation!P84*shad) -> 8.896254811e-05 | D95: =IF($B$5="PRC", PRC!B88/$A$19,1) -> 1.749912763 | E95: 1684.266897 | F95: 7.571785334e-06 | G95: 28.85259777 | H95: 9.564244123e+11 | I95: 9.564244123e+11 | J95: 0.02204575637 | K95: 2.468618844e+14 | L95: 2.041554343e-07 | M95: 0.3982128624 | N95: 0.004407722091 | O95: 0.3184974713 | P95: -3.620168244e-05 | Q95: 0.02204575637 | R95: 13.99999997 | S95: 8.188166379 | T95: 0.01119414049 | U95: 0.3987356553 | V95: 0.0005227928557 | W95: 0.5991833601 | X95: 3.85117947e-05 | Y95: -0.6015796695 | Z95: 0.004407722091 | AA95: 0.3982128624 | AB95: 7.711489093e+12 | AC95: 1.526699268e-22 | AD95: 31.20819551 | AE95: 0.03432994516 | AF95: 0.003408957917 | AG95: 2.443428612e+10
A96: 74 | B96: 0.004837741531 | C96: =ABS(suns*Generation!P85*shad) -> 8.688465484e-05 | D96: =IF($B$5="PRC", PRC!B89/$A$19,1) -> 1.722541524 | E96: 1684.2723 | F96: 7.616146713e-06 | G96: 28.85492924 | H96: 9.563729342e+11 | I96: 9.563729342e+11 | J96: 0.0220477811 | K96: 2.465709643e+14 | L96: 2.053384186e-07 | M96: 0.3982995418 | N96: 0.004321042774 | O96: 0.3236818489 | P96: -3.7050053e-05 | Q96: 0.0220477811 | R96: 13.99999997 | S96: 8.188166379 | T96: 0.0111951308 | U96: 0.39882254 | V96: 0.0005229981941 | W96: 0.59914631 | X96: 3.865153685e-05 | Y96: -0.6015778541 | Z96: 0.004321042774 | AA96: 0.3982995418 | AB96: 7.787319668e+12 | AC96: 1.552985533e-22 | AD96: 31.20728637 | AE96: 0.03441682981 | AF96: 0.003322073262 | AG96: 2.53256571e+10
A97: 75 | B97: 0.00495297844 | C97: =ABS(suns*Generation!P86*shad) -> 8.489330567e-05 | D97: =IF($B$5="PRC", PRC!B90/$A$19,1) -> 1.695193859 | E97: 1684.277843 | F97: 7.658291995e-06 | G97: 28.85732217 | H97: 9.563201134e+11 | I97: 9.563201134e+11 | J97: 0.02204985833 | K97: 2.462725511e+14 | L97: 2.06461133e-07 | M97: 0.3983842286 | N97: 0.00423635593 | O97: 0.329027937 | P97: -3.791616256e-05 | Q97: 0.02204985833 | R97: 13.99999997 | S97: 8.188166379 | T97: 0.01119614707 | U97: 0.3989074333 | V97: 0.0005232046553 | W97: 0.5991083939 | X97: 3.878779069e-05 | Y97: -0.6015760503 | Z97: 0.00423635593 | AA97: 0.3983842286 | AB97: 7.861711131e+12 | AC97: 1.578814107e-22 | AD97: 31.20639427 | AE97: 0.03450172312 | AF97: 0.003237179957 | AG97: 2.62316164e+10
A98: 76 | B98: 0.005068959695 | C98: =ABS(suns*Generation!P87*shad) -> 8.298413716e-05 | D98: =IF($B$5="PRC", PRC!B91/$A$19,1) -> 1.667880925 | E98: 1684.283529 | F98: 7.69820648e-06 | G98: 28.85977773 | H98: 9.562659254e+11 | I98: 9.562659254e+11 | J98: 0.02205198903 | K98: 2.459665094e+14 | L98: 2.075231818e-07 | M98: 0.3984670052 | N98: 0.004153579316 | O98: 0.3345413342 | P98: -3.88005236e-05 | Q98: 0.02205198903 | R98: 13.99999997 | S98: 8.188166379 | T98: 0.01119718977 | U98: 0.3989904174 | V98: 0.0005234121785 | W98: 0.5990695933 | X98: 3.892064106e-05 | Y98: -0.6015742582 | Z98: 0.004153579316 | AA98: 0.3984670052 | AB98: 7.934663787e+12 | AC98: 1.604165364e-22 | AD98: 31.20551921 | AE98: 0.03458470726 | AF98: 0.00315419582 | AG98: 2.715188866e+10
A99: 77 | B99: 0.005185656962 | C99: =ABS(suns*Generation!P88*shad) -> 8.115302836e-05 | D99: =IF($B$5="PRC", PRC!B92/$A$19,1) -> 1.640613736 | E99: 1684.28936 | F99: 7.735876115e-06 | G99: 28.8622971 | H99: 9.562103451e+11 | I99: 9.562103451e+11 | J99: 0.0220541742 | K99: 2.456527e+14 | L99: 2.085241869e-07 | M99: 0.3985479497 | N99: 0.004072634812 | O99: 0.3402278675 | P99: -3.970366226e-05 | Q99: 0.0220541742 | R99: 13.99999997 | S99: 8.188166379 | T99: 0.01119825939 | U99: 0.3990715704 | V99: 0.0005236207026 | W99: 0.5990298897 | X99: 3.905016972e-05 | Y99: -0.601572478 | Z99: 0.004072634812 | AA99: 0.3985479497 | AB99: 8.006178261e+12 | AC99: 1.62902017e-22 | AD99: 31.20466118 | AE99: 0.03466586028 | AF99: 0.003073042791 | AG99: 2.808618778e+10
A100: 78 | B100: 0.005303041733 | C100: =ABS(suns*Generation!P89*shad) -> 7.939608471e-05 | D100: =IF($B$5="PRC", PRC!B93/$A$19,1) -> 1.613403162 | E100: 1684.29534 | F100: 7.771287502e-06 | G100: 28.86488152 | H100: 9.561533467e+11 | I100: 9.561533467e+11 | J100: 0.02205641485 | K100: 2.453309806e+14 | L100: 2.094637887e-07 | M100: 0.3986271363 | N100: 0.003993448191 | O100: 0.3460936035 | P100: -4.062611868e-05 | Q100: 0.02205641485 | R100: 13.99999997 | S100: 8.188166379 | T100: 0.01119935644 | U100: 0.3991509665 | V100: 0.0005238301664 | W100: 0.5989892636 | X100: 3.917645561e-05 | Y100: -0.6015707098 | Z100: 0.003993448191 | AA100: 0.3986271363 | AB100: 8.076255497e+12 | AC100: 1.653359892e-22 | AD100: 31.20382017 | AE100: 0.03474525637 | AF100: 0.002993646706 | AG100: 2.903421719e+10
A101: 79 | B101: 0.005421085335 | C101: =ABS(suns*Generation!P90*shad) -> 7.77096233e-05 | D101: =IF($B$5="PRC", PRC!B94/$A$19,1) -> 1.586259923 | E101: 1684.30147 | F101: 7.804427907e-06 | G101: 28.86753224 | H101: 9.560949037e+11 | I101: 9.560949037e+11 | J101: 0.02205871203 | K101: 2.450012051e+14 | L101: 2.103416461e-07 | M101: 0.3987046356 | N101: 0.003915948909 | O101: 0.3521448588 | P101: -4.156844732e-05 | Q101: 0.02205871203 | R101: 13.99999997 | S101: 8.188166379 | T101: 0.01120048145 | U101: 0.3992286761 | V101: 0.0005240405081 | W101: 0.5989476951 | X101: 3.929957492e-05 | Y101: -0.6015689537 | Z101: 0.003915948909 | AA101: 0.3987046356 | AB101: 8.144896758e+12 | AC101: 1.677166409e-22 | AD101: 31.20299615 | AE101: 0.03482296599 | AF101: 0.002915937083 | AG101: 2.999567013e+10
A102: 80 | B102: 0.005539758929 | C102: =ABS(suns*Generation!P91*shad) -> 7.60901593e-05 | D102: =IF($B$5="PRC", PRC!B95/$A$19,1) -> 1.559194575 | E102: 1684.307754 | F102: 7.835285273e-06 | G102: 28.87025055 | H102: 9.560349891e+11 | I102: 9.560349891e+11 | J102: 0.02206106682 | K102: 2.446632241e+14 | L102: 2.111574366e-07 | M102: 0.3987805146 | N102: 0.003840069907 | O102: 0.3583882116 | P102: -4.253121725e-05 | Q102: 0.02206106682 | R102: 13.99999997 | S102: 8.188166379 | T102: 0.01120163494 | U102: 0.3993047663 | V102: 0.0005242516655 | W102: 0.5989051639 | X102: 3.941960125e-05 | Y102: -0.6015672099 | Z102: 0.003840069907 | AA102: 0.3987805146 | AB102: 8.21210363e+12 | AC102: 1.700422123e-22 | AD102: 31.20218911 | AE102: 0.03489905615 | AF102: 0.002839846924 | AG102: 3.097022999e+10
A103: 81 | B103: 0.005659033526 | C103: =ABS(suns*Generation!P92*shad) -> 7.453439342e-05 | D103: =IF($B$5="PRC", PRC!B96/$A$19,1) -> 1.532217511 | E103: 1684.314195 | F103: 7.863848224e-06 | G103: 28.87303777 | H103: 9.55973575e+11 | I103: 9.55973575e+11 | J103: 0.02206348032 | K103: 2.443168844e+14 | L103: 2.119108567e-07 | M103: 0.3988548371 | N103: 0.003765747425 | O103: 0.3648305136 | P103: -4.351501252e-05 | Q103: 0.02206348032 | R103: 13.99999997 | S103: 8.188166379 | T103: 0.01120281747 | U103: 0.3993793007 | V103: 0.0005244635764 | W103: 0.5988616489 | X103: 3.953660577e-05 | Y103: -0.6015654784 | Z103: 0.003765747425 | AA103: 0.3988548371 | AB103: 8.277878021e+12 | AC103: 1.723109969e-22 | AD103: 31.20139902 | AE103: 0.03497359054 | AF103: 0.00276531253 | AG103: 3.195757055e+10
A104: 82 | B104: 0.005778879989 | C104: =ABS(suns*Generation!P93*shad) -> 7.30392004e-05 | D104: =IF($B$5="PRC", PRC!B97/$A$19,1) -> 1.505338952 | E104: 1684.320795 | F104: 7.89010608e-06 | G104: 28.87589527 | H104: 9.559106329e+11 | I104: 9.559106329e+11 | J104: 0.02206595366 | K104: 2.439620292e+14 | L104: 2.126016224e-07 | M104: 0.3989276637 | N104: 0.003692920826 | O104: 0.3714789022 | P104: -4.452043241e-05 | Q104: 0.02206595366 | R104: 13.99999997 | S104: 8.188166379 | T104: 0.01120402959 | U104: 0.3994523399 | V104: 0.000524676178 | W104: 0.5988171284 | X104: 3.965065731e-05 | Y104: -0.6015637594 | Z104: 0.003692920826 | AA104: 0.3989276637 | AB104: 8.342222165e+12 | AC104: 1.745213426e-22 | AD104: 31.20062586 | AE104: 0.03504662975 | AF104: 0.00269227333 | AG104: 3.295735637e+10
A105: 83 | B105: 0.00589926904 | C105: =ABS(suns*Generation!P94*shad) -> 7.160161826e-05 | D105: =IF($B$5="PRC", PRC!B98/$A$19,1) -> 1.478568941 | E105: 1684.327557 | F105: 7.914048866e-06 | G105: 28.87882443 | H105: 9.558461338e+11 | I105: 9.558461338e+11 | J105: 0.02206848799 | K105: 2.435984981e+14 | L105: 2.132294691e-07 | M105: 0.3989990521 | N105: 0.003621532437 | O105: 0.3783408144 | P105: -4.554809179e-05 | Q105: 0.02206848799 | R105: 13.99999997 | S105: 8.188166379 | T105: 0.01120527187 | U105: 0.3995239415 | V105: 0.0005248894075 | W105: 0.5987715804 | X105: 3.976182246e-05 | Y105: -0.601562053 | Z105: 0.003621532437 | AA105: 0.3989990521 | AB105: 8.405138623e+12 | AC105: 1.766716525e-22 | AD105: 31.19986959 | AE105: 0.03511823136 | AF105: 0.002620671712 | AG105: 3.396924304e+10
A106: 84 | B106: 0.006020171271 | C106: =ABS(suns*Generation!P95*shad) -> 7.021883844e-05 | D106: =IF($B$5="PRC", PRC!B99/$A$19,1) -> 1.451917336 | E106: 1684.334485 | F106: 7.93566732e-06 | G106: 28.88182669 | H106: 9.557800477e+11 | I106: 9.557800477e+11 | J106: 0.02207108449 | K106: 2.432261266e+14 | L106: 2.137941522e-07 | M106: 0.3990690571 | N106: 0.003551527393 | O106: 0.3854239995 | P106: -4.659862139e-05 | Q106: 0.02207108449 | R106: 13.99999997 | S106: 8.188166379 | T106: 0.01120654492 | U106: 0.3995941603 | V106: 0.0005251032016 | W106: 0.5987249817 | X106: 3.987016574e-05 | Y106: -0.6015603593 | Z106: 0.003551527393 | AA106: 0.3990690571 | AB106: 8.466630291e+12 | AC106: 1.78760386e-22 | AD106: 31.19913018 | AE106: 0.0351884502 | AF106: 0.002550452873 | AG106: 3.499287753e+10
A107: 85 | B107: 0.006141557147 | C107: =ABS(suns*Generation!P96*shad) -> 6.888819662e-05 | D107: =IF($B$5="PRC", PRC!B100/$A$19,1) -> 1.425393806 | E107: 1684.341581 | F107: 7.954952906e-06 | G107: 28.88490352 | H107: 9.55712344e+11 | I107: 9.55712344e+11 | J107: 0.02207374438 | K107: 2.428447467e+14 | L107: 2.142954472e-07 | M107: 0.399137731 | N107: 0.003482853492 | O107: 0.3927365341 | P107: -4.767266807e-05 | Q107: 0.02207374438 | R107: 13.99999997 | S107: 8.188166379 | T107: 0.01120784932 | U107: 0.3996630485 | V107: 0.0005253174971 | W107: 0.5986773091 | X107: 3.997574965e-05 | Y107: -0.6015586784 | Z107: 0.003482853492 | AA107: 0.399137731 | AB107: 8.526700399e+12 | AC107: 1.807860595e-22 | AD107: 31.19840758 | AE107: 0.0352573384 | AF107: 0.002481564677 | AG107: 3.602789852e+10
A108: 86 | B108: 0.006263397014 | C108: =ABS(suns*Generation!P97*shad) -> 6.760716418e-05 | D108: =IF($B$5="PRC", PRC!B101/$A$19,1) -> 1.399007827 | E108: 1684.34885 | F108: 7.971897822e-06 | G108: 28.88805641 | H108: 9.556429915e+11 | I108: 9.556429915e+11 | J108: 0.0220764689 | K108: 2.424541864e+14 | L108: 2.147331501e-07 | M108: 0.3992051235 | N108: 0.003415461061 | O108: 0.4002868368 | P108: -4.877089511e-05 | Q108: 0.0220764689 | R108: 13.99999997 | S108: 8.188166379 | T108: 0.01120918571 | U108: 0.3997306557 | V108: 0.0005255322302 | W108: 0.5986285382 | X108: 4.007863478e-05 | Y108: -0.6015570103 | Z108: 0.003415461061 | AA108: 0.3992051235 | AB108: 8.585352516e+12 | AC108: 1.827472473e-22 | AD108: 31.19770176 | AE108: 0.03532494556 | AF108: 0.002413957513 | AG108: 3.707393673e+10
A109: 87 | B109: 0.00638566111 | C109: =ABS(suns*Generation!P98*shad) -> 6.63733403e-05 | D109: =IF($B$5="PRC", PRC!B102/$A$19,1) -> 1.372768672 | E109: 1684.356293 | F109: 7.986495016e-06 | G109: 28.89128691 | H109: 9.555719579e+11 | I109: 9.555719579e+11 | J109: 0.02207925932 | K109: 2.4205427e+14 | L109: 2.151070778e-07 | M109: 0.3992712817 | N109: 0.003349302828 | O109: 0.4080836841 | P109: -4.989398248e-05 | Q109: 0.02207925932 | R109: 13.99999997 | S109: 8.188166379 | T109: 0.01121055471 | U109: 0.399797029 | V109: 0.0005257473373 | W109: 0.5985786442 | X109: 4.017887993e-05 | Y109: -0.6015553554 | Z109: 0.003349302828 | AA109: 0.3992712817 | AB109: 8.642590558e+12 | AC109: 1.846425824e-22 | AD109: 31.19701267 | AE109: 0.0353913189 | AF109: 0.002347584172 | AG109: 3.813061525e+10
A110: 88 | B110: 0.006508319566 | C110: =ABS(suns*Generation!P99*shad) -> 6.518444454e-05 | D110: =IF($B$5="PRC", PRC!B103/$A$19,1) -> 1.346685411 | E110: 1684.363915 | F110: 7.998738191e-06 | G110: 28.8945966 | H110: 9.554992106e+11 | I110: 9.554992106e+11 | J110: 0.02208211694 | K110: 2.416448176e+14 | L110: 2.154170681e-07 | M110: 0.3993362507 | N110: 0.0032843338 | O110: 0.4161362268 | P110: -5.104262705e-05 | Q110: 0.02208211694 | R110: 13.99999997 | S110: 8.188166379 | T110: 0.01121195697 | U110: 0.3998622135 | V110: 0.0005259627544 | W110: 0.5985276016 | X110: 4.027654216e-05 | Y110: -0.6015537135 | Z110: 0.0032843338 | AA110: 0.3993362507 | AB110: 8.698418787e+12 | AC110: 1.864707572e-22 | AD110: 31.19634026 | AE110: 0.03545650335 | AF110: 0.002282399728 | AG110: 3.919754987e+10
A111: 89 | B111: 0.006631342418 | C111: =ABS(suns*Generation!P100*shad) -> 6.403830994e-05 | D111: =IF($B$5="PRC", PRC!B104/$A$19,1) -> 1.320766902 | E111: 1684.371719 | F111: 8.008621821e-06 | G111: 28.8979871 | H111: 9.554247159e+11 | I111: 9.554247159e+11 | J111: 0.02208504309 | K111: 2.412256455e+14 | L111: 2.156629804e-07 | M111: 0.3994000734 | N111: 0.003220511153 | O111: 0.4244540069 | P111: -5.221754281e-05 | Q111: 0.02208504309 | R111: 13.99999997 | S111: 8.188166379 | T111: 0.01121339316 | U111: 0.3999262518 | V111: 0.0005261784173 | W111: 0.598475384 | X111: 4.037167689e-05 | Y111: -0.6015520848 | Z111: 0.003220511153 | AA111: 0.3994000734 | AB111: 8.752841822e+12 | AC111: 1.882305243e-22 | AD111: 31.19568447 | AE111: 0.03552054166 | AF111: 0.002218361418 | AG111: 4.027434944e+10
A112: 90 | B112: 0.006754699615 | C112: =ABS(suns*Generation!P101*shad) -> 6.293287661e-05 | D112: =IF($B$5="PRC", PRC!B105/$A$19,1) -> 1.29502179 | E112: 1684.379708 | F112: 8.016141161e-06 | G112: 28.90146005 | H112: 9.553484394e+11 | I112: 9.553484394e+11 | J112: 0.02208803913 | K112: 2.407965661e+14 | L112: 2.158446957e-07 | M112: 0.3994627904 | N112: 0.003157794121 | O112: 0.4330469762 | P112: -5.341946108e-05 | Q112: 0.02208803913 | R112: 13.99999997 | S112: 8.188166379 | T112: 0.01121486396 | U112: 0.3999891847 | V112: 0.000526394262 | W112: 0.5984219646 | X112: 4.0464338e-05 | Y112: -0.6015504695 | Z112: 0.003157794121 | AA112: 0.3994627904 | AB112: 8.805864636e+12 | AC112: 1.89920697e-22 | AD112: 31.19504524 | AE112: 0.03558347453 | AF112: 0.002155428541 | AG112: 4.136061622e+10
A113: 91 | B113: 0.006878361022 | C113: =ABS(suns*Generation!P102*shad) -> 6.186618571e-05 | D113: =IF($B$5="PRC", PRC!B106/$A$19,1) -> 1.2694585 | E113: 1684.387886 | F113: 8.02129226e-06 | G113: 28.90501717 | H113: 9.552703462e+11 | I113: 9.552703462e+11 | J113: 0.02209110645 | K113: 2.403573876e+14 | L113: 2.159621174e-07 | M113: 0.3995244406 | N113: 0.003096143898 | O113: 0.4419255146 | P113: -5.464913068e-05 | Q113: 0.02209110645 | R113: 13.99999997 | S113: 8.188166379 | T113: 0.01121637006 | U113: 0.4000510509 | V113: 0.0005266102242 | W113: 0.5983673154 | X113: 4.055457787e-05 | Y113: -0.6015488676 | Z113: 0.003096143898 | AA113: 0.3995244406 | AB113: 8.857492569e+12 | AC113: 1.915401498e-22 | AD113: 31.19442251 | AE113: 0.03564534072 | AF113: 0.002093562355 | AG113: 4.24559462e+10
A114: 92 | B114: 0.007002296429 | C114: =ABS(suns*Generation!P103*shad) -> 6.083637375e-05 | D114: =IF($B$5="PRC", PRC!B107/$A$19,1) -> 1.244085234 | E114: 1684.396257 | F114: 8.024071972e-06 | G114: 28.90866019 | H114: 9.551904003e+11 | I114: 9.551904003e+11 | J114: 0.02209424647 | K114: 2.399079143e+14 | L114: 2.16015171e-07 | M114: 0.399585061 | N114: 0.003035523539 | O114: 0.4511004502 | P114: -5.590731802e-05 | Q114: 0.02209424647 | R114: 13.99999997 | S114: 8.188166379 | T114: 0.01121791218 | U114: 0.4001118872 | V114: 0.0005268262393 | W114: 0.5983114081 | X114: 4.064244746e-05 | Y114: -0.6015472792 | Z114: 0.003035523539 | AA114: 0.399585061 | AB114: 8.907731327e+12 | AC114: 1.930878192e-22 | AD114: 31.19381622 | AE114: 0.03570617709 | AF114: 0.002032725982 | AG114: 4.355992951e+10
A115: 93 | B115: 0.007126475561 | C115: =ABS(suns*Generation!P104*shad) -> 5.984166735e-05 | D115: =IF($B$5="PRC", PRC!B108/$A$19,1) -> 1.218909969 | E115: 1684.404825 | F115: 8.024477971e-06 | G115: 28.91239089 | H115: 9.551085651e+11 | I115: 9.551085651e+11 | J115: 0.02209746065 | K115: 2.394479465e+14 | L115: 2.16003805e-07 | M115: 0.3996446867 | N115: 0.002975897875 | O115: 0.4605830797 | P115: -5.719480724e-05 | Q115: 0.02209746065 | R115: 13.99999997 | S115: 8.188166379 | T115: 0.01121949104 | U115: 0.4001717289 | V115: 0.0005270422431 | W115: 0.5982542133 | X115: 4.072799639e-05 | Y115: -0.6015457044 | Z115: 0.002975897875 | AA115: 0.3996446867 | AB115: 8.956586988e+12 | AC115: 1.94562704e-22 | AD115: 31.19322629 | AE115: 0.03576601876 | AF115: 0.001972884314 | AG115: 4.467215072e+10
A116: 94 | B116: 0.007250868084 | C116: =ABS(suns*Generation!P105*shad) -> 5.888037826e-05 | D116: =IF($B$5="PRC", PRC!B109/$A$19,1) -> 1.193940448 | E116: 1684.413593 | F116: 8.022508761e-06 | G116: 28.91621109 | H116: 9.55024803e+11 | I116: 9.55024803e+11 | J116: 0.02210075047 | K116: 2.389772803e+14 | L116: 2.15927991e-07 | M116: 0.3997033511 | N116: 0.002917233425 | O116: 0.47038519 | P116: -5.851240024e-05 | Q116: 0.02210075047 | R116: 13.99999997 | S116: 8.188166379 | T116: 0.01122110739 | U116: 0.4002306093 | V116: 0.0005272581711 | W116: 0.5981957009 | X116: 4.081127299e-05 | Y116: -0.6015441433 | Z116: 0.002917233425 | AA116: 0.3997033511 | AB116: 9.004066009e+12 | AC116: 1.959638657e-22 | AD116: 31.19265265 | AE116: 0.03582489914 | AF116: 0.001914003936 | AG116: 4.57921892e+10
A117: 95 | B117: 0.007375443609 | C117: =ABS(suns*Generation!P106*shad) -> 5.795089867e-05 | D117: =IF($B$5="PRC", PRC!B110/$A$19,1) -> 1.169184182 | E117: 1684.422565 | F117: 8.018163693e-06 | G117: 28.92012264 | H117: 9.549390759e+11 | I117: 9.549390759e+11 | J117: 0.02210411744 | K117: 2.38495708e+14 | L117: 2.157877242e-07 | M117: 0.3997610862 | N117: 0.002859498314 | O117: 0.480519081 | P117: -5.98609167e-05 | Q117: 0.02210411744 | R117: 13.99999997 | S117: 8.188166379 | T117: 0.01122276199 | U117: 0.4002885602 | V117: 0.0005274739588 | W117: 0.59813584 | X117: 4.089232437e-05 | Y117: -0.601542596 | Z117: 0.002859498314 | AA117: 0.3997610862 | AB117: 9.050175228e+12 | AC117: 1.972904287e-22 | AD117: 31.19209522 | AE117: 0.03588285004 | AF117: 0.001856053037 | AG117: 4.691961953e+10
A118: 96 | B118: 0.007500171704 | C118: =ABS(suns*Generation!P107*shad) -> 5.705169682e-05 | D118: =IF($B$5="PRC", PRC!B111/$A$19,1) -> 1.144648444 | E118: 1684.431745 | F118: 8.011442975e-06 | G118: 28.92412746 | H118: 9.548513447e+11 | I118: 9.548513447e+11 | J118: 0.02210756312 | K118: 2.380030177e+14 | L118: 2.155830237e-07 | M118: 0.3998179223 | N118: 0.0028026622 | O118: 0.4909975887 | P118: -6.124119403e-05 | Q118: 0.02210756312 | R118: 13.99999997 | S118: 8.188166379 | T118: 0.01122445562 | U118: 0.4003456119 | V118: 0.0005276895419 | W118: 0.5980745988 | X118: 4.097119646e-05 | Y118: -0.6015410625 | Z118: 0.0028026622 | AA118: 0.3998179223 | AB118: 9.094921868e+12 | AC118: 1.98541581e-22 | AD118: 31.19155391 | AE118: 0.03593990173 | AF118: 0.001799001341 | AG118: 4.805401181e+10
A119: 97 | B119: 0.0076250219 | C119: =ABS(suns*Generation!P108*shad) -> 5.618131289e-05 | D119: =IF($B$5="PRC", PRC!B112/$A$19,1) -> 1.120340267 | E119: =IF($D$17="yes",1800*(1+10^(0.8431*LOG10((K118+Nd+Na)/1200000000000000000)))/(1+8.36*10^(0.8431*LOG10((K118+Nd+Na)/1200000000000000000))),mu_n+mu_p) -> 1684.441137 | F119: =q*(B119-B118)*K119*(E119) -> 8.002347692e-06 | G119: =$W$12*mu_n*mu_p*((n_o+K118)+(p_o+K118))/(mu_p*(p_o+K118)+mu_n*(n_o+K118)) -> 28.9282275 | H119: =(tno*(p_o+K118+p_1)+tpo*(K118+n_o+n_1))/(n_o+p_o+K118) -> 9.547615697e+11 | I119: =(tno_2*(p_o+K118+p_12)+tpo_2*(K118+n_o+n_12))/(n_o+p_o+K118) -> 9.547615697e+11 | J119: =IF($H$10="Kerr",T119,Q119) -> 0.02211108907 | K119: =IF($C$5="n+pp+",IF($K118+($B119-$B118)*($N118/$D118-J_base/$D118*mu_n*(n_o+$K118)/(mu_n*(n_o+$K118)+mu_p*(p_o+$K118)))/(q*$G119)>0, $K118+($B119-$B118)*($N118/$D118-J_base/$D118*mu_n*(n_o+$K118)/(mu_n*(n_o+$K118)+mu_p*(p_o+$K118)))/(q*$G119),1000),IF($K118+($B119-$B118)*($N118/$D118-J_base/$D118*mu_p*(p_o+$K118)/(mu_n*(n_o+$K118)+mu_p*(p_o+$K118)))/(q*$G119)>0,$K118+($B119-$B118)*($N118/$D118-J_base/$D118*mu_p*(p_o+$K118)/(mu_n*(n_o+$K118)+mu_p*(p_o+$K118)))/(q*$G119), 1000)) -> 2.374989937e+14 | L119: =q*$K118*($B119-$B118)*(1/$H119+1/$I119+1/$J119) -> 2.153139329e-07 | M119: 0.3998738883 | N119: 0.002746696201 | O119: =kT_q*(mu_p-mu_n)*SLOPE(K118:K120,B118:B120)/(mu_p*(p_o+K118)+mu_n*(n_o+K118))-$X$8*J_base/(D119*q*(mu_p*(p_o+K118)+mu_n*(n_o+K118))) -> 0.5018341105 | P119: =-O119*(B119-B118) -> -6.265408726e-05 | Q119: =(1/$Q$20+1/(K119/((n_o+K119)*(p_o+K119)-ni_300^2)/(2.5E-31*R119*n_o+8.5E-32*S119*p_o+3E-29*K119^0.92+0.00000000000000473*$I$10)))^-1 -> 0.02211108907 | R119: =1+13*(1-TANH((n_o/330000000000000000)^0.66)) -> 13.99999997 | S119: =1+7.5*(1-TANH((p_o/700000000000000000)^0.63)) -> 8.188166379 | T119: =(1/$T$20+((p_o+n_o+K118)*(1.8E-24*n_o^0.65+6E-25*p_o^0.65+3E-27*K118^0.8+0.0000000000000095*$I$10)))^-1 -> 0.01122618906 | U119: =U118+C119 -> 0.4004017932 | V119: =V118+L119 -> 0.0005279048558 | W119: =W118-O119*(B119-B118) -> 0.5980119447 | X119: =X118+N119/(q*mu_n*A119)/(n_o+K119)*(B119-B118) -> 4.104793409e-05 | Y119: =Y118+M119/(q*mu_p*A119)/(p_o+K119)*(B119-B118) -> -0.601539543 | Z119: 0.002746696201 | AA119: 0.3998738883 | AB119: =AB118+($B119-$B118)*AF119/(q*kT_q*IF($C$5="n+pp+",mu_n,mu_p)) -> 9.138313544e+12 | AC119: =q*AB118*($B119-$B118)*(n_o+p_o+AB118)/(tno*(p_o+AB118+p_1)+tpo*(AB118+n_o+n_1)) -> 1.99716574e-22 | AD119: =kT_q*mu_n*mu_p*((n_o+AB118)+(p_o+AB118))/(mu_p*(p_o+AB118)+mu_n*(n_o+AB118)) -> 31.19102864 | AE119: 0.03599608305 | AF119: 0.001742820028 | AG119: 4.919493205e+10
A120: 98 | B120: 0.007749963699 | C120: =ABS(suns*Generation!P109*shad) -> 5.533835506e-05 | D120: =IF($B$5="PRC", PRC!B113/$A$19,1) -> 1.096266439 | E120: 1684.450746 | F120: 7.990879812e-06 | G120: 28.93242473 | H120: 9.546697101e+11 | I120: 9.546697101e+11 | J120: 0.02211469691 | K120: 2.36983416e+14 | L120: 2.149805201e-07 | M120: 0.3999290117 | N120: 0.002691572827 | O120: 0.5130426304 | P120: -6.410046887e-05 | Q120: 0.02211469691 | R120: 13.99999997 | S120: 8.188166379 | T120: 0.01122796314 | U120: 0.4004571315 | V120: 0.0005281198363 | W120: 0.5979478442 | X120: 4.1122581e-05 | Y120: -0.6015380375 | Z120: 0.002691572827 | AA120: 0.3999290117 | AB120: 9.180358265e+12 | AC120: 2.00814723e-22 | AD120: 31.1905193 | AE120: 0.0360514214 | AF120: 0.001687481673 | AG120: 5.034194252e+10
A121: 99 | B121: 0.007874966577 | C121: =ABS(suns*Generation!P110*shad) -> 5.452149585e-05 | D121: =IF($B$5="PRC", PRC!B114/$A$19,1) -> 1.072433506 | E121: 1684.460575 | F121: 7.977042211e-06 | G121: 28.9367212 | H121: 9.545757246e+11 | I121: 9.545757246e+11 | J121: 0.02211838827 | K121: 2.36456061e+14 | L121: 2.145828784e-07 | M121: 0.3999833186 | N121: 0.002637265914 | O121: 0.5246377461 | P121: -6.558122856e-05 | Q121: 0.02211838827 | R121: 13.99999997 | S121: 8.188166379 | T121: 0.01122977867 | U121: 0.400511653 | V121: 0.0005283344192 | W121: 0.597882263 | X121: 4.119517994e-05 | Y121: -0.6015365461 | Z121: 0.002637265914 | AA121: 0.3999833186 | AB121: 9.221064437e+12 | AC121: 2.018354068e-22 | AD121: 31.19002582 | AE121: 0.0361059429 | AF121: 0.001632960177 | AG121: 5.149460212e+10
A122: 100 | B122: 0.008 | C122: =ABS(suns*Generation!P111*shad) -> 5.372946865e-05 | D122: =IF($B$5="PRC", PRC!B115/$A$19,1) -> 1.048847762 | E122: 1684.470629 | F122: 7.960838679e-06 | G122: 28.94111898 | H122: 9.544795711e+11 | I122: 9.544795711e+11 | J122: 0.02212216484 | K122: 2.35916701e+14 | L122: 2.14121127e-07 | M122: 0.400036834 | N122: 0.002583750566 | O122: 0.536634697 | P122: -6.709727289e-05 | Q122: 0.02212216484 | R122: 13.99999997 | S122: 8.188166379 | T122: 0.01123163651 | U122: 0.4005653825 | V122: 0.0005285485403 | W122: 0.5978151657 | X122: 4.126577268e-05 | Y122: -0.601535069 | Z122: 0.002583750566 | AA122: 0.400036834 | AB122: 9.260440869e+12 | AC122: 2.027780684e-22 | AD122: 31.18954807 | AE122: 0.03615967237 | AF122: 0.001579230708 | AG122: 5.265246674e+10
A123: 101 | B123: 0.008125033423 | C123: =ABS(suns*Generation!P112*shad) -> 5.296106443e-05 | D123: =IF($B$5="PRC", PRC!B116/$A$19,1) -> 1.025515256 | E123: 1684.480912 | F123: 7.942273945e-06 | G123: 28.94562018 | H123: 9.543812065e+11 | I123: 9.543812065e+11 | J123: 0.0221260283 | K123: 2.353651047e+14 | L123: 2.135954106e-07 | M123: 0.4000895814 | N123: 0.002531003097 | O123: 0.5490493937 | P123: -6.86495249e-05 | Q123: 0.0221260283 | R123: 13.99999997 | S123: 8.188166379 | T123: 0.01123353751 | U123: 0.4006183436 | V123: 0.0005287621357 | W123: 0.5977465162 | X123: 4.133440005e-05 | Y123: -0.601533606 | Z123: 0.002531003097 | AA123: 0.4000895814 | AB123: 9.298496773e+12 | AC123: 2.036422144e-22 | AD123: 31.18908597 | AE123: 0.03621263343 | AF123: 0.001526269644 | AG123: 5.381508961e+10
A124: 102 | B124: 0.008250036301 | C124: =ABS(suns*Generation!P113*shad) -> 5.221512864e-05 | D124: =IF($B$5="PRC", PRC!B117/$A$19,1) -> 1.00244178 | E124: 1684.491429 | F124: 7.921353686e-06 | G124: 28.95022697 | H124: 9.542805872e+11 | I124: 9.542805872e+11 | J124: 0.02212998039 | K124: 2.348010369e+14 | L124: 2.130059007e-07 | M124: 0.4001415836 | N124: 0.002479000975 | O124: 0.5618984481 | P124: -7.023892358e-05 | Q124: 0.02212998039 | R124: 13.99999997 | S124: 8.188166379 | T124: 0.01123548255 | U124: 0.4006705587 | V124: 0.0005289751416 | W124: 0.5976762773 | X124: 4.1401102e-05 | Y124: -0.6015321574 | Z124: 0.002479000975 | AA124: 0.4001415836 | AB124: 9.33524177e+12 | AC124: 2.044274152e-22 | AD124: 31.18863939 | AE124: 0.03626484856 | AF124: 0.001474054515 | AG124: 5.498202171e+10
A125: 103 | B125: 0.0083749781 | C125: =ABS(suns*Generation!P114*shad) -> 5.14905583e-05 | D125: =IF($B$5="PRC", PRC!B118/$A$19,1) -> 0.9796328771 | E125: 1684.502184 | F125: 7.898084548e-06 | G125: 28.95494155 | H125: 9.541776686e+11 | I125: 9.541776686e+11 | J125: 0.02213402287 | K125: 2.342242588e+14 | L125: 2.123527957e-07 | M125: 0.4001928618 | N125: 0.002427722769 | O125: 0.575199206 | P125: -7.18664232e-05 | Q125: 0.02213402287 | R125: 13.99999997 | S125: 8.188166379 | T125: 0.01123747251 | U125: 0.4007220493 | V125: 0.0005291874944 | W125: 0.5976044109 | X125: 4.146591763e-05 | Y125: -0.6015307233 | Z125: 0.002427722769 | AA125: 0.4001928618 | AB125: 9.37068589e+12 | AC125: 2.051333047e-22 | AD125: 31.18820822 | AE125: 0.03631633912 | AF125: 0.001422563957 | AG125: 5.615281206e+10
A126: 104 | B126: 0.008499828296 | C126: =ABS(suns*Generation!P115*shad) -> 5.07862992e-05 | D126: =IF($B$5="PRC", PRC!B119/$A$19,1) -> 0.9570938344 | E126: 1684.513181 | F126: 7.872474161e-06 | G126: 28.95976617 | H126: 9.540724056e+11 | I126: 9.540724056e+11 | J126: 0.02213815754 | K126: 233634528015715 | L126: 2.116363212e-07 | M126: 0.4002434364 | N126: 0.002377148106 | O126: 0.5889697792 | P126: -7.35329926e-05 | Q126: 0.02213815754 | R126: 13.99999997 | S126: 8.188166379 | T126: 0.01123950832 | U126: 0.4007728356 | V126: 0.0005293991308 | W126: 0.5975308779 | X126: 4.152888523e-05 | Y126: -0.6015293036 | Z126: 0.002377148106 | AA126: 0.4002434364 | AB126: 9.404839579e+12 | AC126: 2.0575958e-22 | AD126: 31.18779233 | AE126: 0.03636712542 | AF126: 0.001371777658 | AG126: 5.732700812e+10
A127: 105 | B127: 0.008624556391 | C127: =ABS(suns*Generation!P116*shad) -> 5.010134327e-05 | D127: =IF($B$5="PRC", PRC!B120/$A$19,1) -> 0.9348296837 | E127: 1684.524426 | F127: 7.84453116e-06 | G127: 28.96470312 | H127: 9.539647522e+11 | I127: 9.539647522e+11 | J127: 0.02214238621 | K127: 2.330315989e+14 | L127: 2.10856731e-07 | M127: 0.4002933269 | N127: 0.00232725762 | O127: 0.6032290809 | P127: -7.523961428e-05 | Q127: 0.02214238621 | R127: 13.99999997 | S127: 8.188166379 | T127: 0.0112415909 | U127: 0.4008229369 | V127: 0.0005296099875 | W127: 0.5974556383 | X127: 4.159004229e-05 | Y127: -0.6015278984 | Z127: 0.00232725762 | AA127: 0.4002933269 | AB127: 9.437713692e+12 | AC127: 2.063060012e-22 | AD127: 31.18739162 | AE127: 0.03641722676 | AF127: 0.001321676314 | AG127: 5.850415618e+10
A128: 106 | B128: 0.008749131916 | C128: =ABS(suns*Generation!P117*shad) -> 4.943472614e-05 | D128: =IF($B$5="PRC", PRC!B121/$A$19,1) -> 0.9128452007 | E128: 1684.535924 | F128: 7.8142652e-06 | G128: 28.96975473 | H128: 9.538546618e+11 | I128: 9.538546618e+11 | J128: 0.02214671073 | K128: 2.324152224e+14 | L128: 2.100143071e-07 | M128: 0.4003425516 | N128: 0.002278032908 | O128: 0.6179968613 | P128: -7.698728333e-05 | Q128: 0.02214671073 | R128: 13.99999997 | S128: 8.188166379 | T128: 0.01124372118 | U128: 0.4008723716 | V128: 0.0005298200018 | W128: 0.597378651 | X128: 4.164942559e-05 | Y128: -0.6015265078 | Z128: 0.002278032908 | AA128: 0.4003425516 | AB128: 9.469319506e+12 | AC128: 2.06772391e-22 | AD128: 31.18700593 | AE128: 0.03646666149 | AF128: 0.001272241588 | AG128: 5.968380162e+10
A129: 107 | B129: 0.008873524439 | C129: =ABS(suns*Generation!P118*shad) -> 4.878552473e-05 | D129: =IF($B$5="PRC", PRC!B122/$A$19,1) -> 0.8911449046 | E129: 1684.547678 | F129: 7.781686979e-06 | G129: 28.97492336 | H129: 9.537420869e+11 | I129: 9.537420869e+11 | J129: 0.02215113296 | K129: 2.317851465e+14 | L129: 2.091093605e-07 | M129: 0.400391128 | N129: 0.002229456493 | O129: 0.6332937447 | P129: -7.877700626e-05 | Q129: 0.02215113296 | R129: 13.99999997 | S129: 8.188166379 | T129: 0.01124590012 | U129: 0.4009211572 | V129: 0.0005300291112 | W129: 0.597299874 | X129: 4.170707115e-05 | Y129: -0.6015251319 | Z129: 0.002229456493 | AA129: 0.400391128 | AB129: 9.49966871e+12 | AC129: 2.071586343e-22 | AD129: 31.18663515 | AE129: 0.03651544701 | AF129: 0.001223456063 | AG129: 6.086548938e+10
A130: 108 | B130: 0.008997703571 | C130: =ABS(suns*Generation!P119*shad) -> 4.815285505e-05 | D130: =IF($B$5="PRC", PRC!B123/$A$19,1) -> 0.8697330574 | E130: 1684.559693 | F130: 7.746808251e-06 | G130: 28.98021143 | H130: 9.536269797e+11 | I130: 9.536269797e+11 | J130: 0.02215565483 | K130: 2.31141116e+14 | L130: 2.081422316e-07 | M130: 0.4004390728 | N130: 0.00218151178 | O130: 0.6491412685 | P130: -8.060979954e-05 | Q130: 0.02215565483 | R130: 13.99999997 | S130: 8.188166379 | T130: 0.0112481287 | U130: 0.40096931 | V130: 0.0005302372534 | W130: 0.5972192642 | X130: 4.176301434e-05 | Y130: -0.6015237708 | Z130: 0.00218151178 | AA130: 0.4004390728 | AB130: 9.528773414e+12 | AC130: 2.074646777e-22 | AD130: 31.18627912 | AE130: 0.03656359987 | AF130: 0.001175303208 | AG130: 6.204876419e+10
A131: 109 | B131: 0.009121638978 | C131: =ABS(suns*Generation!P120*shad) -> 4.753587008e-05 | D131: =IF($B$5="PRC", PRC!B124/$A$19,1) -> 0.8486136645 | E131: 1684.571975 | F131: 7.709641852e-06 | G131: 28.98562139 | H131: 9.535092915e+11 | I131: 9.535092915e+11 | J131: 0.02216027823 | K131: 2.304828734e+14 | L131: 2.07113291e-07 | M131: 0.4004864015 | N131: 0.002134183023 | O131: 0.6655619236 | P131: -8.248668806e-05 | Q131: 0.02216027823 | R131: 13.99999997 | S131: 8.188166379 | T131: 0.01125040789 | U131: 0.4010168459 | V131: 0.0005304443667 | W131: 0.5971367775 | X131: 4.181728985e-05 | Y131: -0.6015224244 | Z131: 0.002134183023 | AA131: 0.4004864015 | AB131: 9.556646148e+12 | AC131: 2.076905285e-22 | AD131: 31.18593771 | AE131: 0.03661113574 | AF131: 0.001127767338 | AG131: 6.323317102e+10
A132: 110 | B132: 0.009245300385 | C132: =ABS(suns*Generation!P121*shad) -> 4.693375777e-05 | D132: =IF($B$5="PRC", PRC!B125/$A$19,1) -> 0.8277904744 | E132: 1684.584529 | F132: 7.67020172e-06 | G132: 28.99115572 | H132: 9.53388973e+11 | I132: 9.53388973e+11 | J132: 0.02216500513 | K132: 2.298101583e+14 | L132: 2.060229395e-07 | M132: 0.4005331292 | N132: 0.002087455288 | O132: 0.6825791953 | P132: -8.44087033e-05 | Q132: 0.02216500513 | R132: 13.99999997 | S132: 8.188166379 | T132: 0.0112527387 | U132: 0.4010637796 | V132: 0.0005306503896 | W132: 0.5970523688 | X132: 4.186993174e-05 | Y132: -0.6015210929 | Z132: 0.002087455288 | AA132: 0.4005331292 | AB132: 9.583299858e+12 | AC132: 2.078362547e-22 | AD132: 31.18561077 | AE132: 0.03665806949 | AF132: 0.001080833581 | AG132: 6.441825536e+10
A133: 111 | B133: 0.009368657582 | C133: =ABS(suns*Generation!P122*shad) -> 4.634573913e-05 | D133: =IF($B$5="PRC", PRC!B126/$A$19,1) -> 0.8072669792 | E133: 1684.59736 | F133: 7.628502913e-06 | G133: 28.99681696 | H133: =(tno*(p_o+K132+p_1)+tpo*(K132+n_o+n_1))/(n_o+p_o+K132) -> 9.532659746e+11 | I133: =(tno_2*(p_o+K132+p_12)+tpo_2*(K132+n_o+n_12))/(n_o+p_o+K132) -> 9.532659746e+11 | J133: 0.02216983749 | K133: 2.291227085e+14 | L133: 2.048716091e-07 | M133: 0.4005792701 | N133: 0.002041314421 | O133: 0.7002176072 | P133: -8.63768812e-05 | Q133: 0.02216983749 | R133: 13.99999997 | S133: 8.188166379 | T133: 0.01125512214 | U133: 0.4011101254 | V133: 0.0005308552612 | W133: 0.5969659919 | X133: 4.192097346e-05 | Y133: -0.6015197763 | Z133: 0.002041314421 | AA133: 0.4005792701 | AB133: 9.60874791e+12 | AC133: 2.079019839e-22 | AD133: 31.18529814 | AE133: 0.03670441523 | AF133: 0.001034487841 | AG133: 6.560356357e+10
A134: 112 | B134: 0.009491680434 | C134: =ABS(suns*Generation!P123*shad) -> 4.577106644e-05 | D134: =IF($B$5="PRC", PRC!B127/$A$19,1) -> 0.7870464155 | E134: 1684.610471 | F134: 7.58456163e-06 | G134: 29.00260766 | H134: 9.531402459e+11 | I134: 9.531402459e+11 | J134: 0.02217477729 | K134: 2.284202596e+14 | L134: 2.036597638e-07 | M134: 0.4006248375 | N134: 0.001995747014 | O134: 0.7185027652 | P134: -8.839225992e-05 | Q134: 0.02217477729 | R134: 13.99999997 | S134: 8.188166379 | T134: 0.01125755923 | U134: 0.4011558964 | V134: 0.000531058921 | W134: 0.5968775996 | X134: 4.197044787e-05 | Y134: -0.6015184746 | Z134: 0.001995747014 | AA134: 0.4006248375 | AB134: 9.633004087e+12 | AC134: 2.078879024e-22 | AD134: 31.18499967 | AE134: 0.0367501863 | AF134: 0.000988716775 | AG134: 6.678864321e+10
A135: 113 | B135: 0.00961433889 | C135: =ABS(suns*Generation!P124*shad) -> 4.520902154e-05 | D135: =IF($B$5="PRC", PRC!B128/$A$19,1) -> 0.7671317656 | E135: 1684.62387 | F135: 7.538395237e-06 | G135: 29.00853042 | H135: 9.530117363e+11 | I135: 9.530117363e+11 | J135: 0.02217982655 | K135: 2.277025457e+14 | L135: 2.023878994e-07 | M135: 0.4006698442 | N135: 0.00195074038 | O135: 0.7374614039 | P135: -9.045587715e-05 | Q135: 0.02217982655 | R135: 13.99999997 | S135: 8.188166379 | T135: 0.01126005101 | U135: 0.4012011055 | V135: 0.0005312613089 | W135: 0.5967871438 | X135: 4.201838727e-05 | Y135: -0.6015171879 | Z135: 0.00195074038 | AA135: 0.4006698442 | AB135: 9.656082589e+12 | AC135: 2.077942549e-22 | AD135: 31.18471518 | AE135: 0.03679539532 | AF135: 0.0009435077534 | AG135: 6.79730434e+10
A136: 114 | B136: 0.009736602986 | C136: =ABS(suns*Generation!P125*shad) -> 4.46589142e-05 | D136: =IF($B$5="PRC", PRC!B129/$A$19,1) -> 0.7475257578 | E136: 1684.63756 | F136: 7.490022289e-06 | G136: 29.01458785 | H136: 9.528803946e+11 | I136: 9.528803946e+11 | J136: 0.02218498728 | K136: 2.269692996e+14 | L136: 2.010565449e-07 | M136: 0.400714302 | N136: 0.001906282523 | O136: 0.7571214337 | P136: -9.256876719e-05 | Q136: 0.02218498728 | R136: 13.99999997 | S136: 8.188166379 | T136: 0.01126259852 | U136: 0.4012457644 | V136: 0.0005314623654 | W136: 0.596694575 | X136: 4.206482343e-05 | Y136: -0.6015159163 | Z136: 0.001906282523 | AA136: 0.400714302 | AB136: 9.677998032e+12 | AC136: 2.076213428e-22 | AD136: 31.18444452 | AE136: 0.03684005424 | AF136: 0.0008988488392 | AG136: 6.915631507e+10
A137: 115 | B137: 0.009858442853 | C137: =ABS(suns*Generation!P126*shad) -> 4.412008061e-05 | D137: =IF($B$5="PRC", PRC!B130/$A$19,1) -> 0.7282308689 | E137: 1684.651547 | F137: 7.439462548e-06 | G137: 29.02078261 | H137: 9.527461693e+11 | I137: 9.527461693e+11 | J137: 0.02219026152 | K137: 2.262202535e+14 | L137: 1.996662626e-07 | M137: 0.4007582224 | N137: 0.001862362108 | O137: 0.7775119895 | P137: -9.47319577e-05 | Q137: 0.02219026152 | R137: 13.99999997 | S137: 8.188166379 | T137: 0.01126520282 | U137: 0.4012898845 | V137: 0.0005316620317 | W137: 0.596599843 | X137: 4.210978756e-05 | Y137: -0.6015146598 | Z137: 0.001862362108 | AA137: 0.4007582224 | AB137: 9.698765445e+12 | AC137: 2.073695239e-22 | AD137: 31.18418751 | AE137: 0.03688417432 | AF137: 0.0008547287586 | AG137: 7.033801137e+10
A138: 116 | B138: 0.009979828729 | C138: =ABS(suns*Generation!P127*shad) -> 4.35918819e-05 | D138: =IF($B$5="PRC", PRC!B131/$A$19,1) -> 0.709249325 | E138: 1684.665836 | F138: 7.386737013e-06 | G138: 29.02711738 | H138: 9.526090087e+11 | I138: 9.526090087e+11 | J138: 0.0221956513 | K138: 2.254551389e+14 | L138: 1.982176491e-07 | M138: 0.4008016161 | N138: 0.001818968444 | O138: 0.798663481 | P138: -9.694646594e-05 | Q138: 0.0221956513 | R138: 13.99999997 | S138: 8.188166379 | T138: 0.01126786498 | U138: 0.4013334763 | V138: 0.0005318602493 | W138: 0.5965028966 | X138: 4.21533104e-05 | Y138: -0.6015134184 | Z138: 0.001818968444 | AA138: 0.4008016161 | AB138: 9.718400266e+12 | AC138: 2.07039211e-22 | AD138: 31.18394397 | AE138: 0.0369277662 | AF138: 0.0008111368767 | AG138: 7.151768789e+10
A139: 117 | B139: 0.01010073096 | C139: =ABS(suns*Generation!P128*shad) -> 4.307370277e-05 | D139: =IF($B$5="PRC", PRC!B132/$A$19,1) -> 0.6905831038 | E139: 1684.680432 | F139: 7.33186794e-06 | G139: 29.03359485 | H139: 9.524688608e+11 | I139: 9.524688608e+11 | J139: 0.02220115869 | K139: 2.246736876e+14 | L139: 1.967113355e-07 | M139: 0.4008444931 | N139: 0.001776091453 | O139: 0.8206076435 | P139: -9.921329481e-05 | Q139: 0.02220115869 | R139: 13.99999997 | S139: 8.188166379 | T139: 0.01127058607 | U139: 0.40137655 | V139: 0.0005320569607 | W139: 0.5964036833 | X139: 4.219542217e-05 | Y139: -0.6015121921 | Z139: 0.001776091453 | AA139: 0.4008444931 | AB139: 9.736918344e+12 | AC139: 2.066308709e-22 | AD139: 31.18371372 | AE139: 0.0369708399 | AF139: 0.000768063174 | AG139: 7.269490304e+10
A140: 118 | B140: 0.01022112001 | C140: =ABS(suns*Generation!P129*shad) -> 4.256495019e-05 | D140: =IF($B$5="PRC", PRC!B133/$A$19,1) -> 0.6722339368 | E140: 1684.695341 | F140: 7.274878867e-06 | G140: 29.04021776 | H140: 9.523256737e+11 | I140: 9.523256737e+11 | J140: 0.02220678572 | K140: 2.238756318e+14 | L140: 1.951479883e-07 | M140: 0.4008868629 | N140: 0.00173372165 | O140: 0.8433775907 | P140: -0.0001015334282 | Q140: 0.02220678572 | R140: 13.99999997 | S140: 8.188166379 | T140: 0.01127336716 | U140: 0.401419115 | V140: 0.0005322521087 | W140: 0.5963021498 | X140: 4.223615265e-05 | Y140: -0.6015109812 | Z140: 0.00173372165 | AA140: 0.4008868629 | AB140: 9.754335932e+12 | AC140: 2.061450233e-22 | AD140: 31.18349657 | AE140: 0.03701340485 | AF140: 0.0007254982238 | AG140: 7.386921829e+10
A141: 119 | B141: 0.01034096647 | C141: =ABS(suns*Generation!P130*shad) -> 4.206505216e-05 | D141: =IF($B$5="PRC", PRC!B134/$A$19,1) -> 0.6542033113 | E141: 1684.710567 | F141: 7.215794639e-06 | G141: 29.04698884 | H141: 9.521793952e+11 | I141: 9.521793952e+11 | J141: 0.02221253445 | K141: 2.230607049e+14 | L141: 1.935283102e-07 | M141: 0.4009287344 | N141: 0.001691850127 | O141: 0.8670078678 | P141: -0.0001039078261 | Q141: 0.02221253445 | R141: 13.99999997 | S141: 8.188166379 | T141: 0.01127620932 | U141: 0.40146118 | V141: 0.000532445637 | W141: 0.596198242 | X141: 4.227553115e-05 | Y141: -0.6015097854 | Z141: 0.001691850127 | AA141: 0.4009287344 | AB141: 9.770669683e+12 | AC141: 2.055822393e-22 | AD141: 31.18329234 | AE141: 0.0370554699 | AF141: 0.0006834331716 | AG141: 7.504019849e+10
A142: 120 | B142: 0.01046024107 | C142: =ABS(suns*Generation!P131*shad) -> 4.157345653e-05 | D142: =IF($B$5="PRC", PRC!B135/$A$19,1) -> 0.6364924733 | E142: 1684.726116 | F142: 7.154641433e-06 | G142: 29.05391082 | H142: 9.520299733e+11 | I142: 9.520299733e+11 | J142: 0.02221840694 | K142: 2.222286421e+14 | L142: 1.918530403e-07 | M142: 0.400970116 | N142: 0.001650468523 | O142: 0.8915345057 | P142: -0.000106337419 | Q142: 0.02221840694 | R142: 13.99999997 | S142: 8.188166379 | T142: 0.01127911366 | U142: 0.4015027535 | V142: 0.00053263749 | W142: 0.5960919046 | X142: 4.231358651e-05 | Y142: -0.601508605 | Z142: 0.001650468523 | AA142: 0.400970116 | AB142: 9.785936649e+12 | AC142: 2.049431406e-22 | AD142: 31.18310081 | AE142: 0.03709704336 | AF142: 0.0006418597151 | AG142: 7.620741214e+10
A143: 121 | B143: 0.01057891467 | C143: =ABS(suns*Generation!P132*shad) -> 4.108962991e-05 | D143: =IF($B$5="PRC", PRC!B136/$A$19,1) -> 0.6191024299 | E143: 1684.741992 | F143: 7.091446782e-06 | G143: 29.06098648 | H143: 9.518773562e+11 | I143: 9.518773562e+11 | J143: 0.02222440521 | K143: 2.213791811e+14 | L143: 1.901229553e-07 | M143: 0.4010110155 | N143: 0.001609569016 | O143: 0.9169950754 | P143: -0.0001088231016 | Q143: 0.02222440521 | R143: 13.99999997 | S143: 8.188166379 | T143: 0.01128208124 | U143: 0.4015438431 | V143: 0.000532827613 | W143: 0.5959830815 | X143: 4.23503472e-05 | Y143: -0.6015074399 | Z143: 0.001609569016 | AA143: 0.4010110155 | AB143: 9.800154273e+12 | AC143: 2.042283977e-22 | AD143: 31.1829218 | AE143: 0.03713813299 | AF143: 0.0006007700852 | AG143: 7.737043168e+10
A144: 122 | B144: 0.01069695827 | C144: =ABS(suns*Generation!P133*shad) -> 4.061305661e-05 | D144: =IF($B$5="PRC", PRC!B137/$A$19,1) -> 0.6020339528 | E144: 1684.758202 | F144: 7.026239604e-06 | G144: 29.06821856 | H144: 9.517214925e+11 | I144: 9.517214925e+11 | J144: 0.0222305313 | K144: 2.205120626e+14 | L144: 1.883388695e-07 | M144: 0.4010514402 | N144: 0.001569144298 | O144: 0.943428744 | P144: -0.0001113657265 | Q144: 0.0222305313 | R144: 13.99999997 | S144: 8.188166379 | T144: 0.01128511314 | U144: 0.4015844562 | V144: 0.0005330159518 | W144: 0.5958717158 | X144: 4.238584121e-05 | Y144: -0.6015062901 | Z144: 0.001569144298 | AA144: 0.4010514402 | AB144: 9.81334039e+12 | AC144: 2.034387288e-22 | AD144: 31.1827551 | AE144: 0.03717874605 | AF144: 0.0005601570285 | AG144: 7.852883372e+10
A145: 123 | B145: 0.01081434304 | C145: =ABS(suns*Generation!P134*shad) -> 4.014323765e-05 | D145: =IF($B$5="PRC", PRC!B138/$A$19,1) -> 0.585287581 | E145: 1684.774749 | F145: 6.959050222e-06 | G145: 29.07560982 | H145: 9.51562331e+11 | I145: 9.51562331e+11 | J145: 0.0222367872 | K145: 2.196270315e+14 | L145: 1.865016361e-07 | M145: 0.401091397 | N145: 0.001529187562 | O145: 0.9708763294 | P145: -0.0001139660964 | Q145: 0.0222367872 | R145: 13.99999997 | S145: 8.188166379 | T145: 0.01128821045 | U145: 0.4016245994 | V145: 0.0005332024535 | W145: 0.5957577497 | X145: 4.242009619e-05 | Y145: -0.6015051557 | Z145: 0.001529187562 | AA145: 0.401091397 | AB145: 9.825513212e+12 | AC145: 2.025748983e-22 | AD145: 31.1826005 | AE145: 0.03721888928 | AF145: 0.0005200137909 | AG145: 7.968219934e+10
A146: 124 | B146: 0.01093104031 | C146: =ABS(suns*Generation!P135*shad) -> 3.967968984e-05 | D146: =IF($B$5="PRC", PRC!B139/$A$19,1) -> 0.5688636245 | E146: 1684.791638 | F146: 6.889910393e-06 | G146: 29.083163 | H146: 9.513998213e+11 | I146: 9.513998213e+11 | J146: 0.02224317491 | K146: 2.187238371e+14 | L146: 1.846121473e-07 | M146: 0.401130892 | N146: 0.001489692485 | O146: 0.9993803555 | P146: -0.0001166249561 | Q146: 0.02224317491 | R146: 13.99999997 | S146: 8.188166379 | T146: 0.01129137423 | U146: 0.4016642791 | V146: 0.0005333870656 | W146: 0.5956411247 | X146: 4.245313934e-05 | Y146: -0.6015040368 | Z146: 0.001489692485 | AA146: 0.401130892 | AB146: 9.836691332e+12 | AC146: 2.016377152e-22 | AD146: 31.18245778 | AE146: 0.03725856897 | AF146: 0.000480334101 | AG146: 8.083011434e+10
A147: 125 | B147: 0.01104702156 | C147: =ABS(suns*Generation!P136*shad) -> 3.922194488e-05 | D147: =IF($B$5="PRC", PRC!B140/$A$19,1) -> 0.552762168 | E147: 1684.808876 | F147: 6.818853333e-06 | G147: 29.09088082 | H147: 9.512339136e+11 | I147: 9.512339136e+11 | J147: 0.02224969636 | K147: 2.178022348e+14 | L147: 1.826713354e-07 | M147: 0.4011699313 | N147: 0.001450653211 | O147: 1.028985107 | P147: -0.0001193429836 | Q147: 0.02224969636 | R147: 13.99999997 | S147: 8.188166379 | T147: 0.01129460553 | U147: 0.4017035011 | V147: 0.000533569737 | W147: 0.5955217817 | X147: 4.248499753e-05 | Y147: -0.6015029333 | Z147: 0.001450653211 | AA147: 0.4011699313 | AB147: 9.846893711e+12 | AC147: 2.006280318e-22 | AD147: 31.18232672 | AE147: 0.03729779092 | AF147: 0.0004411121562 | AG147: 8.197216942e+10
A148: 126 | B148: 0.01116225847 | C148: =ABS(suns*Generation!P137*shad) -> 3.876954855e-05 | D148: =IF($B$5="PRC", PRC!B141/$A$19,1) -> 0.5369830745 | E148: 1684.826465 | F148: 6.745913742e-06 | G148: 29.098766 | H148: 9.51064559e+11 | I148: 9.51064559e+11 | J148: 0.02225635346 | K148: 2.168619864e+14 | L148: 1.806801731e-07 | M148: 0.4012085202 | N148: 0.001412064343 | O148: 1.059736684 | P148: -0.0001221207803 | Q148: 0.02225635346 | R148: 13.99999997 | S148: 8.188166379 | T148: 0.01129790541 | U148: 0.4017422706 | V148: 0.0005337504171 | W148: 0.5953996609 | X148: 4.251569723e-05 | Y148: -0.6015018452 | Z148: 0.001412064343 | AA148: 0.4012085202 | AB148: 9.856139677e+12 | AC148: 1.995467419e-22 | AD148: 31.18220711 | AE148: 0.03733656047 | AF148: 0.0004023426076 | AG148: 8.31079605e+10
A149: 127 | B149: 0.01127672288 | C149: =ABS(suns*Generation!P138*shad) -> 3.832205991e-05 | D149: =IF($B$5="PRC", PRC!B142/$A$19,1) -> 0.5215259893 | E149: 1684.844412 | F149: 6.671127827e-06 | G149: 29.10682119 | H149: 9.508917099e+11 | I149: 9.508917099e+11 | J149: 0.02226314809 | K149: 2.159028618e+14 | L149: 1.786396742e-07 | M149: 0.4012466636 | N149: 0.001373920922 | O149: 1.091683053 | P149: -0.0001249588604 | Q149: 0.02226314809 | R149: 13.99999997 | S149: 8.188166379 | T149: 0.01130127488 | U149: 0.4017805927 | V149: 0.0005339290568 | W149: 0.5952747021 | X149: 4.254526456e-05 | Y149: -0.6015007726 | Z149: 0.001373920922 | AA149: 0.4012466636 | AB149: 9.864448912e+12 | AC149: 1.983947793e-22 | AD149: 31.18209871 | AE149: 0.03737488253 | AF149: 0.0003640205477 | AG149: 8.423708886e+10
A150: 128 | B150: =(0+W)/2+((W-0)/2)*COS((2*200+1-2*A150)*PI()/(2*(200+1))) -> 0.01139038684 | C150: =ABS(suns*Generation!P139*shad) -> 3.787905061e-05 | D150: =IF($B$5="PRC", PRC!B143/$A$19,1) -> 0.5063903444 | E150: 1684.862719 | F150: 6.594533329e-06 | G150: 29.11504902 | H150: 9.507153196e+11 | I150: 9.507153196e+11 | J150: 0.02227008205 | K150: 2.149246393e+14 | L150: 1.765508943e-07 | M150: 0.4012843661 | N150: =J-$M150 -> 0.001336218423 | O150: 1.124874097 | P150: -0.0001278576394 | Q150: 0.02227008205 | R150: 13.99999997 | S150: 8.188166379 | T150: 0.01130471497 | U150: 0.4018184717 | V150: 0.0005341056077 | W150: 0.5951468444 | X150: 4.257372529e-05 | Y150: -0.6014997156 | Z150: =IF(Na>Nd,N150,-M150) -> 0.001336218423 | AA150: =IF(Na>Nd,M150,-N150) -> 0.4012843661 | AB150: 9.871841449e+12 | AC150: 1.971731159e-22 | AD150: 31.1820013 | AE150: 0.03741276158 | AF150: =shad*suns*Jph-AE150 -> 0.0003261414971 | AG150: 8.53591614e+10
A151: 129 | B151: 0.01150322257 | C151: =ABS(suns*Generation!P140*shad) -> 3.744010413e-05 | D151: =IF($B$5="PRC", PRC!B144/$A$19,1) -> 0.4915753627 | E151: =IF($D$17="yes",1800*(1+10^(0.8431*LOG10((K150+Nd+Na)/1200000000000000000)))/(1+8.36*10^(0.8431*LOG10((K150+Nd+Na)/1200000000000000000))),mu_n+mu_p) -> 1684.881393 | F151: =q*(B151-B150)*K151*(E151) -> 6.516169543e-06 | G151: =$W$12*mu_n*mu_p*((n_o+K150)+(p_o+K150))/(mu_p*(p_o+K150)+mu_n*(n_o+K150)) -> 29.12345208 | H151: 9.505353432e+11 | I151: 9.505353432e+11 | J151: =IF($H$10="Kerr",T151,Q151) -> 0.0222771571 | K151: =IF($C$5="n+pp+",IF($K150+($B151-$B150)*($N150/$D150-J_base/$D150*mu_n*(n_o+$K150)/(mu_n*(n_o+$K150)+mu_p*(p_o+$K150)))/(q*$G151)>0, $K150+($B151-$B150)*($N150/$D150-J_base/$D150*mu_n*(n_o+$K150)/(mu_n*(n_o+$K150)+mu_p*(p_o+$K150)))/(q*$G151),1000),IF($K150+($B151-$B150)*($N150/$D150-J_base/$D150*mu_p*(p_o+$K150)/(mu_n*(n_o+$K150)+mu_p*(p_o+$K150)))/(q*$G151)>0,$K150+($B151-$B150)*($N150/$D150-J_base/$D150*mu_p*(p_o+$K150)/(mu_n*(n_o+$K150)+mu_p*(p_o+$K150)))/(q*$G151), 1000)) -> 2.139271078e+14 | L151: =q*$K150*($B151-$B150)*(1/$H151+1/$I151+1/$J151) -> 1.744149311e-07 | M151: 0.4013216318 | N151: 0.001298952734 | O151: =kT_q*(mu_p-mu_n)*SLOPE(K150:K152,B150:B152)/(mu_p*(p_o+K150)+mu_n*(n_o+K150))-$X$8*J_base/(D151*q*(mu_p*(p_o+K150)+mu_n*(n_o+K150))) -> 1.159361664 | P151: =-O151*(B151-B150) -> -0.0001308174211 | Q151: =(1/$Q$20+1/(K151/((n_o+K151)*(p_o+K151)-ni_300^2)/(2.5E-31*R151*n_o+8.5E-32*S151*p_o+3E-29*K151^0.92+0.00000000000000473*$I$10)))^-1 -> 0.0222771571 | R151: =1+13*(1-TANH((n_o/330000000000000000)^0.66)) -> 13.99999997 | S151: =1+7.5*(1-TANH((p_o/700000000000000000)^0.63)) -> 8.188166379 | T151: =(1/$T$20+((p_o+n_o+K150)*(1.8E-24*n_o^0.65+6E-25*p_o^0.65+3E-27*K150^0.8+0.0000000000000095*$I$10)))^-1 -> 0.01130822664 | U151: =U150+C151 -> 0.4018559118 | V151: =V150+L151 -> 0.0005342800226 | W151: =W150-O151*(B151-B150) -> 0.595016027 | X151: =X150+N151/(q*mu_n*A151)/(n_o+K151)*(B151-B150) -> 4.260110485e-05 | Y151: =Y150+M151/(q*mu_p*A151)/(p_o+K151)*(B151-B150) -> -0.601498674 | Z151: 0.001298952734 | AA151: 0.4013216318 | AB151: =AB150+($B151-$B150)*AF151/(q*kT_q*IF($C$5="n+pp+",mu_n,mu_p)) -> 9.878337661e+12 | AC151: =q*AB150*($B151-$B150)*(n_o+p_o+AB150)/(tno*(p_o+AB150+p_1)+tpo*(AB150+n_o+n_1)) -> 1.958827607e-22 | AD151: =kT_q*mu_n*mu_p*((n_o+AB150)+(p_o+AB150))/(mu_p*(p_o+AB150)+mu_n*(n_o+AB150)) -> 31.18191463 | AE151: 0.03745020168 | AF151: 0.000288701393 | AG151: 8.647379086e+10
A152: 130 | B152: 0.01161520251 | C152: =ABS(suns*Generation!P141*shad) -> 3.700481523e-05 | D152: =IF($B$5="PRC", PRC!B145/$A$19,1) -> 0.4770800629 | E152: 1684.900436 | F152: 6.436077344e-06 | G152: 29.13203289 | H152: 9.503517373e+11 | I152: 9.503517373e+11 | J152: 0.0222843749 | K152: 2.129100674e+14 | L152: 1.722329253e-07 | M152: =$M151+$C152-$L152 -> 0.4013584644 | N152: 0.001262120151 | O152: 1.195199613 | P152: -0.0001338383839 | Q152: 0.0222843749 | R152: 13.99999997 | S152: 8.188166379 | T152: 0.01131181087 | U152: 0.4018929166 | V152: 0.0005344522556 | W152: 0.5948821886 | X152: 4.262742833e-05 | Y152: -0.601497648 | Z152: 0.001262120151 | AA152: 0.4013584644 | AB152: 9.883958254e+12 | AC152: 1.945247571e-22 | AD152: 31.18183847 | AE152: =AE151+$C152-$AC152 -> 0.0374872065 | AF152: 0.0002516965777 | AG152: 8.758059593e+10
A153: 131 | B153: 0.01172629931 | C153: =ABS(suns*Generation!P142*shad) -> 3.657278929e-05 | D153: =IF($B$5="PRC", PRC!B146/$A$19,1) -> 0.4629032635 | E153: 1684.919852 | F153: 6.354299208e-06 | G153: 29.14079387 | H153: 9.501644606e+11 | I153: 9.501644606e+11 | J153: 0.02229173707 | K153: 2.118733309e+14 | L153: 1.700060609e-07 | M153: 0.4013948672 | N153: 0.001225717368 | O153: 1.232443849 | P153: -0.0001369205663 | Q153: 0.02229173707 | R153: 13.99999997 | S153: 8.188166379 | T153: 0.01131546856 | U153: 0.4019294894 | V153: 0.0005346222616 | W153: 0.5947452681 | X153: 4.265272052e-05 | Y153: -0.6014966375 | Z153: 0.001225717368 | AA153: 0.4013948672 | AB153: 9.888724261e+12 | AC153: 1.931001819e-22 | AD153: 31.18177258 | AE153: 0.03752377929 | AF153: 0.0002151237884 | AG153: =AG152+AB153*(B153-B152) -> 8.867920154e+10
A154: 132 | B154: 0.01183648583 | C154: =ABS(suns*Generation!P143*shad) -> 3.614364178e-05 | D154: =IF($B$5="PRC", PRC!B147/$A$19,1) -> 0.4490435887 | E154: 1684.939646 | F154: 6.270879229e-06 | G154: 29.14973741 | H154: 9.499734739e+11 | I154: 9.499734739e+11 | J154: 0.02229924509 | K154: 2.108167257e+14 | L154: 1.677355655e-07 | M154: 0.4014308431 | N154: 0.001189741462 | O154: 1.271152366 | P154: -0.0001400638499 | Q154: 0.02229924509 | R154: 13.99999997 | S154: 8.188166379 | T154: 0.0113192006 | U154: 0.4019656331 | V154: 0.0005347899972 | W154: 0.5946052042 | X154: 4.267700585e-05 | Y154: -0.6014956426 | Z154: 0.001189741462 | AA154: 0.4014308431 | AB154: 9.892657026e+12 | AC154: 1.91610143e-22 | AD154: 31.18171671 | AE154: 0.03755992293 | AF154: 0.0001789801467 | AG154: 8.976923895e+10
A155: 133 | B155: 0.01194573514 | C155: =ABS(suns*Generation!P144*shad) -> 3.571699775e-05 | D155: =IF($B$5="PRC", PRC!B148/$A$19,1) -> 0.4354994724 | E155: 1684.95982 | F155: 6.185863142e-06 | G155: 29.15886576 | H155: 9.497787405e+11 | I155: 9.497787405e+11 | J155: 0.02230690038 | K155: 2.097400949e+14 | L155: 1.654227111e-07 | M155: 0.4014663946 | N155: 0.001154189887 | O155: 1.311385267 | P155: -0.0001432679425 | Q155: 0.02230690038 | R155: 13.99999997 | S155: 8.188166379 | T155: 0.01132300784 | U155: 0.4020013501 | V155: 0.0005349554199 | W155: 0.5944619363 | X155: 4.270030848e-05 | Y155: -0.6014946633 | Z155: 0.001154189887 | AA155: 0.4014663946 | AB155: 9.895778199e+12 | AC155: 1.900557782e-22 | AD155: 31.1816706 | AE155: 0.03759563993 | AF155: 0.0001432631489 | AG155: 9.085034594e+10
A156: 134 | B156: 0.01205402057 | C156: =ABS(suns*Generation!P145*shad) -> 3.529249133e-05 | D156: =IF($B$5="PRC", PRC!B149/$A$19,1) -> 0.4222691644 | E156: 1684.980378 | F156: 6.099298337e-06 | G156: 29.16818107 | H156: 9.495802264e+11 | I156: 9.495802264e+11 | J156: 0.02231470421 | K156: 2.086432991e+14 | L156: 1.630688142e-07 | M156: 0.4015015241 | N156: 0.001119060464 | O156: 1.353204793 | P156: -0.0001465323588 | Q156: 0.02231470421 | R156: 13.99999997 | S156: 8.188166379 | T156: 0.01132689107 | U156: 0.4020366426 | V156: 0.0005351184887 | W156: 0.5943154039 | X156: 4.272265224e-05 | Y156: -0.6014936995 | Z156: 0.001119060464 | AA156: 0.4015015241 | AB156: 9.898109726e+12 | AC156: 1.884382525e-22 | AD156: 31.18163401 | AE156: 0.03763093242 | AF156: 0.0001079706576 | AG156: 9.192216698e+10
A157: 135 | B157: 0.01216131565 | C157: =ABS(suns*Generation!P146*shad) -> 3.486976535e-05 | D157: =IF($B$5="PRC", PRC!B150/$A$19,1) -> 0.4093507352 | E157: 1685.001323 | F157: 6.011233876e-06 | G157: 29.17768537 | H157: 9.49377901e+11 | I157: 9.49377901e+11 | J157: 0.02232265775 | K157: 2.075262184e+14 | L157: 1.606752362e-07 | M157: 0.4015362332 | N157: 0.001084351374 | O157: 1.396675331 | P157: -0.0001498563998 | Q157: 0.02232265775 | R157: 13.99999997 | S157: 8.188166379 | T157: 0.01133085101 | U157: 0.4020715123 | V157: 0.000535279164 | W157: 0.5941655475 | X157: 4.274406068e-05 | Y157: -0.6014927513 | Z157: 0.001084351374 | AA157: 0.4015362332 | AB157: 9.899673835e+12 | AC157: 1.86758757e-22 | AD157: 31.18160668 | AE157: 0.03766580218 | AF157: 7.310089223e-05 | AG157: 9.298435334e+10
A158: 136 | B158: 0.01226759419 | C158: =ABS(suns*Generation!P147*shad) -> 3.444847091e-05 | D158: =IF($B$5="PRC", PRC!B151/$A$19,1) -> 0.3967420815 | E158: 1685.022656 | F158: 5.921720503e-06 | G158: 29.18738055 | H158: 9.491717366e+11 | I158: 9.491717366e+11 | J158: 0.02233076202 | K158: 2.063887543e+14 | L158: 1.582433834e-07 | M158: 0.4015705234 | N158: 0.001050061147 | O158: 1.441863419 | P158: -0.000153239131 | Q158: 0.02233076202 | R158: 13.99999997 | S158: 8.188166379 | T158: 0.01133488835 | U158: 0.4021059608 | V158: 0.0005354374073 | W158: 0.5940123084 | X158: 4.276455707e-05 | Y158: -0.6014918187 | Z158: 0.001050061147 | AA158: 0.4015705234 | AB158: 9.90049303e+12 | AC158: 1.850185068e-22 | AD158: 31.18158834 | AE158: 0.03770025065 | AF158: 3.865242133e-05 | AG158: 9.403656323e+10
A159: 137 | B159: 0.01237283021 | C159: =ABS(suns*Generation!P148*shad) -> 3.402826699e-05 | D159: =IF($B$5="PRC", PRC!B152/$A$19,1) -> 0.3844409322 | E159: 1685.04438 | F159: 5.830810653e-06 | G159: 29.19726834 | H159: 9.489617098e+11 | I159: 9.489617098e+11 | J159: 0.02233901787 | K159: 2.052308313e+14 | L159: 1.557747077e-07 | M159: 0.4016043959 | N159: 0.001016188654 | O159: 1.488837737 | P159: -0.0001566793585 | Q159: 0.02233901787 | R159: 13.99999997 | S159: 8.188166379 | T159: 0.0113390037 | U159: 0.4021399891 | V159: 0.000535593182 | W159: 0.593855629 | X159: 4.278416436e-05 | Y159: -0.6014909017 | Z159: 0.001016188654 | AA159: 0.4016043959 | AB159: 9.900590072e+12 | AC159: 1.832187386e-22 | AD159: 31.18157874 | AE159: 0.03773427892 | AF159: 4.624154333e-06 | AG159: 9.507846192e+10
A160: 138 | B160: 0.01247699801 | C160: =ABS(suns*Generation!P149*shad) -> 3.360882023e-05 | D160: =IF($B$5="PRC", PRC!B153/$A$19,1) -> 0.3724448539 | E160: 1685.066496 | F160: 5.738558461e-06 | G160: 29.20735027 | H160: 9.487478011e+11 | I160: 9.487478011e+11 | J160: 0.02234742599 | K160: 2.040523994e+14 | L160: 1.532707058e-07 | M160: 0.4016378514 | N160: 0.0009827331048 | O160: 1.537669084 | P160: -0.0001601756035 | Q160: 0.02234742599 | R160: 13.99999997 | S160: 8.188166379 | T160: 0.01134319757 | U160: 0.4021735979 | V160: 0.0005357464527 | W160: 0.5936954534 | X160: 4.280290525e-05 | Y160: -0.6014900003 | Z160: 0.0009827331048 | AA160: 0.4016378514 | AB160: 9.899987975e+12 | AC160: 1.813607096e-22 | AD160: 31.1815776 | AE160: 0.03776788774 | AF160: -2.89846659e-05 | AG160: 9.610972188e+10
A161: 139 | B161: 0.01258007214 | C161: =ABS(suns*Generation!P150*shad) -> 3.318980455e-05 | D161: =IF($B$5="PRC", PRC!B154/$A$19,1) -> 0.3607512569 | E161: 1685.089006 | F161: 5.645019764e-06 | G161: 29.2176277 | H161: 9.485299955e+11 | I161: 9.485299955e+11 | J161: 0.02235598688 | K161: 2.028534362e+14 | L161: 1.507329201e-07 | M161: 0.4016708905 | N161: 0.0009496940332 | O161: 1.588430336 | P161: -0.0001637260753 | Q161: 0.02235598688 | R161: 13.99999997 | S161: 8.188166379 | T161: 0.01134747042 | U161: 0.4022067877 | V161: 0.0005358971857 | W161: 0.5935317274 | X161: 4.282080217e-05 | Y161: -0.6014891145 | Z161: 0.0009496940332 | AA161: 0.4016708905 | AB161: 9.898709988e+12 | AC161: 1.794456952e-22 | AD161: 31.18158466 | AE161: 0.03780107755 | AF161: -6.217447045e-05 | AG161: 9.71300228e+10
A162: 140 | B162: 0.01268202742 | C162: =ABS(suns*Generation!P151*shad) -> 3.277090095e-05 | D162: =IF($B$5="PRC", PRC!B155/$A$19,1) -> 0.3493574011 | E162: 1685.111909 | F162: 5.550252096e-06 | G162: 29.22810176 | H162: 9.483082832e+11 | I162: 9.483082832e+11 | J162: 0.02236470083 | K162: 2.016339493e+14 | L162: 1.481629379e-07 | M162: 0.4017035132 | N162: 0.0009170712952 | O162: 1.641196396 | P162: -0.0001673286416 | Q162: 0.02236470083 | R162: 13.99999997 | S162: 8.188166379 | T162: 0.01135182261 | U162: 0.4022395586 | V162: 0.0005360453486 | W162: 0.5933643987 | X162: 4.283787726e-05 | Y162: -0.6014882442 | Z162: 0.0009170712952 | AA162: 0.4017035132 | AB162: 9.896779584e+12 | AC162: 1.774749867e-22 | AD162: 31.18159964 | AE162: 0.03783384845 | AF162: -9.49453714e-05 | AG162: 9.813905175e+10
A163: 141 | B163: 0.01278283895 | C163: =ABS(suns*Generation!P152*shad) -> 3.235179731e-05 | D163: =IF($B$5="PRC", PRC!B156/$A$19,1) -> 0.3382604024 | E163: 1685.135206 | F163: 5.454314687e-06 | G163: 29.23877334 | H163: 9.480826596e+11 | I163: 9.480826596e+11 | J163: 0.02237356791 | K163: 2.003939787e+14 | L163: 1.455623911e-07 | M163: 0.4017357195 | N163: 0.0008848650603 | O163: 1.696044111 | P163: -0.0001709807981 | Q163: 0.02237356791 | R163: 13.99999997 | S163: 8.188166379 | T163: 0.01135625437 | U163: 0.4022719104 | V163: 0.000536190911 | W163: 0.5931934179 | X163: 4.285415243e-05 | Y163: -0.6014873895 | Z163: 0.0008848650603 | AA163: 0.4017357195 | AB163: 9.894220447e+12 | AC163: 1.754498902e-22 | AD163: 31.18162227 | AE163: 0.03786620024 | AF163: -0.0001272971687 | AG163: 9.913650323e+10
A164: 142 | B164: 0.01288248209 | C164: =ABS(suns*Generation!P153*shad) -> 3.193218819e-05 | D164: =IF($B$5="PRC", PRC!B157/$A$19,1) -> 0.3274572388 | E164: 1685.158896 | F164: 5.357268449e-06 | G164: 29.24964307 | H164: 9.478531262e+11 | I164: 9.478531262e+11 | J164: 0.02238258796 | K164: 1.991335993e+14 | L164: 1.429329563e-07 | M164: 0.4017675087 | N164: 0.000853075805 | O164: 1.753052175 | P164: -0.000174679635 | Q164: 0.02238258796 | R164: 13.99999997 | S164: 8.188166379 | T164: 0.01136076586 | U164: 0.4023038426 | V164: 0.000536333844 | W164: 0.5930187383 | X164: 4.286964931e-05 | Y164: -0.6014865504 | Z164: 0.000853075805 | AA164: 0.4017675087 | AB164: 9.891056456e+12 | AC164: 1.73371724e-22 | AD164: 31.18165227 | AE164: 0.03789813243 | AF164: -0.0001592293569 | AG164: 1.001220792e+11
A165: 143 | B165: 0.01298093252 | C165: =ABS(suns*Generation!P154*shad) -> 3.15117747e-05 | D165: =IF($B$5="PRC", PRC!B158/$A$19,1) -> 0.3169447566 | E165: 1685.182978 | F165: 5.259175958e-06 | G165: 29.26071128 | H165: 9.476196908e+11 | I165: 9.476196908e+11 | J165: 0.02239176053 | K165: 1.978529237e+14 | L165: 1.402763536e-07 | M165: 0.4017988802 | N165: 0.0008217043067 | O165: 1.812301002 | P165: -0.0001784218021 | Q165: 0.02239176053 | R165: 13.99999997 | S165: 8.188166379 | T165: 0.01136535709 | U165: 0.4023353543 | V165: 0.0005364741203 | W165: 0.5928403165 | X165: 4.288438928e-05 | Y165: -0.6014857268 | Z165: 0.0008217043067 | AA165: 0.4017988802 | AB165: 9.887311673e+12 | AC165: 1.712418168e-22 | AD165: 31.18168937 | AE165: 0.03792964421 | AF165: -0.0001907411316 | AG165: 1.010954893e+11
A166: 144 | B166: 0.01307816617 | C166: =ABS(suns*Generation!P155*shad) -> 3.109026439e-05 | D166: =IF($B$5="PRC", PRC!B159/$A$19,1) -> 0.3067196771 | E166: 1685.207449 | F166: 5.160101436e-06 | G166: 29.27197799 | H166: 9.47382368e+11 | I166: 9.47382368e+11 | J166: 0.0224010849 | K166: 1.965521051e+14 | L166: 1.375943464e-07 | M166: 0.4018298329 | N166: 0.0007907516366 | O166: 1.873872566 | P166: -0.0001822034719 | Q166: 0.0224010849 | R166: 13.99999997 | S166: 8.188166379 | T166: 0.01137002795 | U166: 0.4023664446 | V166: 0.0005366117147 | W166: 0.592658113 | X166: 4.289839349e-05 | Y166: -0.6014849188 | Z166: 0.0007907516366 | AA166: 0.4018298329 | AB166: 9.883010328e+12 | AC166: 1.69061506e-22 | AD166: 31.18173327 | AE166: 0.03796073447 | AF166: -0.000221831396 | AG166: 1.020564504e+11
A167: 145 | B167: 0.0131741593 | C167: =ABS(suns*Generation!P156*shad) -> 3.066737122e-05 | D167: =IF($B$5="PRC", PRC!B160/$A$19,1) -> 0.296778603 | E167: 1685.232307 | F167: 5.060110716e-06 | G167: 29.28344289 | H167: 9.4714118e+11 | I167: 9.4714118e+11 | J167: 0.02241056004 | K167: 1.952313398e+14 | L167: 1.3488874e-07 | M167: 0.4018603654 | N167: 0.0007602191542 | O167: 1.93785022 | P167: -0.0001860203002 | Q167: 0.02241056004 | R167: 13.99999997 | S167: 8.188166379 | T167: 0.0113747782 | U167: 0.402397112 | V167: 0.0005367466034 | W167: 0.5924720927 | X167: 4.291168283e-05 | Y167: -0.6014841263 | Z167: 0.0007602191542 | AA167: 0.4018603654 | AB167: 9.878176803e+12 | AC167: 1.668321358e-22 | AD167: 31.18178369 | AE167: 0.03799140184 | AF167: -0.0002524987672 | AG167: 1.030046875e+11
A168: 146 | B168: 0.01326888845 | C168: =ABS(suns*Generation!P157*shad) -> 3.024281548e-05 | D168: =IF($B$5="PRC", PRC!B161/$A$19,1) -> 0.2871180249 | E168: 1685.257549 | F168: 4.959271208e-06 | G168: 29.29510528 | H168: 9.468961568e+11 | I168: 9.468961568e+11 | J168: 0.02242018461 | K168: 1.938908706e+14 | L168: 1.321613809e-07 | M168: 0.401890476 | N168: 0.0007301085001 | O168: 2.004318463 | P168: -0.0001898673855 | Q168: 0.02242018461 | R168: 13.99999997 | S168: 8.188166379 | T168: 0.01137960741 | U168: 0.4024273548 | V168: 0.0005368787648 | W168: 0.5922822253 | X168: 4.292427796e-05 | Y168: -0.6014833493 | Z168: 0.0007301085001 | AA168: 0.401890476 | AB168: 9.872835613e+12 | AC168: 1.64555055e-22 | AD168: 31.18184036 | AE168: 0.03802164466 | AF168: -0.0002827415827 | AG168: 1.039399328e+11
A169: 147 | B169: 0.01336233048 | C169: =ABS(suns*Generation!P158*shad) -> 2.981632378e-05 | D169: =IF($B$5="PRC", PRC!B162/$A$19,1) -> 0.2777343279 | E169: 1685.283169 | F169: 4.857651854e-06 | G169: 29.30696406 | H169: 9.466473373e+11 | I169: 9.466473373e+11 | J169: 0.02242995689 | K169: 1.925309898e+14 | L169: 1.29414155e-07 | M169: 0.4019201629 | N169: 0.0007004215904 | O169: 2.073362673 | P169: -0.000193739226 | Q169: 0.02242995689 | R169: 13.99999997 | S169: 8.188166379 | T169: 0.01138451503 | U169: 0.4024571711 | V169: 0.0005370081789 | W169: 0.5920884861 | X169: 4.293619932e-05 | Y169: -0.6014825878 | Z169: 0.0007004215904 | AA169: 0.4019201629 | AB169: 9.867011398e+12 | AC169: 1.622316153e-22 | AD169: 31.18190297 | AE169: 0.03805146098 | AF169: -0.0003125579065 | AG169: 1.048619265e+11
A170: 148 | B170: 0.01345446257 | C170: =ABS(suns*Generation!P159*shad) -> 2.938762916e-05 | D170: =IF($B$5="PRC", PRC!B163/$A$19,1) -> 0.2686237986 | E170: 1685.309162 | F170: 4.755323073e-06 | G170: 29.31901771 | H170: 9.463947694e+11 | I170: 9.463947694e+11 | J170: 0.02243987479 | K170: 1.911520422e+14 | L170: 1.266489863e-07 | M170: 0.4019494239 | N170: 0.0006711606103 | O170: 2.145068801 | P170: -0.0001976296748 | Q170: 0.02243987479 | R170: 13.99999997 | S170: 8.188166379 | T170: 0.0113895003 | U170: 0.4024865588 | V170: 0.0005371348279 | W170: 0.5918908564 | X170: 4.294746711e-05 | Y170: -0.6014818417 | Z170: 0.0006711606103 | AA170: 0.4019494239 | AB170: 9.860728897e+12 | AC170: 1.598631697e-22 | AD170: 31.18197125 | AE170: 0.03808084861 | AF170: -0.0003419455356 | AG170: 1.05770416e+11
A171: 149 | B171: 0.01354526221 | C171: =ABS(suns*Generation!P160*shad) -> 2.895647105e-05 | D171: =IF($B$5="PRC", PRC!B164/$A$19,1) -> 0.2597826319 | E171: 1685.335521 | F171: 4.652356699e-06 | G171: 29.33126421 | H171: 9.461385106e+11 | I171: 9.461385106e+11 | J171: 0.02244993582 | K171: 1.897544286e+14 | L171: 1.238678354e-07 | M171: 0.4019782565 | N171: 0.000642328007 | O171: 2.219523001 | P171: -0.0002015318936 | Q171: 0.02244993582 | R171: 13.99999997 | S171: 8.188166379 | T171: 0.01139456227 | U171: 0.4025155152 | V171: 0.0005372586958 | W171: 0.5916893245 | X171: 4.295810131e-05 | Y171: -0.6014811112 | Z171: 0.000642328007 | AA171: 0.4019782565 | AB171: 9.854012939e+12 | AC171: 1.574510703e-22 | AD171: 31.18204491 | AE171: 0.03810980508 | AF171: -0.0003709020067 | AG171: 1.066651569e+11
A172: 150 | B172: 0.01363470723 | C172: =ABS(suns*Generation!P161*shad) -> 2.852259547e-05 | D172: =IF($B$5="PRC", PRC!B165/$A$19,1) -> 0.2512069372 | E172: 1685.36224 | F172: 4.548825907e-06 | G172: 29.34370108 | H172: 9.458786293e+11 | I172: 9.458786293e+11 | J172: 0.02246013707 | K172: 1.883386091e+14 | L172: 1.210726967e-07 | M172: 0.402006658 | N172: 0.0006139264843 | O172: 2.296811215 | P172: -0.0002054383051 | Q172: 0.02246013707 | R172: 13.99999997 | S172: 8.188166379 | T172: 0.01139969982 | U172: 0.4025440378 | V172: 0.0005373797684 | W172: 0.5914838862 | X172: 4.296812168e-05 | Y172: -0.601480396 | Z172: 0.0006139264843 | AA172: 0.402006658 | AB172: 9.84688842e+12 | AC172: 1.549966665e-22 | AD172: 31.18212364 | AE172: 0.03813832768 | AF172: -0.0003994246022 | AG172: 1.075459119e+11
A173: 151 | B173: 0.01372277576 | C173: =ABS(suns*Generation!P162*shad) -> 2.80857551e-05 | D173: =IF($B$5="PRC", PRC!B166/$A$19,1) -> 0.2428927462 | E173: 1685.389309 | F173: 4.444805129e-06 | G173: 29.35632526 | H173: =(tno*(p_o+K172+p_1)+tpo*(K172+n_o+n_1))/(n_o+p_o+K172) -> 9.456152047e+11 | I173: =(tno_2*(p_o+K172+p_12)+tpo_2*(K172+n_o+n_12))/(n_o+p_o+K172) -> 9.456152047e+11 | J173: 0.02247047517 | K173: 1.869051061e+14 | L173: 1.182655965e-07 | M173: 0.4020346255 | N173: 0.0005859589948 | O173: 2.377018697 | P173: -0.0002093405437 | Q173: 0.02247047517 | R173: 13.99999997 | S173: 8.188166379 | T173: 0.01140491156 | U173: 0.4025721236 | V173: 0.000537498034 | W173: 0.5912745457 | X173: 4.297754778e-05 | Y173: -0.6014796963 | Z173: 0.0005859589948 | AA173: 0.4020346255 | AB173: 9.839380285e+12 | AC173: 1.525013037e-22 | AD173: 31.18220717 | AE173: 0.03816641343 | AF173: -0.0004275103573 | AG173: 1.084124517e+11
A174: 152 | B174: 0.01380944629 | C174: =ABS(suns*Generation!P163*shad) -> 2.764570946e-05 | D174: =IF($B$5="PRC", PRC!B167/$A$19,1) -> 0.2348360189 | E174: 1685.416718 | F174: 4.340369959e-06 | G174: 29.36913316 | H174: 9.453483278e+11 | I174: 9.453483278e+11 | J174: 0.02248094626 | K174: 1.854545083e+14 | L174: 1.154485904e-07 | M174: 0.4020621558 | N174: 0.0005584287339 | O174: 2.460229467 | P174: -0.0002132294063 | Q174: 0.02248094626 | R174: 13.99999997 | S174: 8.188166379 | T174: 0.01141019591 | U174: 0.4025997693 | V174: 0.0005376134826 | W174: 0.5910613163 | X174: 4.298639894e-05 | Y174: -0.6014790119 | Z174: 0.0005584287339 | AA174: 0.4020621558 | AB174: 9.831513515e+12 | AC174: 1.49966321e-22 | AD174: 31.1822952 | AE174: 0.03819405914 | AF174: -0.0004551560667 | AG174: 1.092645542e+11
A175: 153 | B175: 0.01389469766 | C175: =ABS(suns*Generation!P164*shad) -> 2.720222511e-05 | D175: =IF($B$5="PRC", PRC!B168/$A$19,1) -> 0.2270326511 | E175: 1685.444457 | F175: 4.235597045e-06 | G175: 29.38212055 | H175: 9.45078102e+11 | I175: 9.45078102e+11 | J175: 0.02249154597 | K175: 1.839874739e+14 | L175: 1.1262376e-07 | M175: 0.4020892454 | N175: 0.0005313391325 | O175: 2.546525696 | P175: -0.0002170948013 | Q175: 0.02249154597 | R175: 13.99999997 | S175: 8.188166379 | T175: 0.01141555102 | U175: 0.4026269715 | V175: 0.0005377261064 | W175: 0.5908442215 | X175: 4.299469431e-05 | Y175: -0.6014783429 | Z175: 0.0005313391325 | AA175: 0.4020892454 | AB175: 9.823313101e+12 | AC175: 1.473930497e-22 | AD175: 31.18238743 | AE175: 0.03822126137 | AF175: -0.0004823582918 | AG175: 1.101020051e+11
A176: 154 | B176: 0.01397850904 | C176: =ABS(suns*Generation!P165*shad) -> 2.675507588e-05 | D176: =IF($B$5="PRC", PRC!B169/$A$19,1) -> 0.2194784812 | E176: 1685.472512 | F176: 4.130563969e-06 | G176: 29.39528255 | H176: 9.448046442e+11 | I176: 9.448046442e+11 | J176: 0.0225022694 | K176: 1.825047336e+14 | L176: 1.097932098e-07 | M176: 0.4021158907 | N176: 0.0005046938499 | O176: 2.635987017 | P176: -0.0002209256989 | Q176: 0.0225022694 | R176: 13.99999997 | S176: 8.188166379 | T176: 0.01142097479 | U176: 0.4026537266 | V176: 0.0005378358996 | W176: 0.5906232958 | X176: 4.300245281e-05 | Y176: -0.6014776892 | Z176: 0.0005046938499 | AA176: 0.4021158907 | AB176: 9.81480403e+12 | AC176: 1.44782812e-22 | AD176: 31.18248357 | AE176: 0.03824801644 | AF176: -0.0005091133677 | AG176: 1.109245973e+11
A177: 155 | B177: 0.01406085995 | C177: =ABS(suns*Generation!P166*shad) -> 2.630404312e-05 | D177: =IF($B$5="PRC", PRC!B170/$A$19,1) -> 0.2121692971 | E177: 1685.50087 | F177: 4.025349108e-06 | G177: 29.4086136 | H177: 9.445280846e+11 | I177: 9.445280846e+11 | J177: 0.02251311109 | K177: 1.810070947e+14 | L177: 1.069590634e-07 | M177: 0.4021420878 | N177: 0.0004784967658 | O177: 2.728689745 | P177: -0.0002247100814 | Q177: 0.02251311109 | R177: 13.99999997 | S177: 8.188166379 | T177: 0.01142646484 | U177: 0.4026800306 | V177: 0.0005379428587 | W177: 0.5903985857 | X177: 4.30096932e-05 | Y177: -0.6014770508 | Z177: 0.0004784967658 | AA177: 0.4021420878 | AB177: 9.806011264e+12 | AC177: 1.421369188e-22 | AD177: 31.18258334 | AE177: 0.03827432049 | AF177: -0.0005354174108 | AG177: 1.117321313e+11
A178: 156 | B178: 0.01414173027 | C178: =ABS(suns*Generation!P167*shad) -> 2.5848916e-05 | D178: =IF($B$5="PRC", PRC!B171/$A$19,1) -> 0.2051008429 | E178: 1685.529516 | F178: 3.920031495e-06 | G178: 29.42210741 | H178: 9.442485683e+11 | I178: 9.442485683e+11 | J178: 0.02252406496 | K178: 1.794954442e+14 | L178: 1.041234599e-07 | M178: 0.4021678326 | N178: 0.0004527519733 | O178: 2.824706021 | P178: -0.0002284348946 | Q178: 0.02252406496 | R178: 13.99999997 | S178: 8.188166379 | T178: 0.0114320185 | U178: 0.4027058795 | V178: 0.0005380469821 | W178: 0.5901701508 | X178: 4.301643404e-05 | Y178: -0.6014764277 | Z178: 0.0004527519733 | AA178: 0.4021678326 | AB178: 9.796959716e+12 | AC178: 1.394566686e-22 | AD178: 31.18268643 | AE178: 0.0383001694 | AF178: -0.0005612663268 | AG178: 1.125244146e+11
A179: 157 | B179: 0.01422110026 | C179: =ABS(suns*Generation!P168*shad) -> 2.53894918e-05 | D179: =IF($B$5="PRC", PRC!B172/$A$19,1) -> 0.1982688266 | E179: 1685.558432 | F179: 3.814690645e-06 | G179: 29.43575692 | H179: 9.439662554e+11 | I179: 9.439662554e+11 | J179: 0.02253512435 | K179: 177970751722786 | L179: 1.012885487e-07 | M179: 0.4021931208 | N179: 0.00042746377 | O179: 2.924102851 | P179: -0.0002320860018 | Q179: 0.02253512435 | R179: 13.99999997 | S179: 8.188166379 | T179: 0.01143763278 | U179: 0.402731269 | V179: 0.0005381482707 | W179: 0.5899380648 | X179: 4.302269368e-05 | Y179: -0.6014758198 | Z179: 0.00042746377 | AA179: 0.4021931208 | AB179: 9.787674237e+12 | AC179: 1.367433457e-22 | AD179: 31.18279256 | AE179: 0.03832555889 | AF179: -0.0005866558186 | AG179: 1.133012622e+11
A180: 158 | B180: 0.01429895051 | C180: =ABS(suns*Generation!P169*shad) -> 2.492557627e-05 | D180: =IF($B$5="PRC", PRC!B173/$A$19,1) -> 0.1916689259 | E180: 1685.587601 | F180: 3.709406384e-06 | G180: 29.44955427 | H180: 9.436813221e+11 | I180: 9.436813221e+11 | J180: 0.02254628192 | K180: 1.764340731e+14 | L180: 9.84564854e-08 | M180: 0.4022179479 | N180: 0.0004026366503 | O180: 3.026941055 | P180: -0.0002356481402 | Q180: 0.02254628192 | R180: 13.99999997 | S180: 8.188166379 | T180: 0.01144330438 | U180: 0.4027561946 | V180: 0.0005382467272 | W180: 0.5897024167 | X180: 4.302849031e-05 | Y180: -0.601475227 | Z180: 0.0004026366503 | AA180: 0.4022179479 | AB180: 9.778179586e+12 | AC180: 1.33998219e-22 | AD180: 31.18290143 | AE180: 0.03835048447 | AF180: -0.0006115813949 | AG180: 1.14062496e+11
A181: 159 | B181: 0.01437526203 | C181: =ABS(suns*Generation!P170*shad) -> 2.445698401e-05 | D181: =IF($B$5="PRC", PRC!B174/$A$19,1) -> 0.1852967963 | E181: 1685.617001 | F181: 3.604258651e-06 | G181: 29.46349075 | H181: 9.433939608e+11 | I181: 9.433939608e+11 | J181: 0.02255752967 | K181: 1.748865532e+14 | L181: 9.56294265e-08 | M181: 0.4022423092 | N181: 0.0003782752957 | O181: 3.13327411 | P181: -0.0002391048823 | Q181: 0.02255752967 | R181: 13.99999997 | S181: 8.188166379 | T181: 0.01144902967 | U181: 0.4027806516 | V181: 0.0005383423566 | W181: 0.5894633118 | X181: 4.303384194e-05 | Y181: -0.6014746494 | Z181: 0.0003782752957 | AA181: 0.4022423092 | AB181: 9.768500418e+12 | AC181: 1.312225402e-22 | AD181: 31.18301276 | AE181: 0.03837494145 | AF181: -0.0006360383789 | AG181: 1.14807945e+11
A182: 160 | B182: 0.01445001615 | C182: =ABS(suns*Generation!P171*shad) -> 2.39835388e-05 | D182: =IF($B$5="PRC", PRC!B175/$A$19,1) -> 0.179148077 | E182: 1685.646612 | F182: 3.499327288e-06 | G182: 29.47755677 | H182: 9.431043812e+11 | I182: 9.431043812e+11 | J182: 0.0225688589 | K182: 1.733294286e+14 | L182: 9.280952355e-08 | M182: 0.4022662 | N182: 0.0003543845664 | O182: 3.243146882 | P182: -0.0002424386015 | Q182: 0.0225688589 | R182: 13.99999997 | S182: 8.188166379 | T182: 0.01145480465 | U182: 0.4028046351 | V182: 0.0005384351661 | W182: 0.5892208732 | X182: 4.303876642e-05 | Y182: -0.6014740869 | Z182: 0.0003543845664 | AA182: 0.4022662 | AB182: 9.758661255e+12 | AC182: 1.284175431e-22 | AD182: 31.18312625 | AE182: 0.03839892499 | AF182: -0.0006600219177 | AG182: 1.155374452e+11
A183: 161 | B183: 0.01452319462 | C183: =ABS(suns*Generation!P172*shad) -> 2.350507407e-05 | D183: =IF($B$5="PRC", PRC!B176/$A$19,1) -> 0.1732183984 | E183: =IF($D$17="yes",1800*(1+10^(0.8431*LOG10((K182+Nd+Na)/1200000000000000000)))/(1+8.36*10^(0.8431*LOG10((K182+Nd+Na)/1200000000000000000))),mu_n+mu_p) -> 1685.676409 | F183: =q*(B183-B182)*K183*(E183) -> 3.394691816e-06 | G183: =$W$12*mu_n*mu_p*((n_o+K182)+(p_o+K182))/(mu_p*(p_o+K182)+mu_n*(n_o+K182)) -> 29.49174181 | H183: 9.428128108e+11 | I183: 9.428128108e+11 | J183: =IF($H$10="Kerr",T183,Q183) -> 0.02258026019 | K183: =IF($C$5="n+pp+",IF($K182+($B183-$B182)*($N182/$D182-J_base/$D182*mu_n*(n_o+$K182)/(mu_n*(n_o+$K182)+mu_p*(p_o+$K182)))/(q*$G183)>0, $K182+($B183-$B182)*($N182/$D182-J_base/$D182*mu_n*(n_o+$K182)/(mu_n*(n_o+$K182)+mu_p*(p_o+$K182)))/(q*$G183),1000),IF($K182+($B183-$B182)*($N182/$D182-J_base/$D182*mu_p*(p_o+$K182)/(mu_n*(n_o+$K182)+mu_p*(p_o+$K182)))/(q*$G183)>0,$K182+($B183-$B182)*($N182/$D182-J_base/$D182*mu_p*(p_o+$K182)/(mu_n*(n_o+$K182)+mu_p*(p_o+$K182)))/(q*$G183), 1000)) -> 1.717640307e+14 | L183: =q*$K182*($B183-$B182)*(1/$H183+1/$I183+1/$J183) -> 8.999891737e-08 | M183: 0.402289615 | N183: 0.0003309694912 | O183: =kT_q*(mu_p-mu_n)*SLOPE(K182:K184,B182:B184)/(mu_p*(p_o+K182)+mu_n*(n_o+K182))-$X$8*J_base/(D183*q*(mu_p*(p_o+K182)+mu_n*(n_o+K182))) -> 3.356594261 | P183: =-O183*(B183-B182) -> -0.0002456304451 | Q183: =(1/$Q$20+1/(K183/((n_o+K183)*(p_o+K183)-ni_300^2)/(2.5E-31*R183*n_o+8.5E-32*S183*p_o+3E-29*K183^0.92+0.00000000000000473*$I$10)))^-1 -> 0.02258026019 | R183: =1+13*(1-TANH((n_o/330000000000000000)^0.66)) -> 13.99999997 | S183: =1+7.5*(1-TANH((p_o/700000000000000000)^0.63)) -> 8.188166379 | T183: =(1/$T$20+((p_o+n_o+K182)*(1.8E-24*n_o^0.65+6E-25*p_o^0.65+3E-27*K182^0.8+0.0000000000000095*$I$10)))^-1 -> 0.01146062497 | U183: =U182+C183 -> 0.4028281402 | V183: =V182+L183 -> 0.000538525165 | W183: =W182-O183*(B183-B182) -> 0.5889752427 | X183: =X182+N183/(q*mu_n*A183)/(n_o+K183)*(B183-B182) -> 4.304328139e-05 | Y183: =Y182+M183/(q*mu_p*A183)/(p_o+K183)*(B183-B182) -> -0.6014735395 | Z183: 0.0003309694912 | AA183: 0.402289615 | AB183: =AB182+($B183-$B182)*AF183/(q*kT_q*IF($C$5="n+pp+",mu_n,mu_p)) -> 9.748686467e+12 | AC183: =q*AB182*($B183-$B182)*(n_o+p_o+AB182)/(tno*(p_o+AB182+p_1)+tpo*(AB182+n_o+n_1)) -> 1.255844417e-22 | AD183: =kT_q*mu_n*mu_p*((n_o+AB182)+(p_o+AB182))/(mu_p*(p_o+AB182)+mu_n*(n_o+AB182)) -> 31.18324162 | AE183: 0.03842243007 | AF183: -0.0006835269918 | AG183: 1.162508392e+11
A184: 162 | B184: 0.01459477957 | C184: =ABS(suns*Generation!P173*shad) -> 2.302143331e-05 | D184: =IF($B$5="PRC", PRC!B177/$A$19,1) -> 0.1675033886 | E184: 1685.706367 | F184: 3.290431189e-06 | G184: 29.50603439 | H184: 9.425194953e+11 | I184: 9.425194953e+11 | J184: 0.02259172339 | K184: 1.701917871e+14 | L184: 8.719973159e-08 | M184: 0.4023125493 | N184: 0.0003080352577 | O184: 3.473639672 | P184: -0.0002486603148 | Q184: 0.02259172339 | R184: 13.99999997 | S184: 8.188166379 | T184: 0.0114664859 | U184: 0.4028511616 | V184: 0.0005386123648 | W184: 0.5887265824 | X184: 4.304740436e-05 | Y184: -0.6014730071 | Z184: 0.0003080352577 | AA184: 0.4023125493 | AB184: 9.73860025e+12 | AC184: 1.227244294e-22 | AD184: 31.18335858 | AE184: 0.0384454515 | AF184: -0.0007065484251 | AG184: 1.169479764e+11
A185: 163 | B185: 0.01466475351 | C185: =ABS(suns*Generation!P174*shad) -> 2.253247051e-05 | D185: =IF($B$5="PRC", PRC!B178/$A$19,1) -> 0.1619986801 | E185: 1685.736459 | F185: 3.186623536e-06 | G185: 29.52042207 | H185: 9.422246992e+11 | I185: 9.422246992e+11 | J185: 0.02260323757 | K185: 1.686142246e+14 | L185: 8.441406588e-08 | M185: 0.4023349973 | N185: 0.0002855872012 | O185: 3.594293488 | P185: -0.000251506858 | Q185: 0.02260323757 | R185: 13.99999997 | S185: 8.188166379 | T185: 0.0114723823 | U185: 0.4028736941 | V185: 0.0005386967788 | W185: 0.5884750756 | X185: 4.305115267e-05 | Y185: -0.6014724897 | Z185: 0.0002855872012 | AA185: 0.4023349973 | AB185: 9.728426603e+12 | AC185: 1.198386775e-22 | AD185: 31.18347685 | AE185: 0.03846798397 | AF185: -0.0007290808956 | AG185: 1.176287126e+11
A186: 164 | B186: 0.01473309933 | C186: =ABS(suns*Generation!P175*shad) -> 2.203805061e-05 | D186: =IF($B$5="PRC", PRC!B179/$A$19,1) -> 0.1566999169 | E186: 1685.766655 | F186: 3.083345887e-06 | G186: 29.53489136 | H186: 9.419287062e+11 | I186: 9.419287062e+11 | J186: 0.02261479104 | K186: 1.6703297e+14 | L186: 8.164398872e-08 | M186: 0.4023569537 | N186: 0.0002636307946 | O186: 3.718551327 | P186: -0.0002541474694 | Q186: 0.02261479104 | R186: 13.99999997 | S186: 8.188166379 | T186: 0.01147830866 | U186: 0.4028957322 | V186: 0.0005387784228 | W186: 0.5882209281 | X186: 4.305454349e-05 | Y186: -0.6014719871 | Z186: 0.0002636307946 | AA186: 0.4023569537 | AB186: 9.718189304e+12 | AC186: 1.169283346e-22 | AD186: 31.18359615 | AE186: 0.03849002202 | AF186: -0.0007511189462 | AG186: 1.182929103e+11
A187: 165 | B187: 0.01479980036 | C187: =ABS(suns*Generation!P176*shad) -> 2.153804998e-05 | D187: =IF($B$5="PRC", PRC!B180/$A$19,1) -> 0.1516027606 | E187: 1685.796925 | F187: 2.980673879e-06 | G187: 29.54942774 | H187: 9.416318196e+11 | I187: 9.416318196e+11 | J187: 0.0226263713 | K187: 1.654497519e+14 | L187: 7.889152985e-08 | M187: 0.4023784129 | N187: 0.0002421716362 | O187: 3.846392254 | P187: -0.0002565583071 | Q187: 0.0226263713 | R187: 13.99999997 | S187: 8.188166379 | T187: 0.01148425903 | U187: 0.4029172702 | V187: 0.0005388573143 | W187: 0.5879643698 | X187: 4.305759382e-05 | Y187: -0.6014714995 | Z187: 0.0002421716362 | AA187: 0.4023784129 | AB187: 9.707911889e+12 | AC187: 1.139945252e-22 | AD187: 31.1837162 | AE187: 0.03851156007 | AF187: -0.0007726569962 | AG187: 1.18940438e+11
A188: 166 | B188: 0.01486484029 | C188: =ABS(suns*Generation!P177*shad) -> 2.103235692e-05 | D188: =IF($B$5="PRC", PRC!B181/$A$19,1) -> 0.1467028972 | E188: 1685.827236 | F188: 2.878681457e-06 | G188: 29.5640156 | H188: 9.413343628e+11 | I188: 9.413343628e+11 | J188: 0.02263796505 | K188: 1.638664009e+14 | L188: 7.615867231e-08 | M188: 0.4023993691 | N188: 0.0002212154379 | O188: 3.977776883 | P188: -0.0002587143239 | Q188: 0.02263796505 | R188: 13.99999997 | S188: 8.188166379 | T188: 0.01149022704 | U188: 0.4029383026 | V188: 0.000538933473 | W188: 0.5877056555 | X188: 4.306032054e-05 | Y188: -0.6014710267 | Z188: 0.0002212154379 | AA188: 0.4023993691 | AB188: 9.697617626e+12 | AC188: 1.11038349e-22 | AD188: 31.18383671 | AE188: 0.03853259243 | AF188: -0.0007936893531 | AG188: 1.195711704e+11
A189: 167 | B189: 0.01492820323 | C189: =ABS(suns*Generation!P178*shad) -> 2.052087208e-05 | D189: =IF($B$5="PRC", PRC!B182/$A$19,1) -> 0.1419960438 | E189: 1685.857552 | F189: 2.777440549e-06 | G189: 29.57863827 | H189: 9.410366791e+11 | I189: 9.410366791e+11 | J189: 0.02264955821 | K189: 1.622848503e+14 | L189: 7.34473442e-08 | M189: 0.4024198165 | N189: 0.0002007680132 | O189: 4.112645397 | P189: -0.000260589317 | Q189: 0.02264955821 | R189: 13.99999997 | S189: 8.188166379 | T189: 0.01149620591 | U189: 0.4029588234 | V189: 0.0005390069204 | W189: 0.5874450661 | X189: 4.306274032e-05 | Y189: -0.6014705686 | Z189: 0.0002007680132 | AA189: 0.4024198165 | AB189: 9.687329493e+12 | AC189: 1.080608802e-22 | AD189: 31.18395743 | AE189: 0.0385531133 | AF189: -0.0008142102252 | AG189: 1.201849881e+11
A190: 168 | B190: 0.01498987371 | C190: =ABS(suns*Generation!P179*shad) -> 2.0003509e-05 | D190: =IF($B$5="PRC", PRC!B183/$A$19,1) -> 0.1374779548 | E190: 1685.887836 | F190: 2.677020735e-06 | G190: 29.59327795 | H190: 9.407391319e+11 | I190: 9.407391319e+11 | J190: 0.02266113586 | K190: 1.607071351e+14 | L190: 7.075941005e-08 | M190: 0.4024397493 | N190: 0.0001808352636 | O190: 4.250915502 | P190: -0.0002621559969 | Q190: 0.02266113586 | R190: 13.99999997 | S190: 8.188166379 | T190: 0.01150218841 | U190: 0.4029788269 | V190: 0.0005390776798 | W190: 0.5871829101 | X190: 4.306486973e-05 | Y190: -0.6014701253 | Z190: 0.0001808352636 | AA190: 0.4024397493 | AB190: 9.677070156e+12 | AC190: 1.050631662e-22 | AD190: 31.18407808 | AE190: 0.03857311681 | AF190: -0.0008342137342 | AG190: 1.207817776e+11
A191: 169 | B191: 0.01504983666 | C191: =ABS(suns*Generation!P180*shad) -> 1.948019455e-05 | D191: =IF($B$5="PRC", PRC!B184/$A$19,1) -> 0.133144428 | E191: 1685.91805 | F191: 2.577488908e-06 | G191: 29.60791575 | H191: 9.404421052e+11 | I191: 9.404421052e+11 | J191: 0.02267268228 | K191: 1.591353918e+14 | L191: 6.809666201e-08 | M191: 0.4024591614 | N191: 0.0001614231657 | O191: 4.392480329 | P191: -0.0002633860796 | Q191: 0.02267268228 | R191: 13.99999997 | S191: 8.188166379 | T191: 0.01150816687 | U191: 0.4029983071 | V191: 0.0005391457764 | W191: 0.5869195241 | X191: 4.306672513e-05 | Y191: -0.6014696966 | Z191: 0.0001614231657 | AA191: 0.4024591614 | AB191: 9.66686194e+12 | AC191: 1.020462276e-22 | AD191: 31.18419839 | AE191: 0.038592597 | AF191: -0.0008536939287 | AG191: 1.213614312e+11
A192: 170 | B192: 0.01510807743 | C192: =ABS(suns*Generation!P181*shad) -> 1.895086942e-05 | D192: =IF($B$5="PRC", PRC!B185/$A$19,1) -> 0.1289913111 | E192: 1685.948152 | F192: 2.478908917e-06 | G192: 29.62253163 | H192: 9.401460027e+11 | I192: 9.401460027e+11 | J192: 0.02268418096 | K192: 1.575718558e+14 | L192: 6.546081072e-08 | M192: 0.4024780468 | N192: 0.0001425377571 | O192: 4.537206311 | P192: -0.000264250403 | Q192: 0.02268418096 | R192: 13.99999997 | S192: 8.188166379 | T192: 0.0115141332 | U192: 0.403017258 | V192: 0.0005392112372 | W192: 0.5866552737 | X192: 4.306832274e-05 | Y192: -0.6014692826 | Z192: 0.0001425377571 | AA192: 0.4024780468 | AB192: 9.656726811e+12 | AC192: 9.901105732e-23 | AD192: 31.18431811 | AE192: 0.03861154787 | AF192: -0.0008726447981 | AG192: 1.219238464e+11
A193: 171 | B193: 0.0151645818 | C193: =ABS(suns*Generation!P182*shad) -> 1.841548854e-05 | D193: =IF($B$5="PRC", PRC!B186/$A$19,1) -> 0.1250145078 | E193: 1685.9781 | F193: 2.381341209e-06 | G193: 29.63710448 | H193: 9.398512481e+11 | I193: 9.398512481e+11 | J193: 0.02269561459 | K193: 1.560188597e+14 | L193: 6.285347608e-08 | M193: 0.4024963994 | N193: 0.000124185122 | O193: 4.684931062 | P193: -0.0002647190707 | Q193: 0.02269561459 | R193: 13.99999997 | S193: 8.188166379 | T193: 0.01152007887 | U193: 0.4030356735 | V193: 0.0005392740907 | W193: 0.5863905546 | X193: 4.306967862e-05 | Y193: -0.601468883 | Z193: 0.000124185122 | AA193: 0.4024963994 | AB193: 9.646686347e+12 | AC193: 9.595861992e-23 | AD193: 31.18443697 | AE193: 0.03862996336 | AF193: -0.0008910602867 | AG193: 1.224689263e+11
A194: 172 | B194: 0.01521933596 | C194: =ABS(suns*Generation!P183*shad) -> 1.787402155e-05 | D194: =IF($B$5="PRC", PRC!B187/$A$19,1) -> 0.1212099838 | E194: 1686.007849 | F194: 2.284842464e-06 | G194: 29.65161207 | H194: 9.395582846e+11 | I194: 9.395582846e+11 | J194: 0.02270696512 | K194: 1.544788296e+14 | L194: 6.027617786e-08 | M194: 0.4025142132 | N194: 0.0001063713766 | O194: 4.8354613 | P194: -0.0002647616242 | Q194: 0.02270696512 | R194: 13.99999997 | S194: 8.188166379 | T194: 0.01152599491 | U194: 0.4030535475 | V194: 0.0005393343669 | W194: 0.586125793 | X194: 4.307080864e-05 | Y194: -0.601468498 | Z194: 0.0001063713766 | AA194: 0.4025142132 | AB194: 9.636761718e+12 | AC194: 9.288985155e-23 | AD194: 31.18455472 | AE194: 0.03864783738 | AF194: -0.0009089343082 | AG194: 1.229965791e+11
A195: 173 | B195: 0.01527232654 | C195: =ABS(suns*Generation!P184*shad) -> 1.73264532e-05 | D195: =IF($B$5="PRC", PRC!B188/$A$19,1) -> 0.1175737724 | E195: 1686.037352 | F195: 2.189465225e-06 | G195: 29.6660311 | H195: 9.392675739e+11 | I195: 9.392675739e+11 | J195: 0.02271821372 | K195: 1.529542813e+14 | L195: 5.773032626e-08 | M195: 0.4025314819 | N195: 8.910265378e-05 | O195: 4.98857084 | P195: -0.000264347247 | Q195: 0.02271821372 | R195: 13.99999997 | S195: 8.188166379 | T195: 0.01153187193 | U195: 0.403070874 | V195: 0.0005393920972 | W195: 0.5858614457 | X195: 4.30717285e-05 | Y195: -0.6014681274 | Z195: 8.910265378e-05 | AA195: 0.4025314819 | AB195: 9.62697366e+12 | AC195: 8.980565946e-23 | AD195: 31.18467111 | AE195: 0.03866516384 | AF195: -0.0009262607614 | AG195: 1.23506718e+11
A196: 174 | B196: 0.01532354059 | C196: =ABS(suns*Generation!P185*shad) -> 1.677278373e-05 | D196: =IF($B$5="PRC", PRC!B189/$A$19,1) -> 0.1141019805 | E196: 1686.066561 | F196: 2.095257536e-06 | G196: 29.68033723 | H196: 9.389795962e+11 | I196: 9.389795962e+11 | J196: 0.0227293409 | K196: 1.514478154e+14 | L196: 5.521721248e-08 | M196: 0.4025481994 | N196: 7.238508726e-05 | O196: 5.143998717 | P196: -0.0002634449999 | Q196: 0.0227293409 | R196: 13.99999997 | S196: 8.188166379 | T196: 0.01153770014 | U196: 0.4030876468 | V196: 0.0005394473144 | W196: 0.5855980007 | X196: 4.307245372e-05 | Y196: -0.6014677711 | Z196: 7.238508726e-05 | AA196: 0.4025481994 | AB196: 9.617342448e+12 | AC196: 8.670692179e-23 | AD196: 31.18478591 | AE196: 0.03868193662 | AF196: -0.0009430335452 | AG196: 1.239992611e+11
A197: 175 | B197: 0.0153729656 | C197: =ABS(suns*Generation!P186*shad) -> 1.621302922e-05 | D197: =IF($B$5="PRC", PRC!B190/$A$19,1) -> 0.1107907943 | E197: 1686.095427 | F197: 2.002262574e-06 | G197: 29.6945051 | H197: 9.386948487e+11 | I197: 9.386948487e+11 | J197: 0.02274032647 | K197: 1.499621112e+14 | L197: 5.273799942e-08 | M197: 0.4025643597 | N197: 5.622479604e-05 | O197: 5.301447485 | P197: -0.0002620240908 | Q197: 0.02274032647 | R197: 13.99999997 | S197: 8.188166379 | T197: 0.01154346935 | U197: 0.4031038598 | V197: 0.0005395000524 | W197: 0.5853359766 | X197: 4.30729996e-05 | Y197: -0.6014674291 | Z197: 5.622479604e-05 | AA197: 0.4025643597 | AB197: 9.607887881e+12 | AC197: 8.359448744e-23 | AD197: 31.18489887 | AE197: 0.03869814965 | AF197: -0.0009592465744 | AG197: 1.24474131e+11
A198: 176 | B198: 0.01542058949 | C198: =ABS(suns*Generation!P187*shad) -> 1.564722192e-05 | D198: =IF($B$5="PRC", PRC!B191/$A$19,1) -> 0.1076364846 | E198: 1686.123897 | F198: 1.910518294e-06 | G198: 29.70850841 | H198: 9.384138448e+11 | I198: 9.384138448e+11 | J198: 0.02275114963 | K198: 148499920451192 | L198: 5.029371254e-08 | M198: 0.4025799567 | N198: 4.062786783e-05 | O198: 5.460581749 | P198: -0.0002600541777 | Q198: 0.02275114963 | R198: 13.99999997 | S198: 8.188166379 | T198: 0.01154916901 | U198: 0.403119507 | V198: 0.0005395503461 | W198: 0.5850759224 | X198: 4.307338124e-05 | Y198: -0.6014671013 | Z198: 4.062786783e-05 | AA198: 0.4025799567 | AB198: 9.598629248e+12 | AC198: 8.046917609e-23 | AD198: 31.18500976 | AE198: 0.03871379687 | AF198: -0.0009748937963 | AG198: 1.249312551e+11
A199: 177 | B199: 0.01546640064 | C199: =ABS(suns*Generation!P188*shad) -> 1.507541051e-05 | D199: =IF($B$5="PRC", PRC!B192/$A$19,1) -> 0.1046354121 | E199: 1686.151919 | F199: 1.820057086e-06 | G199: 29.72231997 | H199: 9.381371128e+11 | I199: 9.381371128e+11 | J199: 0.02276178904 | K199: 1.470640593e+14 | L199: 4.788523097e-08 | M199: 0.4025949842 | N199: 2.560034256e-05 | O199: 5.621026995 | P199: -0.0002575057056 | Q199: 0.02276178904 | R199: 13.99999997 | S199: 8.188166379 | T199: 0.0115547882 | U199: 0.4031345824 | V199: 0.0005395982314 | W199: 0.5848184167 | X199: 4.30736135e-05 | Y199: -0.6014667877 | Z199: 2.560034256e-05 | AA199: 0.4025949842 | AB199: 9.589585311e+12 | AC199: 7.73317782e-23 | AD199: 31.18511835 | AE199: 0.03872887228 | AF199: -0.0009899692068 | AG199: 1.253705651e+11
A200: 178 | B200: 0.01551038785 | C200: =ABS(suns*Generation!P189*shad) -> 1.449766029e-05 | D200: =IF($B$5="PRC", PRC!B193/$A$19,1) -> 0.1017840329 | E200: 1686.179438 | F200: 1.730905444e-06 | G200: 29.73591174 | H200: 9.378651944e+11 | I200: 9.378651944e+11 | J200: 0.02277222283 | K200: 1.456574e+14 | L200: 4.551327903e-08 | M200: 0.4026094363 | N200: 1.114819555e-05 | O200: 5.782368778 | P200: -0.0002543502758 | Q200: 0.02277222283 | R200: 13.99999997 | S200: 8.188166379 | T200: 0.01156031569 | U200: 0.4031490801 | V200: 0.0005396437447 | W200: 0.5845640665 | X200: 4.3073711e-05 | Y200: -0.6014664882 | Z200: 1.114819555e-05 | AA200: 0.4026094363 | AB200: 9.58077428e+12 | AC200: 7.418305518e-23 | AD200: 31.18522442 | AE200: 0.03874336994 | AF200: -0.001004466867 | AG200: 1.257919966e+11
... 22 more rows

Sheet PRC
A1: Partial Rear Contact Cell analysis | K1: Rf | L1: Rb | M1: Jof | N1: Jo_cont | O1: Jo_pass | P1: structure | Q1: SRV (low injection) | S1: Enter W, doping and Jo values on main page
C2: contact width | K2: 120 | L2: 150 | M2: ='carrier profile'!F10 -> 4e-14 | N2: =Jo -> 1e-12 | O2: 8e-14 | P2: ='carrier profile'!C5 -> n+pp+ | Q2: S_cont | R2: S_pass | S2: enter Jo_pass of the back side in cell O2
C3: or diameter | D3: pitch | Q3: =$N$2/(q*N_i^2/(Na+Nd)) -> 298.7825049 | R3: =$O$2/(q*N_i^2/(Na+Nd)) -> 23.90260039 | S3: press button to find optimum pitch
A4: contact shape | B4: points pattern | C4: d | D4: P | E4: Ao | F4: f_c | J4: rho_contact | K4: Rs_contact | L4: Rs_lat back layer points | M4: Rs_lat back layer lines | N4: Rs_additional
A5: squares | B5: square | C5: 0.004 | D5: 0.08513399225 | E5: =IF($A$5="lines",p,IF($B$5="square",p^2, IF($B$5="hexagonal",(3/4)^(1/2)*p^2, ))) -> 0.007247796637 | F5: =IF($A$5="lines",d/p,IF($A$5="circles",PI()*(d/2)^2/Ao,d^2/Ao)) -> 0.002207567458 | J5: 0 | K5: =$J$5/$F$5 -> 0 | L5: =IF(Rb<1000,Rb*(1-f_base),0)*Ao/(2*PI())*(y_min^2/(y_min^2-(d/2)^2)*LN(y_min/d/2)-1/2) -> 0.01055722163 | M5: =(IF(Rb<1000,Rb*(1-f_base),0))/2*Ao/2*(y_min-d/2) -> 0.00188098176 | N5: =IF($A$5="lines",K5+M5,K5+L5) -> 0.01055722163
A6: circles | B6: square | T6: P_optimum | U6: Eff_max | V6: Jsc | W6: Voc | X6: FF
A7: squares | B7: hexagonal | N7: for ploting | T7: =INDEX(R15:R34,MATCH(U7,X15:X34,0)) -> 0.02349237886 | U7: =MAX(X15:X34) -> 22.90230925 | V7: =INDEX(S15:S34,MATCH($U7,X15:X34,0)) -> 0.03888647979 | W7: =INDEX(T15:T34,MATCH($U7,X15:X34,0)) -> 0.6979356143 | X7: =INDEX(W15:W34,MATCH($U7,X15:X34,0)) -> 0.8438500573
A8: lines | I8: Recombination balance | K8: J_lat (A) | O8: n_back
B9: near contact area | D9: current partition, f_base | I9: crowding region | J9: ='carrier profile'!R10*IF($A$5="lines",2*y_min,PI()*y_min^2)/Ao -> 6.35664803e-05 | K9: =IF((suns*Jph*IF($A$5="lines",2*(y_max-y_min),PI()*y_max^2-PI()*y_min^2)-IF($A$5="lines",2*SUM(G15:G115),SUM(G15:G115)))/Ao>0,(suns*Jph*IF($A$5="lines",2*(y_max-y_min),PI()*y_max^2-PI()*y_min^2)-IF($A$5="lines",2*SUM(G15:G115),SUM(G15:G115)))/Ao,0) -> 0.03351442047 | N9: 0 | O9: =O215 -> 1.27825917e+14 | Q9: p_min | R9: =IF($A$5="lines",1.01*d,d) -> 0.004 | S9: Specify minimum pitch
B10: =IF($A$5="lines",2*y_min,PI()*y_min^2)/Ao -> 0.09197008433 | D10: =IF($P$2="n+pp+",q*W*(p_o+J115)*mu_p/(q*W*(p_o+J115)*mu_p+1/Rb),q*W*(n_o+J115)*mu_n/(q*W*(n_o+J115)*mu_n+1/Rb)) -> 0.4492716248 | I10: lateral region | J10: =suns*Jph*IF($A$5="lines",2*(y_max-y_min),PI()*y_max^2-PI()*y_min^2)/Ao-K9 -> 0.001813469195 | N10: =d/2 -> 0.002 | O10: =O215 -> 1.27825917e+14 | Q10: p_max | R10: 0.1 | S10: enter maximum pitch
F11: y_max | G11: y_min | K11: I_lat (mA) | M11: n_av_sc | O11: n_front | Q11: p_values | R11: 20 | S11: choose a number of points
F12: =IF($A$5="lines",p/2,SQRT(Ao/PI())) -> 0.04803171163 | G12: =IF(d/2+W*PI()/4<y_max,d/2+W*PI()/4,y_max) -> 0.01456637061 | I12: Total | J12: =SUM(J9:J11) -> 0.001877035675 | K12: =1000*K9*Ao -> 0.242905704 | M12: ='carrier profile'!AG19 -> 8.153349311e+12 | N12: 0 | O12: =O15 -> 2.541573121e+14
C13: lines | D13: circles | E13: squares | F13: lateral position | G13: =SUM(G16:G115) -> 1.314365593e-05 | N13: =IF(d/2+W*PI()/4>y_max,y_max,d/2+W*PI()/4) -> 0.01456637061 | O13: =O15 -> 2.541573121e+14 | Q13: RESULTS
A14: x | B14: A(x)/Ao | C14: A(x)/Ao linear | D14: A(x)/Ao_points | E14: A(x)/Ao squares | F14: y | G14: J_recomb | H14: J(y) | I14: V(y) | J14: n(y)_front | K14: 1/tau_bulk | L14: resistivity | M14: n(y)_back | N14: x | O14: n_crowding | Q14: f_c | R14: Pitch | S14: Jsc | T14: Voc | U14: Jmp | V14: Vmp | W14: FF | X14: Effic
A15: ='[1]carrier profile'!B22 -> 0 | B15: =IF($A$5="lines",C15,IF($A$5="circles",D15,E15)) -> 0.2796186758 | C15: =IF((d+PI()*(W-$A15))/p<1,(d+PI()*(W-$A15))/p,1) -> 0.6374126365 | D15: =IF((PI()*(d/2)^2+2*PI()*(W-$A15)^2+(PI())^2*d/2*(W-$A15))/Ao<1,(PI()*(d/2)^2+2*PI()*(W-$A15)^2+(PI())^2*d/2*(W-$A15))/Ao,1) -> 0.2672383411 | E15: =IF((d^2+2*PI()*(W-$A15)^2+2*PI()*d*(W-$A15))/Ao<1,(d^2+2*PI()*(W-$A15)^2+2*PI()*d*(W-$A15))/Ao,1) -> 0.2796186758 | F15: =y_max -> 0.04803171163 | I15: =kT_q*LN((n_o+J15)*(p_o+J15)/N_i^2) -> 0.6081820284 | J15: 3.216299201e+14 | M15: =n_lat+$M$12 -> 3.297832694e+14 | N15: =W-'[1]carrier profile'!B22+d/2 -> 0.018 | O15: ='carrier profile'!K22 -> 2.541573121e+14 | P15: StartPos | Q15: 1 | R15: 0.004 | S15: 0.03836766764 | T15: 0.6327518267 | U15: 0.03666797154 | V15: 0.5517073194 | W15: 0.8332912555 | X15: 20.22998829
A16: ='[1]carrier profile'!B23 -> 2.29021733e-07 | B16: =IF($A$5="lines",C16,IF($A$5="circles",D16,E16)) -> 0.2796115284 | C16: =IF((d+PI()*(W-$A16))/p<1,(d+PI()*(W-$A16))/p,1) -> 0.6374041852 | D16: 0.2672313641 | E16: 0.2796115284 | F16: =F15-(y_max-y_min)/100 -> 0.04769705822 | G16: =((Jof/N_i^2)*(J15+p_o)*(J15+n_o)+q*W*K16*(J15+$M$12)+(Jo_pass/N_i^2)*(J15+$M$12+p_o)*(J15+$M$12+n_o))*IF($A$5="lines",(F15-F16),PI()*(F15^2-F16^2)) -> 2.109089141e-07 | H16: =IF(suns*Jph*IF($A$5="lines",(F15-F16),PI()*(F15^2-F16^2))-G16>0,suns*Jph*IF($A$5="lines",(F15-F16),PI()*(F15^2-F16^2))-G16,0) -> 3.704752615e-06 | I16: =I15-H16*L16*(F15-F16)/IF($A$5="lines",W,(2*PI()*ABS(F16)*W)) -> 0.6081811924 | J16: =-(p_o+n_o)/2+SQRT((p_o+n_o)^2+4*N_i^2*EXP(I16/kT_q))/2 -> 3.216201691e+14 | K16: =(n_o+p_o+J15)/(tno*(p_o+J15+p_1)+tpo*(J15+n_o+n_1))+((p_o+n_o+J15)*(1.8E-24*n_o^0.65+6E-25*p_o^0.65+3E-27*J15^0.8+0.0000000000000095)) -> 94.8873689 | L16: =IF($P$2="n+pp+",Rf*W+1/(q*(p_o+J15)*mu_p+1/(Rb*W)),Rf*W+1/(q*(n_o+J15)*mu_n+1/(Rb*W))) -> 3.233373747 | M16: =J16+$M$12 -> 3.297735184e+14 | N16: =W-'[1]carrier profile'!B23+d/2 -> 0.01799977098 | O16: ='carrier profile'!K23 -> 2.541591442e+14 | Q16: 0.7247796637 | R16: 0.004698475772 | S16: 0.03850123816 | T16: 0.6397935766 | U16: 0.03678652449 | V16: 0.558887529 | W16: 0.8346388688 | X16: 20.55952977
A17: ='[1]carrier profile'!B24 -> 2.061111676e-06 | B17: 0.2795543548 | C17: 0.6373365779 | D17: 0.2671755539 | E17: 0.2795543548 | F17: 0.04736240481 | G17: =((Jof/N_i^2)*(J16+p_o)*(J16+n_o)+q*W*K17*(J16+$M$12)+(Jo_pass/N_i^2)*(J16+$M$12+p_o)*(J16+$M$12+n_o))*IF($A$5="lines",(F16-F17),PI()*(F16^2-F17^2)) -> 2.094276253e-07 | H17: =IF(H16+suns*Jph*IF($A$5="lines",(F16-F17),PI()*(F16^2-F17^2))-G17>0,H16+suns*Jph*IF($A$5="lines",(F16-F17),PI()*(F16^2-F17^2))-G17,0) -> 7.383609389e-06 | I17: =I16-H17*L17*(F16-F17)/IF($A$5="lines",W,(2*PI()*ABS(F17)*W)) -> 0.6081795144 | J17: =-(p_o+n_o)/2+SQRT((p_o+n_o)^2+4*N_i^2*EXP(I17/kT_q))/2 -> 321600598877071 | K17: =(n_o+p_o+J16)/(tno*(p_o+J16+p_1)+tpo*(J16+n_o+n_1))+((p_o+n_o+J16)*(1.8E-24*n_o^0.65+6E-25*p_o^0.65+3E-27*J16^0.8+0.0000000000000095)) -> 94.88703543 | L17: 3.23337495 | M17: 329753948188501 | N17: =W-'[1]carrier profile'!B24+d/2 -> 0.01799793889 | O17: ='carrier profile'!K24 -> 2.541625258e+14 | Q17: 0.5253055609 | R17: 0.005518918646 | S17: 0.03860435318 | T17: 0.6468967289 | U17: 0.03692843373 | V17: 0.5653480147 | W17: 0.8360036901 | X17: 20.87754506
A18: ='[1]carrier profile'!B25 -> 5.724844009e-06 | B18: 0.279440039 | C18: 0.6372013798 | D18: 0.2670639645 | E18: 0.279440039 | F18: 0.0470277514 | G18: 2.079397542e-07 | H18: 1.10365769e-05 | I18: 0.6081769884 | J18: 3.215711404e+14 | K18: 94.88636616 | L18: 3.233377364 | M18: 3.297244897e+14 | N18: =W-'[1]carrier profile'!B25+d/2 -> 0.01799427516 | O18: ='carrier profile'!K25 -> 2.54167181e+14 | Q18: 0.3807307877 | R18: 0.006482626387 | S18: 0.0386826882 | T18: 0.6539653777 | U18: 0.03701919764 | V18: 0.5722048332 | W18: 0.8373501833 | X18: 21.18256381
A19: ='[1]carrier profile'!B26 -> 1.121932373e-05 | B19: 0.2792686439 | C19: 0.6369986239 | D19: 0.2668966582 | E19: 0.2792686439 | F19: 0.04669309799 | G19: 2.064453964e-07 | H19: 1.466366165e-05 | I19: 0.6081736082 | J19: 3.21531724e+14 | K19: 94.88535872 | L19: 3.233380997 | M19: 3.296850733e+14 | N19: =W-'[1]carrier profile'!B26+d/2 -> 0.01798878068 | O19: ='carrier profile'!K26 -> 2.541727684e+14 | Q19: 0.2759459323 | R19: 0.007614615755 | S19: 0.03874150065 | T19: 0.6609050112 | U19: 0.03709453667 | V19: 0.5788785758 | W19: 0.8386523025 | X19: 21.47323256
A20: ='[1]carrier profile'!B27 -> 1.854320862e-05 | B20: 0.2790402636 | C20: 0.6367283598 | D20: 0.266673728 | E20: 0.2790402636 | F20: 0.04635844458 | G20: 2.049446485e-07 | H20: 1.826487001e-05 | I20: 0.6081693675 | J20: 321482279411574 | K20: 94.88401073 | L20: 3.233385858 | M20: 329635628723004 | N20: =W-'[1]carrier profile'!B27+d/2 -> 0.01798145679 | O20: ='carrier profile'!K27 -> 2.541789119e+14 | Q20: 0.2 | R20: 0.00894427191 | S20: 0.03878531791 | T20: 0.6676224977 | U20: 0.03715606345 | V20: 0.5853126552 | W20: 0.8398839679 | X20: 21.74791416
A21: ='[1]carrier profile'!B28 -> 2.769470955e-05 | B21: 0.2787550235 | C21: 0.6363906535 | D21: 0.2663952981 | E21: 0.2787550235 | F21: 0.04602379117 | G21: 2.03437608e-07 | H21: 2.184020828e-05 | I21: 0.6081642598 | J21: 3.214227355e+14 | K21: 94.88231979 | L21: 3.233391956 | M21: 3.295760849e+14 | N21: =W-'[1]carrier profile'!B28+d/2 -> 0.01797230529 | O21: ='carrier profile'!K28 -> 2.541852375e+14 | Q21: 0.1449559327 | R21: 0.01050611122 | S21: 0.03881769591 | T21: 0.6740142006 | U21: 0.03720389861 | V21: 0.5914483723 | W21: 0.8410203277 | X21: 22.00418528
A22: ='[1]carrier profile'!B29 -> 3.867159094e-05 | B22: 0.2784130803 | C22: 0.6359855874 | D22: 0.2660615235 | E22: 0.2784130803 | F22: 0.04568913776 | G22: 2.019243734e-07 | H22: 2.538968266e-05 | I22: 0.6081582784 | J22: 3.213530206e+14 | K22: 94.88028345 | L22: 3.2333993 | M22: 3.295063699e+14 | N22: =W-'[1]carrier profile'!B29+d/2 -> 0.01796132841 | O22: ='carrier profile'!K29 -> 2.541913856e+14 | Q22: 0.1050611122 | R22: 0.01234067725 | S22: 0.03884144235 | T22: 0.6799760385 | U22: 0.0372373045 | V22: 0.5972274259 | W22: 0.8420328244 | X22: 22.23913951
A23: ='[1]carrier profile'!B30 -> 5.147117128e-05 | B23: 0.2780146216 | C23: 0.6355132606 | D23: 0.2656725898 | E23: 0.2780146216 | F23: 0.04535448435 | G23: 2.004050441e-07 | H23: 2.891329923e-05 | I23: 0.6081514167 | J23: 3.212730621e+14 | K23: 94.87789926 | L23: 3.233407898 | M23: 3.294264114e+14 | N23: =W-'[1]carrier profile'!B30+d/2 -> 0.01794852883 | O23: ='carrier profile'!K30 -> 2.541970154e+14 | Q23: 0.07614615755 | R23: 0.01449559327 | S23: 0.03885873263 | T23: 0.6854117144 | U23: 0.03726169023 | V23: 0.6024837018 | W23: 0.8428837854 | X23: 22.44956107
A24: ='[1]carrier profile'!B31 -> 6.609032382e-05 | B24: 0.2775598661 | C24: 0.6349737884 | D24: 0.2652287132 | E24: 0.2775598661 | F24: 0.04501983094 | G24: 1.988797206e-07 | H24: 3.2411064e-05 | I24: 0.6081436677 | J24: 321182786671299 | K24: 94.87516472 | L24: 3.23341776 | M24: 329336135982729 | N24: =W-'[1]carrier profile'!B31+d/2 -> 0.01793390968 | O24: ='carrier profile'!K31 -> 2.542018076e+14 | Q24: 0.05518918646 | R24: 0.01702679845 | S24: 0.03887122354 | T24: 0.6902431516 | U24: 0.03727267208 | V24: 0.6072065727 | W24: 0.843522507 | X24: 22.63221147
A25: ='[1]carrier profile'!B32 -> 8.252547731e-05 | B25: 0.2770490629 | C25: 0.6343673026 | D25: 0.2647301405 | E25: 0.2770490629 | F25: 0.04468517753 | G25: 1.973485042e-07 | H25: 3.588298286e-05 | I25: 0.6081350243 | J25: 3.210821201e+14 | K25: 94.87207734 | L25: 3.233428894 | M25: 3.292354694e+14 | N25: =W-'[1]carrier profile'!B32+d/2 -> 0.01791747452 | O25: ='carrier profile'!K32 -> 2.542054647e+14 | Q25: 0.04 | R25: 0.02 | S25: 0.03888016194 | T25: 0.6944216401 | U25: 0.03730657958 | V25: 0.6107248353 | W25: 0.8438780732 | X25: 22.78405467
A26: ='[1]carrier profile'!B33 -> 0.0001007726169 | B26: 0.276482492 | C26: 0.6336939514 | D26: 0.2641771484 | E26: 0.276482492 | F26: 0.04435052412 | G26: 1.958114973e-07 | H26: 3.932906159e-05 | I26: 0.6081254793 | J26: 3.209709874e+14 | K26: 94.86863455 | L26: 3.23344131 | M26: 3.291243367e+14 | N26: =W-'[1]carrier profile'!B33+d/2 -> 0.01789922738 | O26: ='carrier profile'!K33 -> 2.542077115e+14 | Q26: 0.02899118655 | R26: 0.02349237886 | S26: 0.03888647979 | T26: 0.6979356143 | U26: 0.03732340022 | V26: 0.6136179745 | W26: 0.8438500573 | X26: 22.90230925
A27: ='[1]carrier profile'!B34 -> 0.0001208272849 | B27: 0.2758604636 | C27: 0.6329538992 | D27: 0.2635700439 | E27: 0.2758604636 | F27: 0.04401587071 | G27: 1.94268803e-07 | H27: 4.274930589e-05 | I27: 0.6081150253 | J27: 3.208493127e+14 | K27: 94.86483378 | L27: 3.233455018 | M27: 3.290026621e+14 | N27: =W-'[1]carrier profile'!B34+d/2 -> 0.01787917272 | O27: ='carrier profile'!K34 -> 2.542082949e+14 | Q27: 0.02101222244 | R27: 0.02759459323 | S27: 0.03888864762 | T27: 0.6997005616 | U27: 0.03731614141 | V27: 0.6119960444 | W27: 0.8392865865 | X27: 22.83733093
A28: ='[1]carrier profile'!B35 -> 0.0001426845825 | B28: 0.2751833177 | C28: 0.6321473268 | D28: 0.2629091634 | E28: 0.2751833177 | F28: 0.0436812173 | G28: 1.927205257e-07 | H28: 4.614372133e-05 | I28: 0.6081036547 | J28: 3.207170192e+14 | K28: 94.86067244 | L28: 3.233470026 | M28: 3.288703686e+14 | N28: =W-'[1]carrier profile'!B35+d/2 -> 0.01785731542 | O28: ='carrier profile'!K35 -> 2.542069827e+14 | Q28: 0.01522923151 | R28: 0.03241313193 | S28: 0.03888623977 | T28: 0.699705988 | U28: 0.03726065656 | V28: 0.6073359969 | W28: 0.8316747247 | X28: 22.62898337
A29: ='[1]carrier profile'!B36 -> 0.0001663391701 | B29: 0.2744514246 | C29: 0.6312744313 | D29: 0.2621948731 | E29: 0.2744514246 | F29: 0.04334656389 | G29: 1.911667705e-07 | H29: 4.95123134e-05 | I29: 0.6080913598 | J29: 320574029197493 | K29: 94.85614787 | L29: 3.233486344 | M29: 328727378508923 | N29: =W-'[1]carrier profile'!B36+d/2 -> 0.01783366083 | O29: ='carrier profile'!K36 -> 2.542035624e+14 | Q29: 0.01103783729 | R29: 0.03807307877 | S29: 0.03888349 | T29: 0.6997079115 | U29: 0.03725216259 | V29: 0.603337687 | W29: 0.8260948623 | X29: 22.47563361
A30: ='[1]carrier profile'!B37 -> 0.0001917852692 | B30: 0.2736651837 | C30: 0.6303354259 | D30: 0.2614275682 | E30: 0.2736651837 | F30: 0.04301191048 | G30: 1.896076436e-07 | H30: 5.285508747e-05 | I30: 0.6080781327 | J30: 3.204202639e+14 | K30: 94.85125741 | L30: 3.233503982 | M30: 3.285736132e+14 | N30: =W-'[1]carrier profile'!B37+d/2 -> 0.01780821473 | O30: ='carrier profile'!K37 -> 2.541978404e+14 | Q30: 0.008 | R30: 0.04472135955 | S30: 0.0388809703 | T30: 0.6997080272 | U30: 0.03723761214 | V30: 0.5999530747 | W30: 0.8211928451 | X30: 22.3408199
A31: ='[1]carrier profile'!B38 -> 0.0002190166637 | B31: 0.2728250238 | C31: 0.62933054 | D31: 0.2606076729 | E31: 0.2728250238 | F31: 0.04267725707 | G31: 1.88043252e-07 | H31: 5.61720488e-05 | I31: 0.6080639651 | J31: 320255643568912 | K31: 94.84599835 | L31: 3.233522949 | M31: 328408992880342 | N31: =W-'[1]carrier profile'!B38+d/2 -> 0.01778098334 | O31: ='carrier profile'!K38 -> 2.541896403e+14 | Q31: 0.005798237309 | R31: 0.05253055609 | S31: 0.03887892071 | T31: 0.6997080181 | U31: 0.0372102731 | V31: 0.5966488481 | W31: 0.8161135962 | X31: 22.20146658
A32: ='[1]carrier profile'!B39 -> 0.0002480267014 | B32: 0.2719314025 | C32: 0.6282600191 | D32: 0.2597356398 | E32: 0.2719314025 | F32: 0.04234260366 | G32: 1.864737039e-07 | H32: 5.946320255e-05 | I32: 0.6080488488 | J32: 3.200800875e+14 | K32: 94.84036795 | L32: 3.233543257 | M32: 3.282334368e+14 | N32: =W-'[1]carrier profile'!B39+d/2 -> 0.0177519733 | O32: ='carrier profile'!K39 -> 2.541788015e+14 | Q32: 0.004202444487 | R32: 0.06170338627 | S32: 0.03887742573 | T32: 0.6997080086 | U32: 0.03721483411 | V32: 0.5921669255 | W32: 0.8101135367 | X32: 22.03739389
A33: ='[1]carrier profile'!B40 -> 0.0002788082955 | B33: 0.2709848059 | C33: 0.6271241246 | D33: 0.2588119497 | E33: 0.2709848059 | F33: 0.04200795025 | G33: 1.848991083e-07 | H33: 6.272855376e-05 | I33: 0.6080327753 | J33: 319893513782982 | K33: 94.83436344 | L33: 3.233564914 | M33: 328046863094412 | N33: =W-'[1]carrier profile'!B40+d/2 -> 0.0177211917 | O33: ='carrier profile'!K40 -> 2.541651779e+14 | Q33: 0.003045846302 | R33: 0.07247796637 | S33: 0.03887633098 | T33: 0.6997079956 | U33: 0.03719293649 | V33: 0.5867941589 | W33: 0.80231358 | X33: 21.82459789
A34: ='[1]carrier profile'!B41 -> 0.0003113539265 | B34: 0.2699857484 | C34: 0.6259231341 | D34: 0.2578371114 | E34: 0.2699857484 | F34: 0.04167329684 | G34: 1.833195752e-07 | H34: 6.596810738e-05 | I34: 0.6080157358 | J34: 3.196958395e+14 | K34: 94.82798198 | L34: 3.233587931 | M34: 3.278491888e+14 | N34: =W-'[1]carrier profile'!B41+d/2 -> 0.01768864607 | O34: ='carrier profile'!K41 -> 2.541486362e+14 | Q34: 0.002207567458 | R34: 0.08513399225 | S34: 0.03887552263 | T34: 0.6997079776 | U34: 0.03713965185 | V34: 0.5797853061 | W34: 0.7916112668 | X34: 21.53302442
A35: ='[1]carrier profile'!B42 -> 0.0003456556439 | B35: 0.2689347719 | C35: 0.624657341 | D35: 0.2568116608 | E35: 0.2689347719 | F35: 0.04133864343 | G35: 1.817352156e-07 | H35: 6.918186822e-05 | I35: 0.6079977215 | J35: 319486980418265 | K35: 94.82122073 | L35: 3.233612318 | M35: 327640329729695 | N35: =W-'[1]carrier profile'!B42+d/2 -> 0.01765434436 | O35: ='carrier profile'!K42 -> 2.541290551e+14
A36: ='[1]carrier profile'!B43 -> 0.0003817050683 | B36: 0.2678324456 | C36: 0.6233270544 | D36: 0.2557361611 | E36: 0.2678324456 | F36: 0.04100399002 | G36: 1.801461412e-07 | H36: 7.236984101e-05 | I36: 0.607978723 | J36: 319266851270073 | K36: 94.81407679 | L36: 3.233638086 | M36: 327420200581503 | N36: =W-'[1]carrier profile'!B43+d/2 -> 0.01761829493 | O36: ='carrier profile'!K43 -> 2.541063234e+14
A37: ='[1]carrier profile'!B44 -> 0.0004194933934 | B37: 0.2666793657 | C37: 0.6219325994 | D37: 0.2546112019 | E37: 0.2666793657 | F37: 0.04066933661 | G37: 1.785524652e-07 | H37: 7.553203035e-05 | I37: 0.6079587311 | J37: 319035365433001 | K37: 94.80654721 | L37: 3.233665246 | M37: 327188714744431 | N37: =W-'[1]carrier profile'!B44+d/2 -> 0.01758050661 | O37: ='carrier profile'!K44 -> 2.540803393e+14
A38: ='[1]carrier profile'!B45 -> 0.000459011388 | B38: 0.2654761548 | C38: 0.6204743165 | D38: 0.2534373988 | E38: 0.2654761548 | F38: 0.0403346832 | G38: 1.769543012e-07 | H38: 7.866844072e-05 | I38: 0.6079377361 | J38: 3.18792435e+14 | K38: 94.79862901 | L38: 3.233693808 | M38: 3.269457843e+14 | N38: =W-'[1]carrier profile'!B45+d/2 -> 0.01754098861 | O38: ='carrier profile'!K45 -> 2.540510088e+14
A39: ='[1]carrier profile'!B46 -> 0.0005002493983 | B39: 0.2642234613 | C39: 0.6189525621 | D39: 0.252215393 | E39: 0.2642234613 | F39: 0.04000002979 | G39: 1.753517642e-07 | H39: 8.17790765e-05 | I39: 0.6079157281 | J39: 318537970787804 | K39: 94.79031917 | L39: 3.233723783 | M39: 326691320099234 | N39: =W-'[1]carrier profile'!B46+d/2 -> 0.0174997506 | O39: ='carrier profile'!K46 -> 2.540182453e+14
A40: ='[1]carrier profile'!B47 -> 0.0005431973506 | B40: 0.262921959 | C40: 0.6173677078 | D40: 0.2509458509 | E40: 0.262921959 | F40: 0.03966537638 | G40: 1.737449699e-07 | H40: 8.486394194e-05 | I40: 0.607892697 | J40: 318271882122786 | K40: 94.78161459 | L40: 3.233755184 | M40: 326425231434216 | N40: =W-'[1]carrier profile'!B47+d/2 -> 0.01745680265 | O40: ='carrier profile'!K47 -> 2.539819679e+14
A41: ='[1]carrier profile'!B48 -> 0.0005878447532 | B41: 0.2615723467 | C41: 0.6157201408 | D41: 0.2496294635 | E41: 0.2615723467 | F41: 0.03933072297 | G41: 1.721340351e-07 | H41: 8.792304118e-05 | I41: 0.6078686325 | J41: 317994076954149 | K41: 94.77251216 | L41: 3.23378802 | M41: 326147426265579 | N41: =W-'[1]carrier profile'!B48+d/2 -> 0.01741215525 | O41: ='carrier profile'!K48 -> 2.539421013e+14
A42: ='[1]carrier profile'!B49 -> 0.0006341806993 | B42: 0.2601753474 | C42: 0.6140102637 | D42: 0.2482669456 | E42: 0.2601753474 | F42: 0.03899606956 | G42: 1.705190775e-07 | H42: 9.095637826e-05 | I42: 0.6078435238 | J42: 3.177044617e+14 | K42: 94.76300869 | L42: 3.233822304 | M42: 3.25857811e+14 | N42: =W-'[1]carrier profile'!B49+d/2 -> 0.0173658193 | O42: ='carrier profile'!K49 -> 2.538985745e+14
A43: ='[1]carrier profile'!B50 -> 0.0006821938698 | B43: 0.2587317079 | C43: 0.612238494 | D43: 0.2468590357 | E43: 0.2587317079 | F43: 0.03866141615 | G43: 1.689002159e-07 | H43: 9.396395706e-05 | I43: 0.60781736 | J43: 317402941297511 | K43: 94.75310096 | L43: 3.233858047 | M43: 325556290608941 | N43: =W-'[1]carrier profile'!B50+d/2 -> 0.01731780613 | O43: ='carrier profile'!K50 -> 2.538513202e+14
A44: ='[1]carrier profile'!B51 -> 0.0007318725357 | B44: 0.2572421983 | C44: 0.6104052647 | D44: 0.2454064951 | E44: 0.2572421983 | F44: 0.03832676274 | G44: 1.6727757e-07 | H44: 9.694578139e-05 | I44: 0.60779013 | J44: 317089418965463 | K44: 94.74278567 | L44: 3.233895261 | M44: 325242768276893 | N44: =W-'[1]carrier profile'!B51+d/2 -> 0.01726812746 | O44: ='carrier profile'!K51 -> 2.538002743e+14
A45: ='[1]carrier profile'!B52 -> 0.0007832045612 | B45: 0.2557076113 | C45: 0.6085110235 | D45: 0.2439101074 | E45: 0.2557076113 | F45: 0.03799210933 | G45: 1.656512605e-07 | H45: 9.990185489e-05 | I45: 0.6077618222 | J45: 3.167637963e+14 | K45: 94.73205948 | L45: 3.233933959 | M45: 3.249171456e+14 | N45: =W-'[1]carrier profile'!B52+d/2 -> 0.01721679544 | O45: ='carrier profile'!K52 -> 2.537453753e+14
A46: ='[1]carrier profile'!B53 -> 0.0008361774066 | B46: 0.2541287614 | C46: 0.6065562332 | D46: 0.2423706778 | E46: 0.2541287614 | F46: 0.03765745592 | G46: 1.640214091e-07 | H46: 0.0001028321811 | I46: 0.6077324247 | J46: 3.164259732e+14 | K46: 94.720919 | L46: 3.233974153 | M46: 3.245793225e+14 | N46: =W-'[1]carrier profile'!B53+d/2 -> 0.01716382259 | O46: ='carrier profile'!K53 -> 253686563871642
A47: ='[1]carrier profile'!B54 -> 0.0008907781313 | B47: 0.2525064845 | C47: 0.6045413713 | D47: 0.2407890328 | E47: 0.2525064845 | F47: 0.03732280251 | G47: 1.623881384e-07 | H47: 0.0001057367635 | I47: 0.6077019254 | J47: 316075847767174 | K47: 94.70936074 | L47: 3.234015856 | M47: 324229197078604 | N47: =W-'[1]carrier profile'!B54+d/2 -> 0.01710922187 | O47: ='carrier profile'!K54 -> 2.536237821e+14
A48: ='[1]carrier profile'!B55 -> 0.0009469933972 | B48: 0.2508416375 | C48: 0.6024669301 | D48: 0.239166019 | E48: 0.2508416375 | F48: =F47-(y_max-y_min)/100 -> 0.0369881491 | G48: =((Jof/N_i^2)*(J47+p_o)*(J47+n_o)+q*W*K48*(J47+$M$12)+(Jo_pass/N_i^2)*(J47+$M$12+p_o)*(J47+$M$12+n_o))*IF($A$5="lines",(F47-F48),PI()*(F47^2-F48^2)) -> 1.607515722e-07 | H48: 0.0001086156053 | I48: =I47-H48*L48*(F47-F48)/IF($A$5="lines",W,(2*PI()*ABS(F48)*W)) -> 0.6076703119 | J48: =-(p_o+n_o)/2+SQRT((p_o+n_o)^2+4*N_i^2*EXP(I48/kT_q))/2 -> 3.157133161e+14 | K48: =(n_o+p_o+J47)/(tno*(p_o+J47+p_1)+tpo*(J47+n_o+n_1))+((p_o+n_o+J47)*(1.8E-24*n_o^0.65+6E-25*p_o^0.65+3E-27*J47^0.8+0.0000000000000095)) -> 94.6973812 | L48: =IF($P$2="n+pp+",Rf*W+1/(q*(p_o+J47)*mu_p+1/(Rb*W)),Rf*W+1/(q*(n_o+J47)*mu_n+1/(Rb*W))) -> 3.23405908 | M48: 3.238666654e+14 | N48: =W-'[1]carrier profile'!B55+d/2 -> 0.0170530066 | O48: ='carrier profile'!K55 -> 2.535569736e+14
A49: ='[1]carrier profile'!B56 -> 0.001004809472 | B49: 0.2491350971 | C49: 0.6003334162 | D49: 0.2375025031 | E49: 0.2491350971 | F49: 0.03665349569 | G49: 1.591118351e-07 | H49: =IF(H48+suns*Jph*IF($A$5="lines",(F48-F49),PI()*(F48^2-F49^2))-G49>0,H48+suns*Jph*IF($A$5="lines",(F48-F49),PI()*(F48^2-F49^2))-G49,0) -> 0.0001114687097 | I49: 0.6076375713 | J49: 3.153382725e+14 | K49: 94.68497677 | L49: 3.234103839 | M49: 3.234916218e+14 | N49: =W-'[1]carrier profile'!B56+d/2 -> 0.01699519053 | O49: ='carrier profile'!K56 -> 2.534860825e+14
A50: ='[1]carrier profile'!B57 -> 0.001064212231 | B50: 0.2473877593 | C50: 0.5981413509 | D50: 0.2357993705 | E50: 0.2473877593 | F50: 0.03631884228 | G50: 1.574690528e-07 | H50: 0.0001142960797 | I50: 0.6076036904 | J50: 314950609243096 | K50: 94.67214379 | L50: 3.234150145 | M50: 323103958554526 | N50: =W-'[1]carrier profile'!B57+d/2 -> 0.01693578777 | O50: ='carrier profile'!K57 -> 2.534110539e+14
A51: ='[1]carrier profile'!B58 -> 0.001125187164 | B51: 0.245600539 | C51: 0.5958912696 | D51: 0.2340575254 | E51: 0.245600539 | F51: 0.03598418887 | G51: 1.55823352e-07 | H51: 0.0001170977184 | I51: 0.6075686557 | J51: 3.145502164e+14 | K51: 94.65887852 | L51: 3.234198014 | M51: 3.227035657e+14 | N51: =W-'[1]carrier profile'!B58+d/2 -> 0.01687481284 | O51: ='carrier profile'!K58 -> 2.533318329e+14
A52: ='[1]carrier profile'!B59 -> 0.001187719375 | B52: 0.243774369 | C52: 0.5935837221 | D52: 0.2322778895 | E52: 0.243774369 | F52: 0.03564953546 | G52: 1.541748604e-07 | H52: 0.0001198736284 | I52: 0.6075324532 | J52: 314136981958598 | K52: 94.64517717 | L52: 3.234247457 | M52: 322290331270028 | N52: =W-'[1]carrier profile'!B59+d/2 -> 0.01681228062 | O52: ='carrier profile'!K59 -> 2.532483647e+14
A53: ='[1]carrier profile'!B60 -> 0.001251793589 | B53: 0.2419101995 | C53: 0.5912192719 | D53: 0.2304614016 | E53: 0.2419101995 | F53: 0.03531488205 | G53: 1.525237068e-07 | H53: 0.0001226238124 | I53: 0.6074950686 | J53: 313710791616445 | K53: 94.63103584 | L53: 3.234298491 | M53: 321864140927875 | N53: =W-'[1]carrier profile'!B60+d/2 -> 0.01674820641 | O53: ='carrier profile'!K60 -> 2.531605944e+14
A54: ='[1]carrier profile'!B61 -> 0.001317394153 | B54: 0.240008997 | C54: 0.5887984968 | D54: 0.2286090165 | E54: 0.240008997 | F54: 0.03498022864 | G54: 1.50870021e-07 | H54: 0.000125348273 | I54: 0.6074564872 | J54: 3.132715287e+14 | K54: 94.61645056 | L54: 3.234351128 | M54: 3.21424878e+14 | N54: =W-'[1]carrier profile'!B61+d/2 -> 0.01668260585 | O54: ='carrier profile'!K61 -> 2.530684667e+14
A55: ='[1]carrier profile'!B62 -> 0.001384505041 | B55: 0.2380717441 | C55: 0.5863219881 | D55: 0.226721705 | E55: 0.2380717441 | F55: 0.03464557523 | G55: 1.492139336e-07 | H55: 0.0001280470125 | I55: 0.6074166937 | J55: 312819074154480 | K55: 94.6014173 | L55: 3.234405385 | M55: 320972423465910 | N55: =W-'[1]carrier profile'!B62+d/2 -> 0.01661549496 | O55: ='carrier profile'!K62 -> 2.529719256e+14
A56: ='[1]carrier profile'!B63 -> 0.00145310986 | B56: 0.2360994383 | C56: 0.5837903507 | D56: 0.2248004522 | E56: 0.2360994383 | F56: 0.03431092182 | G56: 1.475555768e-07 | H56: 0.0001307200332 | I56: 0.6073756726 | J56: 3.123533063e+14 | K56: 94.58593191 | L56: 3.234461275 | M56: 3.205066556e+14 | N56: =W-'[1]carrier profile'!B63+d/2 -> 0.01654689014 | O56: ='carrier profile'!K63 -> 2.528709147e+14
A57: ='[1]carrier profile'!B64 -> 0.001523191851 | B57: 0.2340930915 | C57: 0.5812042032 | D57: 0.2228462578 | E57: 0.2340930915 | F57: 0.03397626841 | G57: 1.458950832e-07 | H57: 0.0001333673374 | I57: 0.6073334078 | J57: 311874100792302 | K57: 94.56999018 | L57: 3.234518816 | M57: 320027450103732 | N57: =W-'[1]carrier profile'!B64+d/2 -> 0.01647680815 | O57: ='carrier profile'!K64 -> 2.527653763e+14
A58: ='[1]carrier profile'!B65 -> 0.001594733893 | B58: 0.2320537291 | C58: 0.5785641772 | D58: 0.2208601342 | E58: 0.2320537291 | F58: 0.033641615 | G58: 1.442325869e-07 | H58: 0.0001359889268 | I58: 0.6072898827 | J58: 311381330636152 | K58: 94.55358777 | L58: 3.234578021 | M58: 319534679947582 | N58: =W-'[1]carrier profile'!B65+d/2 -> 0.01640526611 | O58: ='carrier profile'!K65 -> 2.526552519e+14
A59: ='[1]carrier profile'!B66 -> 0.001667718509 | B59: 0.2299823893 | C59: 0.5758709176 | D59: 0.2188431068 | E59: 0.2299823893 | F59: 0.03330696159 | G59: 1.425682229e-07 | H59: 0.0001385848036 | I59: 0.6072450803 | J59: 310874865884774 | K59: 94.53672029 | L59: 3.234638908 | M59: 319028215196204 | N59: =W-'[1]carrier profile'!B66+d/2 -> 0.01633228149 | O59: ='carrier profile'!K66 -> 2.525404821e+14
A60: ='[1]carrier profile'!B67 -> 0.001742127871 | B60: 0.2278801224 | C60: 0.5731250825 | D60: 0.2167962125 | E60: 0.2278801224 | F60: 0.03297230818 | G60: 1.409021274e-07 | H60: 0.0001411549693 | I60: 0.6071989829 | J60: 310354573623422 | K60: 94.5193832 | L60: 3.234701493 | M60: 318507922934852 | N60: =W-'[1]carrier profile'!B67+d/2 -> 0.01625787213 | O60: ='carrier profile'!K67 -> 2.524210058e+14
A61: ='[1]carrier profile'!B68 -> 0.001817943801 | B61: 0.2257479898 | C61: 0.5703273426 | D61: 0.2147204992 | E61: 0.2257479898 | F61: 0.03263765477 | G61: 1.392344376e-07 | H61: 0.0001436994255 | I61: 0.6071515724 | J61: 3.098203178e+14 | K61: 94.50157188 | L61: 3.234765793 | M61: 3.179736671e+14 | N61: =W-'[1]carrier profile'!B68+d/2 -> 0.0161820562 | O61: ='carrier profile'!K68 -> 2.522967608e+14
A62: ='[1]carrier profile'!B69 -> 0.001895147778 | B62: 0.2235870632 | C62: 0.5674783813 | D62: 0.2126170248 | E62: 0.2235870632 | F62: 0.03230300136 | G62: 1.375652917e-07 | H62: 0.0001462181738 | I62: 0.6071028301 | J62: 3.092719592e+14 | K62: 94.48328161 | L62: 3.234831825 | M62: 3.174253085e+14 | N62: =W-'[1]carrier profile'!B69+d/2 -> 0.01610485222 | O62: ='carrier profile'!K69 -> 2.521676836e+14
A63: ='[1]carrier profile'!B70 -> 0.001973720943 | B63: 0.2213984242 | C63: 0.5645788946 | D63: 0.210486857 | E63: 0.2213984242 | F63: 0.03196834794 | G63: 1.358948292e-07 | H63: 0.0001487112154 | I63: 0.6070527368 | J63: 308709355153462 | K63: 94.46450754 | L63: 3.234899607 | M63: 316862704464892 | N63: =W-'[1]carrier profile'!B70+d/2 -> 0.01602627906 | O63: ='carrier profile'!K70 -> 2.520337089e+14
A64: ='[1]carrier profile'!B71 -> 0.002053644101 | B64: 0.219183163 | C64: 0.5616295909 | D64: 0.2083310716 | E64: 0.219183163 | F64: 0.03163369453 | G64: 1.342231907e-07 | H64: 0.0001511785515 | I64: 0.6070012726 | J64: 3.081323595e+14 | K64: 94.44524469 | L64: 3.234969157 | M64: 3.162857088e+14 | N64: =W-'[1]carrier profile'!B71+d/2 -> 0.0159463559 | O64: ='carrier profile'!K71 -> 2.5189477e+14
A65: ='[1]carrier profile'!B72 -> 0.002134897729 | B65: 0.216942378 | C65: 0.5586311904 | D65: 0.2061507523 | E65: 0.216942378 | F65: 0.03129904112 | G65: 1.325505177e-07 | H65: 0.0001536201831 | I65: 0.6069484168 | J65: 307540822278386 | K65: 94.42548797 | L65: 3.235040494 | M65: 315694171589816 | N65: =W-'[1]carrier profile'!B72+d/2 -> 0.01586510227 | O65: ='carrier profile'!K72 -> 2.517507983e+14
A66: ='[1]carrier profile'!B73 -> 0.002217461976 | B66: 0.2146771744 | C66: 0.5555844258 | D66: 0.2039469899 | E66: 0.2146771744 | F66: 0.03096438771 | G66: 1.308769533e-07 | H66: 0.0001560361112 | I66: 0.6068941483 | J66: 3.069345899e+14 | K66: 94.40523217 | L66: 3.235113636 | M66: 3.150879392e+14 | N66: =W-'[1]carrier profile'!B73+d/2 -> 0.01578253802 | O66: ='carrier profile'!K73 -> 2.516017236e+14
A67: ='[1]carrier profile'!B74 -> 0.002301316674 | B67: 0.2123886643 | C67: 0.5524900414 | D67: 0.2017208812 | E67: 0.2123886643 | F67: 0.0306297343 | G67: 1.292026412e-07 | H67: 0.0001584263364 | I67: 0.6068384453 | J67: 306313504748439 | K67: 94.38447193 | L67: 3.235188605 | M67: 314466854059869 | N67: =W-'[1]carrier profile'!B74+d/2 -> 0.01569868333 | O67: ='carrier profile'!K74 -> 2.514474737e+14
A68: ='[1]carrier profile'!B75 -> 0.002386441338 | B68: 0.2100779649 | C68: 0.5493487929 | D68: 0.1994735284 | E68: 0.2100779649 | F68: 0.03029508089 | G68: 1.275277268e-07 | H68: 0.0001607908595 | I68: 0.606781285 | J68: 305677404854020 | K68: 94.36320174 | L68: 3.235265418 | M68: 313830754165450 | N68: =W-'[1]carrier profile'!B75+d/2 -> 0.01561355866 | O68: ='carrier profile'!K75 -> 2.512879747e+14
A69: ='[1]carrier profile'!B76 -> 0.002472815174 | B69: 0.2077461985 | C69: 0.5461614479 | D69: 0.197206038 | E69: 0.2077461985 | F69: 0.02996042748 | G69: 1.258523564e-07 | H69: 0.0001631296808 | I69: 0.606722644 | J69: 3.05026124e+14 | K69: 94.34141597 | L69: 3.235344099 | M69: 3.131794733e+14 | N69: =W-'[1]carrier profile'!B76+d/2 -> 0.01552718483 | O69: ='carrier profile'!K76 -> 2.511231504e+14
A70: ='[1]carrier profile'!B77 -> 0.002560417081 | B70: 0.2053944909 | C70: 0.5429287849 | D70: 0.1949195205 | E70: 0.2053944909 | F70: 0.02962577407 | G70: 1.241766776e-07 | H70: 0.0001654428006 | I70: 0.6066624983 | J70: 3.043594915e+14 | K70: 94.3191088 | L70: 3.235424666 | M70: 3.125128408e+14 | N70: =W-'[1]carrier profile'!B77+d/2 -> 0.01543958292 | O70: ='carrier profile'!K77 -> 2.509529229e+14
A71: ='[1]carrier profile'!B78 -> 0.00264922566 | B71: 0.2030239715 | C71: 0.5396515936 | D71: 0.192615089 | E71: 0.2030239715 | F71: 0.02929112066 | G71: 1.225008392e-07 | H71: 0.0001677302192 | I71: 0.6066008227 | J71: 303677331735788 | K71: 94.29627428 | L71: 3.235507143 | M71: 311830681047218 | N71: =W-'[1]carrier profile'!B78+d/2 -> 0.01535077434 | O71: ='carrier profile'!K78 -> 2.507772119e+14
A72: ='[1]carrier profile'!B79 -> 0.002739219215 | B72: 0.2006357716 | C72: 0.5363306746 | D72: 0.1902938589 | E72: 0.2006357716 | F72: 0.02895646725 | G72: 1.208249914e-07 | H72: 0.0001699919364 | I72: 0.6065375915 | J72: 302979464202758 | K72: 94.27290627 | L72: 3.235591552 | M72: 311132813514188 | N72: =W-'[1]carrier profile'!B79+d/2 -> 0.01526078078 | O72: ='carrier profile'!K79 -> 2.50595935e+14
A73: ='[1]carrier profile'!B80 -> 0.002830375764 | B73: 0.1982310242 | C73: 0.5329668391 | D73: 0.1879569466 | E73: 0.1982310242 | F73: 0.02862181384 | G73: 1.191492853e-07 | H73: 0.0001722279523 | I73: 0.6064727777 | J73: 302265703181233 | K73: 94.24899848 | L73: 3.235677915 | M73: 310419052492663 | N73: =W-'[1]carrier profile'!B80+d/2 -> 0.01516962424 | O73: ='carrier profile'!K80 -> 2.504090076e+14
A74: ='[1]carrier profile'!B81 -> 0.002922673036 | B74: 0.1958108627 | C74: 0.5295609089 | D74: 0.1856054693 | E74: 0.1958108627 | F74: 0.02828716043 | G74: 1.174738738e-07 | H74: 0.0001744382664 | I74: 0.6064063537 | J74: 3.015358575e+14 | K74: 94.2245444 | L74: 3.235766257 | M74: 3.096892068e+14 | N74: =W-'[1]carrier profile'!B81+d/2 -> 0.01507732696 | O74: ='carrier profile'!K81 -> 2.502163427e+14
A75: ='[1]carrier profile'!B82 -> 0.003016088486 | B75: 0.1933764206 | C75: 0.5261137161 | D75: 0.1832405434 | E75: 0.1933764206 | F75: 0.02795250702 | G75: 1.157989107e-07 | H75: 0.0001766228783 | I75: 0.6063382908 | J75: 3.007897303e+14 | K75: 94.19953736 | L75: 3.235856603 | M75: 3.089430796e+14 | N75: =W-'[1]carrier profile'!B82+d/2 -> 0.01498391151 | O75: ='carrier profile'!K82 -> 2.500178511e+14
A76: ='[1]carrier profile'!B83 -> 0.003110599293 | B76: 0.1909288303 | C76: 0.5226261026 | D76: 0.1808632844 | E76: 0.1909288303 | F76: 0.02761785361 | G76: 1.141245514e-07 | H76: 0.0001787817875 | I76: 0.606268559 | J76: 3.000271186e+14 | K76: 94.17397047 | L76: 3.235948976 | M76: 3.08180468e+14 | N76: =W-'[1]carrier profile'!B83+d/2 -> 0.01488940071 | O76: ='carrier profile'!K83 -> 2.49813441e+14
A77: ='[1]carrier profile'!B84 -> 0.00320618237 | B77: 0.1884692225 | C77: 0.5190989205 | D77: 0.1784748059 | E77: 0.1884692225 | F77: 0.0272832002 | G77: 1.124509525e-07 | H77: 0.0001809149932 | I77: 0.6061971277 | J77: 2.992478135e+14 | K77: 94.14783662 | L77: 3.236043404 | M77: 3.074011628e+14 | N77: =W-'[1]carrier profile'!B84+d/2 -> 0.01479381763 | O77: ='carrier profile'!K84 -> 2.496030181e+14
A78: ='[1]carrier profile'!B85 -> 0.003302814368 | B78: 0.1859987253 | C78: 0.5155330314 | D78: 0.1760762184 | E78: 0.1859987253 | F78: 0.02694854679 | G78: 1.107782722e-07 | H78: 0.0001830224944 | I78: 0.6061239646 | J78: 2.984515992e+14 | K78: 94.12112851 | L78: 3.236139912 | M78: 3.066049485e+14 | N78: =W-'[1]carrier profile'!B85+d/2 -> 0.01469718563 | O78: ='carrier profile'!K85 -> 2.493864856e+14
A79: ='[1]carrier profile'!B86 -> 0.003400471679 | B79: 0.1835184634 | C79: =IF((d+PI()*(W-$A79))/p<1,(d+PI()*(W-$A79))/p,1) -> 0.5119293065 | D79: =IF((PI()*(d/2)^2+2*PI()*(W-$A79)^2+(PI())^2*d/2*(W-$A79))/Ao<1,(PI()*(d/2)^2+2*PI()*(W-$A79)^2+(PI())^2*d/2*(W-$A79))/Ao,1) -> 0.1736686294 | E79: =IF((d^2+2*PI()*(W-$A79)^2+2*PI()*d*(W-$A79))/Ao<1,(d^2+2*PI()*(W-$A79)^2+2*PI()*d*(W-$A79))/Ao,1) -> 0.1835184634 | F79: 0.02661389338 | G79: 1.091066699e-07 | H79: 0.0001851042901 | I79: 0.6060490366 | J79: 2.976382531e+14 | K79: 94.09383858 | L79: 3.23623853 | M79: 3.057916025e+14 | N79: =W-'[1]carrier profile'!B86+d/2 -> 0.01459952832 | O79: ='carrier profile'!K86 -> 2.491637442e+14
A80: ='[1]carrier profile'!B87 -> 0.003499130448 | B80: =IF($A$5="lines",C80,IF($A$5="circles",D80,E80)) -> 0.1810295574 | C80: 0.508288626 | D80: 0.1712531415 | E80: 0.1810295574 | F80: =F79-(y_max-y_min)/100 -> 0.02627923997 | G80: =((Jof/N_i^2)*(J79+p_o)*(J79+n_o)+q*W*K80*(J79+$M$12)+(Jo_pass/N_i^2)*(J79+$M$12+p_o)*(J79+$M$12+n_o))*IF($A$5="lines",(F79-F80),PI()*(F79^2-F80^2)) -> 1.074363065e-07 | H80: 0.000187160379 | I80: =I79-H80*L80*(F79-F80)/IF($A$5="lines",W,(2*PI()*ABS(F80)*W)) -> 0.6059723092 | J80: =-(p_o+n_o)/2+SQRT((p_o+n_o)^2+4*N_i^2*EXP(I80/kT_q))/2 -> 296807545570219 | K80: =(n_o+p_o+J79)/(tno*(p_o+J79+p_1)+tpo*(J79+n_o+n_1))+((p_o+n_o+J79)*(1.8E-24*n_o^0.65+6E-25*p_o^0.65+3E-27*J79^0.8+0.0000000000000095)) -> 94.06595903 | L80: =IF($P$2="n+pp+",Rf*W+1/(q*(p_o+J79)*mu_p+1/(Rb*W)),Rf*W+1/(q*(n_o+J79)*mu_n+1/(Rb*W))) -> 3.236339284 | M80: =J80+$M$12 -> 304960894881649 | N80: =W-'[1]carrier profile'!B87+d/2 -> 0.01450086955 | O80: ='carrier profile'!K87 -> 2.489346916e+14
A81: ='[1]carrier profile'!B88 -> 0.003598766574 | B81: 0.1785331231 | C81: 0.5046118794 | D81: 0.1688308525 | E81: 0.1785331231 | F81: 0.02594458656 | G81: 1.057673446e-07 | H81: =IF(H80+suns*Jph*IF($A$5="lines",(F80-F81),PI()*(F80^2-F81^2))-G81>0,H80+suns*Jph*IF($A$5="lines",(F80-F81),PI()*(F80^2-F81^2))-G81,0) -> 0.0001891907597 | I81: 0.6058937465 | J81: 2.959592391e+14 | K81: 94.03748181 | L81: 3.236442205 | M81: 3.041125884e+14 | N81: =W-'[1]carrier profile'!B88+d/2 -> 0.01440123343 | O81: ='carrier profile'!K88 -> 2.48699223e+14
A82: ='[1]carrier profile'!B89 -> 0.003699355717 | B82: 0.1760302704 | C82: 0.5008999647 | D82: 0.1664028544 | E82: 0.1760302704 | F82: 0.02560993315 | G82: 1.040999481e-07 | H82: 0.0001911954307 | I82: 0.6058133113 | J82: 295093088488820 | K82: 94.00839861 | L82: 3.236547324 | M82: 303246437800250 | N82: =W-'[1]carrier profile'!B89+d/2 -> 0.01430064428 | O82: ='carrier profile'!K89 -> 2.484572308e+14
A83: ='[1]carrier profile'!B90 -> 0.003800873305 | B83: 0.173522103 | C83: 0.4971537888 | D83: 0.1639702325 | E83: 0.173522103 | F83: 0.02527527974 | G83: 1.024342825e-07 | H83: 0.0001931743903 | I83: 0.6057309647 | J83: 2.9420884e+14 | K83: 93.97870082 | L83: 3.23665467 | M83: 3.023621893e+14 | N83: =W-'[1]carrier profile'!B90+d/2 -> 0.0141991267 | O83: ='carrier profile'!K90 -> 2.482086045e+14
A84: ='[1]carrier profile'!B91 -> 0.003903294538 | B84: 0.1710097171 | C84: 0.4933742669 | D84: 0.1615340646 | E84: 0.1710097171 | F84: 0.02494062633 | G84: 1.00770515e-07 | H84: 0.0001951276364 | I84: 0.6056466666 | J84: 2.933062311e+14 | K84: 93.94837954 | L84: 3.236764278 | M84: 3.014595804e+14 | N84: =W-'[1]carrier profile'!B91+d/2 -> 0.01409670546 | O84: ='carrier profile'!K91 -> 2.479532306e+14
A85: ='[1]carrier profile'!B92 -> 0.004006594396 | B85: 0.1684942013 | C85: 0.4895623221 | D85: 0.1590954206 | E85: 0.1684942013 | F85: 0.02460597292 | G85: 9.91088144e-08 | H85: 0.0001970551672 | I85: 0.6055603749 | J85: 292384990074165 | K85: 93.91742556 | L85: 3.23687618 | M85: 300538339385595 | N85: =W-'[1]carrier profile'!B92+d/2 -> 0.0139934056 | O85: ='carrier profile'!K92 -> 2.476909926e+14
A86: ='[1]carrier profile'!B93 -> 0.004110747645 | B86: 0.1659766353 | C86: 0.4857188857 | D86: 0.1566553614 | E86: 0.1659766353 | F86: 0.02427131951 | G86: 9.74493511e-08 | H86: 0.0001989569803 | I86: 0.6054720461 | J86: 291444835455645 | K86: 93.88582935 | L86: 3.236990412 | M86: 299598184767075 | N86: =W-'[1]carrier profile'!B93+d/2 -> 0.01388925235 | O86: ='carrier profile'!K93 -> 2.474217712e+14
A87: ='[1]carrier profile'!B94 -> 0.004215728841 | B87: 0.1634580896 | C87: 0.4818448967 | D87: 0.1542149387 | E87: 0.1634580896 | F87: 0.0239366661 | G87: 9.579229734e-08 | H87: 0.0002008330733 | I87: 0.6053816345 | J87: 2.904854755e+14 | K87: 93.85358102 | L87: 3.23710701 | M87: 2.986388248e+14 | N87: =W-'[1]carrier profile'!B94+d/2 -> 0.01378427116 | O87: ='carrier profile'!K94 -> 2.471454437e+14
A88: ='[1]carrier profile'!B95 -> 0.004321512339 | B88: 0.1609396243 | C88: 0.4779413013 | D88: 0.1517751935 | E88: 0.1609396243 | F88: 0.02360201269 | G88: 9.413782711e-08 | H88: 0.0002026834436 | I88: 0.6052890928 | J88: 289506607504487 | K88: 93.82067031 | L88: 3.237226011 | M88: 297659956815917 | N88: =W-'[1]carrier profile'!B95+d/2 -> 0.01367848766 | O88: ='carrier profile'!K95 -> 2.468618844e+14
A89: ='[1]carrier profile'!B96 -> 0.004428072297 | B89: 0.1584222892 | C89: 0.4740090531 | D89: 0.1493371562 | E89: 0.1584222892 | F89: 0.02326735928 | G89: 9.248611624e-08 | H89: 0.0002045080886 | I89: 0.6051943714 | J89: 2.885079176e+14 | K89: 93.7870866 | L89: 3.237347453 | M89: 2.966612669e+14 | N89: =W-'[1]carrier profile'!B96+d/2 -> 0.0135719277 | O89: ='carrier profile'!K96 -> 2.465709643e+14
A90: ='[1]carrier profile'!B97 -> 0.004535382685 | B90: 0.1559071222 | C90: 0.4700491129 | D90: 0.1469018454 | E90: 0.1559071222 | F90: 0.02293270587 | G90: 9.083734245e-08 | H90: 0.0002063070051 | I90: 0.6050974186 | J90: 2.874890796e+14 | K90: 93.75281886 | L90: 3.237471378 | M90: 2.956424289e+14 | N90: =W-'[1]carrier profile'!B97+d/2 -> 0.01346461731 | O90: ='carrier profile'!K97 -> 2.462725511e+14
A91: ='[1]carrier profile'!B98 -> 0.004643417288 | B91: 0.1533951493 | C91: 0.4660624478 | D91: 0.1444702677 | E91: 0.1533951493 | F91: 0.02259805246 | G91: 8.91916854e-08 | H91: 0.0002080801902 | I91: 0.6049981806 | J91: 286449754871201 | K91: 93.7178556 | L91: 3.237597828 | M91: 294603104182631 | N91: =W-'[1]carrier profile'!B98+d/2 -> 0.01335658271 | O91: ='carrier profile'!K98 -> 2.459665094e+14
A92: ='[1]carrier profile'!B99 -> 0.004752149714 | B92: 0.1508873836 | C92: 0.4620500318 | D92: 0.1420434166 | E92: 0.1508873836 | F92: 0.02226339905 | G92: 8.754932681e-08 | H92: 0.0002098276406 | I92: 0.604896601 | J92: 2.853895911e+14 | K92: 93.68218492 | L92: 3.237726844 | M92: 2.935429404e+14 | N92: =W-'[1]carrier profile'!B99+d/2 -> 0.01324785029 | O92: ='carrier profile'!K99 -> 2.456527e+14
A93: ='[1]carrier profile'!B100 -> 0.004861553401 | B93: 0.1483848249 | C93: 0.4580128451 | D93: 0.1396222719 | E93: 0.1483848249 | F93: 0.02192874564 | G93: 8.591045043e-08 | H93: 0.0002115493526 | I93: 0.6047926206 | J93: 2.843082217e+14 | K93: 93.64579442 | L93: 3.237858474 | M93: 2.92461571e+14 | N93: =W-'[1]carrier profile'!B100+d/2 -> 0.0131384466 | O93: ='carrier profile'!K100 -> 2.453309806e+14
A94: ='[1]carrier profile'!B101 -> 0.004971601625 | B94: 0.1458884589 | C94: 0.4539518739 | D94: 0.1372077995 | E94: 0.1458884589 | F94: 0.02159409223 | G94: 8.427524221e-08 | H94: 0.0002132453228 | I94: 0.6046861779 | J94: 283205265340550 | K94: 93.6086712 | L94: 3.237992764 | M94: 291358614651980 | N94: =W-'[1]carrier profile'!B101+d/2 -> 0.01302839837 | O94: ='carrier profile'!K101 -> 2.450012051e+14
A95: ='[1]carrier profile'!B102 -> 0.005082267501 | B95: 0.1433992565 | C95: 0.4498681102 | D95: 0.1348009505 | E95: 0.1433992565 | F95: 0.02125943882 | G95: 8.26438903e-08 | H95: 0.0002149155472 | I95: 0.6045772083 | J95: 2.820803244e+14 | K95: 93.57080182 | L95: 3.238129762 | M95: 2.902336737e+14 | N95: =W-'[1]carrier profile'!B102+d/2 -> 0.0129177325 | O95: ='carrier profile'!K102 -> 2.446632241e+14
A96: ='[1]carrier profile'!B103 -> 0.005193523996 | B96: 0.1409181737 | C96: 0.4457625517 | D96: 0.1324026605 | E96: 0.1409181737 | F96: 0.02092478541 | G96: 8.101658519e-08 | H96: 0.0002165600217 | I96: 0.6044656439 | J96: 2.809329844e+14 | K96: 93.53217228 | L96: 3.238269521 | M96: 2.890863337e+14 | N96: =W-'[1]carrier profile'!B103+d/2 -> 0.012806476 | O96: ='carrier profile'!K103 -> 2.443168844e+14
A97: ='[1]carrier profile'!B104 -> 0.005305343931 | B97: 0.1384461504 | C97: 0.4416362013 | D97: 0.1300138492 | E97: 0.1384461504 | F97: 0.020590132 | G97: 7.939351976e-08 | H97: 0.0002181787422 | I97: 0.6043514137 | J97: 2.797628131e+14 | K97: 93.49276798 | L97: 3.238412093 | M97: 2.879161624e+14 | N97: =W-'[1]carrier profile'!B104+d/2 -> 0.01269465607 | O97: ='carrier profile'!K104 -> 2.439620292e+14
A98: ='[1]carrier profile'!B105 -> 0.00541769999 | B98: 0.1359841102 | C98: 0.437490067 | D98: 0.1276354201 | E98: 0.1359841102 | F98: 0.02025547859 | G98: 7.777488937e-08 | H98: 0.0002197717042 | I98: 0.6042344432 | J98: 278569358923958 | K98: 93.45257366 | L98: 3.238557534 | M98: 286722708235388 | N98: =W-'[1]carrier profile'!B105+d/2 -> 0.01258230001 | O98: ='carrier profile'!K105 -> 2.435984981e+14
A99: ='[1]carrier profile'!B106 -> 0.005530564725 | B99: 0.1335329598 | C99: 0.4333251615 | D99: 0.1252682594 | E99: 0.1335329598 | F99: 0.01992082518 | G99: 7.616089199e-08 | H99: 0.0002213389031 | I99: 0.6041146541 | J99: 277352150136405 | K99: 93.41157341 | L99: 3.238705902 | M99: 285505499447835 | N99: =W-'[1]carrier profile'!B106+d/2 -> 0.01246943527 | O99: ='carrier profile'!K106 -> 2.432261266e+14
A100: ='[1]carrier profile'!B107 -> 0.005643910567 | B100: 0.1310935886 | C100: 0.4291425025 | D100: 0.1229132358 | E100: 0.1310935886 | F100: 0.01958617177 | G100: 7.45517283e-08 | H100: 0.000222880334 | I100: 0.603991964 | J100: 276110693405469 | K100: 93.36975058 | L100: 3.238857257 | M100: 284264042716899 | N100: =W-'[1]carrier profile'!B107+d/2 -> 0.01235608943 | O100: ='carrier profile'!K107 -> 2.428447467e+14
A101: ='[1]carrier profile'!B108 -> 0.005757709825 | B101: 0.1286668678 | C101: 0.4249431116 | D101: 0.1205712001 | E101: 0.1286668678 | F101: 0.01925151836 | G101: 7.294760175e-08 | H101: 0.0002243959918 | I101: 0.6038662864 | J101: 274844472401020 | K101: 93.32708776 | L101: 3.239011663 | M101: 282997821712450 | N101: =W-'[1]carrier profile'!B108+d/2 -> 0.01224229017 | O101: ='carrier profile'!K108 -> 2.424541864e+14
A102: ='[1]carrier profile'!B109 -> 0.005871934701 | B102: 0.1262536506 | C102: 0.4207280146 | D102: 0.1182429846 | E102: 0.1262536506 | F102: 0.01891686495 | G102: 7.134871875e-08 | H102: 0.0002258858715 | I102: 0.6037375299 | J102: 2.735529463e+14 | K102: 93.28356672 | L102: 3.239169187 | M102: 2.817062956e+14 | N102: =W-'[1]carrier profile'!B109+d/2 -> 0.0121280653 | O102: ='carrier profile'!K109 -> 2.4205427e+14
A103: ='[1]carrier profile'!B110 -> 0.00598655729 | B103: 0.1238547708 | C103: 0.4164982414 | D103: 0.1159294026 | E103: 0.1238547708 | F103: 0.01858221154 | G103: 6.975528876e-08 | H103: 0.0002273499674 | I103: 0.6036055986 | J103: 272235548020776 | K103: 93.23916835 | L103: 3.239329897 | M103: 280388897332206 | N103: =W-'[1]carrier profile'!B110+d/2 -> 0.01201344271 | O103: ='carrier profile'!K110 -> 2.416448176e+14
A104: ='[1]carrier profile'!B111 -> 0.006101549593 | B104: 0.1214710433 | C104: 0.412254825 | D104: 0.113631248 | E104: 0.1214710433 | F104: 0.01824755813 | G104: 6.816752446e-08 | H104: 0.000228788274 | I104: 0.6034703908 | J104: 2.708916827e+14 | K104: 93.19387262 | L104: 3.239493867 | M104: 2.79045032e+14 | N104: =W-'[1]carrier profile'!B111+d/2 -> 0.01189845041 | O104: ='carrier profile'!K111 -> 2.412256455e+14
A105: ='[1]carrier profile'!B112 -> 0.006216883517 | B105: 0.1191032632 | C105: 0.4079988023 | D105: 0.1113492949 | E105: 0.1191032632 | F105: 0.01791290472 | G105: 6.658564184e-08 | H105: 0.0002302007853 | I105: 0.6033317996 | J105: 269520725295442 | K105: 93.1476585 | L105: 3.239661173 | M105: 277674074606872 | N105: =W-'[1]carrier profile'!B112+d/2 -> 0.01178311648 | O105: ='carrier profile'!K112 -> 2.407965661e+14
A106: ='[1]carrier profile'!B113 -> 0.006332530889 | B106: 0.1167522053 | C106: 0.4037312127 | D106: 0.1090842973 | E106: 0.1167522053 | F106: 0.01757825131 | G106: 6.500986041e-08 | H106: 0.0002315874953 | I106: 0.6031897116 | J106: 2.68122019e+14 | K106: 93.10050387 | L106: 3.239831896 | M106: 2.762753683e+14 | N106: =W-'[1]carrier profile'!B113+d/2 -> 0.01166746911 | O106: ='carrier profile'!K113 -> 2.403573876e+14
A107: ='[1]carrier profile'!B114 -> 0.006448463458 | B107: 0.1144186239 | C107: 0.399453099 | D107: 0.1068369885 | E107: 0.1144186239 | F107: 0.0172435979 | G107: 6.344040338e-08 | H107: 0.0002329483976 | I107: 0.6030440071 | J107: 266694872529960 | K107: 93.05238552 | L107: 3.24000612 | M107: 274848221841390 | N107: =W-'[1]carrier profile'!B114+d/2 -> 0.01155153654 | O107: ='carrier profile'!K114 -> 2.399079143e+14
A108: ='[1]carrier profile'!B115 -> 0.006564652902 | B108: 0.1121032527 | C108: 0.395165506 | D108: 0.104608081 | E108: 0.1121032527 | F108: 0.01690894449 | G108: 6.187749777e-08 | H108: 0.0002342834857 | I108: 0.602894559 | J108: 2.652385577e+14 | K108: 93.00327895 | L108: 3.240183934 | M108: 2.73391907e+14 | N108: =W-'[1]carrier profile'!B115+d/2 -> 0.0114353471 | O108: ='carrier profile'!K115 -> 2.394479465e+14
A109: ='[1]carrier profile'!B116 -> 0.006681070839 | B109: 0.1098068037 | C109: 0.3908694813 | D109: 0.1023982658 | E109: 0.1098068037 | F109: 0.01657429108 | G109: 6.032137471e-08 | H109: 0.0002355927527 | I109: 0.6027412328 | J109: 2.637523066e+14 | K109: 92.9531584 | L109: 3.240365432 | M109: 2.719056559e+14 | N109: =W-'[1]carrier profile'!B116+d/2 -> 0.01131892916 | O109: ='carrier profile'!K116 -> 2.389772803e+14
A110: ='[1]carrier profile'!B117 -> 0.006797688828 | B110: 0.1075299678 | C110: 0.3865660743 | D110: 0.1002082126 | E110: 0.1075299678 | F110: 0.01623963767 | G110: 5.877226956e-08 | H110: 0.0002368761918 | I110: 0.6025838855 | J110: 262235308869581 | K110: 92.90199666 | L110: 3.240550712 | M110: 270388658181011 | N110: =W-'[1]carrier profile'!B117+d/2 -> 0.01120231117 | O110: ='carrier profile'!K117 -> 2.38495708e+14
A111: ='[1]carrier profile'!B118 -> 0.006914478383 | B111: 0.1052734139 | C111: 0.3822563362 | D111: 0.098038569 | E111: 0.1052734139 | F111: 0.01590498426 | G111: 5.72304222e-08 | H111: 0.0002381337956 | I111: 0.6024223651 | J111: 260686707835915 | K111: 92.84976501 | L111: 3.240739878 | M111: 268840057147345 | N111: =W-'[1]carrier profile'!B118+d/2 -> 0.01108552162 | O111: ='carrier profile'!K118 -> 2.380030177e+14
A112: ='[1]carrier profile'!B119 -> 0.007031410972 | B112: 0.1030377888 | C112: 0.3779413199 | D112: 0.09588996061 | E112: 0.1030377888 | F112: 0.01557033084 | G112: =((Jof/N_i^2)*(J111+p_o)*(J111+n_o)+q*W*K112*(J111+$M$12)+(Jo_pass/N_i^2)*(J111+$M$12+p_o)*(J111+$M$12+n_o))*IF($A$5="lines",(F111-F112),PI()*(F111^2-F112^2)) -> 5.569607726e-08 | H112: 0.0002393655565 | I112: =I111-H112*L112*(F111-F112)/IF($A$5="lines",W,(2*PI()*ABS(F112)*W)) -> 0.6022565099 | J112: =-(p_o+n_o)/2+SQRT((p_o+n_o)^2+4*N_i^2*EXP(I112/kT_q))/2 -> 259105597269262 | K112: 92.79643307 | L112: 3.240933041 | M112: 267258946580692 | N112: =W-'[1]carrier profile'!B119+d/2 -> 0.01096858903 | O112: ='carrier profile'!K119 -> 2.374989937e+14
A113: ='[1]carrier profile'!B120 -> 0.007148458031 | B113: 0.1008237169 | C113: 0.3736220795 | D113: 0.0937629906 | E113: 0.1008237169 | F113: 0.01523567743 | G113: 5.416948438e-08 | H113: =IF(H112+suns*Jph*IF($A$5="lines",(F112-F113),PI()*(F112^2-F113^2))-G113>0,H112+suns*Jph*IF($A$5="lines",(F112-F113),PI()*(F112^2-F113^2))-G113,0) -> 0.000240571467 | I113: 0.6020861473 | J113: 257491017153011 | K113: 92.74196871 | L113: 3.241130318 | M113: 265644366464441 | N113: =W-'[1]carrier profile'!B120+d/2 -> 0.01085154197 | O113: ='carrier profile'!K120 -> 2.36983416e+14
A114: ='[1]carrier profile'!B121 -> 0.007265590967 | B114: 0.09863179995 | C114: 0.3692996701 | D114: 0.09165823954 | E114: 0.09863179995 | F114: 0.01490102402 | G114: 5.26508985e-08 | H114: 0.0002417515189 | I114: 0.6019110933 | J114: 255841949241305 | K114: 92.68633784 | L114: 3.241331831 | M114: 263995298552735 | N114: =W-'[1]carrier profile'!B121+d/2 -> 0.01073440903 | O114: ='carrier profile'!K121 -> 2.36456061e+14
A115: ='[1]carrier profile'!B122 -> 0.007382781166 | B115: 0.09646261715 | C115: 0.3649751475 | D115: 0.08957626519 | E115: 0.09646261715 | F115: 0.01456637061 | G115: 5.11405802e-08 | H115: 0.000242905704 | I115: 0.6017311512 | J115: 2.541573121e+14 | K115: 92.62950433 | L115: 3.241537712 | M115: 2.623106614e+14 | N115: =W-'[1]carrier profile'!B122+d/2 -> 0.01061721883 | O115: ='carrier profile'!K122 -> 2.35916701e+14
A116: ='[1]carrier profile'!B123 -> 0.0075 | B116: 0.09431672454 | C116: 0.3606495683 | D116: 0.08751760234 | E116: 0.09431672454 | N116: =W-'[1]carrier profile'!B123+d/2 -> 0.0105 | O116: ='carrier profile'!K123 -> 2.353651047e+14
A117: ='[1]carrier profile'!B124 -> 0.007617218834 | B117: 0.09219465504 | C117: 0.3563239891 | D117: 0.0854827626 | E117: 0.09219465504 | N117: =W-'[1]carrier profile'!B124+d/2 -> 0.01038278117 | O117: ='carrier profile'!K124 -> 2.348010369e+14
A118: ='[1]carrier profile'!B125 -> 0.007734409033 | B118: 0.09009691833 | C118: 0.3519994666 | D118: 0.08347223434 | E118: 0.09009691833 | N118: =W-'[1]carrier profile'!B125+d/2 -> 0.01026559097 | O118: ='carrier profile'!K125 -> 2.342242588e+14
A119: ='[1]carrier profile'!B126 -> 0.007851541969 | B119: 0.08802400067 | C119: 0.3476770572 | D119: 0.08148648253 | E119: 0.08802400067 | N119: =W-'[1]carrier profile'!B126+d/2 -> 0.01014845803 | O119: ='carrier profile'!K126 -> 233634528015715
A120: ='[1]carrier profile'!B127 -> 0.007968589028 | B120: 0.08597636485 | C120: 0.3433578167 | D120: 0.07952594864 | E120: 0.08597636485 | N120: =W-'[1]carrier profile'!B127+d/2 -> 0.01003141097 | O120: ='carrier profile'!K127 -> 2.330315989e+14
A121: ='[1]carrier profile'!B128 -> 0.008085521617 | B121: 0.08395445009 | C121: 0.3390428004 | D121: 0.07759105064 | E121: 0.08395445009 | N121: =W-'[1]carrier profile'!B128+d/2 -> 0.009914478383 | O121: ='carrier profile'!K128 -> 2.324152224e+14
A122: ='[1]carrier profile'!B129 -> 0.008202311172 | B122: 0.08195867203 | C122: 0.3347330624 | D122: 0.07568218288 | E122: 0.08195867203 | N122: =W-'[1]carrier profile'!B129+d/2 -> 0.009797688828 | O122: ='carrier profile'!K129 -> 2.317851465e+14
A123: ='[1]carrier profile'!B130 -> 0.008318929161 | B123: 0.07998942264 | C123: 0.3304296554 | D123: 0.07379971613 | E123: 0.07998942264 | N123: =W-'[1]carrier profile'!B130+d/2 -> 0.009681070839 | O123: ='carrier profile'!K130 -> 2.31141116e+14
A124: ='[1]carrier profile'!B131 -> 0.008435347098 | B124: 0.07804707029 | C124: 0.3261336306 | D124: 0.07194399755 | E124: 0.07804707029 | N124: =W-'[1]carrier profile'!B131+d/2 -> 0.009564652902 | O124: ='carrier profile'!K131 -> 2.304828734e+14
A125: ='[1]carrier profile'!B132 -> 0.008551536542 | B125: 0.07613195974 | C125: 0.3218460377 | D125: 0.07011535072 | E125: 0.07613195974 | N125: =W-'[1]carrier profile'!B132+d/2 -> 0.009448463458 | O125: ='carrier profile'!K132 -> 2.298101583e+14
A126: ='[1]carrier profile'!B133 -> 0.008667469111 | B126: 0.07424441215 | C126: 0.3175679239 | D126: 0.06831407571 | E126: 0.07424441215 | N126: =W-'[1]carrier profile'!B133+d/2 -> 0.009332530889 | O126: ='carrier profile'!K133 -> 2.291227085e+14
A127: ='[1]carrier profile'!B134 -> 0.008783116483 | B127: 0.07238472521 | C127: 0.3133003344 | D127: 0.06654044911 | E127: 0.07238472521 | N127: =W-'[1]carrier profile'!B134+d/2 -> 0.009216883517 | O127: ='carrier profile'!K134 -> 2.284202596e+14
A128: ='[1]carrier profile'!B135 -> 0.008898450407 | B128: 0.07055317317 | C128: 0.3090443116 | D128: 0.06479472416 | E128: 0.07055317317 | N128: =W-'[1]carrier profile'!B135+d/2 -> 0.009101549593 | O128: ='carrier profile'!K135 -> 2.277025457e+14
A129: ='[1]carrier profile'!B136 -> 0.00901344271 | B129: 0.06875000699 | C129: 0.3048008953 | D129: 0.06307713084 | E129: 0.06875000699 | N129: =W-'[1]carrier profile'!B136+d/2 -> 0.00898655729 | O129: ='carrier profile'!K136 -> 2.269692996e+14
A130: ='[1]carrier profile'!B137 -> 0.009128065299 | B130: 0.06697545442 | C130: 0.300571122 | D130: 0.06138787601 | E130: 0.06697545442 | N130: =W-'[1]carrier profile'!B137+d/2 -> 0.008871934701 | O130: ='carrier profile'!K137 -> 2.262202535e+14
A131: ='[1]carrier profile'!B138 -> 0.009242290175 | B131: 0.06522972023 | C131: 0.2963560251 | D131: 0.05972714359 | E131: 0.06522972023 | N131: =W-'[1]carrier profile'!B138+d/2 -> 0.008757709825 | O131: ='carrier profile'!K138 -> 2.254551389e+14
A132: ='[1]carrier profile'!B139 -> 0.009356089433 | B132: 0.0635129863 | C132: 0.2921566341 | D132: 0.0580950947 | E132: 0.0635129863 | N132: =W-'[1]carrier profile'!B139+d/2 -> 0.008643910567 | O132: ='carrier profile'!K139 -> 2.246736876e+14
A133: ='[1]carrier profile'!B140 -> 0.009469435275 | B133: 0.06182541186 | C133: 0.2879739751 | D133: 0.0564918679 | E133: 0.06182541186 | N133: =W-'[1]carrier profile'!B140+d/2 -> 0.008530564725 | O133: ='carrier profile'!K140 -> 2.238756318e+14
A134: ='[1]carrier profile'!B141 -> 0.00958230001 | B134: 0.06016713372 | C134: 0.2838090697 | D134: 0.05491757936 | E134: 0.06016713372 | N134: =W-'[1]carrier profile'!B141+d/2 -> 0.00841769999 | O134: ='carrier profile'!K141 -> 2.230607049e+14
A135: ='[1]carrier profile'!B142 -> 0.009694656069 | B135: 0.05853826645 | C135: 0.2796629354 | D135: 0.05337232317 | E135: 0.05853826645 | N135: =W-'[1]carrier profile'!B142+d/2 -> 0.008305343931 | O135: ='carrier profile'!K142 -> 2.222286421e+14
A136: ='[1]carrier profile'!B143 -> 0.009806476004 | B136: 0.05693890269 | C136: 0.2755365849 | D136: 0.05185617152 | E136: 0.05693890269 | N136: =W-'[1]carrier profile'!B143+d/2 -> 0.008193523996 | O136: ='carrier profile'!K143 -> 2.213791811e+14
A137: ='[1]carrier profile'!B144 -> 0.009917732499 | B137: 0.05536911341 | C137: 0.2714310264 | D137: 0.05036917506 | E137: 0.05536911341 | N137: =W-'[1]carrier profile'!B144+d/2 -> 0.008082267501 | O137: ='carrier profile'!K144 -> 2.205120626e+14
A138: ='[1]carrier profile'!B145 -> 0.01002839837 | B138: 0.05382894818 | C138: 0.2673472627 | D138: 0.04891136313 | E138: 0.05382894818 | N138: =W-'[1]carrier profile'!B145+d/2 -> 0.007971601625 | O138: ='carrier profile'!K145 -> 2.196270315e+14
A139: ='[1]carrier profile'!B146 -> 0.0101384466 | B139: 0.05231843552 | C139: 0.2632862915 | D139: 0.04748274414 | E139: 0.05231843552 | N139: =W-'[1]carrier profile'!B146+d/2 -> 0.007861553401 | O139: ='carrier profile'!K146 -> 2.187238371e+14
A140: ='[1]carrier profile'!B147 -> 0.01024785029 | B140: 0.05083758321 | C140: 0.2592491048 | D140: 0.04608330586 | E140: 0.05083758321 | N140: =W-'[1]carrier profile'!B147+d/2 -> 0.007752149714 | O140: ='carrier profile'!K147 -> 2.178022348e+14
A141: ='[1]carrier profile'!B148 -> 0.01035658271 | B141: 0.04938637864 | C141: 0.2552366889 | D141: 0.0447130158 | E141: 0.04938637864 | N141: =W-'[1]carrier profile'!B148+d/2 -> 0.007643417288 | O141: ='carrier profile'!K148 -> 2.168619864e+14
A142: ='[1]carrier profile'!B149 -> 0.01046461731 | B142: 0.04796478921 | C142: 0.2512500238 | D142: 0.04337182158 | E142: 0.04796478921 | N142: =W-'[1]carrier profile'!B149+d/2 -> 0.007535382685 | O142: ='carrier profile'!K149 -> 2.159028618e+14
A143: ='[1]carrier profile'!B150 -> 0.0105719277 | B143: 0.04657276268 | C143: =IF((d+PI()*(W-$A143))/p<1,(d+PI()*(W-$A143))/p,1) -> 0.2472900835 | D143: =IF((PI()*(d/2)^2+2*PI()*(W-$A143)^2+(PI())^2*d/2*(W-$A143))/Ao<1,(PI()*(d/2)^2+2*PI()*(W-$A143)^2+(PI())^2*d/2*(W-$A143))/Ao,1) -> 0.04205965132 | E143: =IF((d^2+2*PI()*(W-$A143)^2+2*PI()*d*(W-$A143))/Ao<1,(d^2+2*PI()*(W-$A143)^2+2*PI()*d*(W-$A143))/Ao,1) -> 0.04657276268 | N143: =W-'[1]carrier profile'!B150+d/2 -> 0.007428072297 | O143: ='carrier profile'!K150 -> 2.149246393e+14
A144: ='[1]carrier profile'!B151 -> 0.01067848766 | B144: =IF($A$5="lines",C144,IF($A$5="circles",D144,E144)) -> 0.04521022757 | C144: 0.2433578354 | D144: 0.04077641404 | E144: 0.04521022757 | N144: =W-'[1]carrier profile'!B151+d/2 -> 0.007321512339 | O144: ='carrier profile'!K151 -> 2.139271078e+14
A145: ='[1]carrier profile'!B152 -> 0.01078427116 | B145: 0.04387709362 | C145: 0.23945424 | D145: 0.03952200012 | E145: 0.04387709362 | N145: =W-'[1]carrier profile'!B152+d/2 -> 0.007215728841 | O145: ='carrier profile'!K152 -> 2.129100674e+14
A146: ='[1]carrier profile'!B153 -> 0.01088925235 | B146: 0.04257325219 | C146: 0.2355802509 | D146: 0.03829628167 | E146: 0.04257325219 | N146: =W-'[1]carrier profile'!B153+d/2 -> 0.007110747645 | O146: ='carrier profile'!K153 -> 2.118733309e+14
A147: ='[1]carrier profile'!B154 -> 0.0109934056 | B147: 0.04129857672 | C147: 0.2317368146 | D147: 0.03709911306 | E147: 0.04129857672 | N147: =W-'[1]carrier profile'!B154+d/2 -> 0.007006594396 | O147: ='carrier profile'!K154 -> 2.108167257e+14
A148: ='[1]carrier profile'!B155 -> 0.01109670546 | B148: 0.0400529232 | C148: 0.2279248698 | D148: 0.03593033134 | E148: 0.0400529232 | N148: =W-'[1]carrier profile'!B155+d/2 -> 0.006903294538 | O148: ='carrier profile'!K155 -> 2.097400949e+14
A149: ='[1]carrier profile'!B156 -> 0.0111991267 | B149: 0.03883613066 | C149: 0.2241453478 | D149: 0.03478975675 | E149: 0.03883613066 | N149: =W-'[1]carrier profile'!B156+d/2 -> 0.006800873305 | O149: ='carrier profile'!K156 -> 2.086432991e+14
A150: ='[1]carrier profile'!B157 -> 0.01130064428 | B150: 0.03764802164 | C150: 0.2203991719 | D150: 0.03367719322 | E150: 0.03764802164 | N150: =W-'[1]carrier profile'!B157+d/2 -> 0.006699355717 | O150: ='carrier profile'!K157 -> 2.075262184e+14
A151: ='[1]carrier profile'!B158 -> 0.01140123343 | B151: 0.0364884027 | C151: 0.2166872573 | D151: 0.03259242887 | E151: 0.0364884027 | N151: =W-'[1]carrier profile'!B158+d/2 -> 0.006598766574 | O151: ='carrier profile'!K158 -> 2.063887543e+14
A152: ='[1]carrier profile'!B159 -> 0.01150086955 | B152: 0.03535706496 | C152: 0.2130105106 | D152: 0.03153523652 | E152: 0.03535706496 | N152: =W-'[1]carrier profile'!B159+d/2 -> 0.006499130448 | O152: ='carrier profile'!K159 -> 2.052308313e+14
A153: ='[1]carrier profile'!B160 -> 0.01159952832 | B153: 0.03425378463 | C153: 0.2093698302 | D153: 0.03050537425 | E153: 0.03425378463 | N153: =W-'[1]carrier profile'!B160+d/2 -> 0.006400471679 | O153: ='carrier profile'!K160 -> 2.040523994e+14
A154: ='[1]carrier profile'!B161 -> 0.01169718563 | B154: 0.03317832352 | C154: 0.2057661052 | D154: 0.02950258597 | E154: 0.03317832352 | N154: =W-'[1]carrier profile'!B161+d/2 -> 0.006302814368 | O154: ='carrier profile'!K161 -> 2.028534362e+14
A155: ='[1]carrier profile'!B162 -> 0.01179381763 | B155: 0.03213042964 | C155: 0.2022002161 | D155: 0.02852660192 | E155: 0.03213042964 | N155: =W-'[1]carrier profile'!B162+d/2 -> 0.00620618237 | O155: ='carrier profile'!K162 -> 2.016339493e+14
A156: ='[1]carrier profile'!B163 -> 0.01188940071 | B156: 0.03110983773 | C156: 0.1986730341 | D156: 0.02757713928 | E156: 0.03110983773 | N156: =W-'[1]carrier profile'!B163+d/2 -> 0.006110599293 | O156: ='carrier profile'!K163 -> 2.003939787e+14
A157: ='[1]carrier profile'!B164 -> 0.01198391151 | B157: 0.03011626987 | C157: 0.1951854206 | D157: 0.02665390273 | E157: 0.03011626987 | N157: =W-'[1]carrier profile'!B164+d/2 -> 0.006016088486 | O157: ='carrier profile'!K164 -> 1.991335993e+14
A158: ='[1]carrier profile'!B165 -> 0.01207732696 | B158: 0.02914943599 | C158: 0.1917382277 | D158: 0.02575658506 | E158: 0.02914943599 | N158: =W-'[1]carrier profile'!B165+d/2 -> 0.005922673036 | O158: ='carrier profile'!K165 -> 1.978529237e+14
A159: ='[1]carrier profile'!B166 -> 0.01216962424 | B159: 0.02820903457 | C159: 0.1883322975 | D159: 0.02488486773 | E159: 0.02820903457 | N159: =W-'[1]carrier profile'!B166+d/2 -> 0.005830375764 | O159: ='carrier profile'!K166 -> 1.965521051e+14
A160: ='[1]carrier profile'!B167 -> 0.01226078078 | B160: 0.02729475315 | C160: 0.1849684621 | D160: 0.02403842151 | E160: 0.02729475315 | N160: =W-'[1]carrier profile'!B167+d/2 -> 0.005739219215 | O160: ='carrier profile'!K167 -> 1.952313398e+14
A161: ='[1]carrier profile'!B168 -> 0.01235077434 | B161: 0.02640626896 | C161: 0.1816475431 | D161: 0.02321690708 | E161: 0.02640626896 | N161: =W-'[1]carrier profile'!B168+d/2 -> 0.00564922566 | O161: ='carrier profile'!K168 -> 1.938908706e+14
A162: ='[1]carrier profile'!B169 -> 0.01243958292 | B162: 0.02554324956 | C162: 0.1783703518 | D162: 0.02241997562 | E162: 0.02554324956 | N162: =W-'[1]carrier profile'!B169+d/2 -> 0.005560417081 | O162: ='carrier profile'!K169 -> 1.925309898e+14
A163: ='[1]carrier profile'!B170 -> 0.01252718483 | B163: 0.02470535341 | C163: 0.1751376888 | D163: 0.02164726946 | E163: 0.02470535341 | N163: =W-'[1]carrier profile'!B170+d/2 -> 0.005472815174 | O163: ='carrier profile'!K170 -> 1.911520422e+14
A164: ='[1]carrier profile'!B171 -> 0.01261355866 | B164: 0.02389223056 | C164: 0.1719503437 | D164: 0.0208984227 | E164: 0.02389223056 | N164: =W-'[1]carrier profile'!B171+d/2 -> 0.005386441338 | O164: ='carrier profile'!K171 -> 1.897544286e+14
A165: ='[1]carrier profile'!B172 -> 0.01269868333 | B165: 0.0231035232 | C165: 0.1688090953 | D165: 0.02017306185 | E165: 0.0231035232 | N165: =W-'[1]carrier profile'!B172+d/2 -> 0.005301316674 | O165: ='carrier profile'!K172 -> 1.883386091e+14
A166: ='[1]carrier profile'!B173 -> 0.01278253802 | B166: 0.02233886635 | C166: 0.1657147108 | D166: 0.01947080645 | E166: 0.02233886635 | N166: =W-'[1]carrier profile'!B173+d/2 -> 0.005217461976 | O166: ='carrier profile'!K173 -> 1.869051061e+14
A167: ='[1]carrier profile'!B174 -> 0.01286510227 | B167: 0.02159788846 | C167: 0.1626679462 | D167: 0.01879126971 | E167: 0.02159788846 | N167: =W-'[1]carrier profile'!B174+d/2 -> 0.005134897729 | O167: ='carrier profile'!K174 -> 1.854545083e+14
A168: ='[1]carrier profile'!B175 -> 0.0129463559 | B168: 0.02088021207 | C168: 0.1596695458 | D168: 0.01813405915 | E168: 0.02088021207 | N168: =W-'[1]carrier profile'!B175+d/2 -> 0.005053644101 | O168: ='carrier profile'!K175 -> 1.839874739e+14
A169: ='[1]carrier profile'!B176 -> 0.01302627906 | B169: 0.02018545443 | C169: 0.156720242 | D169: 0.01749877726 | E169: 0.02018545443 | N169: =W-'[1]carrier profile'!B176+d/2 -> 0.004973720943 | O169: ='carrier profile'!K176 -> 1.825047336e+14
A170: ='[1]carrier profile'!B177 -> 0.01310485222 | B170: 0.01951322814 | C170: 0.1538207553 | D170: 0.01688502212 | E170: 0.01951322814 | N170: =W-'[1]carrier profile'!B177+d/2 -> 0.004895147778 | O170: ='carrier profile'!K177 -> 1.810070947e+14
A171: ='[1]carrier profile'!B178 -> 0.0131820562 | B171: 0.01886314182 | C171: 0.150971794 | D171: 0.01629238804 | E171: 0.01886314182 | N171: =W-'[1]carrier profile'!B178+d/2 -> 0.004817943801 | O171: ='carrier profile'!K178 -> 1.794954442e+14
A172: ='[1]carrier profile'!B179 -> 0.01325787213 | B172: 0.0182348007 | C172: 0.1481740541 | D172: 0.01572046622 | E172: 0.0182348007 | N172: =W-'[1]carrier profile'!B179+d/2 -> 0.004742127871 | O172: ='carrier profile'!K179 -> 177970751722786
A173: ='[1]carrier profile'!B180 -> 0.01333228149 | B173: 0.01762780728 | C173: 0.145428219 | D173: 0.0151688454 | E173: 0.01762780728 | N173: =W-'[1]carrier profile'!B180+d/2 -> 0.004667718509 | O173: ='carrier profile'!K180 -> 1.764340731e+14
A174: ='[1]carrier profile'!B181 -> 0.01340526611 | B174: 0.01704176198 | C174: 0.1427349595 | D174: 0.01463711245 | E174: 0.01704176198 | N174: =W-'[1]carrier profile'!B181+d/2 -> 0.004594733893 | O174: ='carrier profile'!K181 -> 1.748865532e+14
A175: ='[1]carrier profile'!B182 -> 0.01347680815 | B175: 0.01647626375 | C175: 0.1400949335 | D175: 0.01412485307 | E175: 0.01647626375 | N175: =W-'[1]carrier profile'!B182+d/2 -> 0.004523191851 | O175: ='carrier profile'!K182 -> 1.733294286e+14
A176: ='[1]carrier profile'!B183 -> 0.01354689014 | B176: 0.01593091071 | C176: 0.1375087859 | D176: 0.01363165236 | E176: 0.01593091071 | N176: =W-'[1]carrier profile'!B183+d/2 -> 0.00445310986 | O176: ='carrier profile'!K183 -> 1.717640307e+14
A177: ='[1]carrier profile'!B184 -> 0.01361549496 | B177: 0.01540530077 | C177: 0.1349771486 | D177: 0.0131570955 | E177: 0.01540530077 | N177: =W-'[1]carrier profile'!B184+d/2 -> 0.004384505041 | O177: ='carrier profile'!K184 -> 1.701917871e+14
A178: ='[1]carrier profile'!B185 -> 0.01368260585 | B178: 0.01489903227 | C178: 0.1325006398 | D178: 0.01270076835 | E178: 0.01489903227 | N178: =W-'[1]carrier profile'!B185+d/2 -> 0.004317394153 | O178: ='carrier profile'!K185 -> 1.686142246e+14
A179: ='[1]carrier profile'!B186 -> 0.01374820641 | B179: 0.01441170457 | C179: 0.1300798647 | D179: 0.01226225807 | E179: 0.01441170457 | N179: =W-'[1]carrier profile'!B186+d/2 -> 0.004251793589 | O179: ='carrier profile'!K186 -> 1.6703297e+14
A180: ='[1]carrier profile'!B187 -> 0.01381228062 | B180: 0.01394291867 | C180: 0.1277154146 | D180: 0.01184115375 | E180: 0.01394291867 | N180: =W-'[1]carrier profile'!B187+d/2 -> 0.004187719375 | O180: ='carrier profile'!K187 -> 1.654497519e+14
A181: ='[1]carrier profile'!B188 -> 0.01387481284 | B181: 0.01349227783 | C181: 0.125407867 | D181: 0.01143704697 | E181: 0.01349227783 | N181: =W-'[1]carrier profile'!B188+d/2 -> 0.004125187164 | O181: ='carrier profile'!K188 -> 1.638664009e+14
A182: ='[1]carrier profile'!B189 -> 0.01393578777 | B182: 0.01305938813 | C182: 0.1231577858 | D182: 0.01104953248 | E182: 0.01305938813 | N182: =W-'[1]carrier profile'!B189+d/2 -> 0.004064212231 | O182: ='carrier profile'!K189 -> 1.622848503e+14
A183: ='[1]carrier profile'!B190 -> 0.01399519053 | B183: 0.0126438591 | C183: 0.1209657205 | D183: 0.01067820871 | E183: 0.0126438591 | N183: =W-'[1]carrier profile'!B190+d/2 -> 0.004004809472 | O183: ='carrier profile'!K190 -> 1.607071351e+14
A184: ='[1]carrier profile'!B191 -> 0.0140530066 | B184: 0.01224530427 | C184: 0.1188322066 | D184: 0.01032267838 | E184: 0.01224530427 | N184: =W-'[1]carrier profile'!B191+d/2 -> 0.003946993397 | O184: ='carrier profile'!K191 -> 1.591353918e+14
A185: ='[1]carrier profile'!B192 -> 0.01410922187 | B185: 0.01186334176 | C185: 0.1167577653 | D185: 0.009982549121 | E185: 0.01186334176 | N185: =W-'[1]carrier profile'!B192+d/2 -> 0.003890778131 | O185: ='carrier profile'!K192 -> 1.575718558e+14
A186: ='[1]carrier profile'!B193 -> 0.01416382259 | B186: 0.01149759483 | C186: 0.1147429034 | D186: 0.009657433957 | E186: 0.01149759483 | N186: =W-'[1]carrier profile'!B193+d/2 -> 0.003836177407 | O186: ='carrier profile'!K193 -> 1.560188597e+14
A187: ='[1]carrier profile'!B194 -> 0.01421679544 | B187: 0.01114769243 | C187: 0.1127881131 | D187: 0.009346951922 | E187: 0.01114769243 | N187: =W-'[1]carrier profile'!B194+d/2 -> 0.003783204561 | O187: ='carrier profile'!K194 -> 1.544788296e+14
A188: ='[1]carrier profile'!B195 -> 0.01426812746 | B188: 0.01081326976 | C188: 0.1108938719 | D188: 0.009050728577 | E188: 0.01081326976 | N188: =W-'[1]carrier profile'!B195+d/2 -> 0.003731872536 | O188: ='carrier profile'!K195 -> 1.529542813e+14
A189: ='[1]carrier profile'!B196 -> 0.01431780613 | B189: 0.01049396877 | C189: 0.1090606426 | D189: 0.008768396546 | E189: 0.01049396877 | N189: =W-'[1]carrier profile'!B196+d/2 -> 0.00368219387 | O189: ='carrier profile'!K196 -> 1.514478154e+14
A190: ='[1]carrier profile'!B197 -> 0.0143658193 | B190: 0.0101894387 | C190: 0.107288873 | D190: 0.008499596035 | E190: 0.0101894387 | N190: =W-'[1]carrier profile'!B197+d/2 -> 0.003634180699 | O190: ='carrier profile'!K197 -> 1.499621112e+14
A191: ='[1]carrier profile'!B198 -> 0.01441215525 | B191: 0.009899336568 | C191: 0.1055789958 | D191: 0.008243975338 | E191: 0.009899336568 | N191: =W-'[1]carrier profile'!B198+d/2 -> 0.003587844753 | O191: ='carrier profile'!K198 -> 148499920451192
A192: ='[1]carrier profile'!B199 -> 0.01445680265 | B192: 0.009623327679 | C192: 0.1039314289 | D192: 0.008001191335 | E192: 0.009623327679 | N192: =W-'[1]carrier profile'!B199+d/2 -> 0.003543197351 | O192: ='carrier profile'!K199 -> 1.470640593e+14
A193: ='[1]carrier profile'!B200 -> 0.0144997506 | B193: 0.009361086091 | C193: 0.1023465746 | D193: 0.007770909967 | E193: 0.009361086091 | N193: =W-'[1]carrier profile'!B200+d/2 -> 0.003500249398 | O193: ='carrier profile'!K200 -> 1.456574e+14
A194: ='[1]carrier profile'!B201 -> 0.01454098861 | B194: 0.009112295081 | C194: 0.1008248202 | D194: 0.007552806703 | E194: 0.009112295081 | N194: =W-'[1]carrier profile'!B201+d/2 -> 0.003459011388 | O194: ='carrier profile'!K201 -> 1.442828612e+14
A195: ='[1]carrier profile'!B202 -> 0.01458050661 | B195: 0.008876647595 | C195: 0.0993665373 | D195: 0.007346566994 | E195: 0.008876647595 | N195: =W-'[1]carrier profile'!B202+d/2 -> 0.003419493393 | O195: ='carrier profile'!K202 -> 1.429433975e+14
A196: ='[1]carrier profile'!B203 -> 0.01461829493 | B196: 0.008653846685 | C196: 0.09797208226 | D196: 0.007151886708 | E196: 0.008653846685 | N196: =W-'[1]carrier profile'!B203+d/2 -> 0.003381705068 | O196: ='carrier profile'!K203 -> 1.416419885e+14
A197: ='[1]carrier profile'!B204 -> 0.01465434436 | B197: 0.008443605925 | C197: 0.09664179569 | D197: 0.006968472547 | E197: 0.008443605925 | N197: =W-'[1]carrier profile'!B204+d/2 -> 0.003345655644 | O197: ='carrier profile'!K204 -> 1.403816262e+14
A198: ='[1]carrier profile'!B205 -> 0.01468864607 | B198: 0.008245649813 | C198: 0.09537600254 | D198: 0.006796042458 | E198: 0.008245649813 | N198: =W-'[1]carrier profile'!B205+d/2 -> 0.003311353926 | O198: ='carrier profile'!K205 -> 1.391653023e+14
A199: ='[1]carrier profile'!B206 -> 0.0147211917 | B199: 0.008059714161 | C199: 0.09417501205 | D199: 0.006634326017 | E199: 0.008059714161 | N199: =W-'[1]carrier profile'!B206+d/2 -> 0.003278808295 | O199: ='carrier profile'!K206 -> 1.379959946e+14
A200: ='[1]carrier profile'!B207 -> 0.0147519733 | B200: 0.007885546464 | C200: 0.0930391176 | D200: 0.006483064802 | E200: 0.007885546464 | N200: =W-'[1]carrier profile'!B207+d/2 -> 0.003248026701 | O200: ='carrier profile'!K207 -> 1.368766528e+14
... 15 more rows

Sheet Injection dependence
A1: Injection dependent effective lifetime and Illumination-Voc curves | K1: Surface saturation currents | M1: Results | O1: llifetime extrapolation
K2: Jof | L2: Job | M2: Jo (2-side averaged) | O2: to minus doping | S2: for plotting only
K3: =Jof -> 4e-14 | L3: =Job -> 1e-12 | M3: =0.5*q*N_i*N_i*W*$J$8 ->  | O3: =1/($K$8-(p_o+n_o)*$J$8) ->  | S3: Jph_1sun | T3: Voc_1sun | U3: N_1sun | V3: T_eff1sun | W3: 1/tau 1sun
A4: MinSuns | B4: 0.0001 | C4: Specify minimum illumination intensity | K4: SRH carrier lifetimes | M4: ideal
A5: MaxSuns | B5: 400 | C5: enter maximum illumination intensity | K5: tno | L5: tpo | M5: efficiency | N5: FF(ideal) | O5: Voc | S5: =VLOOKUP(1,A11:E110, 2) -> 0.03658953596 | T5: =VLOOKUP(1,A11:E110, 5) -> 0.6651212735 | U5: =VLOOKUP(1, A11:D110, 4) -> 1.407598532e+15 | V5: =VLOOKUP(1, A11:D110, 3) -> 1.942395759e-05 | W5: =1/V5 -> 51482.81421
A6: NumPnts | B6: 50 | C6: choose the number of points to be calculated | K6: =tno -> 9.090909091e+11 | L6: =tpo -> 9.090909091e+11 | M6: =MAX(L11:L110) -> 0.02207149729 | N6: =M6/(Jph*Voc) -> 0.9749541365 | O6: =Voc -> 0.5818754997
J7: Slope | K7: Intercept
A8: (Suns) | J8: =SLOPE(I11:I110,D11:D110) ->  | K8: =INTERCEPT(I11:I110,D11:D110) -> 
A9: StartPos | B9: Jph | C9: TauEff | D9: delta n | E9: Voc | F9: Voc_implied | G9: 1/tau | H9: 1/tau-1/tau_Auger | J9: Fit | K9: 1-sun IV | L9: "power"
N10: manual fit
A11: 0.000135531798 | B11: 5.422032378e-06 | C11: 1.828022682e-05 | D11: 2.322398013e+11 | E11: 0.4451677013 | F11: 0.4400499666 | G11: =1/C11 -> 54703.91642 | H11: =G11-(3E-27*D11^0.8) -> 54703.91642 | I11: =IF(H11<H12,'Injection dependence'!H11,"") ->  | J11: =K$8+D11*J$8 ->  | K11: =IF(B11=0, ,Jph/suns-B11) -> 0.03890066361 | L11: =K11*E11 -> 0.017317319 | N11: Jo(eff) | O11: ideality factor | Q11: =$N$12*EXP(E11/$O$12/kT_q) -> 6.022925042e-06 | U11: =kT_q -> 0.025851
A12: 0.0001836886827 | B12: 7.34857797e-06 | C12: 1.8280319e-05 | D12: 3.147565841e+11 | E12: 0.4530267726 | F12: 0.4479096366 | G12: =1/C12 -> 54703.64057 | H12: =G12-((p_o+n_o+D12)*(1.8E-24*n_o^0.65+6E-25*p_o^0.65+3E-27*D12^0.8+0.0000000000000095)) -> 54620.50336 | I12: =IF(H12<H13,'Injection dependence'!H12,"") ->  | J12: =K$8+D12*J$8 ->  | K12: 0.03889873707 | L12: =K12*E12 -> 0.01762216931 | N12: 2e-13 | O12: 1 | Q12: 8.16279993e-06
A13: 0.0002489565744 | B13: 9.959659851e-06 | C13: 1.82804439e-05 | D13: 4.26591273e+11 | E13: 0.4608856459 | F13: 0.4557693212 | G13: 54703.2668 | H13: 54620.12166 | I13: =IF(H13<H14,'Injection dependence'!H13,"") ->  | K13: 0.03889612598 | L13: 0.01792666615 | M13: =B13/kT_q/SLOPE(B11:B15,E11:E15) -> 0.9492744659 | Q13: 1.106286259e-05
A14: 0.0003374153215 | B14: 1.349850607e-05 | C14: 1.828061322e-05 | D14: 5.78159584e+11 | E14: 0.4687442515 | F14: 0.4636290264 | G14: 54702.76014 | H14: 54619.60471 | I14: =IF(H14<H15,'Injection dependence'!H14,"") ->  | K14: 0.03889258714 | L14: 0.01823067665 | M14: =B14/kT_q/SLOPE(B12:B16,E12:E16) -> 0.9492362964 | Q14: 1.499309828e-05
A15: 0.0004573050519 | B15: 1.829476798e-05 | C15: 1.828084273e-05 | D15: 7.83576925e+11 | E15: 0.4766024954 | F15: 0.4714887605 | G15: 54702.07336 | H15: 54618.90459 | I15: =IF(H15<H16,'Injection dependence'!H15,"") ->  | K15: 0.03888779088 | L15: 0.01853401817 | M15: 0.9491847117 | Q15: 2.031932051e-05
A16: 0.0006197937592 | B16: 2.479522798e-05 | C16: 1.828115382e-05 | D16: 1.061971978e+12 | E16: 0.4844602505 | F16: 0.479348535 | G16: 54701.14249 | H16: 54617.95639 | I16: =IF(H16<H17,'Injection dependence'!H16,"") ->  | K16: 0.03888129042 | L16: 0.01883643969 | M16: 0.9491149896 | Q16: 2.75371355e-05
A17: 0.0008400176258 | B17: 3.36054183e-05 | C17: 1.828157547e-05 | D17: 1.439266207e+12 | E17: 0.4923173448 | F17: 0.4872083659 | G17: 54699.88086 | H17: 54616.67227 | I17: =IF(H17<H18,'Injection dependence'!H17,"") ->  | K17: 0.03887248023 | L17: 0.01913759625 | M17: 0.9490207476 | Q17: 3.73179039e-05
A18: 0.001138490992 | B18: 4.554602765e-05 | C18: 1.82821469e-05 | D18: 1.950584186e+12 | E18: 0.500173546 | F18: 0.4950682752 | G18: 54698.17113 | H18: 54614.93328 | I18: =IF(H18<H19,'Injection dependence'!H18,"") ->  | K18: 0.03886053962 | L18: 0.0194370139 | M18: 0.9488933585 | Q18: 5.057090405e-05
A19: 0.001543017311 | B19: 6.172935019e-05 | C19: 1.828292126e-05 | D19: 2.643517646e+12 | E19: 0.5080285399 | F19: 0.5029282934 | G19: 54695.85445 | H19: 54612.57851 | I19: =IF(H19<H20,'Injection dependence'!H19,"") ->  | K19: 0.03884435629 | L19: 0.01973404161 | M19: 0.9487211686 | Q19: 6.852734566e-05
A20: 0.002091279105 | B20: 8.366289821e-05 | C20: 1.828397043e-05 | D20: 3.582544378e+12 | E20: 0.5158819018 | F20: 0.5107884624 | G20: 54692.71588 | H20: 54609.39035 | I20: =IF(H20<H21,'Injection dependence'!H20,"") ->  | K20: 0.03882242275 | L20: 0.02002778528 | M20: 0.9484884334 | Q20: 9.285380083e-05
A21: 0.002834348172 | B21: 0.0001133898302 | C21: 1.828539192e-05 | D21: 4.85500828e+12 | E21: 0.5237330579 | F21: 0.5186488397 | G21: 54688.46412 | H21: 54605.07394 | I21: =IF(H21<H22,'Injection dependence'!H21,"") ->  | K21: 0.03879269581 | L21: 0.0203170172 | M21: 0.948173908 | Q21: 0.0001258051457
A22: 0.00384144304 | B22: 0.0001536792756 | C22: 1.828731676e-05 | D22: 6.579207601e+12 | E22: 0.5315812329 | F22: 0.5265095039 | G22: 54682.70786 | H22: 54599.23333 | I22: =IF(H22<H23,'Injection dependence'!H22,"") ->  | K22: 0.03875240637 | L22: 0.02060005196 | M22: 0.9477489493 | Q22: 0.0001704303912
A23: 0.005206376821 | B23: 0.0002082842854 | C23: 1.828992258e-05 | D23: 8.91532736e+12 | E23: 0.5394253801 | F23: 0.5343705627 | G23: 54674.91704 | H23: 54591.33236 | I23: =IF(H23<H24,'Injection dependence'!H23,"") ->  | K23: 0.03869780136 | L23: 0.02087457621 | M23: 0.9471749921 | Q23: 0.0002308490069
A24: 0.007056296116 | B24: 0.000282291437 | C24: 1.829344862e-05 | D24: 1.208020103e+13 | E24: 0.5472640874 | F24: 0.5422321624 | G24: 54664.37852 | H24: 54580.64983 | I24: =IF(H24<H25,'Injection dependence'!H24,"") ->  | K24: 0.03862379421 | L24: 0.02113741549 | M24: 0.946400215 | Q24: 0.0003126205988
A25: 0.009563524998 | B25: 0.0003825946601 | C25: 1.829821676e-05 | D25: 1.636721712e+13 | E25: 0.5550954517 | F25: 0.550094502 | G25: 54650.13413 | H25: 54566.217 | I25: =IF(H25<H26,'Injection dependence'!H25,"") ->  | K25: 0.03852349098 | L25: 0.02138421463 | M25: 0.9453551445 | Q25: 0.0004232371761
A26: 0.01296161738 | B26: 0.0005185374219 | C26: 1.830465891e-05 | D26: 2.217311557e+13 | E26: 0.5629169117 | F26: 0.5579578499 | G26: 54630.90053 | H26: 54546.73658 | I26: =IF(H26<H27,'Injection dependence'!H26,"") ->  | K26: 0.03838754822 | L26: 0.02160900009 | M26: 0.9439469834 | Q26: 0.0005727744469
A27: 0.01756711309 | B27: 0.0007027830912 | C27: 1.831335258e-05 | D27: 3.003397044e+13 | E27: 0.5707250275 | F27: 0.5658225664 | G27: 54604.96628 | H27: 54520.47867 | I27: =IF(H27<H28,'Injection dependence'!H27,"") ->  | K27: 0.03820330255 | L27: 0.0218035809 | M27: 0.9420523692 | Q27: 0.0007747458881
A28: 0.02380902422 | B28: 0.0009524945595 | C28: 1.83250661e-05 | D28: 4.067334628e+13 | E28: 0.5785151917 | F28: 0.5736891316 | G28: 54570.06236 | H28: 54485.14989 | I28: =IF(H28<H29,'Injection dependence'!H28,"") ->  | K28: 0.03795359108 | L28: 0.02195672902 | M28: 0.939508376 | Q28: 0.001047208936
A29: 0.03226879862 | B29: 0.001290933002 | C29: 1.834081482e-05 | D29: 5.506644962e+13 | E29: 0.586281256 | F29: 0.5815581783 | G29: 54523.20464 | H29: 54437.73378 | I29: =IF(H29<H30,'Injection dependence'!H29,"") ->  | K29: 0.03761515264 | L29: 0.02205305894 | M29: 0.9361017435 | Q29: 0.001414172945
A30: 0.04373448296 | B30: 0.001749624709 | C30: 1.836192815e-05 | D30: 7.452504218e+13 | E30: 0.5940150579 | F30: 0.5894305292 | G30: 54460.51156 | H30: 54374.30596 | I30: =IF(H30<H31,'Injection dependence'!H30,"") ->  | K30: 0.03715646094 | L30: 0.02207149729 | M30: 0.9315567288 | Q30: 0.001907346965
A31: 0.0592741311 | B31: 0.002371297826 | C31: 1.839012454e-05 | D31: 1.008088329e+14 | E31: 0.6017058346 | F31: 0.5973072336 | G31: 54377.01076 | H31: 54289.83718 | I31: =IF(H31<H32,'Injection dependence'!H31,"") ->  | K31: 0.03653478782 | L31: 0.021983195 | M31: 0.9255227629 | Q31: 0.002568230864
A32: 0.08033529563 | B32: 0.00321386258 | C32: 1.842758624e-05 | D32: 1.362697702e+14 | E32: 0.6093395268 | F32: 0.6051895938 | G32: 54266.46698 | H32: 54178.01651 | I32: =IF(H32<H33,'Injection dependence'!H32,"") ->  | K32: 0.03569222306 | L32: 0.02174868231 | M32: 0.9175644287 | Q32: 0.003450479135
A33: 0.1088798706 | B33: 0.00435580574 | C33: 1.847701577e-05 | D33: 1.840356079e+14 | E33: 0.6168979994 | F33: 0.6130791648 | G33: 54121.29386 | H33: 54031.15689 | I33: =IF(H33<H34,'Injection dependence'!H33,"") ->  | K33: 0.0345502799 | L33: 0.02131399855 | M33: 0.9071583017 | Q33: 0.004622331272
A34: 0.1475668463 | B34: 0.005903501837 | C34: 1.854164151e-05 | D34: 2.482374023e+14 | E34: 0.6243582543 | F34: 0.6209776966 | G34: 53932.65745 | H34: 53840.29022 | I34: =IF(H34<H35,'Injection dependence'!H34,"") ->  | K34: 0.03300258381 | L34: 0.02060543561 | M34: 0.8937037895 | Q34: 0.006168686236
A35: 0.2 | B35: 0.008001122184 | C35: 1.862511882e-05 | D35: 3.342807443e+14 | E35: 0.6316917877 | F35: 0.6288869782 | G35: 53690.93263 | H35: 53595.61286 | I35: =IF(H35<H36,'Injection dependence'!H35,"") ->  | K35: 0.03090496346 | L35: 0.01952241162 | M35: 0.8765575336 | Q35: 0.008192102623
A36: 0.271063596 | B36: 0.01084406476 | C36: 1.873125096e-05 | D36: 4.491506142e+14 | E36: 0.638864344 | F36: 0.6368085307 | G36: 53386.71731 | H36: 53287.48546 | I36: =IF(H36<H37,'Injection dependence'!H36,"") ->  | K36: 0.02806202089 | L36: 0.01792782457 | M36: 0.8551013598 | Q36: 0.01081169255
A37: 0.3673773654 | B37: 0.01469715594 | C37: 1.886344178e-05 | D37: 6.017231463e+14 | E37: 0.6458364257 | F37: 0.6447431081 | G37: 53012.59502 | H37: 52908.17752 | I37: =IF(H37<H38,'Injection dependence'!H37,"") ->  | K37: 0.0242089297 | L37: 0.01563500863 | M37: 0.8288490786 | Q37: 0.01415872135
A38: 0.4979131487 | B38: 0.0199193197 | C38: 1.902381542e-05 | D38: 8.030353103e+14 | E38: 0.652564962 | F38: 0.6526900113 | G38: 52565.69083 | H38: 52454.40104 | I38: =IF(H38<H39,'Injection dependence'!H38,"") ->  | K38: 0.01898676594 | L38: 0.0123900982 | M38: 0.7975846008 | Q38: 0.01836804104
A39: 0.674830643 | B39: 0.02699701214 | C39: 1.921202704e-05 | D39: 1.066443178e+15 | E39: 0.6590064223 | F39: 0.6606463241 | G39: 52050.72832 | H39: 51930.34098 | I39: =IF(H39<H40,'Injection dependence'!H39,"") ->  | K39: 0.0119090735 | L39: 0.007848155923 | M39: 0.7615032542 | Q39: 0.02356561598
A40: 0.9146101039 | B40: 0.03658953596 | C40: 1.942395759e-05 | D40: 1.407598532e+15 | E40: 0.6651212735 | F40: 0.6686063222 | G40: 51482.81421 | H40: 51350.40952 | I40: =IF(H40<H41,'Injection dependence'!H40,"") ->  | K40: 0.002316549684 | L40: 0.001540786476 | M40: 0.7213079762 | Q40: 0.02985435877
A41: 1.239587518 | B41: 0.04959045597 | C41: 1.965068153e-05 | D41: 1.844214253e+15 | E41: 0.6708790542 | F41: 0.6765614001 | G41: 50888.82023 | H41: 50740.59335 | I41: =IF(H41<H42,'Injection dependence'!H41,"") ->  | K41: -0.01068437032 | L41: -0.007167920256 | M41: 0.6782076399 | Q41: 0.03730250066
A42: 1.680035252 | B42: 0.06721083661 | C42: 1.987818113e-05 | D42: 2.39567718e+15 | E42: 0.676262753 | F42: 0.6845007832 | G42: 50306.41353 | H42: 50137.44379 | I42: =IF(H42<H43,'Injection dependence'!H42,"") ->  | K42: -0.02830475096 | L42: -0.01914144881 | M42: 0.633789062 | Q42: 0.04593921874
A43: 2.276981983 | B43: 0.0910920553 | C43: 2.008811086e-05 | D43: 3082668025962802 | E43: 0.6812710955 | F43: 0.6924129996 | G43: 49780.68903 | H43: 49584.65878 | I43: =IF(H43<H44,'Injection dependence'!H43,"") ->  | K43: =IF(B43=0, ,Jph/suns-B43) -> -0.05218596966 | L43: -0.03555279272 | M43: 0.5897834916 | Q43: =$N$12*EXP(E43/$O$12/kT_q) -> 0.05576006979
A44: 3.086034622 | B44: 0.1234587004 | C44: 2.025951127e-05 | D44: 3926994303812295 | E44: 0.6859180141 | F44: 0.7002877196 | G44: 49359.53226 | H44: =G44-((p_o+n_o+D44)*(1.8E-24*n_o^0.65+6E-25*p_o^0.65+3E-27*D44^0.8+0.0000000000000095)) -> 49128.37835 | I44: =IF(H44<H45,'Injection dependence'!H44,"") ->  | K44: -0.08455261474 | L44: -0.05799616159 | M44: 0.5477976011 | Q44: 0.06674075642
A45: 4.18255821 | B45: 0.1673257964 | C45: 2.037097821e-05 | D45: 4951793356033507 | E45: 0.6902296777 | F45: 0.708117412 | G45: 49089.44428 | H45: 48812.91633 | I45: =IF(H45<H46,'Injection dependence'!H45,"") ->  | K45: -0.1284197108 | L45: -0.08863909558 | M45: =B45/kT_q/SLOPE(B43:B47,E43:E47) -> 0.5090964457 | Q45: 0.07885453709
A46: 5.668696345 | B46: 0.2267796604 | C46: 2.040267848e-05 | D46: 6182152561419599 | E46: 0.6942402739 | F46: 0.7158984184 | G46: 49013.17252 | H46: 48678.2616 | I46: =IF(H46<H47,'Injection dependence'!H46,"") -> 48678.2616 | K46: -0.1878735748 | L46: -0.130429402 | M46: 0.4744981185 | Q46: 0.09208827636
A47: 7.682886079 | B47: 0.3073585512 | C47: 2.033779784e-05 | D47: 7646100925617084 | E47: 0.6979878469 | F47: 0.723631363 | G47: 49169.53191 | H47: 48759.72114 | I47: =IF(H47<H48,'Injection dependence'!H47,"") -> 48759.72114 | K47: -0.2684524656 | L47: -0.1873765585 | M47: 0.4443855543 | Q47: 0.1064543061
A48: 10.41275364 | B48: 0.4165685708 | C48: 2.01633208e-05 | D48: 9375896287850104 | E48: 0.7015110254 | F48: 0.7313210357 | G48: 49595.00521 | H48: 49089.27741 | I48: =IF(H48<H49,'Injection dependence'!H48,"") -> 49089.27741 | K48: -0.3776624852 | L48: -0.2649343972 | M48: 0.418795812 | Q48: 0.1219978891
A49: 14.11259223 | B49: 0.5645828739 | C49: 1.987027332e-05 | D49: 1.140954791e+16 | E49: 0.704846883 | F49: 0.738975918 | G49: 50326.43407 | H49: 49697.94981 | I49: =IF(H49<H50,'Injection dependence'!H49,"") -> 49697.94981 | K49: -0.5256767883 | L49: -0.3705216457 | M49: 0.3975335768 | Q49: 0.1388015851
A50: 19.12705 | B50: 0.7651893202 | C50: 1.945365116e-05 | D50: 1.379252766e+16 | E50: 0.7080297576 | F50: 0.7466074179 | G50: 51404.23213 | H50: 50618.56238 | I50: =IF(H50<H51,'Injection dependence'!H50,"") -> 50618.56238 | K50: -0.7262832346 | L50: -0.5142301425 | M50: 0.3802693265 | Q50: 0.1569879913
A51: 25.92323476 | B51: 1.037074844 | C51: 1.891224725e-05 | D51: 1.657960061e+16 | E51: 0.7110906993 | F51: 0.7542287722 | G51: 52875.78927 | H51: 51888.55239 | I51: =IF(H51<H52,'Injection dependence'!H51,"") -> 51888.55239 | K51: -0.9981687582 | L51: -0.7097885203 | M51: =B51/kT_q/SLOPE(B49:B53,E49:E53) -> 0.3666057179 | Q51: 0.1767217402
A52: 35.13422617 | B52: 1.405566182 | C52: 1.824853569e-05 | D52: 1.983664768e+16 | E52: 0.7140572398 | F52: 0.7618535623 | G52: 54798.91741 | H52: 53552.63276 | I52: =IF(H52<H53,'Injection dependence'!H52,"") -> 53552.63276 | K52: -1.366660097 | L52: -0.9758735365 | M52: 0.3561143692 | Q52: 0.1982109278
A53: 47.61804845 | B53: 1.904989119 | C53: 1.746868772e-05 | D53: 2.364229531e+16 | E53: 0.7169532849 | F53: 0.7694938978 | G53: 57245.28461 | H53: 55665.21814 | I53: =IF(H53<H54,'Injection dependence'!H53,"") -> 55665.21814 | K53: -1.866083033 | L53: -1.337894361 | M53: 0.3483546447 | Q53: 0.2217077586
A54: 64.53759723 | B54: 2.581866005 | C54: 1.65826879e-05 | D54: 2.80891628e+16 | E54: 0.719799069 | F54: 0.77715852 | G54: 60303.85459 | H54: 58292.5969 | I54: =IF(H54<H55,'Injection dependence'!H54,"") -> 58292.5969 | K54: -2.542959919 | L54: -1.830420182 | M54: 0.3428869999 | Q54: 0.2475083245
A55: 87.46896592 | B55: 3.499249418 | C55: 1.56044067e-05 | D55: 3.328462167e+16 | E55: 0.7226112106 | F55: 0.7848512413 | G55: 64084.46147 | H55: 61514.94245 | I55: =IF(H55<H56,'Injection dependence'!H55,"") -> 61514.94245 | K55: -3.460343333 | L55: -2.500482884 | M55: 0.3392883716 | Q55: 0.2759519932
A56: 118.5482622 | B56: 4.742595653 | C56: 1.455142081e-05 | D56: 3.935109587e+16 | E56: 0.7254029289 | F56: 0.7925701147 | G56: 68721.81162 | H56: 65428.41269 | I56: =IF(H56<H57,'Injection dependence'!H56,"") -> 65428.41269 | K56: -4.703689567 | L56: -3.412070189 | M56: 0.3371696314 | Q56: 0.3074214405
A57: 160.6705913 | B57: 6.42772516 | C57: 1.344441204e-05 | D57: 4.642600595e+16 | E57: 0.7281844341 | F57: 0.8003074775 | G57: 74380.34455 | H57: 70147.72039 | I57: =IF(H57<H58,'Injection dependence'!H57,"") -> 70147.72039 | K57: -6.388819075 | L57: -4.652238603 | M57: 0.3361897965 | Q57: 0.3423443714
A58: 217.7597412 | B58: 8.71161148 | C58: 1.230611596e-05 | D58: 5.466138231e+16 | E58: 0.7309634108 | F58: 0.8080506713 | G58: 81260.40767 | H58: 75809.59282 | I58: =IF(H58<H59,'Injection dependence'!H58,"") -> 75809.59282 | K58: -8.672705395 | L58: -6.339430316 | M58: 0.3360617449 | Q58: 0.3811972433
A59: 295.1336925 | B59: 11.80700367 | C59: 1.115995369e-05 | D59: 6.422299301e+16 | E59: 0.733745482 | F59: 0.8157830584 | G59: 89606.10657 | H59: 82577.48786 | I59: =IF(H59<H60,'Injection dependence'!H59,"") -> 82577.48786 | K59: -11.76809759 | L59: -8.634788437 | M59: 0.3994672659 | Q59: 0.4245103636
A60: 400 | B60: 16.00224437 | C60: 1.00285706e-05 | D60: 7.528873975e+16 | E60: 0.7365345806 | F60: 0.8234850472 | G60: 99715.10792 | H60: 90647.91183 | I60: =IF(H60<H61,'Injection dependence'!H60,"") ->  | K60: -15.96333828 | L60: -11.75755067 | M60: 0.4729959232 | Q60: 0.4728734209
G61: =1/C61 ->  | I61: =IF(H61<H62,'Injection dependence'!H61,"") ->  | J61: =K$8+D61*J$8 ->  | K61: 0 | L61: =K61*E61 -> 0 | M61: 0 | Q61: 2e-13
I62: =IF(H62<H63,'Injection dependence'!H62,"") ->  | K62: 0 | L62: 0 | Q62: 2e-13
I63: =IF(H63<H64,'Injection dependence'!H63,"") ->  | K63: 0 | L63: 0 | Q63: 2e-13
I64: =IF(H64<H65,'Injection dependence'!H64,"") ->  | K64: 0 | L64: 0 | Q64: 2e-13
I65: =IF(H65<H66,'Injection dependence'!H65,"") ->  | K65: 0 | L65: 0 | Q65: 2e-13
I66: =IF(H66<H67,'Injection dependence'!H66,"") ->  | K66: 0 | L66: 0 | Q66: 2e-13
I67: =IF(H67<H68,'Injection dependence'!H67,"") ->  | K67: 0 | L67: 0 | Q67: 2e-13
I68: =IF(H68<H69,'Injection dependence'!H68,"") ->  | K68: 0 | L68: 0 | Q68: 2e-13
I69: =IF(H69<H70,'Injection dependence'!H69,"") ->  | K69: 0 | L69: 0 | Q69: 2e-13
I70: =IF(H70<H71,'Injection dependence'!H70,"") ->  | K70: 0 | L70: 0 | Q70: 2e-13
I71: =IF(H71<H72,'Injection dependence'!H71,"") ->  | K71: 0 | L71: 0 | Q71: 2e-13
I72: =IF(H72<H73,'Injection dependence'!H72,"") ->  | K72: 0 | L72: 0 | Q72: 2e-13
I73: =IF(H73<H74,'Injection dependence'!H73,"") ->  | K73: 0 | L73: 0 | Q73: 2e-13
I74: =IF(H74<H75,'Injection dependence'!H74,"") ->  | K74: 0 | L74: 0 | Q74: 2e-13
I75: =IF(H75<H76,'Injection dependence'!H75,"") ->  | K75: =IF(B75=0, ,Jph/suns-B75) -> 0 | L75: 0 | Q75: =$N$12*EXP(E75/$O$12/kT_q) -> 2e-13
H76: =G76-((p_o+n_o+D76)*(1.8E-24*n_o^0.65+6E-25*p_o^0.65+3E-27*D76^0.8+0.0000000000000095)) ->  | I76: =IF(H76<H77,'Injection dependence'!H76,"") ->  | K76: 0 | L76: 0 | Q76: 2e-13
I77: =IF(H77<H78,'Injection dependence'!H77,"") ->  | K77: 0 | L77: 0 | M77: =B77/kT_q/SLOPE(B75:B79,E75:E79) ->  | Q77: 2e-13
I78: =IF(H78<H79,'Injection dependence'!H78,"") ->  | K78: 0 | L78: 0 | Q78: 2e-13
I79: =IF(H79<H80,'Injection dependence'!H79,"") ->  | K79: 0 | L79: 0 | Q79: 2e-13
I80: =IF(H80<H81,'Injection dependence'!H80,"") ->  | K80: 0 | L80: 0 | Q80: 2e-13
I81: =IF(H81<H82,'Injection dependence'!H81,"") ->  | K81: 0 | L81: 0 | Q81: 2e-13
I82: =IF(H82<H83,'Injection dependence'!H82,"") ->  | K82: 0 | L82: 0 | Q82: 2e-13
I83: =IF(H83<H84,'Injection dependence'!H83,"") ->  | K83: 0 | L83: 0 | Q83: 2e-13
I84: =IF(H84<H85,'Injection dependence'!H84,"") ->  | K84: 0 | L84: 0 | Q84: 2e-13
I85: =IF(H85<H86,'Injection dependence'!H85,"") ->  | K85: 0 | L85: 0 | Q85: 2e-13
I86: =IF(H86<H87,'Injection dependence'!H86,"") ->  | K86: 0 | L86: 0 | Q86: 2e-13
I87: =IF(H87<H88,'Injection dependence'!H87,"") ->  | K87: 0 | L87: 0 | Q87: 2e-13
I88: =IF(H88<H89,'Injection dependence'!H88,"") ->  | K88: 0 | L88: 0 | Q88: 2e-13
I89: =IF(H89<H90,'Injection dependence'!H89,"") ->  | K89: 0 | L89: 0 | Q89: 2e-13
I90: =IF(H90<H91,'Injection dependence'!H90,"") ->  | K90: 0 | L90: 0 | Q90: 2e-13
I91: =IF(H91<H92,'Injection dependence'!H91,"") ->  | K91: 0 | L91: 0 | Q91: 2e-13
I92: =IF(H92<H93,'Injection dependence'!H92,"") ->  | K92: 0 | L92: 0 | Q92: 2e-13
I93: =IF(H93<H94,'Injection dependence'!H93,"") ->  | K93: 0 | L93: 0 | Q93: 2e-13
I94: =IF(H94<H95,'Injection dependence'!H94,"") ->  | K94: 0 | L94: 0 | Q94: 2e-13
I95: =IF(H95<H96,'Injection dependence'!H95,"") ->  | K95: 0 | L95: 0 | Q95: 2e-13
I96: =IF(H96<H97,'Injection dependence'!H96,"") ->  | K96: 0 | L96: 0 | Q96: 2e-13
I97: =IF(H97<H98,'Injection dependence'!H97,"") ->  | K97: 0 | L97: 0 | Q97: 2e-13
I98: =IF(H98<H99,'Injection dependence'!H98,"") ->  | K98: 0 | L98: 0 | Q98: 2e-13
I99: =IF(H99<H100,'Injection dependence'!H99,"") ->  | K99: 0 | L99: 0 | Q99: 2e-13
I100: =IF(H100<H101,'Injection dependence'!H100,"") ->  | K100: 0 | L100: 0 | Q100: 2e-13
I101: =IF(H101<H102,'Injection dependence'!H101,"") ->  | K101: 0 | L101: 0 | Q101: 2e-13
I102: =IF(H102<H103,'Injection dependence'!H102,"") ->  | K102: 0 | L102: 0 | Q102: 2e-13
I103: =IF(H103<H104,'Injection dependence'!H103,"") ->  | K103: 0 | L103: 0 | Q103: 2e-13
I104: =IF(H104<H105,'Injection dependence'!H104,"") ->  | K104: 0 | L104: 0 | Q104: 2e-13
I105: =IF(H105<H106,'Injection dependence'!H105,"") ->  | K105: 0 | L105: 0 | Q105: 2e-13
I106: =IF(H106<H107,'Injection dependence'!H106,"") ->  | K106: 0 | L106: 0 | Q106: 2e-13
I107: =IF(H107<H108,'Injection dependence'!H107,"") ->  | K107: 0 | L107: 0 | Q107: 2e-13
H108: =G108-((p_o+n_o+D108)*(1.8E-24*n_o^0.65+6E-25*p_o^0.65+3E-27*D108^0.8+0.0000000000000095)) ->  | I108: =IF(H108<H109,'Injection dependence'!H108,"") ->  | K108: 0 | L108: 0 | Q108: 2e-13
H109: =G109-((p_o+n_o+D109)*(1.8E-24*n_o^0.65+6E-25*p_o^0.65+3E-27*D109^0.8+0.0000000000000095)) ->  | I109: =IF(H109<H110,'Injection dependence'!H109,"") ->  | K109: 0 | L109: 0 | M109: =B109/kT_q/SLOPE(B107:B111,E107:E111) ->  | Q109: 2e-13
H110: =G110-((p_o+n_o+D110)*(1.8E-24*n_o^0.65+6E-25*p_o^0.65+3E-27*D110^0.8+0.0000000000000095)) ->  | I110: =IF(H110<H111,'Injection dependence'!H110,"") ->  | K110: 0 | L110: 0 | M110: =B110/kT_q/SLOPE(B108:B112,E108:E112) ->  | Q110: 2e-13

Sheet I-V curve
A1: I-V curve | F1: ideal device, no extrinsic series or shunt resistance effects | M1: irradiance | N1: Surface recombination parameters
E2: tau-eff at Voc | F2: Jsc | G2: Voc | H2: Jmp | I2: Vmp | J2: FF | K2: efficiency | L2: power | M2: suns | N2: Jof | O2: Job
E3: 0.0003593381193 | F3: =B10 -> 0.03887552385 | G3: 0.6997080429 | H3: 0.03713965765 | I3: 0.5801870467 | J3: =L3/(F3*G3) -> 0.7921598092 | K3: =1000*L3/$M$3 -> 21.54794829 | L3: 0.02154794829 | M3: =IF(EXACT(Spectrum,"Monochromatic"),'carrier profile'!M6/0.1,suns) -> 1 | N3: =Jof -> 4e-14 | O3: =Job -> 1e-12 | P3: Slope | Q3: Intercept Jsc | R3: Intercept Voc
D4: enter shunt and series | N4: SRH carrier lifetimes | P4: =SLOPE(B11:B21,C11:C21) -> -0.000889921816 | Q4: =INTERCEPT(H11:H21,I11:I21) -> 0.03907772736 | R4: =INTERCEPT(I100:I110,H100:H110) -> 
A5: enter number of points | D5: resistances per unit area | F5: Results including shunt and series resistance | N5: tno | O5: tpo
A6: NumPnts | B6: 20 | D6: Rsh | E6: Rs | F6: Jsc | G6: Voc | H6: Jmp | I6: Vmp | J6: FF | K6: efficiency | L6: power | N6: =tno -> 9.090909091e+11 | O6: =tpo -> 9.090909091e+11 | Q6: V | R6: J
A7: min N_front | B7: 1000 | D7: 100000000 | E7: =PRC!N5 -> 0.01055722163 | F7: =O40 -> 0.03887552263 | G7: =O41 -> 0.6997079776 | H7: 0.03713965185 | I7: 0.5797853061 | J7: =L7/(F7*G7) -> 0.7916112668 | K7: =1000*L7/$M$3 -> 21.53302442 | L7: 0.02153302442 | P7: Jsc | Q7: =$E$3 -> 0.0003593381193 | R7: =$F$3 -> 0.03887552385
P8: Voc | Q8: =$G$7 -> 0.6997079776 | R8: 0 | X8: 0.7195616609 | Y8: 0.04002614735 | Z8: 24.62421705
A9: 2 | B9: J | C9: V | D9: Power | E9: J | F9: V | G9: Pout | H9: Jout | I9: Vout | P9: Vmp and Jmp | Q9: =VLOOKUP($L$7,G10:I110,3,FALSE) ->  | R9: =VLOOKUP($L$7,G10:I110,2,FALSE) -> 
A10: 782382 | B10: 0.03887552385 | C10: 0.07322999584 | D10: =B10*C10 -> 0.00284685445 | E10: =B10 -> 0.03887552385 | F10: =C10 -> 0.07322999584 | G10: =H10*I10 -> 0.002830899201 | H10: =B10-C10/$D$7 -> 0.03887552312 | I10: =C10-B10*$E$7 -> 0.07281957832 | K10: ='Injection dependence'!$E10 -> 0 | L10: =IF('Injection dependence'!B10=0, ,$F$3/suns-'Injection dependence'!B10) -> 0 | M10: =IF(AND(I10<0,I11>0),ROW(),10) -> 10 | N10: =IF(AND(H10>0,H11<0),ROW(),"") -> 
A11: 1000 | B11: 0.03887552386 | C11: -0.005872701264 | D11: =B11*C11 -> -0.0002283043381 | E11: =B11 -> 0.03887552386 | F11: =C11 -> -0.005872701264 | G11: =H11*I11 -> -0.0002442595346 | H11: =B11-C11/$D$7 -> 0.03887552392 | I11: =C11-B11*$E$7 -> -0.006283118786 | K11: ='Injection dependence'!$E11 -> 0.4451677013 | L11: =IF('Injection dependence'!B11=0, ,$F$3/suns-'Injection dependence'!B11) -> 0.03887010182 | M11: =IF(AND(I11<0,I12>0),ROW(),"") -> 11 | N11: =IF(AND(H11>0,H12<0),ROW(),"") ->  | P11: note: the first row of the table (row 10) corresponds to short-circuit conditions
A12: 1.172914036e+10 | B12: 0.03887546137 | C12: 0.3142341104 | D12: =B12*C12 -> 0.01221599602 | E12: =B12 -> 0.03887546137 | F12: =C12 -> 0.3142341104 | G12: =H12*I12 -> 0.01220003989 | H12: =B12-C12/$D$7 -> 0.03887545823 | I12: =C12-B12*$E$7 -> 0.3138236936 | K12: ='Injection dependence'!$E12 -> 0.4530267726 | L12: =IF('Injection dependence'!B12=0, ,$F$3/suns-'Injection dependence'!B12) -> 0.03886817527 | M12: =IF(AND(I12<0,I13>0),ROW(),"") ->  | N12: =IF(AND(H12>0,H13<0),ROW(),"") -> 
A13: 1.319636854e+11 | B13: 0.03887482088 | C13: 0.3768063564 | D13: 0.01464827961 | E13: 0.03887482088 | F13: 0.3768063564 | G13: 0.01463232358 | H13: 0.03887481711 | I13: 0.3763959463 | K13: ='Injection dependence'!$E13 -> 0.4608856459 | L13: =IF('Injection dependence'!B13=0, ,$F$3/suns-'Injection dependence'!B13) -> 0.03886556419
A14: 6.403296396e+11 | B14: 0.0388721126 | C14: 0.4176422839 | D14: 0.01623463789 | E14: 0.0388721126 | F14: 0.4176422839 | G14: 0.01621868375 | H14: 0.03887210842 | I14: 0.4172319024 | K14: ='Injection dependence'!$E14 -> 0.4687442515 | L14: =IF('Injection dependence'!B14=0, ,$F$3/suns-'Injection dependence'!B14) -> 0.03886202535
A15: 2.127907044e+12 | B15: 0.03886418391 | C15: 0.4487028645 | D15: 0.01743847065 | E15: 0.03886418391 | F15: 0.4487028645 | G15: 0.01742252275 | H15: 0.03886417943 | I15: 0.4482925667 | K15: ='Injection dependence'!$E15 -> 0.4766024954 | L15: =IF('Injection dependence'!B15=0, ,$F$3/suns-'Injection dependence'!B15) -> 0.03885722908
A16: 5.671216644e+12 | B16: 0.0388452755 | C16: 0.474081403 | D16: 0.01841582271 | E16: 0.0388452755 | F16: 0.474081403 | G16: 0.01839989009 | H16: 0.03884527076 | I16: 0.4736713048 | K16: ='Injection dependence'!$E16 -> 0.4844602505 | L16: =IF('Injection dependence'!B16=0, ,$F$3/suns-'Injection dependence'!B16) -> 0.03885072862
A17: 1.305874178e+13 | B17: 0.03880574856 | C17: 0.4957212024 | D17: 0.01923683234 | E17: 0.03880574856 | F17: 0.4957212024 | G17: 0.01922093191 | H17: 0.0388057436 | I17: 0.4953115215 | K17: ='Injection dependence'!$E17 -> 0.4923173448 | L17: =IF('Injection dependence'!B17=0, ,$F$3/suns-'Injection dependence'!B17) -> 0.03884191843
A18: 2.70790426e+13 | B18: 0.0387303456 | C18: 0.5147238271 | D18: 0.01993543171 | E18: 0.0387303456 | F18: 0.5147238271 | G18: 0.01991959281 | H18: 0.03873034045 | I18: 0.5143149423 | K18: ='Injection dependence'!$E18 -> 0.500173546 | L18: =IF('Injection dependence'!B18=0, ,$F$3/suns-'Injection dependence'!B18) -> 0.03882997782
A19: 5.188046586e+13 | B19: 0.03859572051 | C19: 0.5317964539 | D19: 0.0205250673 | E19: 0.03859572051 | F19: 0.5317964539 | G19: 0.02050933813 | H19: 0.03859571519 | I19: 0.5313889904 | K19: ='Injection dependence'!$E19 -> 0.5080285399 | L19: =IF('Injection dependence'!B19=0, ,$F$3/suns-'Injection dependence'!B19) -> 0.0388137945
A20: 9.341345547e+13 | B20: 0.03836673088 | C20: 0.547443852 | D20: 0.02100363094 | E20: 0.03836673088 | F20: 0.547443852 | G20: 0.02098808766 | H20: 0.03836672541 | I20: 0.547038806 | K20: ='Injection dependence'!$E20 -> 0.5158819018 | L20: =IF('Injection dependence'!B20=0, ,$F$3/suns-'Injection dependence'!B20) -> 0.03879186095
A21: 1.599675339e+14 | B21: 0.03799053104 | C21: 0.5620656663 | D21: 0.02135317314 | E21: 0.03799053104 | F21: 0.5620656663 | G21: 0.02133793296 | H21: 0.03799052542 | I21: 0.5616645919 | K21: ='Injection dependence'!$E21 -> 0.5237330579 | L21: =IF('Injection dependence'!B21=0, ,$F$3/suns-'Injection dependence'!B21) -> 0.03876213402
A22: 2.628161559e+14 | B22: 0.03738668424 | C22: 0.5760139209 | D22: 0.02153525058 | E22: 0.03738668424 | F22: 0.5760139209 | G22: 0.02152049076 | H22: 0.03738667848 | I22: 0.5756192213 | K22: ='Injection dependence'!$E22 -> 0.5315812329 | L22: =IF('Injection dependence'!B22=0, ,$F$3/suns-'Injection dependence'!B22) -> 0.03872184458
A23: 4.169838378e+14 | B23: 0.03643005564 | C23: 0.5896334044 | D23: 0.02148037773 | E23: 0.03643005564 | F23: 0.5896334044 | G23: 0.02146636325 | H23: 0.03643004975 | I23: 0.5892488043 | K23: ='Injection dependence'!$E23 -> 0.5394253801 | L23: =IF('Injection dependence'!B23=0, ,$F$3/suns-'Injection dependence'!B23) -> 0.03866723957
A24: 6.421512384e+14 | B24: 0.0349206572 | C24: 0.6032959071 | D24: 0.02106748956 | E24: 0.0349206572 | F24: 0.6032959071 | G24: 0.02105461189 | H24: 0.03492065116 | I24: 0.602927242 | K24: ='Injection dependence'!$E24 -> 0.5472640874 | L24: =IF('Injection dependence'!B24=0, ,$F$3/suns-'Injection dependence'!B24) -> 0.03859323242
A25: 9.637152166e+14 | B25: 0.03252989135 | C25: 0.6174332996 | D25: 0.02008503815 | E25: 0.03252989135 | F25: 0.6174332996 | G25: 0.02007386276 | H25: 0.03252988518 | I25: 0.6170898744 | K25: ='Injection dependence'!$E25 -> 0.5550954517 | L25: =IF('Injection dependence'!B25=0, ,$F$3/suns-'Injection dependence'!B25) -> 0.03849292919
A26: 1414022319329420 | B26: 0.02870353947 | C26: 0.6325668405 | D26: 0.01815690728 | E26: 0.02870353947 | F26: 0.6325668405 | G26: 0.01814820525 | H26: 0.02870353315 | I26: 0.6322638109 | K26: ='Injection dependence'!$E26 -> 0.5629169117 | L26: =IF('Injection dependence'!B26=0, ,$F$3/suns-'Injection dependence'!B26) -> 0.03835698643
A27: 2.033795659e+15 | B27: 0.02248268117 | C27: 0.6493148923 | D27: 0.0145983397 | E27: 0.02248268117 | F27: 0.6493148923 | G27: 0.01459299912 | H27: 0.02248267467 | I27: 0.6490775377 | K27: ='Injection dependence'!$E27 -> 0.5707250275 | L27: =IF('Injection dependence'!B27=0, ,$F$3/suns-'Injection dependence'!B27) -> 0.03817274076
A28: 2873776734098567 | B28: 0.0121582589 | C28: 0.6683436733 | D28: 0.008125895416 | E28: 0.0121582589 | F28: 0.6683436733 | G28: 0.008124330347 | H28: 0.01215825222 | I28: 0.6682153159 | K28: ='Injection dependence'!$E28 -> 0.5785151917 | L28: =IF('Injection dependence'!B28=0, ,$F$3/suns-'Injection dependence'!B28) -> 0.03792302929
A29: 3.996605433e+15 | B29: 0.001387038081 | C29: 0.6867680961 | D29: 0.0009525735022 | E29: 0.001387038081 | F29: 0.6867680961 | G29: 0.000952548475 | H29: 0.001387031213 | I29: 0.6867534529 | K29: ='Injection dependence'!$E29 -> 0.586281256 | L29: =IF('Injection dependence'!B29=0, ,$F$3/suns-'Injection dependence'!B29) -> 0.03758459085 | N29: 29
A30: 5478963217694454 | B30: 4.926399654e-14 | C30: 0.6997080429 | D30: 3.447041461e-14 | E30: 4.926399654e-14 | F30: 0.6997080429 | G30: -4.895878983e-09 | H30: -6.997031165e-09 | I30: 0.6997080429 | K30: ='Injection dependence'!$E30 -> 0.5940150579 | L30: =IF('Injection dependence'!B30=0, ,$F$3/suns-'Injection dependence'!B30) -> 0.03712589914
D31: 0 | E31: 0 | F31: 0 | G31: 0 | H31: 0 | I31: 0 | K31: ='Injection dependence'!$E31 -> 0.6017058346 | L31: =IF('Injection dependence'!B31=0, ,$F$3/suns-'Injection dependence'!B31) -> 0.03650422603
D32: 0 | E32: 0 | F32: 0 | G32: 0 | H32: 0 | I32: 0 | K32: ='Injection dependence'!$E32 -> 0.6093395268 | L32: =IF('Injection dependence'!B32=0, ,$F$3/suns-'Injection dependence'!B32) -> 0.03566166127
D33: 0 | E33: 0 | F33: 0 | G33: 0 | H33: 0 | I33: 0 | K33: ='Injection dependence'!$E33 -> 0.6168979994 | L33: =IF('Injection dependence'!B33=0, ,$F$3/suns-'Injection dependence'!B33) -> 0.03451971811
D34: 0 | E34: 0 | F34: 0 | G34: 0 | H34: 0 | I34: 0 | K34: ='Injection dependence'!$E34 -> 0.6243582543 | L34: =IF('Injection dependence'!B34=0, ,$F$3/suns-'Injection dependence'!B34) -> 0.03297202202
D35: 0 | E35: 0 | F35: 0 | G35: 0 | H35: 0 | I35: 0 | K35: ='Injection dependence'!$E35 -> 0.6316917877 | L35: =IF('Injection dependence'!B35=0, ,$F$3/suns-'Injection dependence'!B35) -> 0.03087440167
D36: 0 | E36: 0 | F36: 0 | G36: 0 | H36: 0 | I36: 0 | K36: ='Injection dependence'!$E36 -> 0.638864344 | L36: =IF('Injection dependence'!B36=0, ,$F$3/suns-'Injection dependence'!B36) -> 0.0280314591
D37: 0 | E37: 0 | F37: 0 | G37: 0 | H37: 0 | I37: 0 | K37: ='Injection dependence'!$E37 -> 0.6458364257 | L37: =IF('Injection dependence'!B37=0, ,$F$3/suns-'Injection dependence'!B37) -> 0.02417836791
D38: 0 | E38: 0 | F38: 0 | G38: 0 | H38: 0 | I38: 0 | K38: ='Injection dependence'!$E38 -> 0.652564962 | L38: =IF('Injection dependence'!B38=0, ,$F$3/suns-'Injection dependence'!B38) -> 0.01895620415
D39: 0 | E39: 0 | F39: 0 | G39: 0 | H39: 0 | I39: 0 | K39: ='Injection dependence'!$E39 -> 0.6590064223 | L39: =IF('Injection dependence'!B39=0, ,$F$3/suns-'Injection dependence'!B39) -> 0.01187851171
D40: 0 | E40: 0 | F40: 0 | G40: 0 | H40: 0 | I40: 0 | K40: ='Injection dependence'!$E40 -> 0.6651212735 | L40: =IF('Injection dependence'!B40=0, ,$F$3/suns-'Injection dependence'!B40) -> 0.002285987892 | O40: =INTERCEPT(P49:P50,Q49:Q50) -> 0.03887552263
D41: 0 | E41: 0 | F41: 0 | G41: 0 | H41: 0 | I41: 0 | K41: ='Injection dependence'!$E41 -> 0.6708790542 | L41: =IF('Injection dependence'!B41=0, ,$F$3/suns-'Injection dependence'!B41) -> -0.01071493211 | O41: =INTERCEPT(Q53:Q54,P53:P54) -> 0.6997079776
D42: 0 | E42: 0 | F42: 0 | G42: 0 | H42: 0 | I42: 0 | K42: ='Injection dependence'!$E42 -> 0.676262753 | L42: =IF('Injection dependence'!B42=0, ,$F$3/suns-'Injection dependence'!B42) -> -0.02833531276
D43: 0 | E43: 0 | F43: 0 | G43: 0 | H43: =B43-C43/$D$7 -> 0 | I43: =C43-B43*$E$7 -> 0 | K43: ='Injection dependence'!$E43 -> 0.6812710955 | L43: =IF('Injection dependence'!B43=0, ,$F$3/suns-'Injection dependence'!B43) -> -0.05221653145
D44: 0 | E44: 0 | F44: 0 | G44: 0 | H44: 0 | I44: 0 | K44: ='Injection dependence'!$E44 -> 0.6859180141 | L44: =IF('Injection dependence'!B44=0, ,$F$3/suns-'Injection dependence'!B44) -> -0.08458317654
D45: 0 | E45: 0 | F45: 0 | G45: 0 | H45: 0 | I45: 0 | K45: ='Injection dependence'!$E45 -> 0.6902296777 | L45: =IF('Injection dependence'!B45=0, ,$F$3/suns-'Injection dependence'!B45) -> -0.1284502726 | P45: =MAX(M10:M110) -> 11 | Q45: =MIN(N10:N110) -> 29
D46: 0 | E46: 0 | F46: 0 | G46: 0 | H46: 0 | I46: 0 | K46: ='Injection dependence'!$E46 -> 0.6942402739 | L46: =IF('Injection dependence'!B46=0, ,$F$3/suns-'Injection dependence'!B46) -> -0.1879041366
D47: 0 | E47: 0 | F47: 0 | G47: 0 | H47: 0 | I47: 0 | K47: ='Injection dependence'!$E47 -> 0.6979878469 | L47: =IF('Injection dependence'!B47=0, ,$F$3/suns-'Injection dependence'!B47) -> -0.2684830274
D48: 0 | E48: 0 | F48: 0 | G48: 0 | H48: 0 | I48: 0 | K48: ='Injection dependence'!$E48 -> 0.7015110254 | L48: =IF('Injection dependence'!B48=0, ,$F$3/suns-'Injection dependence'!B48) -> -0.377693047 | P48: J | Q48: V
D49: 0 | E49: 0 | F49: 0 | G49: 0 | H49: 0 | I49: 0 | K49: ='Injection dependence'!$E49 -> 0.704846883 | L49: =IF('Injection dependence'!B49=0, ,$F$3/suns-'Injection dependence'!B49) -> -0.5257073501 | P49: =OFFSET(H10,P45-10,0) -> 0.03887552392 | Q49: =OFFSET(I10,P45-10,0) -> -0.006283118786
D50: 0 | E50: 0 | F50: 0 | G50: 0 | H50: 0 | I50: 0 | K50: ='Injection dependence'!$E50 -> 0.7080297576 | L50: =IF('Injection dependence'!B50=0, ,$F$3/suns-'Injection dependence'!B50) -> -0.7263137964 | P50: =OFFSET(H10,P45-9,0) -> 0.03887545823 | Q50: =OFFSET(I10,P45-9,0) -> 0.3138236936
D51: 0 | E51: 0 | F51: 0 | G51: 0 | H51: 0 | I51: 0 | K51: ='Injection dependence'!$E51 -> 0.7110906993 | L51: =IF('Injection dependence'!B51=0, ,$F$3/suns-'Injection dependence'!B51) -> -0.9981993199
D52: 0 | E52: 0 | F52: 0 | G52: 0 | H52: 0 | I52: 0 | K52: ='Injection dependence'!$E52 -> 0.7140572398 | L52: =IF('Injection dependence'!B52=0, ,$F$3/suns-'Injection dependence'!B52) -> -1.366690659 | P52: J | Q52: V
D53: 0 | E53: 0 | F53: 0 | G53: 0 | H53: 0 | I53: 0 | K53: ='Injection dependence'!$E53 -> 0.7169532849 | L53: =IF('Injection dependence'!B53=0, ,$F$3/suns-'Injection dependence'!B53) -> -1.866113595 | P53: =OFFSET(H10,Q45-10,0) -> 0.001387031213 | Q53: =OFFSET(I10,Q45-10,0) -> 0.6867534529
D54: 0 | E54: 0 | F54: 0 | G54: 0 | H54: 0 | I54: 0 | K54: ='Injection dependence'!$E54 -> 0.719799069 | L54: =IF('Injection dependence'!B54=0, ,$F$3/suns-'Injection dependence'!B54) -> -2.542990481 | P54: =OFFSET(H10,Q45-9,0) -> -6.997031165e-09 | Q54: =OFFSET(I10,Q45-9,0) -> 0.6997080429
D55: 0 | E55: 0 | F55: 0 | G55: 0 | H55: 0 | I55: 0 | K55: ='Injection dependence'!$E55 -> 0.7226112106 | L55: =IF('Injection dependence'!B55=0, ,$F$3/suns-'Injection dependence'!B55) -> -3.460373894
D56: 0 | E56: 0 | F56: 0 | G56: 0 | H56: 0 | I56: 0 | K56: ='Injection dependence'!$E56 -> 0.7254029289 | L56: =IF('Injection dependence'!B56=0, ,$F$3/suns-'Injection dependence'!B56) -> -4.703720129
D57: 0 | E57: 0 | F57: 0 | G57: 0 | H57: 0 | I57: 0 | K57: ='Injection dependence'!$E57 -> 0.7281844341 | L57: =IF('Injection dependence'!B57=0, ,$F$3/suns-'Injection dependence'!B57) -> -6.388849636
D58: 0 | E58: 0 | F58: 0 | G58: 0 | H58: 0 | I58: 0 | K58: ='Injection dependence'!$E58 -> 0.7309634108 | L58: =IF('Injection dependence'!B58=0, ,$F$3/suns-'Injection dependence'!B58) -> -8.672735956
D59: 0 | E59: 0 | F59: 0 | G59: 0 | H59: 0 | I59: 0 | K59: ='Injection dependence'!$E59 -> 0.733745482 | L59: =IF('Injection dependence'!B59=0, ,$F$3/suns-'Injection dependence'!B59) -> -11.76812815
D60: 0 | E60: 0 | F60: 0 | G60: 0 | H60: 0 | I60: 0 | K60: ='Injection dependence'!$E60 -> 0.7365345806 | L60: =IF('Injection dependence'!B60=0, ,$F$3/suns-'Injection dependence'!B60) -> -15.96336885
D61: 0 | E61: 0 | F61: 0 | G61: 0 | H61: 0 | I61: 0 | K61: ='Injection dependence'!$E61 -> 0 | L61: =IF('Injection dependence'!B61=0, ,$F$3/suns-'Injection dependence'!B61) -> 0
D62: 0 | E62: 0 | F62: 0 | G62: 0 | H62: 0 | I62: 0 | K62: ='Injection dependence'!$E62 -> 0 | L62: =IF('Injection dependence'!B62=0, ,$F$3/suns-'Injection dependence'!B62) -> 0
D63: 0 | E63: 0 | F63: 0 | G63: 0 | H63: 0 | I63: 0 | K63: ='Injection dependence'!$E63 -> 0 | L63: =IF('Injection dependence'!B63=0, ,$F$3/suns-'Injection dependence'!B63) -> 0
D64: 0 | E64: 0 | F64: 0 | G64: 0 | H64: 0 | I64: 0 | K64: ='Injection dependence'!$E64 -> 0 | L64: =IF('Injection dependence'!B64=0, ,$F$3/suns-'Injection dependence'!B64) -> 0
D65: 0 | E65: 0 | F65: 0 | G65: 0 | H65: 0 | I65: 0 | K65: ='Injection dependence'!$E65 -> 0 | L65: =IF('Injection dependence'!B65=0, ,$F$3/suns-'Injection dependence'!B65) -> 0
D66: 0 | E66: 0 | F66: 0 | G66: 0 | H66: 0 | I66: 0 | K66: ='Injection dependence'!$E66 -> 0 | L66: =IF('Injection dependence'!B66=0, ,$F$3/suns-'Injection dependence'!B66) -> 0
D67: 0 | E67: 0 | F67: 0 | G67: 0 | H67: 0 | I67: 0 | K67: ='Injection dependence'!$E67 -> 0 | L67: =IF('Injection dependence'!B67=0, ,$F$3/suns-'Injection dependence'!B67) -> 0
D68: 0 | E68: 0 | F68: 0 | G68: 0 | H68: 0 | I68: 0 | K68: ='Injection dependence'!$E68 -> 0 | L68: =IF('Injection dependence'!B68=0, ,$F$3/suns-'Injection dependence'!B68) -> 0
D69: 0 | E69: 0 | F69: 0 | G69: 0 | H69: 0 | I69: 0 | K69: ='Injection dependence'!$E69 -> 0 | L69: =IF('Injection dependence'!B69=0, ,$F$3/suns-'Injection dependence'!B69) -> 0
D70: 0 | E70: 0 | F70: 0 | G70: 0 | H70: 0 | I70: 0 | K70: ='Injection dependence'!$E70 -> 0 | L70: =IF('Injection dependence'!B70=0, ,$F$3/suns-'Injection dependence'!B70) -> 0
D71: 0 | E71: 0 | F71: 0 | G71: 0 | H71: 0 | I71: 0 | K71: ='Injection dependence'!$E71 -> 0 | L71: =IF('Injection dependence'!B71=0, ,$F$3/suns-'Injection dependence'!B71) -> 0
D72: 0 | E72: 0 | F72: 0 | G72: 0 | H72: 0 | I72: 0 | K72: ='Injection dependence'!$E72 -> 0 | L72: =IF('Injection dependence'!B72=0, ,$F$3/suns-'Injection dependence'!B72) -> 0
D73: 0 | E73: 0 | F73: 0 | G73: 0 | H73: 0 | I73: 0 | K73: ='Injection dependence'!$E73 -> 0 | L73: =IF('Injection dependence'!B73=0, ,$F$3/suns-'Injection dependence'!B73) -> 0
D74: 0 | E74: 0 | F74: 0 | G74: 0 | H74: 0 | I74: 0 | K74: ='Injection dependence'!$E74 -> 0 | L74: =IF('Injection dependence'!B74=0, ,$F$3/suns-'Injection dependence'!B74) -> 0
D75: 0 | E75: 0 | F75: 0 | G75: 0 | H75: =B75-C75/$D$7 -> 0 | I75: =C75-B75*$E$7 -> 0 | K75: ='Injection dependence'!$E75 -> 0 | L75: =IF('Injection dependence'!B75=0, ,$F$3/suns-'Injection dependence'!B75) -> 0
D76: =B76*C76 -> 0 | E76: =B76 -> 0 | F76: =C76 -> 0 | G76: =H76*I76 -> 0 | H76: 0 | I76: 0 | K76: ='Injection dependence'!$E76 -> 0 | L76: =IF('Injection dependence'!B76=0, ,$F$3/suns-'Injection dependence'!B76) -> 0 | M76: =IF(AND(I76<0,I77>0),ROW(),"") ->  | N76: =IF(AND(H76>0,H77<0),ROW(),"") -> 
D77: 0 | E77: 0 | F77: 0 | G77: 0 | H77: 0 | I77: 0 | K77: ='Injection dependence'!$E77 -> 0 | L77: =IF('Injection dependence'!B77=0, ,$F$3/suns-'Injection dependence'!B77) -> 0
D78: 0 | E78: 0 | F78: 0 | G78: 0 | H78: 0 | I78: 0 | K78: ='Injection dependence'!$E78 -> 0 | L78: =IF('Injection dependence'!B78=0, ,$F$3/suns-'Injection dependence'!B78) -> 0
D79: 0 | E79: 0 | F79: 0 | G79: 0 | H79: 0 | I79: 0 | K79: ='Injection dependence'!$E79 -> 0 | L79: =IF('Injection dependence'!B79=0, ,$F$3/suns-'Injection dependence'!B79) -> 0
D80: 0 | E80: 0 | F80: 0 | G80: 0 | H80: 0 | I80: 0 | K80: ='Injection dependence'!$E80 -> 0 | L80: =IF('Injection dependence'!B80=0, ,$F$3/suns-'Injection dependence'!B80) -> 0
D81: 0 | E81: 0 | F81: 0 | G81: 0 | H81: 0 | I81: 0 | K81: ='Injection dependence'!$E81 -> 0 | L81: =IF('Injection dependence'!B81=0, ,$F$3/suns-'Injection dependence'!B81) -> 0
D82: 0 | E82: 0 | F82: 0 | G82: 0 | H82: 0 | I82: 0 | K82: ='Injection dependence'!$E82 -> 0 | L82: =IF('Injection dependence'!B82=0, ,$F$3/suns-'Injection dependence'!B82) -> 0
D83: 0 | E83: 0 | F83: 0 | G83: 0 | H83: 0 | I83: 0 | K83: ='Injection dependence'!$E83 -> 0 | L83: =IF('Injection dependence'!B83=0, ,$F$3/suns-'Injection dependence'!B83) -> 0
D84: 0 | E84: 0 | F84: 0 | G84: 0 | H84: 0 | I84: 0 | K84: ='Injection dependence'!$E84 -> 0 | L84: =IF('Injection dependence'!B84=0, ,$F$3/suns-'Injection dependence'!B84) -> 0
D85: 0 | E85: 0 | F85: 0 | G85: 0 | H85: 0 | I85: 0 | K85: ='Injection dependence'!$E85 -> 0 | L85: =IF('Injection dependence'!B85=0, ,$F$3/suns-'Injection dependence'!B85) -> 0
D86: 0 | E86: 0 | F86: 0 | G86: 0 | H86: 0 | I86: 0 | K86: ='Injection dependence'!$E86 -> 0 | L86: =IF('Injection dependence'!B86=0, ,$F$3/suns-'Injection dependence'!B86) -> 0
D87: 0 | E87: 0 | F87: 0 | G87: 0 | H87: 0 | I87: 0 | K87: ='Injection dependence'!$E87 -> 0 | L87: =IF('Injection dependence'!B87=0, ,$F$3/suns-'Injection dependence'!B87) -> 0
D88: 0 | E88: 0 | F88: 0 | G88: 0 | H88: 0 | I88: 0 | K88: ='Injection dependence'!$E88 -> 0 | L88: =IF('Injection dependence'!B88=0, ,$F$3/suns-'Injection dependence'!B88) -> 0
D89: 0 | E89: 0 | F89: 0 | G89: 0 | H89: 0 | I89: 0 | K89: ='Injection dependence'!$E89 -> 0 | L89: =IF('Injection dependence'!B89=0, ,$F$3/suns-'Injection dependence'!B89) -> 0
D90: 0 | E90: 0 | F90: 0 | G90: 0 | H90: 0 | I90: 0 | K90: ='Injection dependence'!$E90 -> 0 | L90: =IF('Injection dependence'!B90=0, ,$F$3/suns-'Injection dependence'!B90) -> 0
D91: 0 | E91: 0 | F91: 0 | G91: 0 | H91: 0 | I91: 0 | K91: ='Injection dependence'!$E91 -> 0 | L91: =IF('Injection dependence'!B91=0, ,$F$3/suns-'Injection dependence'!B91) -> 0
D92: 0 | E92: 0 | F92: 0 | G92: 0 | H92: 0 | I92: 0 | K92: ='Injection dependence'!$E92 -> 0 | L92: =IF('Injection dependence'!B92=0, ,$F$3/suns-'Injection dependence'!B92) -> 0
D93: 0 | E93: 0 | F93: 0 | G93: 0 | H93: 0 | I93: 0 | K93: ='Injection dependence'!$E93 -> 0 | L93: =IF('Injection dependence'!B93=0, ,$F$3/suns-'Injection dependence'!B93) -> 0
D94: 0 | E94: 0 | F94: 0 | G94: 0 | H94: 0 | I94: 0 | K94: ='Injection dependence'!$E94 -> 0 | L94: =IF('Injection dependence'!B94=0, ,$F$3/suns-'Injection dependence'!B94) -> 0
D95: 0 | E95: 0 | F95: 0 | G95: 0 | H95: 0 | I95: 0 | K95: ='Injection dependence'!$E95 -> 0 | L95: =IF('Injection dependence'!B95=0, ,$F$3/suns-'Injection dependence'!B95) -> 0
D96: 0 | E96: 0 | F96: 0 | G96: 0 | H96: 0 | I96: 0 | K96: ='Injection dependence'!$E96 -> 0 | L96: =IF('Injection dependence'!B96=0, ,$F$3/suns-'Injection dependence'!B96) -> 0
D97: 0 | E97: 0 | F97: 0 | G97: 0 | H97: 0 | I97: 0 | K97: ='Injection dependence'!$E97 -> 0 | L97: =IF('Injection dependence'!B97=0, ,$F$3/suns-'Injection dependence'!B97) -> 0
D98: 0 | E98: 0 | F98: 0 | G98: 0 | H98: 0 | I98: 0 | K98: ='Injection dependence'!$E98 -> 0 | L98: =IF('Injection dependence'!B98=0, ,$F$3/suns-'Injection dependence'!B98) -> 0
D99: 0 | E99: 0 | F99: 0 | G99: 0 | H99: 0 | I99: 0 | K99: ='Injection dependence'!$E99 -> 0 | L99: =IF('Injection dependence'!B99=0, ,$F$3/suns-'Injection dependence'!B99) -> 0
D100: 0 | E100: 0 | F100: 0 | G100: 0 | H100: 0 | I100: 0 | K100: ='Injection dependence'!$E100 -> 0 | L100: =IF('Injection dependence'!B100=0, ,$F$3/suns-'Injection dependence'!B100) -> 0
D101: 0 | E101: 0 | F101: 0 | G101: 0 | H101: 0 | I101: 0 | K101: ='Injection dependence'!$E101 -> 0 | L101: =IF('Injection dependence'!B101=0, ,$F$3/suns-'Injection dependence'!B101) -> 0
D102: 0 | E102: 0 | F102: 0 | G102: 0 | H102: 0 | I102: 0 | K102: ='Injection dependence'!$E102 -> 0 | L102: =IF('Injection dependence'!B102=0, ,$F$3/suns-'Injection dependence'!B102) -> 0
D103: 0 | E103: 0 | F103: 0 | G103: 0 | H103: 0 | I103: 0 | K103: ='Injection dependence'!$E103 -> 0 | L103: =IF('Injection dependence'!B103=0, ,$F$3/suns-'Injection dependence'!B103) -> 0
D104: 0 | E104: 0 | F104: 0 | G104: 0 | H104: 0 | I104: 0 | K104: ='Injection dependence'!$E104 -> 0 | L104: =IF('Injection dependence'!B104=0, ,$F$3/suns-'Injection dependence'!B104) -> 0
D105: 0 | E105: 0 | F105: 0 | G105: 0 | H105: 0 | I105: 0 | K105: ='Injection dependence'!$E105 -> 0 | L105: =IF('Injection dependence'!B105=0, ,$F$3/suns-'Injection dependence'!B105) -> 0
D106: 0 | E106: 0 | F106: 0 | G106: 0 | H106: 0 | I106: 0 | K106: ='Injection dependence'!$E106 -> 0 | L106: =IF('Injection dependence'!B106=0, ,$F$3/suns-'Injection dependence'!B106) -> 0 | N106: =IF(AND(H106>0,H107<0),ROW(),"") -> 
D107: 0 | E107: 0 | F107: 0 | G107: 0 | H107: 0 | I107: 0 | K107: ='Injection dependence'!$E107 -> 0 | L107: =IF('Injection dependence'!B107=0, ,$F$3/suns-'Injection dependence'!B107) -> 0
D108: 0 | E108: 0 | F108: 0 | G108: 0 | H108: 0 | I108: 0 | K108: ='Injection dependence'!$E108 -> 0 | L108: =IF('Injection dependence'!B108=0, ,$F$3/suns-'Injection dependence'!B108) -> 0
D109: 0 | E109: 0 | F109: 0 | G109: 0 | H109: 0 | I109: 0 | K109: ='Injection dependence'!$E109 -> 0 | L109: =IF('Injection dependence'!B109=0, ,$F$3/suns-'Injection dependence'!B109) -> 0
D110: 0 | E110: 0 | F110: 0 | G110: 0 | H110: 0 | I110: 0 | K110: ='Injection dependence'!$E110 -> 0 | L110: =IF('Injection dependence'!B110=0, ,$F$3/suns-'Injection dependence'!B110) -> 0
A251: 7.914877767e+12 | B251: 0.047359442 | C251: 0.5308528792
A252: 8.066389748e+12 | B252: 0.04735031804 | C252: 0.5313433518
A253: 8.220285499e+12 | B253: 0.0473410504 | C253: 0.5318322046
A254: 8.376594883e+12 | B254: 0.04733163727 | C254: 0.5323194496
A255: 8.535348049e+12 | B255: 0.04732207683 | C255: 0.5328050988
A256: 8.696575434e+12 | B256: 0.04731236724 | C256: 0.5332891641
A257: 8.860307765e+12 | B257: 0.04730250664 | C257: 0.5337716572
A258: 9.026576061e+12 | B258: 0.04729249316 | C258: 0.5342525897
A259: 9.195411637e+12 | B259: 0.0472823249 | C259: 0.534731973
A260: 9.366846103e+12 | B260: 0.04727199996 | C260: 0.5352098185
A261: 9.540911366e+12 | B261: 0.0472615164 | C261: 0.5356861373
A262: 9.717639637e+12 | B262: 0.04725087227 | C262: 0.5361609405
A263: 9.897063426e+12 | B263: 0.04724006561 | C263: 0.5366342391
A264: 1.007921555e+13 | B264: 0.04722909444 | C264: 0.5371060439
A265: 1.026412913e+13 | B265: 0.04721795674 | C265: 0.5375763656
A266: 1.04518376e+13 | B266: 0.04720665051 | C266: 0.5380452148
A267: 1.064237471e+13 | B267: 0.04719517369 | C267: 0.538512602
A268: 1.08357745e+13 | B268: 0.04718352422 | C268: 0.5389785376
A269: 1.103207134e+13 | B269: 0.04717170004 | C269: 0.5394430318
A270: 1.123129994e+13 | B270: 0.04715969903 | C270: 0.5399060947
A271: 1.143349528e+13 | B271: 0.04714751907 | C271: 0.5403677364
A272: 1.163869271e+13 | B272: 0.04713515804 | C272: 0.5408279669
A273: 1.184692787e+13 | B273: 0.04712261377 | C273: 0.5412867959
A274: 1.205823675e+13 | B274: 0.04710988408 | C274: 0.5417442332
A275: 1.227265564e+13 | B275: 0.04709696677 | C275: 0.5422002884
A276: 1.24902212e+13 | B276: 0.04708385963 | C276: 0.542654971
A277: 1.271097038e+13 | B277: 0.04707056042 | C277: 0.5431082905
A278: 1.293494049e+13 | B278: 0.04705706687 | C278: 0.5435602561
A279: 1.316216917e+13 | B279: 0.04704337672 | C279: 0.5440108772
A280: 1.33926944e+13 | B280: 0.04702948764 | C280: 0.5444601627
A281: 1.362655451e+13 | B281: 0.04701539733 | C281: 0.5449081219
A282: 1.386378816e+13 | B282: 0.04700110345 | C282: 0.5453547635
A283: 1.410443437e+13 | B283: 0.04698660361 | C283: 0.5458000966
A284: 1.434853249e+13 | B284: 0.04697189545 | C284: 0.5462441297
A285: 1.459612223e+13 | B285: 0.04695697655 | C285: 0.5466868717
A286: 1.484724365e+13 | B286: 0.04694184449 | C286: 0.5471283311
A287: 1.510193719e+13 | B287: 0.04692649681 | C287: 0.5475685164
A288: 1.53602436e+13 | B288: 0.04691093104 | C288: 0.5480074361
A289: 1.562220404e+13 | B289: 0.04689514468 | C289: 0.5484450984
A290: 1.588785999e+13 | B290: 0.04687913523 | C290: 0.5488815116
A291: 1.615725332e+13 | B291: 0.04686290013 | C291: 0.549316684
A292: 1.643042627e+13 | B292: 0.04684643683 | C292: 0.5497506236
A293: 1.670742142e+13 | B293: 0.04682974274 | C293: 0.5501833383
A294: 1.698828176e+13 | B294: 0.04681281525 | C294: 0.5506148362
A295: 1.727305062e+13 | B295: 0.04679565174 | C295: 0.5510451252
A296: 1.756177173e+13 | B296: 0.04677824954 | C296: 0.5514742129
A297: 1.785448919e+13 | B297: 0.04676060598 | C297: 0.5519021071
A298: 1.815124749e+13 | B298: 0.04674271837 | C298: 0.5523288155
A299: 1.845209148e+13 | B299: 0.04672458396 | C299: 0.5527543455
A300: 1.875706642e+13 | B300: 0.04670620002 | C300: 0.5531787048
A301: 1.906621795e+13 | B301: 0.04668756377 | C301: 0.5536019007
A302: 1.93795921e+13 | B302: 0.04666867242 | C302: 0.5540239405
A303: 1.969723531e+13 | B303: 0.04664952313 | C303: 0.5544448316
A304: 2.001919439e+13 | B304: 0.04663011308 | C304: 0.5548645811
A305: 2.034551656e+13 | B305: 0.04661043938 | C305: 0.5552831962
A306: 2.067624945e+13 | B306: 0.04659049914 | C306: 0.5557006841
A307: 2.101144108e+13 | B307: 0.04657028945 | C307: 0.5561170516
A308: 2.135113989e+13 | B308: 0.04654980734 | C308: 0.5565323057
A309: 2.169539471e+13 | B309: 0.04652904986 | C309: 0.5569464534
A310: 2.204425481e+13 | B310: 0.04650801401 | C310: 0.5573595015
A311: 2.239776984e+13 | B311: 0.04648669676 | C311: 0.5577714566
A312: 2.275598989e+13 | B312: 0.04646509506 | C312: 0.5581823256
A313: 2.311896547e+13 | B313: 0.04644320585 | C313: 0.5585921151
A314: 2.34867475e+13 | B314: 0.04642102601 | C314: 0.5590008315
A315: 2.385938732e+13 | B315: 0.04639855243 | C315: 0.5594084816
A316: 2.423693673e+13 | B316: 0.04637578195 | C316: 0.5598150716
A317: 2.461944791e+13 | B317: 0.04635271139 | C317: 0.5602206081
A318: 2.500697352e+13 | B318: 0.04632933754 | C318: 0.5606250973
A319: 2.539956662e+13 | B319: 0.04630565717 | C319: 0.5610285456
A320: 2.579728073e+13 | B320: 0.04628166701 | C320: 0.5614309592
A321: 2.620016981e+13 | B321: 0.04625736377 | C321: 0.5618323442
A322: 2.660828824e+13 | B322: 0.04623274415 | C322: 0.5622327069
A323: 2.702169087e+13 | B323: 0.04620780479 | C323: 0.5626320532
A324: 2.744043298e+13 | B324: 0.04618254232 | C324: 0.5630303893
A325: 2.786457033e+13 | B325: 0.04615695334 | C325: 0.563427721
A326: 2.829415911e+13 | B326: 0.04613103442 | C326: 0.5638240543
A327: 2.872925597e+13 | B327: 0.0461047821 | C327: 0.5642193951
A328: 2.916991802e+13 | B328: 0.04607819289 | C328: 0.5646137492
A329: 2.961620284e+13 | B329: 0.04605126329 | C329: 0.5650071223
A330: 3.006816846e+13 | B330: 0.04602398973 | C330: 0.5653995202
A331: 3.052587341e+13 | B331: 0.04599636866 | C331: 0.5657909485
A332: 3.098937666e+13 | B332: 0.04596839646 | C332: 0.5661814128
A333: 3.145873766e+13 | B333: 0.0459400695 | C333: 0.5665709188
A334: 3.193401635e+13 | B334: 0.04591138411 | C334: 0.566959472
A335: 3.241527313e+13 | B335: 0.04588233661 | C335: 0.5673470778
A336: 3.290256889e+13 | B336: 0.04585292326 | C336: 0.5677337417
A337: 3.339596502e+13 | B337: 0.04582314032 | C337: 0.5681194691
A338: 3.389552338e+13 | B338: 0.04579298399 | C338: 0.5685042654
A339: 3.440130633e+13 | B339: 0.04576245046 | C339: 0.5688881357
A340: 3.491337672e+13 | B340: 0.04573153588 | C340: 0.5692710855
... 270 more rows

Sheet spectral
H1: Preferably, select the Jsc calculation mode in the main sheet to fast. For high resistivity substrates you may need to select Jsc "generic" calculation to achieve convergence
C2: Plank constant | D2: speed light | H2: Note: you may select in the main sheet a non-zero emitter thickness to represent losses in the emitter.
B3: lambda to energy | C3: h (eV/s) | D3: c (cm/s) | H3: such thickness is considered to be an extra layer of silicon that absorbs photons but is electronically inactive (dead)
B4: =C4*D4*10000 -> 1.239841874 | C4: 4.13566733e-15 | D4: 29979245800 | H4: The spectral response can be strongly dependent on the injection level, that is, on the monochromatic intensity chosen in the main sheet.
A5: selected | B5: selected | C5: selected | D5: selected | E5: Selected | H5: WARNING: this macro takes some time!
A6: spectrum | B6: Wavelengh | C6: alpha | D6: Transmission | E6: Nph_monochr | K6: suns used in calculation | L6: Suns setting | M6: Jph(1sun) | N6: illumination | O6: Jsc calculation mode
A7: =Spectrum -> AM1.5Global | B7: =VLOOKUP(Wavelength,A10:E99,1) -> 500 | C7: =VLOOKUP(Wavelength,A10:C99,3) -> 13800 | D7: =Generation!C7 -> 0.9977287836 | E7: =Nph -> 2.517084932e+17 | K7: 0.001 | L7: =suns -> 1 | M7: ='carrier profile'!M6 -> 0.1 | N7: ='carrier profile'!N8 -> front | O7: ='carrier profile'!H13 -> fast | Q7: Alpha Si
A8: lambda | B8: photon energy | C8: Alpha Si | D8: Transmission | E8: current | F8: Nph | G8: suns | H8: EQE | I8: IQE | J8: Jph | Q8: (from PC1D)
A9: nm | B9: eV | D9: factor | F9: (transmitted ) | L9: dead layer | M9: Jof (T) | N9: Job (T) | Q9: (not used)
A10: 310 | B10: =$B$4/(A10*0.001) -> 3.999489917 | C10: 1440000 | D10: 0.5971423721 | E10: 0.009618263797 | F10: 1.560592658e+17 | G10: 1 | H10: =$E10/q/$F10/$G10 -> 0.3846772924 | I10: =H10/D10 -> 0.6441969459 | J10: 0.009618543266 | K10: =D10*F10*q -> 0.0149306262 | L10: =We -> 0 | M10: =Jof -> 4e-14 | N10: =Job -> 1e-12 | Q10: 1440000
A11: 320 | B11: 3.874505857 | C11: 1280000 | D11: 0.628527627 | E11: 0.01097361878 | F11: 1.610934357e+17 | G11: 1 | H11: =$E11/q/$F11/$G11 -> 0.4251688622 | I11: =H11/D11 -> 0.6764521461 | J11: 0.01097394595 | Q11: 1280000
A12: 330 | B12: 3.757096589 | C12: 1190000 | D12: 0.6553006904 | E12: 0.01220162454 | F12: 1.661276055e+17 | G12: 1 | H12: 0.4584218161 | I12: 0.699559489 | J12: 0.01220199718 | Q12: 1170000
A13: 340 | B13: 3.646593748 | C13: 1120000 | D13: 0.6796515655 | E13: 0.0133609523 | F13: 1.711617754e+17 | G13: 1 | H13: 0.4872143337 | I13: 0.7168589884 | J13: 0.01336136927 | Q13: 1090000
A14: 350 | B14: 3.542405355 | C14: 1080000 | D14: 0.6999592776 | E14: 0.01438280657 | F14: 1.761959452e+17 | G14: 1 | H14: 0.5094917495 | I14: 0.7278877011 | J14: 0.01438326246 | Q14: 1040000
A15: 360 | B15: 3.444005206 | C15: 1040000 | D15: 0.7100700288 | E15: 0.01509936755 | F15: 1.812301151e+17 | G15: 1 | H15: 0.520017329 | I15: 0.7323465404 | J15: 0.01509984929 | Q15: 1020000
A16: 370 | B16: 3.350923985 | C16: 732000 | D16: 0.7499913814 | E16: 0.01809030501 | F16: 1.86264285e+17 | G16: 1 | H16: 0.6061857535 | I16: 0.8082569594 | J16: 0.01809098741 | Q16: 697000
A17: 380 | B17: 3.262741775 | C17: 292000 | D17: 0.8225876479 | E17: 0.02305256247 | F17: 1.912984548e+17 | G17: 1 | H17: 0.7521373769 | I17: 0.9143553016 | J17: 0.02305405848 | Q17: 293000
A18: 390 | B18: 3.179081729 | C18: 170000 | D18: 0.8761627804 | E18: 0.02632378431 | F18: 1.963326247e+17 | G18: 1 | H18: 0.8368454842 | I18: 0.9551255805 | J18: 0.02632663014 | Q18: 150000
A19: 400 | B19: =$B$4/(A19*0.001) -> 3.099604686 | C19: 107000 | D19: 0.9119031812 | E19: 0.02857286086 | F19: 2.013667946e+17 | G19: 1 | H19: 0.8856360681 | I19: 0.971195283 | J19: 0.02857735354 | Q19: 95200
A20: 410 | B20: 3.024004572 | C20: 78000 | D20: 0.937475387 | E20: 0.03036351283 | F20: 2.064009644e+17 | G20: 1 | H20: 0.918183995 | I20: 0.9794219749 | J20: 0.03036992881 | Q20: 67400
A21: 420 | B21: 2.952004463 | C21: 57300 | D21: 0.9560918228 | E21: 0.03188873325 | F21: 2.114351343e+17 | G21: 1 | H21: 0.9413465549 | I21: 0.9845775609 | J21: 0.03189748748 | Q21: 50000
A22: 430 | B22: 2.883353196 | C22: 46300 | D22: 0.9694890432 | E22: 0.03321262142 | F22: 2.164693042e+17 | G22: 1 | H22: 0.9576267297 | I22: 0.9877643656 | J22: 0.03322394565 | Q22: 39200
A23: 440 | B23: 2.817822442 | C23: 37000 | D23: 0.979070106 | E23: 0.03440314258 | F23: 2.21503474e+17 | G23: 1 | H23: 0.9694088921 | I23: 0.9901322553 | J23: 0.03441759444 | Q23: 31100
A24: 450 | B24: 2.755204165 | C24: 30600 | D24: 0.9858636995 | E24: 0.03548686302 | F24: 2.265376439e+17 | G24: 1 | H24: 0.9777248572 | I24: 0.9917444548 | J24: 0.03550471996 | Q24: 25500
A25: 460 | B25: 2.695308422 | C25: 24500 | D25: 0.9905261142 | E25: 0.03649356111 | F25: 2.315718138e+17 | G25: 1 | H25: 0.9836032912 | I25: 0.9930109637 | J25: 0.03651549907 | Q25: 21000
A26: 470 | B26: 2.637961435 | C26: 21800 | D26: 0.993651976 | E26: 0.03744345231 | F26: 2.366059836e+17 | G26: 1 | H26: 0.9877330516 | I26: 0.994043262 | J26: 0.03747050817 | Q26: 17200
A27: 480 | B27: 2.583003905 | C27: 18200 | D27: 0.9956758972 | E27: 0.0383419759 | F27: 2.416401535e+17 | G27: 1 | H27: 0.9903639258 | I27: 0.9946649594 | J27: 0.03837381144 | Q27: 14800
A28: 490 | B28: 2.530289539 | C28: 15900 | D28: 0.9969599393 | E28: 0.03921142203 | F28: 2.466743233e+17 | G28: 1 | H28: 0.9921516815 | I28: 0.9951770803 | J28: 0.03924894516 | Q28: 12700
A29: 500 | B29: 2.479683749 | C29: 13800 | D29: 0.9977287836 | E29: 0.04005697664 | F29: 2.517084932e+17 | G29: 1 | H29: 0.9932754993 | I29: 0.9955365783 | J29: 0.04010041757 | Q29: 11100
A30: 510 | B30: 2.431062499 | C30: 11800 | D30: 0.9981721899 | E30: 0.04088783268 | F30: 2.567426631e+17 | G30: 1 | H30: 0.9939979183 | I30: 0.9958180846 | J30: 0.04093810119 | Q30: 9700
A31: 520 | B31: 2.384311297 | C31: 10200 | D31: 0.9984038042 | E31: 0.04170584103 | F31: 2.617768329e+17 | G31: 1 | H31: 0.9943862263 | I31: 0.995975999 | J31: 0.04176197023 | Q31: 8800
A32: 530 | B32: 2.339324291 | C32: 9270 | D32: 0.9984835366 | E32: 0.04251719677 | F32: 2.668110028e+17 | G32: 1 | H32: 0.9946042568 | I32: 0.9961148285 | J32: 0.04258083495 | Q32: 7850
A33: 540 | B33: 2.296003471 | C33: 8100 | D33: 0.9984641075 | E33: 0.04332234344 | F33: 2.718451727e+17 | G33: 1 | H33: 0.9946716531 | I33: 0.9962017118 | J33: 0.04339400215 | Q33: 7050
A34: 550 | B34: 2.254257953 | C34: 7150 | D34: 0.9983591719 | E34: 0.04412190191 | F34: 2.768793425e+17 | G34: 1 | H34: 0.9946106277 | I34: 0.996245295 | J34: 0.04420185725 | Q34: 6390
A35: 560 | B35: 2.214003347 | C35: 6450 | D35: 0.9981880431 | E35: 0.04491686001 | F35: 2.819135124e+17 | G35: 1 | H35: 0.9944499305 | I35: 0.9962551018 | J35: 0.04500619556 | Q35: 5780
A36: 570 | B36: 2.175161183 | C36: 5940 | D36: 0.9979495686 | E36: 0.04570721507 | F36: 2.869476823e+17 | G36: 1 | H36: 0.9941947494 | I36: 0.996237466 | J36: 0.04580536697 | Q36: 5320
A37: 580 | B37: 2.137658404 | C37: 5430 | D37: 0.9976486967 | E37: 0.04649305491 | F37: 2.919818521e+17 | G37: 1 | H37: 0.9938518486 | I37: 0.9961942033 | J37: 0.04660117865 | Q37: 4880
A38: 590 | B38: 2.101426906 | C38: 4770 | D38: 0.9972760188 | E38: 0.04727387684 | F38: 2.97016022e+17 | G38: 1 | H38: 0.993415125 | I38: 0.9961285604 | J38: 0.04739258266 | Q38: 4490
A39: 600 | B39: 2.066403124 | C39: 4400 | D39: 0.9968379373 | E39: 0.04804983236 | F39: 3.020501918e+17 | G39: 1 | H39: 0.9928924005 | I39: 0.9960419476 | J39: 0.04817982442 | Q39: 4140
A40: 610 | B40: 2.032527663 | C40: 4090 | D40: 0.9963314246 | E40: 0.04882034524 | F40: 3.070843617e+17 | G40: 1 | H40: 0.9922761924 | I40: 0.9959298362 | J40: 0.04896286609 | Q40: 4140
A41: 620 | B41: 1.999744959 | C41: 3820 | D41: 0.9957607645 | E41: 0.04958583489 | F41: 3.121185316e+17 | G41: 1 | H41: 0.9915794113 | I41: 0.9958008456 | J41: 0.04974143691 | Q41: 3520
A42: 630 | B42: =$B$4/(A42*0.001) -> 1.968002975 | C42: 3550 | D42: 0.995114077 | E42: 0.05034582571 | F42: 3.171527014e+17 | G42: 1 | H42: =$E42/q/$F42/$G42 -> 0.9907965343 | I42: 0.9956612586 | J42: 0.05051474918 | Q42: 3520
A43: 640 | B43: 1.937252929 | C43: 3280 | D43: 0.9944058366 | E43: 0.05110049532 | F43: 3.221868713e+17 | G43: 1 | H43: 0.989935038 | I43: 0.9955040504 | J43: 0.05128364938 | Q43: 3040
A44: 650 | B44: 1.907449037 | C44: 3020 | D44: 0.9936341946 | E44: 0.05184868846 | F44: 3.272210412e+17 | G44: 1 | H44: 0.9889765153 | I44: 0.9953124809 | J44: 0.05204819475 | Q44: 3040
A45: 660 | B45: 1.878548294 | C45: 2770 | D45: 0.992808717 | E45: 0.05259023562 | F45: 3.32255211e+17 | G45: 1 | H45: 0.987922192 | I45: 0.9950780801 | J45: 0.05280873991 | Q45: 2580
A46: 670 | B46: 1.85051026 | C46: 2530 | D46: 0.991933449 | E46: 0.05332676291 | F46: 3.372893809e+17 | G46: 1 | H46: 0.9868064491 | I46: 0.9948313065 | J46: 0.05356488157 | Q46: 2580
A47: 680 | B47: 1.823296874 | C47: 2340 | D47: 0.9910167681 | E47: 0.05405915906 | F47: 3.423235508e+17 | G47: 1 | H47: 0.9856481998 | I47: 0.9945827675 | J47: 0.05431693698 | Q47: 2210
A48: 690 | B48: 1.796872282 | C48: 2170 | D48: 0.9900514886 | E48: 0.05478559513 | F48: 3.473577206e+17 | G48: 1 | H48: 0.9844164292 | I48: 0.9943083168 | J48: 0.05506472142 | Q48: 2210
A49: 700 | B49: 1.771202678 | C49: 2000 | D49: 0.9890541139 | E49: 0.05550679276 | F49: 3.523918905e+17 | G49: 1 | H49: 0.9831270697 | I49: 0.9940073611 | J49: 0.05580904114 | Q49: 1900
A50: 710 | B50: 1.746256161 | C50: 1860 | D50: 0.988009196 | E50: 0.05622318917 | F50: 3.574260604e+17 | G50: 1 | H50: 0.9817901894 | I50: 0.9937055175 | J50: 0.05654875438 | Q50: 1900
A51: 720 | B51: 1.722002603 | C51: 1710 | D51: 0.9869407285 | E51: 0.05693674441 | F51: 3.624602302e+17 | G51: 1 | H51: 0.9804415203 | I51: 0.9934147938 | J51: 0.05728512476 | Q51: 1660
